Workbook

Sheet Guidance
B2: Guidance
B4: Version | C4: Date | D4: Description | E4: Prepared by | F4: Approved by
B5: 1.0 | C5: 24th December 2020 | D5: First version | E5: C. Collins & M. Charalambous (Baringa Partners) | F5: S. Brooke (ENWL/ENA)
B6: 2.0 | C6: 10th December 2021 | D6: Second version | E6: C. Collins & A. Townsend (Baringa Partners) | F6: S. Brooke (ENWL/ENA)
B7: 3.0 | C7: 10th September 2024 | D7: Third version | E7: C. Collins (Baringa Partners) | F7: Peter Gaskin (NGED/ENA)
B9: Group | C9: Tab Name | D9: Instructions
B10: Intro | C10: Purpose of CBA | D10: Describes the aim of the investment decision
B11: Inputs | C11: Control | D11: Defines modelling parameters and sets up the model structure
C12: Baseline Reinforcement | D12: Reinforcement costs and site capacity (current, projections by scenario). The Baseline option is the reinforcement option in this tool
C13: Flex input a) Flex Cost Inputs | D13: Flexibility cost estimates are input directly
C14: Flex input b) Flex Volume and Cost Inputs | D14: Flexibility volume requirements and price assumptions are input
C15: Flex Costs Summary | D15: Summary flexibility cost data given selected inputs, including option to add in multi-year flexibility procurement discounts
C16: Fixed Inputs | D16: Financial assumptions and prices applicable to the business
C17: Incentives and Penalties | D17: Impacts related to incentives and penalties for each scenario i.e. losses, CIs, CMLs
C18: Embedded emissions inputs | D18: Assumptions on emissions embedded in assets used for reinforcement
C19: Carbon impacts | D19: Impacts related to carbon emissions for each scenario i.e. losses, embedded emissions, load shifting
C20: Workings | D20: (Optional input) Calculations used to derive flexibility requirements and/or incentive-related impacts
C21: Additional inputs and control | D21: Defines additional inputs, and runs the benefit analysis and ceiling price calculations
B22: Analysis and Insights | C22: Benefit by strategy | D22: CBA results showing the Net Present Value (NPV) by scenario, strategy and deferral duration.
C23: Insights and Reporting | D23: Insights on optimal deferral years and maximum flexibility value for specific strategies and scenarios, and across scenarios on a Least Worst Regret and Weighted Average basis
C24: Simple Ceiling Price | D24: Calculates the ceiling price (or indifference price) above which flexibility of any duration is sub-optimal, based only on the benefit from the initial contract, excluding any further upside in subsequent years
C25: Ceiling price | D25: Calculates the ceiling price (or indifference price) above which flexibility of any duration is sub-optimal, accounting for the benefit from the initial contract and any further upside in subsequent years
C26: Option value | D26: Calculates the intrinsic value, uncertainty value and total option value of flexibility or a selected strategy
B27: Background calculations | C27: Comparison | D27: Tabs with no user input required. The NPV of each option (Baseline, and up to 10 combinations of scenarios and strategies) is calculated, following the standard Ofgem CBA methodology. The NPV results are linked through and presented in the Results and Insight tabs.
C28: Baseline
C29: Config 1-10
B30: Ofgem CBA tabs | C30: Fixed Data | D30: Mirror of the Fixed Data tab in the Ofgem CBA template, which needs to be updated as and when the Ofgem template is updated
B31: Import/export | C31: compiled_inputs | D31: Directly references input cells in a single list for the purpose of saving inputs to a new import/export tab
C32: default_inputs, etc. | D32: default_inputs is a simple instance of the model that can be used to start a new analysis. All subsequent tabs can be used to load or save instances, and the user can duplicate and rename these as required
C34: Key
C35: Drop-down
C36: Manual input
C37: Calculated output
C38: Macro-populated output
C40: The user should populate the yellow cells. All other cells are either fixed or auto-populated. Costs should be entered as positive values. In turn, Benefits (i.e. avoided costs) should be entered as negative values. Costs entered should correspond to values set out in company business plans (i.e. should exclude RPEs and include ongoing efficiencies consistent with assumptions contained in your business plan submission). In order to avoid accidental editing of calculation fields, the sheets in this workbook are protected. Protection can be removed, however, without the need for a password. Some of the functionality within this tool may be lost when using older versions of MS Excel.

Sheet Purpose of CBA
B2: Purpose of CBA
B4: Purpose of CBA: describe the stated aim of the investment decision
B7: If investment is to replace an existing asset / asset class, please state the condition of the asset / asset class (HI / CI etc.)

Sheet Control
A2: Control
H4: Click if changing any of the inputs on this or the Fixed Inputs sheet
E5: Potential long list of scenarios and strategies (user-defined)
E6: Market scenario | F6: Strategy
E7: smaller value flex | F7: Flexibility | H7: Edit input parameters
E8: larger value flex | F8: Flexibility | I8: Save/import sheet name | J8: Sheet checker
E9: Falling Short | F9: [3] | I9: saved_inputs | J9: =IF(ISREF(INDIRECT(I9&"!A1")),"Saving sheet exists","Saving sheet missing") -> Saving sheet exists
B10: Start Year | C10: 2026 | E10: Leading the Way | F10: [4]
B11: Reference Calendar Year (for discount) | C11: =Current_year -> 2026 | E11: System Transformation | F11: [5]
B12: Baseline exceedance directly or via peak load | C12: Via Peak Load | E12: [6] | F12: [6] | I12: default_inputs | J12: =IF(ISREF(INDIRECT(I12&"!A1")),"Input sheet exists","Input sheet missing") -> Input sheet exists
B13: Flexibility Cost Input Type | C13: Input all flex costs directly | E13: [7] | F13: [7]
E14: [8] | F14: [8]
E15: [9] | F15: [9]
E16: [10] | F16: [10]
B18: Configuration id | C18: Scenario | D18: Strategy | E18: Last year of flexibility (user defined) | F18: First year where availability requirement exceeds flex availability | G18: Effective last year of flexibility (based on user input, max available flex and flex requirement) | H18: Configuration name
B19: Config1 | C19: smaller value flex | D19: Flexibility | E19: 2045 | F19: =IF($H19="","",IFERROR(INDEX('Flex Volume and Cost Inputs'!$D$157:$BR$157,1,MATCH(1,'Flex Volume and Cost Inputs'!$D185:$BR185,0)),9999)) -> 9999 | G19: =IF(F19="",IF(E19="","",E19),IF(E19="",F19-1,MIN(E19,F19-1))) -> 2045 | H19: =IF(OR(C19="",D19=""),"",D19&" under "&C19) -> Flexibility under smaller value flex
B20: Config2 | C20: larger value flex | D20: Flexibility | E20: 2045 | F20: =IF($H20="","",IFERROR(INDEX('Flex Volume and Cost Inputs'!$D$157:$BR$157,1,MATCH(1,'Flex Volume and Cost Inputs'!$D186:$BR186,0)),9999)) -> 9999 | G20: 2045 | H20: Flexibility under larger value flex
B21: Config3 | F21: =IF($H21="","",IFERROR(INDEX('Flex Volume and Cost Inputs'!$D$157:$BR$157,1,MATCH(1,'Flex Volume and Cost Inputs'!$D187:$BR187,0)),9999)) -> 
B22: Config4 | F22: =IF($H22="","",IFERROR(INDEX('Flex Volume and Cost Inputs'!$D$157:$BR$157,1,MATCH(1,'Flex Volume and Cost Inputs'!$D188:$BR188,0)),9999)) -> 
B23: Config5 | F23: =IF($H23="","",IFERROR(INDEX('Flex Volume and Cost Inputs'!$D$157:$BR$157,1,MATCH(1,'Flex Volume and Cost Inputs'!$D189:$BR189,0)),9999)) -> 
B24: Config6 | F24: =IF($H24="","",IFERROR(INDEX('Flex Volume and Cost Inputs'!$D$157:$BR$157,1,MATCH(1,'Flex Volume and Cost Inputs'!$D190:$BR190,0)),9999)) -> 
B25: Config7 | F25: =IF($H25="","",IFERROR(INDEX('Flex Volume and Cost Inputs'!$D$157:$BR$157,1,MATCH(1,'Flex Volume and Cost Inputs'!$D191:$BR191,0)),9999)) -> 
B26: Config8 | F26: =IF($H26="","",IFERROR(INDEX('Flex Volume and Cost Inputs'!$D$157:$BR$157,1,MATCH(1,'Flex Volume and Cost Inputs'!$D192:$BR192,0)),9999)) -> 
B27: Config9 | F27: =IF($H27="","",IFERROR(INDEX('Flex Volume and Cost Inputs'!$D$157:$BR$157,1,MATCH(1,'Flex Volume and Cost Inputs'!$D193:$BR193,0)),9999)) -> 
B28: Config10 | F28: =IF($H28="","",IFERROR(INDEX('Flex Volume and Cost Inputs'!$D$157:$BR$157,1,MATCH(1,'Flex Volume and Cost Inputs'!$D194:$BR194,0)),9999)) -> 
G29: Configuration count | H29: =COUNTA($H$19:$H$28)-COUNTIF($H$19:$H$28,"") -> 2
B34: Scenario # | C34: Scenario Name | E34: Strategy # | F34: Strategy Name
B35: 1 | C35: =C19 -> smaller value flex | E35: 1 | F35: =D19 -> Flexibility
B36: 2 | C36: =IFERROR(INDEX(OFFSET(Control!$C$19,0,0,config_count),MATCH(0,COUNTIF(C$34:C35,OFFSET(Control!$C$19,0,0,config_count)),0)),"") -> larger value flex | E36: 2 | F36: =IFERROR(INDEX(OFFSET(Control!$D$19,0,0,config_count),MATCH(0,COUNTIF(F$34:F35,OFFSET(Control!$D$19,0,0,config_count)),0)),"") -> 
B37: 3 | C37: =IFERROR(INDEX(OFFSET(Control!$C$19,0,0,config_count),MATCH(0,COUNTIF(C$34:C36,OFFSET(Control!$C$19,0,0,config_count)),0)),"") ->  | E37: 3 | F37: =IFERROR(INDEX(OFFSET(Control!$D$19,0,0,config_count),MATCH(0,COUNTIF(F$34:F36,OFFSET(Control!$D$19,0,0,config_count)),0)),"") -> 
B38: 4 | C38: =IFERROR(INDEX(OFFSET(Control!$C$19,0,0,config_count),MATCH(0,COUNTIF(C$34:C37,OFFSET(Control!$C$19,0,0,config_count)),0)),"") ->  | E38: 4 | F38: =IFERROR(INDEX(OFFSET(Control!$D$19,0,0,config_count),MATCH(0,COUNTIF(F$34:F37,OFFSET(Control!$D$19,0,0,config_count)),0)),"") -> 
B39: 5 | C39: =IFERROR(INDEX(OFFSET(Control!$C$19,0,0,config_count),MATCH(0,COUNTIF(C$34:C38,OFFSET(Control!$C$19,0,0,config_count)),0)),"") ->  | E39: 5 | F39: =IFERROR(INDEX(OFFSET(Control!$D$19,0,0,config_count),MATCH(0,COUNTIF(F$34:F38,OFFSET(Control!$D$19,0,0,config_count)),0)),"") -> 
B40: 6 | C40: =IFERROR(INDEX(OFFSET(Control!$C$19,0,0,config_count),MATCH(0,COUNTIF(C$34:C39,OFFSET(Control!$C$19,0,0,config_count)),0)),"") ->  | E40: 6 | F40: =IFERROR(INDEX(OFFSET(Control!$D$19,0,0,config_count),MATCH(0,COUNTIF(F$34:F39,OFFSET(Control!$D$19,0,0,config_count)),0)),"") -> 
B41: 7 | C41: =IFERROR(INDEX(OFFSET(Control!$C$19,0,0,config_count),MATCH(0,COUNTIF(C$34:C40,OFFSET(Control!$C$19,0,0,config_count)),0)),"") ->  | E41: 7 | F41: =IFERROR(INDEX(OFFSET(Control!$D$19,0,0,config_count),MATCH(0,COUNTIF(F$34:F40,OFFSET(Control!$D$19,0,0,config_count)),0)),"") -> 
B42: 8 | C42: =IFERROR(INDEX(OFFSET(Control!$C$19,0,0,config_count),MATCH(0,COUNTIF(C$34:C41,OFFSET(Control!$C$19,0,0,config_count)),0)),"") ->  | E42: 8 | F42: =IFERROR(INDEX(OFFSET(Control!$D$19,0,0,config_count),MATCH(0,COUNTIF(F$34:F41,OFFSET(Control!$D$19,0,0,config_count)),0)),"") -> 
B43: 9 | C43: =IFERROR(INDEX(OFFSET(Control!$C$19,0,0,config_count),MATCH(0,COUNTIF(C$34:C42,OFFSET(Control!$C$19,0,0,config_count)),0)),"") ->  | E43: 9 | F43: =IFERROR(INDEX(OFFSET(Control!$D$19,0,0,config_count),MATCH(0,COUNTIF(F$34:F42,OFFSET(Control!$D$19,0,0,config_count)),0)),"") -> 
B44: 10 | C44: =IFERROR(INDEX(OFFSET(Control!$C$19,0,0,config_count),MATCH(0,COUNTIF(C$34:C43,OFFSET(Control!$C$19,0,0,config_count)),0)),"") ->  | E44: 10 | F44: =IFERROR(INDEX(OFFSET(Control!$D$19,0,0,config_count),MATCH(0,COUNTIF(F$34:F43,OFFSET(Control!$D$19,0,0,config_count)),0)),"") -> 
B45: Scenario Count | C45: =COUNTA(C$35:C$44)-COUNTIF(C$35:C$44,"") -> 2 | E45: Strategy Count | F45: =COUNTA(F$35:F$44)-COUNTIF(F$35:F$44,"") -> 1

Sheet Baseline Reinforcement
B1: =MATCH("end",A:A,0) -> 55 | D1: =ROUNDDOWN(MIN(OFFSET($D$11:$AH$11,0,0,scenario_count))/5,0)*5 -> 0
A2: Baseline reinforcement
C4: Basis for identifying intervention start year | D4: Manual input
C5: Intervention start year (for manual input) | D5: 2027
C6: Scenario driving intervention requirement (if selected) | D6: Best view
C7: Intervention start year | D7: =IF(D4="Manual input",$D$5,IFERROR(INDEX($D$34:$BR$34,MATCH(TRUE,INDEX(D35:BR44<>"",MATCH($D$6,Control!$C$35:$C$44,0)),0)),D34)) -> 2027
D8: =$D$9 -> 100 | E8: =$D$9 -> 100 | F8: 100 | G8: 100 | H8: 100 | I8: 100 | J8: 100 | K8: 100 | L8: 100 | M8: 100 | N8: 100 | O8: 100 | P8: 100 | Q8: 100 | R8: 100 | S8: 100 | T8: 100 | U8: 100 | V8: 100 | W8: 100 | X8: 100 | Y8: 100 | Z8: 100 | AA8: 100 | AB8: 100 | AC8: 100 | AD8: 100 | AE8: 100 | AF8: 100 | AG8: 100 | AH8: 100 | AI8: 100 | AJ8: 100 | AK8: 100 | AL8: 100 | AM8: 100 | AN8: 100 | AO8: 100 | AP8: 100 | AQ8: 100 | AR8: 100 | AS8: 100 | AT8: 100 | AU8: 100 | AV8: 100 | AW8: 100 | AX8: 100 | AY8: 100 | AZ8: 100 | BA8: 100 | BB8: 100 | BC8: 100 | BD8: 100 | BE8: 100 | BF8: 100 | BG8: 100 | BH8: 100 | BI8: 100 | BJ8: 100 | BK8: 100 | BL8: 100 | BM8: 100 | BN8: 100 | BO8: 100 | BP8: 100 | BQ8: =$D$9 -> 100 | BR8: 100
C9: Start Year Capacity (MVA) | D9: 100
C10: Peak Network Load Projection (MVA) | D10: =Current_year -> 2026 | E10: =D10+1 -> 2027 | F10: 2028 | G10: 2029 | H10: 2030 | I10: 2031 | J10: 2032 | K10: 2033 | L10: 2034 | M10: 2035 | N10: 2036 | O10: 2037 | P10: 2038 | Q10: 2039 | R10: 2040 | S10: 2041 | T10: 2042 | U10: 2043 | V10: 2044 | W10: 2045 | X10: 2046 | Y10: 2047 | Z10: 2048 | AA10: 2049 | AB10: 2050 | AC10: 2051 | AD10: 2052 | AE10: 2053 | AF10: 2054 | AG10: 2055 | AH10: 2056 | AI10: 2057 | AJ10: 2058 | AK10: =AJ10+1 -> 2059 | AL10: 2060 | AM10: 2061 | AN10: 2062 | AO10: 2063 | AP10: 2064 | AQ10: 2065 | AR10: 2066 | AS10: 2067 | AT10: 2068 | AU10: 2069 | AV10: 2070 | AW10: 2071 | AX10: 2072 | AY10: 2073 | AZ10: 2074 | BA10: 2075 | BB10: 2076 | BC10: 2077 | BD10: 2078 | BE10: 2079 | BF10: 2080 | BG10: 2081 | BH10: 2082 | BI10: 2083 | BJ10: 2084 | BK10: 2085 | BL10: 2086 | BM10: 2087 | BN10: 2088 | BO10: 2089 | BP10: 2090 | BQ10: 2091 | BR10: 2092
A11: Scn | B11: 1 | C11: =IF(Control!C35="","",Control!C35) -> smaller value flex
A12: Scn | B12: 2 | C12: =IF(Control!C36="","",Control!C36) -> larger value flex
A13: Scn | B13: 3 | C13: =IF(Control!C37="","",Control!C37) -> 
A14: Scn | B14: 4 | C14: =IF(Control!C38="","",Control!C38) -> 
A15: Scn | B15: 5 | C15: =IF(Control!C39="","",Control!C39) -> 
A16: Scn | B16: 6 | C16: =IF(Control!C40="","",Control!C40) -> 
A17: Scn | B17: 7 | C17: =IF(Control!C41="","",Control!C41) -> 
A18: Scn | B18: 8 | C18: =IF(Control!C42="","",Control!C42) -> 
A19: Scn | B19: 9 | C19: =IF(Control!C43="","",Control!C43) -> 
A20: Scn | B20: 10 | C20: =IF(Control!C44="","",Control!C44) -> 
C22: Exceedance per year (MVA) - Manual Entry | D22: =Current_year -> 2026 | E22: =D22+1 -> 2027 | F22: =E22+1 -> 2028 | G22: =F22+1 -> 2029 | H22: =G22+1 -> 2030 | I22: =H22+1 -> 2031 | J22: =I22+1 -> 2032 | K22: =J22+1 -> 2033 | L22: =K22+1 -> 2034 | M22: =L22+1 -> 2035 | N22: =M22+1 -> 2036 | O22: =N22+1 -> 2037 | P22: =O22+1 -> 2038 | Q22: =P22+1 -> 2039 | R22: =Q22+1 -> 2040 | S22: =R22+1 -> 2041 | T22: =S22+1 -> 2042 | U22: =T22+1 -> 2043 | V22: =U22+1 -> 2044 | W22: =V22+1 -> 2045 | X22: =W22+1 -> 2046 | Y22: =X22+1 -> 2047 | Z22: =Y22+1 -> 2048 | AA22: =Z22+1 -> 2049 | AB22: =AA22+1 -> 2050 | AC22: =AB22+1 -> 2051 | AD22: =AC22+1 -> 2052 | AE22: =AD22+1 -> 2053 | AF22: =AE22+1 -> 2054 | AG22: =AF22+1 -> 2055 | AH22: =AG22+1 -> 2056 | AI22: =AH22+1 -> 2057 | AJ22: =AI22+1 -> 2058 | AK22: =AJ22+1 -> 2059 | AL22: =AK22+1 -> 2060 | AM22: =AL22+1 -> 2061 | AN22: =AM22+1 -> 2062 | AO22: =AN22+1 -> 2063 | AP22: =AO22+1 -> 2064 | AQ22: =AP22+1 -> 2065 | AR22: =AQ22+1 -> 2066 | AS22: =AR22+1 -> 2067 | AT22: =AS22+1 -> 2068 | AU22: =AT22+1 -> 2069 | AV22: =AU22+1 -> 2070 | AW22: =AV22+1 -> 2071 | AX22: =AW22+1 -> 2072 | AY22: =AX22+1 -> 2073 | AZ22: =AY22+1 -> 2074 | BA22: =AZ22+1 -> 2075 | BB22: =BA22+1 -> 2076 | BC22: =BB22+1 -> 2077 | BD22: =BC22+1 -> 2078 | BE22: =BD22+1 -> 2079 | BF22: =BE22+1 -> 2080 | BG22: =BF22+1 -> 2081 | BH22: =BG22+1 -> 2082 | BI22: =BH22+1 -> 2083 | BJ22: =BI22+1 -> 2084 | BK22: =BJ22+1 -> 2085 | BL22: =BK22+1 -> 2086 | BM22: =BL22+1 -> 2087 | BN22: =BM22+1 -> 2088 | BO22: =BN22+1 -> 2089 | BP22: =BO22+1 -> 2090 | BQ22: =BP22+1 -> 2091 | BR22: =BQ22+1 -> 2092
A23: Scn | B23: 1 | C23: =IF(Control!C35="","",Control!C35) -> smaller value flex
A24: Scn | B24: 2 | C24: =IF(Control!C36="","",Control!C36) -> larger value flex
A25: Scn | B25: 3 | C25: =IF(Control!C37="","",Control!C37) -> 
A26: Scn | B26: 4 | C26: =IF(Control!C38="","",Control!C38) -> 
A27: Scn | B27: 5 | C27: =IF(Control!C39="","",Control!C39) -> 
A28: Scn | B28: 6 | C28: =IF(Control!C40="","",Control!C40) -> 
A29: Scn | B29: 7 | C29: =IF(Control!C41="","",Control!C41) -> 
A30: Scn | B30: 8 | C30: =IF(Control!C42="","",Control!C42) -> 
A31: Scn | B31: 9 | C31: =IF(Control!C43="","",Control!C43) -> 
A32: Scn | B32: 10 | C32: =IF(Control!C44="","",Control!C44) -> 
C34: Exceedance per year (MVA) | D34: =Current_year -> 2026 | E34: =D34+1 -> 2027 | F34: 2028 | G34: 2029 | H34: 2030 | I34: 2031 | J34: 2032 | K34: 2033 | L34: 2034 | M34: 2035 | N34: 2036 | O34: 2037 | P34: 2038 | Q34: 2039 | R34: 2040 | S34: 2041 | T34: 2042 | U34: 2043 | V34: 2044 | W34: 2045 | X34: 2046 | Y34: 2047 | Z34: 2048 | AA34: 2049 | AB34: 2050 | AC34: 2051 | AD34: 2052 | AE34: 2053 | AF34: 2054 | AG34: 2055 | AH34: 2056 | AI34: 2057 | AJ34: 2058 | AK34: =AJ34+1 -> 2059 | AL34: 2060 | AM34: 2061 | AN34: 2062 | AO34: 2063 | AP34: 2064 | AQ34: 2065 | AR34: 2066 | AS34: 2067 | AT34: 2068 | AU34: 2069 | AV34: 2070 | AW34: 2071 | AX34: 2072 | AY34: 2073 | AZ34: 2074 | BA34: 2075 | BB34: 2076 | BC34: 2077 | BD34: 2078 | BE34: 2079 | BF34: 2080 | BG34: 2081 | BH34: 2082 | BI34: 2083 | BJ34: 2084 | BK34: 2085 | BL34: 2086 | BM34: 2087 | BN34: 2088 | BO34: 2089 | BP34: 2090 | BQ34: 2091 | BR34: 2092
A35: Scn | B35: 1 | C35: =IF(Control!C35="","",Control!C35) -> smaller value flex | D35: =IF($C35="","",IF(Control!$C$12="Directly",D23,IF(MAX(D11-'Baseline Reinforcement'!$D$9,0)=0,"",MAX(D11-'Baseline Reinforcement'!$D$9,0)))) ->  | E35: =IF($C35="","",IF(Control!$C$12="Directly",E23,IF(MAX(E11-'Baseline Reinforcement'!$D$9,0)=0,"",MAX(E11-'Baseline Reinforcement'!$D$9,0)))) ->  | F35: =IF($C35="","",IF(Control!$C$12="Directly",F23,IF(MAX(F11-'Baseline Reinforcement'!$D$9,0)=0,"",MAX(F11-'Baseline Reinforcement'!$D$9,0)))) ->  | G35: =IF($C35="","",IF(Control!$C$12="Directly",G23,IF(MAX(G11-'Baseline Reinforcement'!$D$9,0)=0,"",MAX(G11-'Baseline Reinforcement'!$D$9,0)))) ->  | H35: =IF($C35="","",IF(Control!$C$12="Directly",H23,IF(MAX(H11-'Baseline Reinforcement'!$D$9,0)=0,"",MAX(H11-'Baseline Reinforcement'!$D$9,0)))) ->  | I35: =IF($C35="","",IF(Control!$C$12="Directly",I23,IF(MAX(I11-'Baseline Reinforcement'!$D$9,0)=0,"",MAX(I11-'Baseline Reinforcement'!$D$9,0)))) ->  | J35: =IF($C35="","",IF(Control!$C$12="Directly",J23,IF(MAX(J11-'Baseline Reinforcement'!$D$9,0)=0,"",MAX(J11-'Baseline Reinforcement'!$D$9,0)))) ->  | K35: =IF($C35="","",IF(Control!$C$12="Directly",K23,IF(MAX(K11-'Baseline Reinforcement'!$D$9,0)=0,"",MAX(K11-'Baseline Reinforcement'!$D$9,0)))) ->  | L35: =IF($C35="","",IF(Control!$C$12="Directly",L23,IF(MAX(L11-'Baseline Reinforcement'!$D$9,0)=0,"",MAX(L11-'Baseline Reinforcement'!$D$9,0)))) ->  | M35: =IF($C35="","",IF(Control!$C$12="Directly",M23,IF(MAX(M11-'Baseline Reinforcement'!$D$9,0)=0,"",MAX(M11-'Baseline Reinforcement'!$D$9,0)))) ->  | N35: =IF($C35="","",IF(Control!$C$12="Directly",N23,IF(MAX(N11-'Baseline Reinforcement'!$D$9,0)=0,"",MAX(N11-'Baseline Reinforcement'!$D$9,0)))) ->  | O35: =IF($C35="","",IF(Control!$C$12="Directly",O23,IF(MAX(O11-'Baseline Reinforcement'!$D$9,0)=0,"",MAX(O11-'Baseline Reinforcement'!$D$9,0)))) ->  | P35: =IF($C35="","",IF(Control!$C$12="Directly",P23,IF(MAX(P11-'Baseline Reinforcement'!$D$9,0)=0,"",MAX(P11-'Baseline Reinforcement'!$D$9,0)))) ->  | Q35: =IF($C35="","",IF(Control!$C$12="Directly",Q23,IF(MAX(Q11-'Baseline Reinforcement'!$D$9,0)=0,"",MAX(Q11-'Baseline Reinforcement'!$D$9,0)))) ->  | R35: =IF($C35="","",IF(Control!$C$12="Directly",R23,IF(MAX(R11-'Baseline Reinforcement'!$D$9,0)=0,"",MAX(R11-'Baseline Reinforcement'!$D$9,0)))) ->  | S35: =IF($C35="","",IF(Control!$C$12="Directly",S23,IF(MAX(S11-'Baseline Reinforcement'!$D$9,0)=0,"",MAX(S11-'Baseline Reinforcement'!$D$9,0)))) ->  | T35: =IF($C35="","",IF(Control!$C$12="Directly",T23,IF(MAX(T11-'Baseline Reinforcement'!$D$9,0)=0,"",MAX(T11-'Baseline Reinforcement'!$D$9,0)))) ->  | U35: =IF($C35="","",IF(Control!$C$12="Directly",U23,IF(MAX(U11-'Baseline Reinforcement'!$D$9,0)=0,"",MAX(U11-'Baseline Reinforcement'!$D$9,0)))) ->  | V35: =IF($C35="","",IF(Control!$C$12="Directly",V23,IF(MAX(V11-'Baseline Reinforcement'!$D$9,0)=0,"",MAX(V11-'Baseline Reinforcement'!$D$9,0)))) ->  | W35: =IF($C35="","",IF(Control!$C$12="Directly",W23,IF(MAX(W11-'Baseline Reinforcement'!$D$9,0)=0,"",MAX(W11-'Baseline Reinforcement'!$D$9,0)))) ->  | X35: =IF($C35="","",IF(Control!$C$12="Directly",X23,IF(MAX(X11-'Baseline Reinforcement'!$D$9,0)=0,"",MAX(X11-'Baseline Reinforcement'!$D$9,0)))) ->  | Y35: =IF($C35="","",IF(Control!$C$12="Directly",Y23,IF(MAX(Y11-'Baseline Reinforcement'!$D$9,0)=0,"",MAX(Y11-'Baseline Reinforcement'!$D$9,0)))) ->  | Z35: =IF($C35="","",IF(Control!$C$12="Directly",Z23,IF(MAX(Z11-'Baseline Reinforcement'!$D$9,0)=0,"",MAX(Z11-'Baseline Reinforcement'!$D$9,0)))) ->  | AA35: =IF($C35="","",IF(Control!$C$12="Directly",AA23,IF(MAX(AA11-'Baseline Reinforcement'!$D$9,0)=0,"",MAX(AA11-'Baseline Reinforcement'!$D$9,0)))) ->  | AB35: =IF($C35="","",IF(Control!$C$12="Directly",AB23,IF(MAX(AB11-'Baseline Reinforcement'!$D$9,0)=0,"",MAX(AB11-'Baseline Reinforcement'!$D$9,0)))) ->  | AC35: =IF($C35="","",IF(Control!$C$12="Directly",AC23,IF(MAX(AC11-'Baseline Reinforcement'!$D$9,0)=0,"",MAX(AC11-'Baseline Reinforcement'!$D$9,0)))) ->  | AD35: =IF($C35="","",IF(Control!$C$12="Directly",AD23,IF(MAX(AD11-'Baseline Reinforcement'!$D$9,0)=0,"",MAX(AD11-'Baseline Reinforcement'!$D$9,0)))) ->  | AE35: =IF($C35="","",IF(Control!$C$12="Directly",AE23,IF(MAX(AE11-'Baseline Reinforcement'!$D$9,0)=0,"",MAX(AE11-'Baseline Reinforcement'!$D$9,0)))) ->  | AF35: =IF($C35="","",IF(Control!$C$12="Directly",AF23,IF(MAX(AF11-'Baseline Reinforcement'!$D$9,0)=0,"",MAX(AF11-'Baseline Reinforcement'!$D$9,0)))) ->  | AG35: =IF($C35="","",IF(Control!$C$12="Directly",AG23,IF(MAX(AG11-'Baseline Reinforcement'!$D$9,0)=0,"",MAX(AG11-'Baseline Reinforcement'!$D$9,0)))) ->  | AH35: =IF($C35="","",IF(Control!$C$12="Directly",AH23,IF(MAX(AH11-'Baseline Reinforcement'!$D$9,0)=0,"",MAX(AH11-'Baseline Reinforcement'!$D$9,0)))) ->  | AI35: =IF($C35="","",IF(Control!$C$12="Directly",AI23,IF(MAX(AI11-'Baseline Reinforcement'!$D$9,0)=0,"",MAX(AI11-'Baseline Reinforcement'!$D$9,0)))) ->  | AJ35: =IF($C35="","",IF(Control!$C$12="Directly",AJ23,IF(MAX(AJ11-'Baseline Reinforcement'!$D$9,0)=0,"",MAX(AJ11-'Baseline Reinforcement'!$D$9,0)))) ->  | AK35: =IF($C35="","",IF(Control!$C$12="Directly",AK23,IF(MAX(AK11-'Baseline Reinforcement'!$D$9,0)=0,"",MAX(AK11-'Baseline Reinforcement'!$D$9,0)))) ->  | AL35: =IF($C35="","",IF(Control!$C$12="Directly",AL23,IF(MAX(AL11-'Baseline Reinforcement'!$D$9,0)=0,"",MAX(AL11-'Baseline Reinforcement'!$D$9,0)))) ->  | AM35: =IF($C35="","",IF(Control!$C$12="Directly",AM23,IF(MAX(AM11-'Baseline Reinforcement'!$D$9,0)=0,"",MAX(AM11-'Baseline Reinforcement'!$D$9,0)))) ->  | AN35: =IF($C35="","",IF(Control!$C$12="Directly",AN23,IF(MAX(AN11-'Baseline Reinforcement'!$D$9,0)=0,"",MAX(AN11-'Baseline Reinforcement'!$D$9,0)))) ->  | AO35: =IF($C35="","",IF(Control!$C$12="Directly",AO23,IF(MAX(AO11-'Baseline Reinforcement'!$D$9,0)=0,"",MAX(AO11-'Baseline Reinforcement'!$D$9,0)))) ->  | AP35: =IF($C35="","",IF(Control!$C$12="Directly",AP23,IF(MAX(AP11-'Baseline Reinforcement'!$D$9,0)=0,"",MAX(AP11-'Baseline Reinforcement'!$D$9,0)))) ->  | AQ35: =IF($C35="","",IF(Control!$C$12="Directly",AQ23,IF(MAX(AQ11-'Baseline Reinforcement'!$D$9,0)=0,"",MAX(AQ11-'Baseline Reinforcement'!$D$9,0)))) ->  | AR35: =IF($C35="","",IF(Control!$C$12="Directly",AR23,IF(MAX(AR11-'Baseline Reinforcement'!$D$9,0)=0,"",MAX(AR11-'Baseline Reinforcement'!$D$9,0)))) ->  | AS35: =IF($C35="","",IF(Control!$C$12="Directly",AS23,IF(MAX(AS11-'Baseline Reinforcement'!$D$9,0)=0,"",MAX(AS11-'Baseline Reinforcement'!$D$9,0)))) ->  | AT35: =IF($C35="","",IF(Control!$C$12="Directly",AT23,IF(MAX(AT11-'Baseline Reinforcement'!$D$9,0)=0,"",MAX(AT11-'Baseline Reinforcement'!$D$9,0)))) ->  | AU35: =IF($C35="","",IF(Control!$C$12="Directly",AU23,IF(MAX(AU11-'Baseline Reinforcement'!$D$9,0)=0,"",MAX(AU11-'Baseline Reinforcement'!$D$9,0)))) ->  | AV35: =IF($C35="","",IF(Control!$C$12="Directly",AV23,IF(MAX(AV11-'Baseline Reinforcement'!$D$9,0)=0,"",MAX(AV11-'Baseline Reinforcement'!$D$9,0)))) ->  | AW35: =IF($C35="","",IF(Control!$C$12="Directly",AW23,IF(MAX(AW11-'Baseline Reinforcement'!$D$9,0)=0,"",MAX(AW11-'Baseline Reinforcement'!$D$9,0)))) ->  | AX35: =IF($C35="","",IF(Control!$C$12="Directly",AX23,IF(MAX(AX11-'Baseline Reinforcement'!$D$9,0)=0,"",MAX(AX11-'Baseline Reinforcement'!$D$9,0)))) ->  | AY35: =IF($C35="","",IF(Control!$C$12="Directly",AY23,IF(MAX(AY11-'Baseline Reinforcement'!$D$9,0)=0,"",MAX(AY11-'Baseline Reinforcement'!$D$9,0)))) ->  | AZ35: =IF($C35="","",IF(Control!$C$12="Directly",AZ23,IF(MAX(AZ11-'Baseline Reinforcement'!$D$9,0)=0,"",MAX(AZ11-'Baseline Reinforcement'!$D$9,0)))) ->  | BA35: =IF($C35="","",IF(Control!$C$12="Directly",BA23,IF(MAX(BA11-'Baseline Reinforcement'!$D$9,0)=0,"",MAX(BA11-'Baseline Reinforcement'!$D$9,0)))) ->  | BB35: =IF($C35="","",IF(Control!$C$12="Directly",BB23,IF(MAX(BB11-'Baseline Reinforcement'!$D$9,0)=0,"",MAX(BB11-'Baseline Reinforcement'!$D$9,0)))) ->  | BC35: =IF($C35="","",IF(Control!$C$12="Directly",BC23,IF(MAX(BC11-'Baseline Reinforcement'!$D$9,0)=0,"",MAX(BC11-'Baseline Reinforcement'!$D$9,0)))) ->  | BD35: =IF($C35="","",IF(Control!$C$12="Directly",BD23,IF(MAX(BD11-'Baseline Reinforcement'!$D$9,0)=0,"",MAX(BD11-'Baseline Reinforcement'!$D$9,0)))) ->  | BE35: =IF($C35="","",IF(Control!$C$12="Directly",BE23,IF(MAX(BE11-'Baseline Reinforcement'!$D$9,0)=0,"",MAX(BE11-'Baseline Reinforcement'!$D$9,0)))) ->  | BF35: =IF($C35="","",IF(Control!$C$12="Directly",BF23,IF(MAX(BF11-'Baseline Reinforcement'!$D$9,0)=0,"",MAX(BF11-'Baseline Reinforcement'!$D$9,0)))) ->  | BG35: =IF($C35="","",IF(Control!$C$12="Directly",BG23,IF(MAX(BG11-'Baseline Reinforcement'!$D$9,0)=0,"",MAX(BG11-'Baseline Reinforcement'!$D$9,0)))) ->  | BH35: =IF($C35="","",IF(Control!$C$12="Directly",BH23,IF(MAX(BH11-'Baseline Reinforcement'!$D$9,0)=0,"",MAX(BH11-'Baseline Reinforcement'!$D$9,0)))) ->  | BI35: =IF($C35="","",IF(Control!$C$12="Directly",BI23,IF(MAX(BI11-'Baseline Reinforcement'!$D$9,0)=0,"",MAX(BI11-'Baseline Reinforcement'!$D$9,0)))) ->  | BJ35: =IF($C35="","",IF(Control!$C$12="Directly",BJ23,IF(MAX(BJ11-'Baseline Reinforcement'!$D$9,0)=0,"",MAX(BJ11-'Baseline Reinforcement'!$D$9,0)))) ->  | BK35: =IF($C35="","",IF(Control!$C$12="Directly",BK23,IF(MAX(BK11-'Baseline Reinforcement'!$D$9,0)=0,"",MAX(BK11-'Baseline Reinforcement'!$D$9,0)))) ->  | BL35: =IF($C35="","",IF(Control!$C$12="Directly",BL23,IF(MAX(BL11-'Baseline Reinforcement'!$D$9,0)=0,"",MAX(BL11-'Baseline Reinforcement'!$D$9,0)))) ->  | BM35: =IF($C35="","",IF(Control!$C$12="Directly",BM23,IF(MAX(BM11-'Baseline Reinforcement'!$D$9,0)=0,"",MAX(BM11-'Baseline Reinforcement'!$D$9,0)))) ->  | BN35: =IF($C35="","",IF(Control!$C$12="Directly",BN23,IF(MAX(BN11-'Baseline Reinforcement'!$D$9,0)=0,"",MAX(BN11-'Baseline Reinforcement'!$D$9,0)))) ->  | BO35: =IF($C35="","",IF(Control!$C$12="Directly",BO23,IF(MAX(BO11-'Baseline Reinforcement'!$D$9,0)=0,"",MAX(BO11-'Baseline Reinforcement'!$D$9,0)))) ->  | BP35: =IF($C35="","",IF(Control!$C$12="Directly",BP23,IF(MAX(BP11-'Baseline Reinforcement'!$D$9,0)=0,"",MAX(BP11-'Baseline Reinforcement'!$D$9,0)))) ->  | BQ35: =IF($C35="","",IF(Control!$C$12="Directly",BQ23,IF(MAX(BQ11-'Baseline Reinforcement'!$D$9,0)=0,"",MAX(BQ11-'Baseline Reinforcement'!$D$9,0)))) ->  | BR35: =IF($C35="","",IF(Control!$C$12="Directly",BR23,IF(MAX(BR11-'Baseline Reinforcement'!$D$9,0)=0,"",MAX(BR11-'Baseline Reinforcement'!$D$9,0)))) -> 
A36: Scn | B36: 2 | C36: =IF(Control!C36="","",Control!C36) -> larger value flex | D36: =IF($C36="","",IF(Control!$C$12="Directly",D24,IF(MAX(D12-'Baseline Reinforcement'!$D$9,0)=0,"",MAX(D12-'Baseline Reinforcement'!$D$9,0)))) ->  | E36: =IF($C36="","",IF(Control!$C$12="Directly",E24,IF(MAX(E12-'Baseline Reinforcement'!$D$9,0)=0,"",MAX(E12-'Baseline Reinforcement'!$D$9,0)))) ->  | F36: =IF($C36="","",IF(Control!$C$12="Directly",F24,IF(MAX(F12-'Baseline Reinforcement'!$D$9,0)=0,"",MAX(F12-'Baseline Reinforcement'!$D$9,0)))) ->  | G36: =IF($C36="","",IF(Control!$C$12="Directly",G24,IF(MAX(G12-'Baseline Reinforcement'!$D$9,0)=0,"",MAX(G12-'Baseline Reinforcement'!$D$9,0)))) ->  | H36: =IF($C36="","",IF(Control!$C$12="Directly",H24,IF(MAX(H12-'Baseline Reinforcement'!$D$9,0)=0,"",MAX(H12-'Baseline Reinforcement'!$D$9,0)))) ->  | I36: =IF($C36="","",IF(Control!$C$12="Directly",I24,IF(MAX(I12-'Baseline Reinforcement'!$D$9,0)=0,"",MAX(I12-'Baseline Reinforcement'!$D$9,0)))) ->  | J36: =IF($C36="","",IF(Control!$C$12="Directly",J24,IF(MAX(J12-'Baseline Reinforcement'!$D$9,0)=0,"",MAX(J12-'Baseline Reinforcement'!$D$9,0)))) ->  | K36: =IF($C36="","",IF(Control!$C$12="Directly",K24,IF(MAX(K12-'Baseline Reinforcement'!$D$9,0)=0,"",MAX(K12-'Baseline Reinforcement'!$D$9,0)))) ->  | L36: =IF($C36="","",IF(Control!$C$12="Directly",L24,IF(MAX(L12-'Baseline Reinforcement'!$D$9,0)=0,"",MAX(L12-'Baseline Reinforcement'!$D$9,0)))) ->  | M36: =IF($C36="","",IF(Control!$C$12="Directly",M24,IF(MAX(M12-'Baseline Reinforcement'!$D$9,0)=0,"",MAX(M12-'Baseline Reinforcement'!$D$9,0)))) ->  | N36: =IF($C36="","",IF(Control!$C$12="Directly",N24,IF(MAX(N12-'Baseline Reinforcement'!$D$9,0)=0,"",MAX(N12-'Baseline Reinforcement'!$D$9,0)))) ->  | O36: =IF($C36="","",IF(Control!$C$12="Directly",O24,IF(MAX(O12-'Baseline Reinforcement'!$D$9,0)=0,"",MAX(O12-'Baseline Reinforcement'!$D$9,0)))) ->  | P36: =IF($C36="","",IF(Control!$C$12="Directly",P24,IF(MAX(P12-'Baseline Reinforcement'!$D$9,0)=0,"",MAX(P12-'Baseline Reinforcement'!$D$9,0)))) ->  | Q36: =IF($C36="","",IF(Control!$C$12="Directly",Q24,IF(MAX(Q12-'Baseline Reinforcement'!$D$9,0)=0,"",MAX(Q12-'Baseline Reinforcement'!$D$9,0)))) ->  | R36: =IF($C36="","",IF(Control!$C$12="Directly",R24,IF(MAX(R12-'Baseline Reinforcement'!$D$9,0)=0,"",MAX(R12-'Baseline Reinforcement'!$D$9,0)))) ->  | S36: =IF($C36="","",IF(Control!$C$12="Directly",S24,IF(MAX(S12-'Baseline Reinforcement'!$D$9,0)=0,"",MAX(S12-'Baseline Reinforcement'!$D$9,0)))) ->  | T36: =IF($C36="","",IF(Control!$C$12="Directly",T24,IF(MAX(T12-'Baseline Reinforcement'!$D$9,0)=0,"",MAX(T12-'Baseline Reinforcement'!$D$9,0)))) ->  | U36: =IF($C36="","",IF(Control!$C$12="Directly",U24,IF(MAX(U12-'Baseline Reinforcement'!$D$9,0)=0,"",MAX(U12-'Baseline Reinforcement'!$D$9,0)))) ->  | V36: =IF($C36="","",IF(Control!$C$12="Directly",V24,IF(MAX(V12-'Baseline Reinforcement'!$D$9,0)=0,"",MAX(V12-'Baseline Reinforcement'!$D$9,0)))) ->  | W36: =IF($C36="","",IF(Control!$C$12="Directly",W24,IF(MAX(W12-'Baseline Reinforcement'!$D$9,0)=0,"",MAX(W12-'Baseline Reinforcement'!$D$9,0)))) ->  | X36: =IF($C36="","",IF(Control!$C$12="Directly",X24,IF(MAX(X12-'Baseline Reinforcement'!$D$9,0)=0,"",MAX(X12-'Baseline Reinforcement'!$D$9,0)))) ->  | Y36: =IF($C36="","",IF(Control!$C$12="Directly",Y24,IF(MAX(Y12-'Baseline Reinforcement'!$D$9,0)=0,"",MAX(Y12-'Baseline Reinforcement'!$D$9,0)))) ->  | Z36: =IF($C36="","",IF(Control!$C$12="Directly",Z24,IF(MAX(Z12-'Baseline Reinforcement'!$D$9,0)=0,"",MAX(Z12-'Baseline Reinforcement'!$D$9,0)))) ->  | AA36: =IF($C36="","",IF(Control!$C$12="Directly",AA24,IF(MAX(AA12-'Baseline Reinforcement'!$D$9,0)=0,"",MAX(AA12-'Baseline Reinforcement'!$D$9,0)))) ->  | AB36: =IF($C36="","",IF(Control!$C$12="Directly",AB24,IF(MAX(AB12-'Baseline Reinforcement'!$D$9,0)=0,"",MAX(AB12-'Baseline Reinforcement'!$D$9,0)))) ->  | AC36: =IF($C36="","",IF(Control!$C$12="Directly",AC24,IF(MAX(AC12-'Baseline Reinforcement'!$D$9,0)=0,"",MAX(AC12-'Baseline Reinforcement'!$D$9,0)))) ->  | AD36: =IF($C36="","",IF(Control!$C$12="Directly",AD24,IF(MAX(AD12-'Baseline Reinforcement'!$D$9,0)=0,"",MAX(AD12-'Baseline Reinforcement'!$D$9,0)))) ->  | AE36: =IF($C36="","",IF(Control!$C$12="Directly",AE24,IF(MAX(AE12-'Baseline Reinforcement'!$D$9,0)=0,"",MAX(AE12-'Baseline Reinforcement'!$D$9,0)))) ->  | AF36: =IF($C36="","",IF(Control!$C$12="Directly",AF24,IF(MAX(AF12-'Baseline Reinforcement'!$D$9,0)=0,"",MAX(AF12-'Baseline Reinforcement'!$D$9,0)))) ->  | AG36: =IF($C36="","",IF(Control!$C$12="Directly",AG24,IF(MAX(AG12-'Baseline Reinforcement'!$D$9,0)=0,"",MAX(AG12-'Baseline Reinforcement'!$D$9,0)))) ->  | AH36: =IF($C36="","",IF(Control!$C$12="Directly",AH24,IF(MAX(AH12-'Baseline Reinforcement'!$D$9,0)=0,"",MAX(AH12-'Baseline Reinforcement'!$D$9,0)))) ->  | AI36: =IF($C36="","",IF(Control!$C$12="Directly",AI24,IF(MAX(AI12-'Baseline Reinforcement'!$D$9,0)=0,"",MAX(AI12-'Baseline Reinforcement'!$D$9,0)))) ->  | AJ36: =IF($C36="","",IF(Control!$C$12="Directly",AJ24,IF(MAX(AJ12-'Baseline Reinforcement'!$D$9,0)=0,"",MAX(AJ12-'Baseline Reinforcement'!$D$9,0)))) ->  | AK36: =IF($C36="","",IF(Control!$C$12="Directly",AK24,IF(MAX(AK12-'Baseline Reinforcement'!$D$9,0)=0,"",MAX(AK12-'Baseline Reinforcement'!$D$9,0)))) ->  | AL36: =IF($C36="","",IF(Control!$C$12="Directly",AL24,IF(MAX(AL12-'Baseline Reinforcement'!$D$9,0)=0,"",MAX(AL12-'Baseline Reinforcement'!$D$9,0)))) ->  | AM36: =IF($C36="","",IF(Control!$C$12="Directly",AM24,IF(MAX(AM12-'Baseline Reinforcement'!$D$9,0)=0,"",MAX(AM12-'Baseline Reinforcement'!$D$9,0)))) ->  | AN36: =IF($C36="","",IF(Control!$C$12="Directly",AN24,IF(MAX(AN12-'Baseline Reinforcement'!$D$9,0)=0,"",MAX(AN12-'Baseline Reinforcement'!$D$9,0)))) ->  | AO36: =IF($C36="","",IF(Control!$C$12="Directly",AO24,IF(MAX(AO12-'Baseline Reinforcement'!$D$9,0)=0,"",MAX(AO12-'Baseline Reinforcement'!$D$9,0)))) ->  | AP36: =IF($C36="","",IF(Control!$C$12="Directly",AP24,IF(MAX(AP12-'Baseline Reinforcement'!$D$9,0)=0,"",MAX(AP12-'Baseline Reinforcement'!$D$9,0)))) ->  | AQ36: =IF($C36="","",IF(Control!$C$12="Directly",AQ24,IF(MAX(AQ12-'Baseline Reinforcement'!$D$9,0)=0,"",MAX(AQ12-'Baseline Reinforcement'!$D$9,0)))) ->  | AR36: =IF($C36="","",IF(Control!$C$12="Directly",AR24,IF(MAX(AR12-'Baseline Reinforcement'!$D$9,0)=0,"",MAX(AR12-'Baseline Reinforcement'!$D$9,0)))) ->  | AS36: =IF($C36="","",IF(Control!$C$12="Directly",AS24,IF(MAX(AS12-'Baseline Reinforcement'!$D$9,0)=0,"",MAX(AS12-'Baseline Reinforcement'!$D$9,0)))) ->  | AT36: =IF($C36="","",IF(Control!$C$12="Directly",AT24,IF(MAX(AT12-'Baseline Reinforcement'!$D$9,0)=0,"",MAX(AT12-'Baseline Reinforcement'!$D$9,0)))) ->  | AU36: =IF($C36="","",IF(Control!$C$12="Directly",AU24,IF(MAX(AU12-'Baseline Reinforcement'!$D$9,0)=0,"",MAX(AU12-'Baseline Reinforcement'!$D$9,0)))) ->  | AV36: =IF($C36="","",IF(Control!$C$12="Directly",AV24,IF(MAX(AV12-'Baseline Reinforcement'!$D$9,0)=0,"",MAX(AV12-'Baseline Reinforcement'!$D$9,0)))) ->  | AW36: =IF($C36="","",IF(Control!$C$12="Directly",AW24,IF(MAX(AW12-'Baseline Reinforcement'!$D$9,0)=0,"",MAX(AW12-'Baseline Reinforcement'!$D$9,0)))) ->  | AX36: =IF($C36="","",IF(Control!$C$12="Directly",AX24,IF(MAX(AX12-'Baseline Reinforcement'!$D$9,0)=0,"",MAX(AX12-'Baseline Reinforcement'!$D$9,0)))) ->  | AY36: =IF($C36="","",IF(Control!$C$12="Directly",AY24,IF(MAX(AY12-'Baseline Reinforcement'!$D$9,0)=0,"",MAX(AY12-'Baseline Reinforcement'!$D$9,0)))) ->  | AZ36: =IF($C36="","",IF(Control!$C$12="Directly",AZ24,IF(MAX(AZ12-'Baseline Reinforcement'!$D$9,0)=0,"",MAX(AZ12-'Baseline Reinforcement'!$D$9,0)))) ->  | BA36: =IF($C36="","",IF(Control!$C$12="Directly",BA24,IF(MAX(BA12-'Baseline Reinforcement'!$D$9,0)=0,"",MAX(BA12-'Baseline Reinforcement'!$D$9,0)))) ->  | BB36: =IF($C36="","",IF(Control!$C$12="Directly",BB24,IF(MAX(BB12-'Baseline Reinforcement'!$D$9,0)=0,"",MAX(BB12-'Baseline Reinforcement'!$D$9,0)))) ->  | BC36: =IF($C36="","",IF(Control!$C$12="Directly",BC24,IF(MAX(BC12-'Baseline Reinforcement'!$D$9,0)=0,"",MAX(BC12-'Baseline Reinforcement'!$D$9,0)))) ->  | BD36: =IF($C36="","",IF(Control!$C$12="Directly",BD24,IF(MAX(BD12-'Baseline Reinforcement'!$D$9,0)=0,"",MAX(BD12-'Baseline Reinforcement'!$D$9,0)))) ->  | BE36: =IF($C36="","",IF(Control!$C$12="Directly",BE24,IF(MAX(BE12-'Baseline Reinforcement'!$D$9,0)=0,"",MAX(BE12-'Baseline Reinforcement'!$D$9,0)))) ->  | BF36: =IF($C36="","",IF(Control!$C$12="Directly",BF24,IF(MAX(BF12-'Baseline Reinforcement'!$D$9,0)=0,"",MAX(BF12-'Baseline Reinforcement'!$D$9,0)))) ->  | BG36: =IF($C36="","",IF(Control!$C$12="Directly",BG24,IF(MAX(BG12-'Baseline Reinforcement'!$D$9,0)=0,"",MAX(BG12-'Baseline Reinforcement'!$D$9,0)))) ->  | BH36: =IF($C36="","",IF(Control!$C$12="Directly",BH24,IF(MAX(BH12-'Baseline Reinforcement'!$D$9,0)=0,"",MAX(BH12-'Baseline Reinforcement'!$D$9,0)))) ->  | BI36: =IF($C36="","",IF(Control!$C$12="Directly",BI24,IF(MAX(BI12-'Baseline Reinforcement'!$D$9,0)=0,"",MAX(BI12-'Baseline Reinforcement'!$D$9,0)))) ->  | BJ36: =IF($C36="","",IF(Control!$C$12="Directly",BJ24,IF(MAX(BJ12-'Baseline Reinforcement'!$D$9,0)=0,"",MAX(BJ12-'Baseline Reinforcement'!$D$9,0)))) ->  | BK36: =IF($C36="","",IF(Control!$C$12="Directly",BK24,IF(MAX(BK12-'Baseline Reinforcement'!$D$9,0)=0,"",MAX(BK12-'Baseline Reinforcement'!$D$9,0)))) ->  | BL36: =IF($C36="","",IF(Control!$C$12="Directly",BL24,IF(MAX(BL12-'Baseline Reinforcement'!$D$9,0)=0,"",MAX(BL12-'Baseline Reinforcement'!$D$9,0)))) ->  | BM36: =IF($C36="","",IF(Control!$C$12="Directly",BM24,IF(MAX(BM12-'Baseline Reinforcement'!$D$9,0)=0,"",MAX(BM12-'Baseline Reinforcement'!$D$9,0)))) ->  | BN36: =IF($C36="","",IF(Control!$C$12="Directly",BN24,IF(MAX(BN12-'Baseline Reinforcement'!$D$9,0)=0,"",MAX(BN12-'Baseline Reinforcement'!$D$9,0)))) ->  | BO36: =IF($C36="","",IF(Control!$C$12="Directly",BO24,IF(MAX(BO12-'Baseline Reinforcement'!$D$9,0)=0,"",MAX(BO12-'Baseline Reinforcement'!$D$9,0)))) ->  | BP36: =IF($C36="","",IF(Control!$C$12="Directly",BP24,IF(MAX(BP12-'Baseline Reinforcement'!$D$9,0)=0,"",MAX(BP12-'Baseline Reinforcement'!$D$9,0)))) ->  | BQ36: =IF($C36="","",IF(Control!$C$12="Directly",BQ24,IF(MAX(BQ12-'Baseline Reinforcement'!$D$9,0)=0,"",MAX(BQ12-'Baseline Reinforcement'!$D$9,0)))) ->  | BR36: =IF($C36="","",IF(Control!$C$12="Directly",BR24,IF(MAX(BR12-'Baseline Reinforcement'!$D$9,0)=0,"",MAX(BR12-'Baseline Reinforcement'!$D$9,0)))) -> 
A37: Scn | B37: 3 | C37: =IF(Control!C37="","",Control!C37) ->  | D37: =IF($C37="","",IF(Control!$C$12="Directly",D25,IF(MAX(D13-'Baseline Reinforcement'!$D$9,0)=0,"",MAX(D13-'Baseline Reinforcement'!$D$9,0)))) ->  | E37: =IF($C37="","",IF(Control!$C$12="Directly",E25,IF(MAX(E13-'Baseline Reinforcement'!$D$9,0)=0,"",MAX(E13-'Baseline Reinforcement'!$D$9,0)))) ->  | F37: =IF($C37="","",IF(Control!$C$12="Directly",F25,IF(MAX(F13-'Baseline Reinforcement'!$D$9,0)=0,"",MAX(F13-'Baseline Reinforcement'!$D$9,0)))) ->  | G37: =IF($C37="","",IF(Control!$C$12="Directly",G25,IF(MAX(G13-'Baseline Reinforcement'!$D$9,0)=0,"",MAX(G13-'Baseline Reinforcement'!$D$9,0)))) ->  | H37: =IF($C37="","",IF(Control!$C$12="Directly",H25,IF(MAX(H13-'Baseline Reinforcement'!$D$9,0)=0,"",MAX(H13-'Baseline Reinforcement'!$D$9,0)))) ->  | I37: =IF($C37="","",IF(Control!$C$12="Directly",I25,IF(MAX(I13-'Baseline Reinforcement'!$D$9,0)=0,"",MAX(I13-'Baseline Reinforcement'!$D$9,0)))) ->  | J37: =IF($C37="","",IF(Control!$C$12="Directly",J25,IF(MAX(J13-'Baseline Reinforcement'!$D$9,0)=0,"",MAX(J13-'Baseline Reinforcement'!$D$9,0)))) ->  | K37: =IF($C37="","",IF(Control!$C$12="Directly",K25,IF(MAX(K13-'Baseline Reinforcement'!$D$9,0)=0,"",MAX(K13-'Baseline Reinforcement'!$D$9,0)))) ->  | L37: =IF($C37="","",IF(Control!$C$12="Directly",L25,IF(MAX(L13-'Baseline Reinforcement'!$D$9,0)=0,"",MAX(L13-'Baseline Reinforcement'!$D$9,0)))) ->  | M37: =IF($C37="","",IF(Control!$C$12="Directly",M25,IF(MAX(M13-'Baseline Reinforcement'!$D$9,0)=0,"",MAX(M13-'Baseline Reinforcement'!$D$9,0)))) ->  | N37: =IF($C37="","",IF(Control!$C$12="Directly",N25,IF(MAX(N13-'Baseline Reinforcement'!$D$9,0)=0,"",MAX(N13-'Baseline Reinforcement'!$D$9,0)))) ->  | O37: =IF($C37="","",IF(Control!$C$12="Directly",O25,IF(MAX(O13-'Baseline Reinforcement'!$D$9,0)=0,"",MAX(O13-'Baseline Reinforcement'!$D$9,0)))) ->  | P37: =IF($C37="","",IF(Control!$C$12="Directly",P25,IF(MAX(P13-'Baseline Reinforcement'!$D$9,0)=0,"",MAX(P13-'Baseline Reinforcement'!$D$9,0)))) ->  | Q37: =IF($C37="","",IF(Control!$C$12="Directly",Q25,IF(MAX(Q13-'Baseline Reinforcement'!$D$9,0)=0,"",MAX(Q13-'Baseline Reinforcement'!$D$9,0)))) ->  | R37: =IF($C37="","",IF(Control!$C$12="Directly",R25,IF(MAX(R13-'Baseline Reinforcement'!$D$9,0)=0,"",MAX(R13-'Baseline Reinforcement'!$D$9,0)))) ->  | S37: =IF($C37="","",IF(Control!$C$12="Directly",S25,IF(MAX(S13-'Baseline Reinforcement'!$D$9,0)=0,"",MAX(S13-'Baseline Reinforcement'!$D$9,0)))) ->  | T37: =IF($C37="","",IF(Control!$C$12="Directly",T25,IF(MAX(T13-'Baseline Reinforcement'!$D$9,0)=0,"",MAX(T13-'Baseline Reinforcement'!$D$9,0)))) ->  | U37: =IF($C37="","",IF(Control!$C$12="Directly",U25,IF(MAX(U13-'Baseline Reinforcement'!$D$9,0)=0,"",MAX(U13-'Baseline Reinforcement'!$D$9,0)))) ->  | V37: =IF($C37="","",IF(Control!$C$12="Directly",V25,IF(MAX(V13-'Baseline Reinforcement'!$D$9,0)=0,"",MAX(V13-'Baseline Reinforcement'!$D$9,0)))) ->  | W37: =IF($C37="","",IF(Control!$C$12="Directly",W25,IF(MAX(W13-'Baseline Reinforcement'!$D$9,0)=0,"",MAX(W13-'Baseline Reinforcement'!$D$9,0)))) ->  | X37: =IF($C37="","",IF(Control!$C$12="Directly",X25,IF(MAX(X13-'Baseline Reinforcement'!$D$9,0)=0,"",MAX(X13-'Baseline Reinforcement'!$D$9,0)))) ->  | Y37: =IF($C37="","",IF(Control!$C$12="Directly",Y25,IF(MAX(Y13-'Baseline Reinforcement'!$D$9,0)=0,"",MAX(Y13-'Baseline Reinforcement'!$D$9,0)))) ->  | Z37: =IF($C37="","",IF(Control!$C$12="Directly",Z25,IF(MAX(Z13-'Baseline Reinforcement'!$D$9,0)=0,"",MAX(Z13-'Baseline Reinforcement'!$D$9,0)))) ->  | AA37: =IF($C37="","",IF(Control!$C$12="Directly",AA25,IF(MAX(AA13-'Baseline Reinforcement'!$D$9,0)=0,"",MAX(AA13-'Baseline Reinforcement'!$D$9,0)))) ->  | AB37: =IF($C37="","",IF(Control!$C$12="Directly",AB25,IF(MAX(AB13-'Baseline Reinforcement'!$D$9,0)=0,"",MAX(AB13-'Baseline Reinforcement'!$D$9,0)))) ->  | AC37: =IF($C37="","",IF(Control!$C$12="Directly",AC25,IF(MAX(AC13-'Baseline Reinforcement'!$D$9,0)=0,"",MAX(AC13-'Baseline Reinforcement'!$D$9,0)))) ->  | AD37: =IF($C37="","",IF(Control!$C$12="Directly",AD25,IF(MAX(AD13-'Baseline Reinforcement'!$D$9,0)=0,"",MAX(AD13-'Baseline Reinforcement'!$D$9,0)))) ->  | AE37: =IF($C37="","",IF(Control!$C$12="Directly",AE25,IF(MAX(AE13-'Baseline Reinforcement'!$D$9,0)=0,"",MAX(AE13-'Baseline Reinforcement'!$D$9,0)))) ->  | AF37: =IF($C37="","",IF(Control!$C$12="Directly",AF25,IF(MAX(AF13-'Baseline Reinforcement'!$D$9,0)=0,"",MAX(AF13-'Baseline Reinforcement'!$D$9,0)))) ->  | AG37: =IF($C37="","",IF(Control!$C$12="Directly",AG25,IF(MAX(AG13-'Baseline Reinforcement'!$D$9,0)=0,"",MAX(AG13-'Baseline Reinforcement'!$D$9,0)))) ->  | AH37: =IF($C37="","",IF(Control!$C$12="Directly",AH25,IF(MAX(AH13-'Baseline Reinforcement'!$D$9,0)=0,"",MAX(AH13-'Baseline Reinforcement'!$D$9,0)))) ->  | AI37: =IF($C37="","",IF(Control!$C$12="Directly",AI25,IF(MAX(AI13-'Baseline Reinforcement'!$D$9,0)=0,"",MAX(AI13-'Baseline Reinforcement'!$D$9,0)))) ->  | AJ37: =IF($C37="","",IF(Control!$C$12="Directly",AJ25,IF(MAX(AJ13-'Baseline Reinforcement'!$D$9,0)=0,"",MAX(AJ13-'Baseline Reinforcement'!$D$9,0)))) ->  | AK37: =IF($C37="","",IF(Control!$C$12="Directly",AK25,IF(MAX(AK13-'Baseline Reinforcement'!$D$9,0)=0,"",MAX(AK13-'Baseline Reinforcement'!$D$9,0)))) ->  | AL37: =IF($C37="","",IF(Control!$C$12="Directly",AL25,IF(MAX(AL13-'Baseline Reinforcement'!$D$9,0)=0,"",MAX(AL13-'Baseline Reinforcement'!$D$9,0)))) ->  | AM37: =IF($C37="","",IF(Control!$C$12="Directly",AM25,IF(MAX(AM13-'Baseline Reinforcement'!$D$9,0)=0,"",MAX(AM13-'Baseline Reinforcement'!$D$9,0)))) ->  | AN37: =IF($C37="","",IF(Control!$C$12="Directly",AN25,IF(MAX(AN13-'Baseline Reinforcement'!$D$9,0)=0,"",MAX(AN13-'Baseline Reinforcement'!$D$9,0)))) ->  | AO37: =IF($C37="","",IF(Control!$C$12="Directly",AO25,IF(MAX(AO13-'Baseline Reinforcement'!$D$9,0)=0,"",MAX(AO13-'Baseline Reinforcement'!$D$9,0)))) ->  | AP37: =IF($C37="","",IF(Control!$C$12="Directly",AP25,IF(MAX(AP13-'Baseline Reinforcement'!$D$9,0)=0,"",MAX(AP13-'Baseline Reinforcement'!$D$9,0)))) ->  | AQ37: =IF($C37="","",IF(Control!$C$12="Directly",AQ25,IF(MAX(AQ13-'Baseline Reinforcement'!$D$9,0)=0,"",MAX(AQ13-'Baseline Reinforcement'!$D$9,0)))) ->  | AR37: =IF($C37="","",IF(Control!$C$12="Directly",AR25,IF(MAX(AR13-'Baseline Reinforcement'!$D$9,0)=0,"",MAX(AR13-'Baseline Reinforcement'!$D$9,0)))) ->  | AS37: =IF($C37="","",IF(Control!$C$12="Directly",AS25,IF(MAX(AS13-'Baseline Reinforcement'!$D$9,0)=0,"",MAX(AS13-'Baseline Reinforcement'!$D$9,0)))) ->  | AT37: =IF($C37="","",IF(Control!$C$12="Directly",AT25,IF(MAX(AT13-'Baseline Reinforcement'!$D$9,0)=0,"",MAX(AT13-'Baseline Reinforcement'!$D$9,0)))) ->  | AU37: =IF($C37="","",IF(Control!$C$12="Directly",AU25,IF(MAX(AU13-'Baseline Reinforcement'!$D$9,0)=0,"",MAX(AU13-'Baseline Reinforcement'!$D$9,0)))) ->  | AV37: =IF($C37="","",IF(Control!$C$12="Directly",AV25,IF(MAX(AV13-'Baseline Reinforcement'!$D$9,0)=0,"",MAX(AV13-'Baseline Reinforcement'!$D$9,0)))) ->  | AW37: =IF($C37="","",IF(Control!$C$12="Directly",AW25,IF(MAX(AW13-'Baseline Reinforcement'!$D$9,0)=0,"",MAX(AW13-'Baseline Reinforcement'!$D$9,0)))) ->  | AX37: =IF($C37="","",IF(Control!$C$12="Directly",AX25,IF(MAX(AX13-'Baseline Reinforcement'!$D$9,0)=0,"",MAX(AX13-'Baseline Reinforcement'!$D$9,0)))) ->  | AY37: =IF($C37="","",IF(Control!$C$12="Directly",AY25,IF(MAX(AY13-'Baseline Reinforcement'!$D$9,0)=0,"",MAX(AY13-'Baseline Reinforcement'!$D$9,0)))) ->  | AZ37: =IF($C37="","",IF(Control!$C$12="Directly",AZ25,IF(MAX(AZ13-'Baseline Reinforcement'!$D$9,0)=0,"",MAX(AZ13-'Baseline Reinforcement'!$D$9,0)))) ->  | BA37: =IF($C37="","",IF(Control!$C$12="Directly",BA25,IF(MAX(BA13-'Baseline Reinforcement'!$D$9,0)=0,"",MAX(BA13-'Baseline Reinforcement'!$D$9,0)))) ->  | BB37: =IF($C37="","",IF(Control!$C$12="Directly",BB25,IF(MAX(BB13-'Baseline Reinforcement'!$D$9,0)=0,"",MAX(BB13-'Baseline Reinforcement'!$D$9,0)))) ->  | BC37: =IF($C37="","",IF(Control!$C$12="Directly",BC25,IF(MAX(BC13-'Baseline Reinforcement'!$D$9,0)=0,"",MAX(BC13-'Baseline Reinforcement'!$D$9,0)))) ->  | BD37: =IF($C37="","",IF(Control!$C$12="Directly",BD25,IF(MAX(BD13-'Baseline Reinforcement'!$D$9,0)=0,"",MAX(BD13-'Baseline Reinforcement'!$D$9,0)))) ->  | BE37: =IF($C37="","",IF(Control!$C$12="Directly",BE25,IF(MAX(BE13-'Baseline Reinforcement'!$D$9,0)=0,"",MAX(BE13-'Baseline Reinforcement'!$D$9,0)))) ->  | BF37: =IF($C37="","",IF(Control!$C$12="Directly",BF25,IF(MAX(BF13-'Baseline Reinforcement'!$D$9,0)=0,"",MAX(BF13-'Baseline Reinforcement'!$D$9,0)))) ->  | BG37: =IF($C37="","",IF(Control!$C$12="Directly",BG25,IF(MAX(BG13-'Baseline Reinforcement'!$D$9,0)=0,"",MAX(BG13-'Baseline Reinforcement'!$D$9,0)))) ->  | BH37: =IF($C37="","",IF(Control!$C$12="Directly",BH25,IF(MAX(BH13-'Baseline Reinforcement'!$D$9,0)=0,"",MAX(BH13-'Baseline Reinforcement'!$D$9,0)))) ->  | BI37: =IF($C37="","",IF(Control!$C$12="Directly",BI25,IF(MAX(BI13-'Baseline Reinforcement'!$D$9,0)=0,"",MAX(BI13-'Baseline Reinforcement'!$D$9,0)))) ->  | BJ37: =IF($C37="","",IF(Control!$C$12="Directly",BJ25,IF(MAX(BJ13-'Baseline Reinforcement'!$D$9,0)=0,"",MAX(BJ13-'Baseline Reinforcement'!$D$9,0)))) ->  | BK37: =IF($C37="","",IF(Control!$C$12="Directly",BK25,IF(MAX(BK13-'Baseline Reinforcement'!$D$9,0)=0,"",MAX(BK13-'Baseline Reinforcement'!$D$9,0)))) ->  | BL37: =IF($C37="","",IF(Control!$C$12="Directly",BL25,IF(MAX(BL13-'Baseline Reinforcement'!$D$9,0)=0,"",MAX(BL13-'Baseline Reinforcement'!$D$9,0)))) ->  | BM37: =IF($C37="","",IF(Control!$C$12="Directly",BM25,IF(MAX(BM13-'Baseline Reinforcement'!$D$9,0)=0,"",MAX(BM13-'Baseline Reinforcement'!$D$9,0)))) ->  | BN37: =IF($C37="","",IF(Control!$C$12="Directly",BN25,IF(MAX(BN13-'Baseline Reinforcement'!$D$9,0)=0,"",MAX(BN13-'Baseline Reinforcement'!$D$9,0)))) ->  | BO37: =IF($C37="","",IF(Control!$C$12="Directly",BO25,IF(MAX(BO13-'Baseline Reinforcement'!$D$9,0)=0,"",MAX(BO13-'Baseline Reinforcement'!$D$9,0)))) ->  | BP37: =IF($C37="","",IF(Control!$C$12="Directly",BP25,IF(MAX(BP13-'Baseline Reinforcement'!$D$9,0)=0,"",MAX(BP13-'Baseline Reinforcement'!$D$9,0)))) ->  | BQ37: =IF($C37="","",IF(Control!$C$12="Directly",BQ25,IF(MAX(BQ13-'Baseline Reinforcement'!$D$9,0)=0,"",MAX(BQ13-'Baseline Reinforcement'!$D$9,0)))) ->  | BR37: =IF($C37="","",IF(Control!$C$12="Directly",BR25,IF(MAX(BR13-'Baseline Reinforcement'!$D$9,0)=0,"",MAX(BR13-'Baseline Reinforcement'!$D$9,0)))) -> 
A38: Scn | B38: 4 | C38: =IF(Control!C38="","",Control!C38) ->  | D38: =IF($C38="","",IF(Control!$C$12="Directly",D26,IF(MAX(D14-'Baseline Reinforcement'!$D$9,0)=0,"",MAX(D14-'Baseline Reinforcement'!$D$9,0)))) ->  | E38: =IF($C38="","",IF(Control!$C$12="Directly",E26,IF(MAX(E14-'Baseline Reinforcement'!$D$9,0)=0,"",MAX(E14-'Baseline Reinforcement'!$D$9,0)))) ->  | F38: =IF($C38="","",IF(Control!$C$12="Directly",F26,IF(MAX(F14-'Baseline Reinforcement'!$D$9,0)=0,"",MAX(F14-'Baseline Reinforcement'!$D$9,0)))) ->  | G38: =IF($C38="","",IF(Control!$C$12="Directly",G26,IF(MAX(G14-'Baseline Reinforcement'!$D$9,0)=0,"",MAX(G14-'Baseline Reinforcement'!$D$9,0)))) ->  | H38: =IF($C38="","",IF(Control!$C$12="Directly",H26,IF(MAX(H14-'Baseline Reinforcement'!$D$9,0)=0,"",MAX(H14-'Baseline Reinforcement'!$D$9,0)))) ->  | I38: =IF($C38="","",IF(Control!$C$12="Directly",I26,IF(MAX(I14-'Baseline Reinforcement'!$D$9,0)=0,"",MAX(I14-'Baseline Reinforcement'!$D$9,0)))) ->  | J38: =IF($C38="","",IF(Control!$C$12="Directly",J26,IF(MAX(J14-'Baseline Reinforcement'!$D$9,0)=0,"",MAX(J14-'Baseline Reinforcement'!$D$9,0)))) ->  | K38: =IF($C38="","",IF(Control!$C$12="Directly",K26,IF(MAX(K14-'Baseline Reinforcement'!$D$9,0)=0,"",MAX(K14-'Baseline Reinforcement'!$D$9,0)))) ->  | L38: =IF($C38="","",IF(Control!$C$12="Directly",L26,IF(MAX(L14-'Baseline Reinforcement'!$D$9,0)=0,"",MAX(L14-'Baseline Reinforcement'!$D$9,0)))) ->  | M38: =IF($C38="","",IF(Control!$C$12="Directly",M26,IF(MAX(M14-'Baseline Reinforcement'!$D$9,0)=0,"",MAX(M14-'Baseline Reinforcement'!$D$9,0)))) ->  | N38: =IF($C38="","",IF(Control!$C$12="Directly",N26,IF(MAX(N14-'Baseline Reinforcement'!$D$9,0)=0,"",MAX(N14-'Baseline Reinforcement'!$D$9,0)))) ->  | O38: =IF($C38="","",IF(Control!$C$12="Directly",O26,IF(MAX(O14-'Baseline Reinforcement'!$D$9,0)=0,"",MAX(O14-'Baseline Reinforcement'!$D$9,0)))) ->  | P38: =IF($C38="","",IF(Control!$C$12="Directly",P26,IF(MAX(P14-'Baseline Reinforcement'!$D$9,0)=0,"",MAX(P14-'Baseline Reinforcement'!$D$9,0)))) ->  | Q38: =IF($C38="","",IF(Control!$C$12="Directly",Q26,IF(MAX(Q14-'Baseline Reinforcement'!$D$9,0)=0,"",MAX(Q14-'Baseline Reinforcement'!$D$9,0)))) ->  | R38: =IF($C38="","",IF(Control!$C$12="Directly",R26,IF(MAX(R14-'Baseline Reinforcement'!$D$9,0)=0,"",MAX(R14-'Baseline Reinforcement'!$D$9,0)))) ->  | S38: =IF($C38="","",IF(Control!$C$12="Directly",S26,IF(MAX(S14-'Baseline Reinforcement'!$D$9,0)=0,"",MAX(S14-'Baseline Reinforcement'!$D$9,0)))) ->  | T38: =IF($C38="","",IF(Control!$C$12="Directly",T26,IF(MAX(T14-'Baseline Reinforcement'!$D$9,0)=0,"",MAX(T14-'Baseline Reinforcement'!$D$9,0)))) ->  | U38: =IF($C38="","",IF(Control!$C$12="Directly",U26,IF(MAX(U14-'Baseline Reinforcement'!$D$9,0)=0,"",MAX(U14-'Baseline Reinforcement'!$D$9,0)))) ->  | V38: =IF($C38="","",IF(Control!$C$12="Directly",V26,IF(MAX(V14-'Baseline Reinforcement'!$D$9,0)=0,"",MAX(V14-'Baseline Reinforcement'!$D$9,0)))) ->  | W38: =IF($C38="","",IF(Control!$C$12="Directly",W26,IF(MAX(W14-'Baseline Reinforcement'!$D$9,0)=0,"",MAX(W14-'Baseline Reinforcement'!$D$9,0)))) ->  | X38: =IF($C38="","",IF(Control!$C$12="Directly",X26,IF(MAX(X14-'Baseline Reinforcement'!$D$9,0)=0,"",MAX(X14-'Baseline Reinforcement'!$D$9,0)))) ->  | Y38: =IF($C38="","",IF(Control!$C$12="Directly",Y26,IF(MAX(Y14-'Baseline Reinforcement'!$D$9,0)=0,"",MAX(Y14-'Baseline Reinforcement'!$D$9,0)))) ->  | Z38: =IF($C38="","",IF(Control!$C$12="Directly",Z26,IF(MAX(Z14-'Baseline Reinforcement'!$D$9,0)=0,"",MAX(Z14-'Baseline Reinforcement'!$D$9,0)))) ->  | AA38: =IF($C38="","",IF(Control!$C$12="Directly",AA26,IF(MAX(AA14-'Baseline Reinforcement'!$D$9,0)=0,"",MAX(AA14-'Baseline Reinforcement'!$D$9,0)))) ->  | AB38: =IF($C38="","",IF(Control!$C$12="Directly",AB26,IF(MAX(AB14-'Baseline Reinforcement'!$D$9,0)=0,"",MAX(AB14-'Baseline Reinforcement'!$D$9,0)))) ->  | AC38: =IF($C38="","",IF(Control!$C$12="Directly",AC26,IF(MAX(AC14-'Baseline Reinforcement'!$D$9,0)=0,"",MAX(AC14-'Baseline Reinforcement'!$D$9,0)))) ->  | AD38: =IF($C38="","",IF(Control!$C$12="Directly",AD26,IF(MAX(AD14-'Baseline Reinforcement'!$D$9,0)=0,"",MAX(AD14-'Baseline Reinforcement'!$D$9,0)))) ->  | AE38: =IF($C38="","",IF(Control!$C$12="Directly",AE26,IF(MAX(AE14-'Baseline Reinforcement'!$D$9,0)=0,"",MAX(AE14-'Baseline Reinforcement'!$D$9,0)))) ->  | AF38: =IF($C38="","",IF(Control!$C$12="Directly",AF26,IF(MAX(AF14-'Baseline Reinforcement'!$D$9,0)=0,"",MAX(AF14-'Baseline Reinforcement'!$D$9,0)))) ->  | AG38: =IF($C38="","",IF(Control!$C$12="Directly",AG26,IF(MAX(AG14-'Baseline Reinforcement'!$D$9,0)=0,"",MAX(AG14-'Baseline Reinforcement'!$D$9,0)))) ->  | AH38: =IF($C38="","",IF(Control!$C$12="Directly",AH26,IF(MAX(AH14-'Baseline Reinforcement'!$D$9,0)=0,"",MAX(AH14-'Baseline Reinforcement'!$D$9,0)))) ->  | AI38: =IF($C38="","",IF(Control!$C$12="Directly",AI26,IF(MAX(AI14-'Baseline Reinforcement'!$D$9,0)=0,"",MAX(AI14-'Baseline Reinforcement'!$D$9,0)))) ->  | AJ38: =IF($C38="","",IF(Control!$C$12="Directly",AJ26,IF(MAX(AJ14-'Baseline Reinforcement'!$D$9,0)=0,"",MAX(AJ14-'Baseline Reinforcement'!$D$9,0)))) ->  | AK38: =IF($C38="","",IF(Control!$C$12="Directly",AK26,IF(MAX(AK14-'Baseline Reinforcement'!$D$9,0)=0,"",MAX(AK14-'Baseline Reinforcement'!$D$9,0)))) ->  | AL38: =IF($C38="","",IF(Control!$C$12="Directly",AL26,IF(MAX(AL14-'Baseline Reinforcement'!$D$9,0)=0,"",MAX(AL14-'Baseline Reinforcement'!$D$9,0)))) ->  | AM38: =IF($C38="","",IF(Control!$C$12="Directly",AM26,IF(MAX(AM14-'Baseline Reinforcement'!$D$9,0)=0,"",MAX(AM14-'Baseline Reinforcement'!$D$9,0)))) ->  | AN38: =IF($C38="","",IF(Control!$C$12="Directly",AN26,IF(MAX(AN14-'Baseline Reinforcement'!$D$9,0)=0,"",MAX(AN14-'Baseline Reinforcement'!$D$9,0)))) ->  | AO38: =IF($C38="","",IF(Control!$C$12="Directly",AO26,IF(MAX(AO14-'Baseline Reinforcement'!$D$9,0)=0,"",MAX(AO14-'Baseline Reinforcement'!$D$9,0)))) ->  | AP38: =IF($C38="","",IF(Control!$C$12="Directly",AP26,IF(MAX(AP14-'Baseline Reinforcement'!$D$9,0)=0,"",MAX(AP14-'Baseline Reinforcement'!$D$9,0)))) ->  | AQ38: =IF($C38="","",IF(Control!$C$12="Directly",AQ26,IF(MAX(AQ14-'Baseline Reinforcement'!$D$9,0)=0,"",MAX(AQ14-'Baseline Reinforcement'!$D$9,0)))) ->  | AR38: =IF($C38="","",IF(Control!$C$12="Directly",AR26,IF(MAX(AR14-'Baseline Reinforcement'!$D$9,0)=0,"",MAX(AR14-'Baseline Reinforcement'!$D$9,0)))) ->  | AS38: =IF($C38="","",IF(Control!$C$12="Directly",AS26,IF(MAX(AS14-'Baseline Reinforcement'!$D$9,0)=0,"",MAX(AS14-'Baseline Reinforcement'!$D$9,0)))) ->  | AT38: =IF($C38="","",IF(Control!$C$12="Directly",AT26,IF(MAX(AT14-'Baseline Reinforcement'!$D$9,0)=0,"",MAX(AT14-'Baseline Reinforcement'!$D$9,0)))) ->  | AU38: =IF($C38="","",IF(Control!$C$12="Directly",AU26,IF(MAX(AU14-'Baseline Reinforcement'!$D$9,0)=0,"",MAX(AU14-'Baseline Reinforcement'!$D$9,0)))) ->  | AV38: =IF($C38="","",IF(Control!$C$12="Directly",AV26,IF(MAX(AV14-'Baseline Reinforcement'!$D$9,0)=0,"",MAX(AV14-'Baseline Reinforcement'!$D$9,0)))) ->  | AW38: =IF($C38="","",IF(Control!$C$12="Directly",AW26,IF(MAX(AW14-'Baseline Reinforcement'!$D$9,0)=0,"",MAX(AW14-'Baseline Reinforcement'!$D$9,0)))) ->  | AX38: =IF($C38="","",IF(Control!$C$12="Directly",AX26,IF(MAX(AX14-'Baseline Reinforcement'!$D$9,0)=0,"",MAX(AX14-'Baseline Reinforcement'!$D$9,0)))) ->  | AY38: =IF($C38="","",IF(Control!$C$12="Directly",AY26,IF(MAX(AY14-'Baseline Reinforcement'!$D$9,0)=0,"",MAX(AY14-'Baseline Reinforcement'!$D$9,0)))) ->  | AZ38: =IF($C38="","",IF(Control!$C$12="Directly",AZ26,IF(MAX(AZ14-'Baseline Reinforcement'!$D$9,0)=0,"",MAX(AZ14-'Baseline Reinforcement'!$D$9,0)))) ->  | BA38: =IF($C38="","",IF(Control!$C$12="Directly",BA26,IF(MAX(BA14-'Baseline Reinforcement'!$D$9,0)=0,"",MAX(BA14-'Baseline Reinforcement'!$D$9,0)))) ->  | BB38: =IF($C38="","",IF(Control!$C$12="Directly",BB26,IF(MAX(BB14-'Baseline Reinforcement'!$D$9,0)=0,"",MAX(BB14-'Baseline Reinforcement'!$D$9,0)))) ->  | BC38: =IF($C38="","",IF(Control!$C$12="Directly",BC26,IF(MAX(BC14-'Baseline Reinforcement'!$D$9,0)=0,"",MAX(BC14-'Baseline Reinforcement'!$D$9,0)))) ->  | BD38: =IF($C38="","",IF(Control!$C$12="Directly",BD26,IF(MAX(BD14-'Baseline Reinforcement'!$D$9,0)=0,"",MAX(BD14-'Baseline Reinforcement'!$D$9,0)))) ->  | BE38: =IF($C38="","",IF(Control!$C$12="Directly",BE26,IF(MAX(BE14-'Baseline Reinforcement'!$D$9,0)=0,"",MAX(BE14-'Baseline Reinforcement'!$D$9,0)))) ->  | BF38: =IF($C38="","",IF(Control!$C$12="Directly",BF26,IF(MAX(BF14-'Baseline Reinforcement'!$D$9,0)=0,"",MAX(BF14-'Baseline Reinforcement'!$D$9,0)))) ->  | BG38: =IF($C38="","",IF(Control!$C$12="Directly",BG26,IF(MAX(BG14-'Baseline Reinforcement'!$D$9,0)=0,"",MAX(BG14-'Baseline Reinforcement'!$D$9,0)))) ->  | BH38: =IF($C38="","",IF(Control!$C$12="Directly",BH26,IF(MAX(BH14-'Baseline Reinforcement'!$D$9,0)=0,"",MAX(BH14-'Baseline Reinforcement'!$D$9,0)))) ->  | BI38: =IF($C38="","",IF(Control!$C$12="Directly",BI26,IF(MAX(BI14-'Baseline Reinforcement'!$D$9,0)=0,"",MAX(BI14-'Baseline Reinforcement'!$D$9,0)))) ->  | BJ38: =IF($C38="","",IF(Control!$C$12="Directly",BJ26,IF(MAX(BJ14-'Baseline Reinforcement'!$D$9,0)=0,"",MAX(BJ14-'Baseline Reinforcement'!$D$9,0)))) ->  | BK38: =IF($C38="","",IF(Control!$C$12="Directly",BK26,IF(MAX(BK14-'Baseline Reinforcement'!$D$9,0)=0,"",MAX(BK14-'Baseline Reinforcement'!$D$9,0)))) ->  | BL38: =IF($C38="","",IF(Control!$C$12="Directly",BL26,IF(MAX(BL14-'Baseline Reinforcement'!$D$9,0)=0,"",MAX(BL14-'Baseline Reinforcement'!$D$9,0)))) ->  | BM38: =IF($C38="","",IF(Control!$C$12="Directly",BM26,IF(MAX(BM14-'Baseline Reinforcement'!$D$9,0)=0,"",MAX(BM14-'Baseline Reinforcement'!$D$9,0)))) ->  | BN38: =IF($C38="","",IF(Control!$C$12="Directly",BN26,IF(MAX(BN14-'Baseline Reinforcement'!$D$9,0)=0,"",MAX(BN14-'Baseline Reinforcement'!$D$9,0)))) ->  | BO38: =IF($C38="","",IF(Control!$C$12="Directly",BO26,IF(MAX(BO14-'Baseline Reinforcement'!$D$9,0)=0,"",MAX(BO14-'Baseline Reinforcement'!$D$9,0)))) ->  | BP38: =IF($C38="","",IF(Control!$C$12="Directly",BP26,IF(MAX(BP14-'Baseline Reinforcement'!$D$9,0)=0,"",MAX(BP14-'Baseline Reinforcement'!$D$9,0)))) ->  | BQ38: =IF($C38="","",IF(Control!$C$12="Directly",BQ26,IF(MAX(BQ14-'Baseline Reinforcement'!$D$9,0)=0,"",MAX(BQ14-'Baseline Reinforcement'!$D$9,0)))) ->  | BR38: =IF($C38="","",IF(Control!$C$12="Directly",BR26,IF(MAX(BR14-'Baseline Reinforcement'!$D$9,0)=0,"",MAX(BR14-'Baseline Reinforcement'!$D$9,0)))) -> 
A39: Scn | B39: 5 | C39: =IF(Control!C39="","",Control!C39) ->  | D39: =IF($C39="","",IF(Control!$C$12="Directly",D27,IF(MAX(D15-'Baseline Reinforcement'!$D$9,0)=0,"",MAX(D15-'Baseline Reinforcement'!$D$9,0)))) ->  | E39: =IF($C39="","",IF(Control!$C$12="Directly",E27,IF(MAX(E15-'Baseline Reinforcement'!$D$9,0)=0,"",MAX(E15-'Baseline Reinforcement'!$D$9,0)))) ->  | F39: =IF($C39="","",IF(Control!$C$12="Directly",F27,IF(MAX(F15-'Baseline Reinforcement'!$D$9,0)=0,"",MAX(F15-'Baseline Reinforcement'!$D$9,0)))) ->  | G39: =IF($C39="","",IF(Control!$C$12="Directly",G27,IF(MAX(G15-'Baseline Reinforcement'!$D$9,0)=0,"",MAX(G15-'Baseline Reinforcement'!$D$9,0)))) ->  | H39: =IF($C39="","",IF(Control!$C$12="Directly",H27,IF(MAX(H15-'Baseline Reinforcement'!$D$9,0)=0,"",MAX(H15-'Baseline Reinforcement'!$D$9,0)))) ->  | I39: =IF($C39="","",IF(Control!$C$12="Directly",I27,IF(MAX(I15-'Baseline Reinforcement'!$D$9,0)=0,"",MAX(I15-'Baseline Reinforcement'!$D$9,0)))) ->  | J39: =IF($C39="","",IF(Control!$C$12="Directly",J27,IF(MAX(J15-'Baseline Reinforcement'!$D$9,0)=0,"",MAX(J15-'Baseline Reinforcement'!$D$9,0)))) ->  | K39: =IF($C39="","",IF(Control!$C$12="Directly",K27,IF(MAX(K15-'Baseline Reinforcement'!$D$9,0)=0,"",MAX(K15-'Baseline Reinforcement'!$D$9,0)))) ->  | L39: =IF($C39="","",IF(Control!$C$12="Directly",L27,IF(MAX(L15-'Baseline Reinforcement'!$D$9,0)=0,"",MAX(L15-'Baseline Reinforcement'!$D$9,0)))) ->  | M39: =IF($C39="","",IF(Control!$C$12="Directly",M27,IF(MAX(M15-'Baseline Reinforcement'!$D$9,0)=0,"",MAX(M15-'Baseline Reinforcement'!$D$9,0)))) ->  | N39: =IF($C39="","",IF(Control!$C$12="Directly",N27,IF(MAX(N15-'Baseline Reinforcement'!$D$9,0)=0,"",MAX(N15-'Baseline Reinforcement'!$D$9,0)))) ->  | O39: =IF($C39="","",IF(Control!$C$12="Directly",O27,IF(MAX(O15-'Baseline Reinforcement'!$D$9,0)=0,"",MAX(O15-'Baseline Reinforcement'!$D$9,0)))) ->  | P39: =IF($C39="","",IF(Control!$C$12="Directly",P27,IF(MAX(P15-'Baseline Reinforcement'!$D$9,0)=0,"",MAX(P15-'Baseline Reinforcement'!$D$9,0)))) ->  | Q39: =IF($C39="","",IF(Control!$C$12="Directly",Q27,IF(MAX(Q15-'Baseline Reinforcement'!$D$9,0)=0,"",MAX(Q15-'Baseline Reinforcement'!$D$9,0)))) ->  | R39: =IF($C39="","",IF(Control!$C$12="Directly",R27,IF(MAX(R15-'Baseline Reinforcement'!$D$9,0)=0,"",MAX(R15-'Baseline Reinforcement'!$D$9,0)))) ->  | S39: =IF($C39="","",IF(Control!$C$12="Directly",S27,IF(MAX(S15-'Baseline Reinforcement'!$D$9,0)=0,"",MAX(S15-'Baseline Reinforcement'!$D$9,0)))) ->  | T39: =IF($C39="","",IF(Control!$C$12="Directly",T27,IF(MAX(T15-'Baseline Reinforcement'!$D$9,0)=0,"",MAX(T15-'Baseline Reinforcement'!$D$9,0)))) ->  | U39: =IF($C39="","",IF(Control!$C$12="Directly",U27,IF(MAX(U15-'Baseline Reinforcement'!$D$9,0)=0,"",MAX(U15-'Baseline Reinforcement'!$D$9,0)))) ->  | V39: =IF($C39="","",IF(Control!$C$12="Directly",V27,IF(MAX(V15-'Baseline Reinforcement'!$D$9,0)=0,"",MAX(V15-'Baseline Reinforcement'!$D$9,0)))) ->  | W39: =IF($C39="","",IF(Control!$C$12="Directly",W27,IF(MAX(W15-'Baseline Reinforcement'!$D$9,0)=0,"",MAX(W15-'Baseline Reinforcement'!$D$9,0)))) ->  | X39: =IF($C39="","",IF(Control!$C$12="Directly",X27,IF(MAX(X15-'Baseline Reinforcement'!$D$9,0)=0,"",MAX(X15-'Baseline Reinforcement'!$D$9,0)))) ->  | Y39: =IF($C39="","",IF(Control!$C$12="Directly",Y27,IF(MAX(Y15-'Baseline Reinforcement'!$D$9,0)=0,"",MAX(Y15-'Baseline Reinforcement'!$D$9,0)))) ->  | Z39: =IF($C39="","",IF(Control!$C$12="Directly",Z27,IF(MAX(Z15-'Baseline Reinforcement'!$D$9,0)=0,"",MAX(Z15-'Baseline Reinforcement'!$D$9,0)))) ->  | AA39: =IF($C39="","",IF(Control!$C$12="Directly",AA27,IF(MAX(AA15-'Baseline Reinforcement'!$D$9,0)=0,"",MAX(AA15-'Baseline Reinforcement'!$D$9,0)))) ->  | AB39: =IF($C39="","",IF(Control!$C$12="Directly",AB27,IF(MAX(AB15-'Baseline Reinforcement'!$D$9,0)=0,"",MAX(AB15-'Baseline Reinforcement'!$D$9,0)))) ->  | AC39: =IF($C39="","",IF(Control!$C$12="Directly",AC27,IF(MAX(AC15-'Baseline Reinforcement'!$D$9,0)=0,"",MAX(AC15-'Baseline Reinforcement'!$D$9,0)))) ->  | AD39: =IF($C39="","",IF(Control!$C$12="Directly",AD27,IF(MAX(AD15-'Baseline Reinforcement'!$D$9,0)=0,"",MAX(AD15-'Baseline Reinforcement'!$D$9,0)))) ->  | AE39: =IF($C39="","",IF(Control!$C$12="Directly",AE27,IF(MAX(AE15-'Baseline Reinforcement'!$D$9,0)=0,"",MAX(AE15-'Baseline Reinforcement'!$D$9,0)))) ->  | AF39: =IF($C39="","",IF(Control!$C$12="Directly",AF27,IF(MAX(AF15-'Baseline Reinforcement'!$D$9,0)=0,"",MAX(AF15-'Baseline Reinforcement'!$D$9,0)))) ->  | AG39: =IF($C39="","",IF(Control!$C$12="Directly",AG27,IF(MAX(AG15-'Baseline Reinforcement'!$D$9,0)=0,"",MAX(AG15-'Baseline Reinforcement'!$D$9,0)))) ->  | AH39: =IF($C39="","",IF(Control!$C$12="Directly",AH27,IF(MAX(AH15-'Baseline Reinforcement'!$D$9,0)=0,"",MAX(AH15-'Baseline Reinforcement'!$D$9,0)))) ->  | AI39: =IF($C39="","",IF(Control!$C$12="Directly",AI27,IF(MAX(AI15-'Baseline Reinforcement'!$D$9,0)=0,"",MAX(AI15-'Baseline Reinforcement'!$D$9,0)))) ->  | AJ39: =IF($C39="","",IF(Control!$C$12="Directly",AJ27,IF(MAX(AJ15-'Baseline Reinforcement'!$D$9,0)=0,"",MAX(AJ15-'Baseline Reinforcement'!$D$9,0)))) ->  | AK39: =IF($C39="","",IF(Control!$C$12="Directly",AK27,IF(MAX(AK15-'Baseline Reinforcement'!$D$9,0)=0,"",MAX(AK15-'Baseline Reinforcement'!$D$9,0)))) ->  | AL39: =IF($C39="","",IF(Control!$C$12="Directly",AL27,IF(MAX(AL15-'Baseline Reinforcement'!$D$9,0)=0,"",MAX(AL15-'Baseline Reinforcement'!$D$9,0)))) ->  | AM39: =IF($C39="","",IF(Control!$C$12="Directly",AM27,IF(MAX(AM15-'Baseline Reinforcement'!$D$9,0)=0,"",MAX(AM15-'Baseline Reinforcement'!$D$9,0)))) ->  | AN39: =IF($C39="","",IF(Control!$C$12="Directly",AN27,IF(MAX(AN15-'Baseline Reinforcement'!$D$9,0)=0,"",MAX(AN15-'Baseline Reinforcement'!$D$9,0)))) ->  | AO39: =IF($C39="","",IF(Control!$C$12="Directly",AO27,IF(MAX(AO15-'Baseline Reinforcement'!$D$9,0)=0,"",MAX(AO15-'Baseline Reinforcement'!$D$9,0)))) ->  | AP39: =IF($C39="","",IF(Control!$C$12="Directly",AP27,IF(MAX(AP15-'Baseline Reinforcement'!$D$9,0)=0,"",MAX(AP15-'Baseline Reinforcement'!$D$9,0)))) ->  | AQ39: =IF($C39="","",IF(Control!$C$12="Directly",AQ27,IF(MAX(AQ15-'Baseline Reinforcement'!$D$9,0)=0,"",MAX(AQ15-'Baseline Reinforcement'!$D$9,0)))) ->  | AR39: =IF($C39="","",IF(Control!$C$12="Directly",AR27,IF(MAX(AR15-'Baseline Reinforcement'!$D$9,0)=0,"",MAX(AR15-'Baseline Reinforcement'!$D$9,0)))) ->  | AS39: =IF($C39="","",IF(Control!$C$12="Directly",AS27,IF(MAX(AS15-'Baseline Reinforcement'!$D$9,0)=0,"",MAX(AS15-'Baseline Reinforcement'!$D$9,0)))) ->  | AT39: =IF($C39="","",IF(Control!$C$12="Directly",AT27,IF(MAX(AT15-'Baseline Reinforcement'!$D$9,0)=0,"",MAX(AT15-'Baseline Reinforcement'!$D$9,0)))) ->  | AU39: =IF($C39="","",IF(Control!$C$12="Directly",AU27,IF(MAX(AU15-'Baseline Reinforcement'!$D$9,0)=0,"",MAX(AU15-'Baseline Reinforcement'!$D$9,0)))) ->  | AV39: =IF($C39="","",IF(Control!$C$12="Directly",AV27,IF(MAX(AV15-'Baseline Reinforcement'!$D$9,0)=0,"",MAX(AV15-'Baseline Reinforcement'!$D$9,0)))) ->  | AW39: =IF($C39="","",IF(Control!$C$12="Directly",AW27,IF(MAX(AW15-'Baseline Reinforcement'!$D$9,0)=0,"",MAX(AW15-'Baseline Reinforcement'!$D$9,0)))) ->  | AX39: =IF($C39="","",IF(Control!$C$12="Directly",AX27,IF(MAX(AX15-'Baseline Reinforcement'!$D$9,0)=0,"",MAX(AX15-'Baseline Reinforcement'!$D$9,0)))) ->  | AY39: =IF($C39="","",IF(Control!$C$12="Directly",AY27,IF(MAX(AY15-'Baseline Reinforcement'!$D$9,0)=0,"",MAX(AY15-'Baseline Reinforcement'!$D$9,0)))) ->  | AZ39: =IF($C39="","",IF(Control!$C$12="Directly",AZ27,IF(MAX(AZ15-'Baseline Reinforcement'!$D$9,0)=0,"",MAX(AZ15-'Baseline Reinforcement'!$D$9,0)))) ->  | BA39: =IF($C39="","",IF(Control!$C$12="Directly",BA27,IF(MAX(BA15-'Baseline Reinforcement'!$D$9,0)=0,"",MAX(BA15-'Baseline Reinforcement'!$D$9,0)))) ->  | BB39: =IF($C39="","",IF(Control!$C$12="Directly",BB27,IF(MAX(BB15-'Baseline Reinforcement'!$D$9,0)=0,"",MAX(BB15-'Baseline Reinforcement'!$D$9,0)))) ->  | BC39: =IF($C39="","",IF(Control!$C$12="Directly",BC27,IF(MAX(BC15-'Baseline Reinforcement'!$D$9,0)=0,"",MAX(BC15-'Baseline Reinforcement'!$D$9,0)))) ->  | BD39: =IF($C39="","",IF(Control!$C$12="Directly",BD27,IF(MAX(BD15-'Baseline Reinforcement'!$D$9,0)=0,"",MAX(BD15-'Baseline Reinforcement'!$D$9,0)))) ->  | BE39: =IF($C39="","",IF(Control!$C$12="Directly",BE27,IF(MAX(BE15-'Baseline Reinforcement'!$D$9,0)=0,"",MAX(BE15-'Baseline Reinforcement'!$D$9,0)))) ->  | BF39: =IF($C39="","",IF(Control!$C$12="Directly",BF27,IF(MAX(BF15-'Baseline Reinforcement'!$D$9,0)=0,"",MAX(BF15-'Baseline Reinforcement'!$D$9,0)))) ->  | BG39: =IF($C39="","",IF(Control!$C$12="Directly",BG27,IF(MAX(BG15-'Baseline Reinforcement'!$D$9,0)=0,"",MAX(BG15-'Baseline Reinforcement'!$D$9,0)))) ->  | BH39: =IF($C39="","",IF(Control!$C$12="Directly",BH27,IF(MAX(BH15-'Baseline Reinforcement'!$D$9,0)=0,"",MAX(BH15-'Baseline Reinforcement'!$D$9,0)))) ->  | BI39: =IF($C39="","",IF(Control!$C$12="Directly",BI27,IF(MAX(BI15-'Baseline Reinforcement'!$D$9,0)=0,"",MAX(BI15-'Baseline Reinforcement'!$D$9,0)))) ->  | BJ39: =IF($C39="","",IF(Control!$C$12="Directly",BJ27,IF(MAX(BJ15-'Baseline Reinforcement'!$D$9,0)=0,"",MAX(BJ15-'Baseline Reinforcement'!$D$9,0)))) ->  | BK39: =IF($C39="","",IF(Control!$C$12="Directly",BK27,IF(MAX(BK15-'Baseline Reinforcement'!$D$9,0)=0,"",MAX(BK15-'Baseline Reinforcement'!$D$9,0)))) ->  | BL39: =IF($C39="","",IF(Control!$C$12="Directly",BL27,IF(MAX(BL15-'Baseline Reinforcement'!$D$9,0)=0,"",MAX(BL15-'Baseline Reinforcement'!$D$9,0)))) ->  | BM39: =IF($C39="","",IF(Control!$C$12="Directly",BM27,IF(MAX(BM15-'Baseline Reinforcement'!$D$9,0)=0,"",MAX(BM15-'Baseline Reinforcement'!$D$9,0)))) ->  | BN39: =IF($C39="","",IF(Control!$C$12="Directly",BN27,IF(MAX(BN15-'Baseline Reinforcement'!$D$9,0)=0,"",MAX(BN15-'Baseline Reinforcement'!$D$9,0)))) ->  | BO39: =IF($C39="","",IF(Control!$C$12="Directly",BO27,IF(MAX(BO15-'Baseline Reinforcement'!$D$9,0)=0,"",MAX(BO15-'Baseline Reinforcement'!$D$9,0)))) ->  | BP39: =IF($C39="","",IF(Control!$C$12="Directly",BP27,IF(MAX(BP15-'Baseline Reinforcement'!$D$9,0)=0,"",MAX(BP15-'Baseline Reinforcement'!$D$9,0)))) ->  | BQ39: =IF($C39="","",IF(Control!$C$12="Directly",BQ27,IF(MAX(BQ15-'Baseline Reinforcement'!$D$9,0)=0,"",MAX(BQ15-'Baseline Reinforcement'!$D$9,0)))) ->  | BR39: =IF($C39="","",IF(Control!$C$12="Directly",BR27,IF(MAX(BR15-'Baseline Reinforcement'!$D$9,0)=0,"",MAX(BR15-'Baseline Reinforcement'!$D$9,0)))) -> 
A40: Scn | B40: 6 | C40: =IF(Control!C40="","",Control!C40) ->  | D40: =IF($C40="","",IF(Control!$C$12="Directly",D31,IF(MAX(D16-'Baseline Reinforcement'!$D$9,0)=0,"",MAX(D16-'Baseline Reinforcement'!$D$9,0)))) ->  | E40: =IF($C40="","",IF(Control!$C$12="Directly",E31,IF(MAX(E16-'Baseline Reinforcement'!$D$9,0)=0,"",MAX(E16-'Baseline Reinforcement'!$D$9,0)))) ->  | F40: =IF($C40="","",IF(Control!$C$12="Directly",F31,IF(MAX(F16-'Baseline Reinforcement'!$D$9,0)=0,"",MAX(F16-'Baseline Reinforcement'!$D$9,0)))) ->  | G40: =IF($C40="","",IF(Control!$C$12="Directly",G31,IF(MAX(G16-'Baseline Reinforcement'!$D$9,0)=0,"",MAX(G16-'Baseline Reinforcement'!$D$9,0)))) ->  | H40: =IF($C40="","",IF(Control!$C$12="Directly",H31,IF(MAX(H16-'Baseline Reinforcement'!$D$9,0)=0,"",MAX(H16-'Baseline Reinforcement'!$D$9,0)))) ->  | I40: =IF($C40="","",IF(Control!$C$12="Directly",I31,IF(MAX(I16-'Baseline Reinforcement'!$D$9,0)=0,"",MAX(I16-'Baseline Reinforcement'!$D$9,0)))) ->  | J40: =IF($C40="","",IF(Control!$C$12="Directly",J31,IF(MAX(J16-'Baseline Reinforcement'!$D$9,0)=0,"",MAX(J16-'Baseline Reinforcement'!$D$9,0)))) ->  | K40: =IF($C40="","",IF(Control!$C$12="Directly",K31,IF(MAX(K16-'Baseline Reinforcement'!$D$9,0)=0,"",MAX(K16-'Baseline Reinforcement'!$D$9,0)))) ->  | L40: =IF($C40="","",IF(Control!$C$12="Directly",L31,IF(MAX(L16-'Baseline Reinforcement'!$D$9,0)=0,"",MAX(L16-'Baseline Reinforcement'!$D$9,0)))) ->  | M40: =IF($C40="","",IF(Control!$C$12="Directly",M31,IF(MAX(M16-'Baseline Reinforcement'!$D$9,0)=0,"",MAX(M16-'Baseline Reinforcement'!$D$9,0)))) ->  | N40: =IF($C40="","",IF(Control!$C$12="Directly",N31,IF(MAX(N16-'Baseline Reinforcement'!$D$9,0)=0,"",MAX(N16-'Baseline Reinforcement'!$D$9,0)))) ->  | O40: =IF($C40="","",IF(Control!$C$12="Directly",O31,IF(MAX(O16-'Baseline Reinforcement'!$D$9,0)=0,"",MAX(O16-'Baseline Reinforcement'!$D$9,0)))) ->  | P40: =IF($C40="","",IF(Control!$C$12="Directly",P31,IF(MAX(P16-'Baseline Reinforcement'!$D$9,0)=0,"",MAX(P16-'Baseline Reinforcement'!$D$9,0)))) ->  | Q40: =IF($C40="","",IF(Control!$C$12="Directly",Q31,IF(MAX(Q16-'Baseline Reinforcement'!$D$9,0)=0,"",MAX(Q16-'Baseline Reinforcement'!$D$9,0)))) ->  | R40: =IF($C40="","",IF(Control!$C$12="Directly",R31,IF(MAX(R16-'Baseline Reinforcement'!$D$9,0)=0,"",MAX(R16-'Baseline Reinforcement'!$D$9,0)))) ->  | S40: =IF($C40="","",IF(Control!$C$12="Directly",S31,IF(MAX(S16-'Baseline Reinforcement'!$D$9,0)=0,"",MAX(S16-'Baseline Reinforcement'!$D$9,0)))) ->  | T40: =IF($C40="","",IF(Control!$C$12="Directly",T31,IF(MAX(T16-'Baseline Reinforcement'!$D$9,0)=0,"",MAX(T16-'Baseline Reinforcement'!$D$9,0)))) ->  | U40: =IF($C40="","",IF(Control!$C$12="Directly",U31,IF(MAX(U16-'Baseline Reinforcement'!$D$9,0)=0,"",MAX(U16-'Baseline Reinforcement'!$D$9,0)))) ->  | V40: =IF($C40="","",IF(Control!$C$12="Directly",V31,IF(MAX(V16-'Baseline Reinforcement'!$D$9,0)=0,"",MAX(V16-'Baseline Reinforcement'!$D$9,0)))) ->  | W40: =IF($C40="","",IF(Control!$C$12="Directly",W31,IF(MAX(W16-'Baseline Reinforcement'!$D$9,0)=0,"",MAX(W16-'Baseline Reinforcement'!$D$9,0)))) ->  | X40: =IF($C40="","",IF(Control!$C$12="Directly",X31,IF(MAX(X16-'Baseline Reinforcement'!$D$9,0)=0,"",MAX(X16-'Baseline Reinforcement'!$D$9,0)))) ->  | Y40: =IF($C40="","",IF(Control!$C$12="Directly",Y31,IF(MAX(Y16-'Baseline Reinforcement'!$D$9,0)=0,"",MAX(Y16-'Baseline Reinforcement'!$D$9,0)))) ->  | Z40: =IF($C40="","",IF(Control!$C$12="Directly",Z31,IF(MAX(Z16-'Baseline Reinforcement'!$D$9,0)=0,"",MAX(Z16-'Baseline Reinforcement'!$D$9,0)))) ->  | AA40: =IF($C40="","",IF(Control!$C$12="Directly",AA31,IF(MAX(AA16-'Baseline Reinforcement'!$D$9,0)=0,"",MAX(AA16-'Baseline Reinforcement'!$D$9,0)))) ->  | AB40: =IF($C40="","",IF(Control!$C$12="Directly",AB31,IF(MAX(AB16-'Baseline Reinforcement'!$D$9,0)=0,"",MAX(AB16-'Baseline Reinforcement'!$D$9,0)))) ->  | AC40: =IF($C40="","",IF(Control!$C$12="Directly",AC31,IF(MAX(AC16-'Baseline Reinforcement'!$D$9,0)=0,"",MAX(AC16-'Baseline Reinforcement'!$D$9,0)))) ->  | AD40: =IF($C40="","",IF(Control!$C$12="Directly",AD31,IF(MAX(AD16-'Baseline Reinforcement'!$D$9,0)=0,"",MAX(AD16-'Baseline Reinforcement'!$D$9,0)))) ->  | AE40: =IF($C40="","",IF(Control!$C$12="Directly",AE31,IF(MAX(AE16-'Baseline Reinforcement'!$D$9,0)=0,"",MAX(AE16-'Baseline Reinforcement'!$D$9,0)))) ->  | AF40: =IF($C40="","",IF(Control!$C$12="Directly",AF31,IF(MAX(AF16-'Baseline Reinforcement'!$D$9,0)=0,"",MAX(AF16-'Baseline Reinforcement'!$D$9,0)))) ->  | AG40: =IF($C40="","",IF(Control!$C$12="Directly",AG31,IF(MAX(AG16-'Baseline Reinforcement'!$D$9,0)=0,"",MAX(AG16-'Baseline Reinforcement'!$D$9,0)))) ->  | AH40: =IF($C40="","",IF(Control!$C$12="Directly",AH31,IF(MAX(AH16-'Baseline Reinforcement'!$D$9,0)=0,"",MAX(AH16-'Baseline Reinforcement'!$D$9,0)))) ->  | AI40: =IF($C40="","",IF(Control!$C$12="Directly",AI31,IF(MAX(AI16-'Baseline Reinforcement'!$D$9,0)=0,"",MAX(AI16-'Baseline Reinforcement'!$D$9,0)))) ->  | AJ40: =IF($C40="","",IF(Control!$C$12="Directly",AJ31,IF(MAX(AJ16-'Baseline Reinforcement'!$D$9,0)=0,"",MAX(AJ16-'Baseline Reinforcement'!$D$9,0)))) ->  | AK40: =IF($C40="","",IF(Control!$C$12="Directly",AK31,IF(MAX(AK16-'Baseline Reinforcement'!$D$9,0)=0,"",MAX(AK16-'Baseline Reinforcement'!$D$9,0)))) ->  | AL40: =IF($C40="","",IF(Control!$C$12="Directly",AL31,IF(MAX(AL16-'Baseline Reinforcement'!$D$9,0)=0,"",MAX(AL16-'Baseline Reinforcement'!$D$9,0)))) ->  | AM40: =IF($C40="","",IF(Control!$C$12="Directly",AM31,IF(MAX(AM16-'Baseline Reinforcement'!$D$9,0)=0,"",MAX(AM16-'Baseline Reinforcement'!$D$9,0)))) ->  | AN40: =IF($C40="","",IF(Control!$C$12="Directly",AN31,IF(MAX(AN16-'Baseline Reinforcement'!$D$9,0)=0,"",MAX(AN16-'Baseline Reinforcement'!$D$9,0)))) ->  | AO40: =IF($C40="","",IF(Control!$C$12="Directly",AO31,IF(MAX(AO16-'Baseline Reinforcement'!$D$9,0)=0,"",MAX(AO16-'Baseline Reinforcement'!$D$9,0)))) ->  | AP40: =IF($C40="","",IF(Control!$C$12="Directly",AP31,IF(MAX(AP16-'Baseline Reinforcement'!$D$9,0)=0,"",MAX(AP16-'Baseline Reinforcement'!$D$9,0)))) ->  | AQ40: =IF($C40="","",IF(Control!$C$12="Directly",AQ31,IF(MAX(AQ16-'Baseline Reinforcement'!$D$9,0)=0,"",MAX(AQ16-'Baseline Reinforcement'!$D$9,0)))) ->  | AR40: =IF($C40="","",IF(Control!$C$12="Directly",AR31,IF(MAX(AR16-'Baseline Reinforcement'!$D$9,0)=0,"",MAX(AR16-'Baseline Reinforcement'!$D$9,0)))) ->  | AS40: =IF($C40="","",IF(Control!$C$12="Directly",AS31,IF(MAX(AS16-'Baseline Reinforcement'!$D$9,0)=0,"",MAX(AS16-'Baseline Reinforcement'!$D$9,0)))) ->  | AT40: =IF($C40="","",IF(Control!$C$12="Directly",AT31,IF(MAX(AT16-'Baseline Reinforcement'!$D$9,0)=0,"",MAX(AT16-'Baseline Reinforcement'!$D$9,0)))) ->  | AU40: =IF($C40="","",IF(Control!$C$12="Directly",AU31,IF(MAX(AU16-'Baseline Reinforcement'!$D$9,0)=0,"",MAX(AU16-'Baseline Reinforcement'!$D$9,0)))) ->  | AV40: =IF($C40="","",IF(Control!$C$12="Directly",AV31,IF(MAX(AV16-'Baseline Reinforcement'!$D$9,0)=0,"",MAX(AV16-'Baseline Reinforcement'!$D$9,0)))) ->  | AW40: =IF($C40="","",IF(Control!$C$12="Directly",AW31,IF(MAX(AW16-'Baseline Reinforcement'!$D$9,0)=0,"",MAX(AW16-'Baseline Reinforcement'!$D$9,0)))) ->  | AX40: =IF($C40="","",IF(Control!$C$12="Directly",AX31,IF(MAX(AX16-'Baseline Reinforcement'!$D$9,0)=0,"",MAX(AX16-'Baseline Reinforcement'!$D$9,0)))) ->  | AY40: =IF($C40="","",IF(Control!$C$12="Directly",AY31,IF(MAX(AY16-'Baseline Reinforcement'!$D$9,0)=0,"",MAX(AY16-'Baseline Reinforcement'!$D$9,0)))) ->  | AZ40: =IF($C40="","",IF(Control!$C$12="Directly",AZ31,IF(MAX(AZ16-'Baseline Reinforcement'!$D$9,0)=0,"",MAX(AZ16-'Baseline Reinforcement'!$D$9,0)))) ->  | BA40: =IF($C40="","",IF(Control!$C$12="Directly",BA31,IF(MAX(BA16-'Baseline Reinforcement'!$D$9,0)=0,"",MAX(BA16-'Baseline Reinforcement'!$D$9,0)))) ->  | BB40: =IF($C40="","",IF(Control!$C$12="Directly",BB31,IF(MAX(BB16-'Baseline Reinforcement'!$D$9,0)=0,"",MAX(BB16-'Baseline Reinforcement'!$D$9,0)))) ->  | BC40: =IF($C40="","",IF(Control!$C$12="Directly",BC31,IF(MAX(BC16-'Baseline Reinforcement'!$D$9,0)=0,"",MAX(BC16-'Baseline Reinforcement'!$D$9,0)))) ->  | BD40: =IF($C40="","",IF(Control!$C$12="Directly",BD31,IF(MAX(BD16-'Baseline Reinforcement'!$D$9,0)=0,"",MAX(BD16-'Baseline Reinforcement'!$D$9,0)))) ->  | BE40: =IF($C40="","",IF(Control!$C$12="Directly",BE31,IF(MAX(BE16-'Baseline Reinforcement'!$D$9,0)=0,"",MAX(BE16-'Baseline Reinforcement'!$D$9,0)))) ->  | BF40: =IF($C40="","",IF(Control!$C$12="Directly",BF31,IF(MAX(BF16-'Baseline Reinforcement'!$D$9,0)=0,"",MAX(BF16-'Baseline Reinforcement'!$D$9,0)))) ->  | BG40: =IF($C40="","",IF(Control!$C$12="Directly",BG31,IF(MAX(BG16-'Baseline Reinforcement'!$D$9,0)=0,"",MAX(BG16-'Baseline Reinforcement'!$D$9,0)))) ->  | BH40: =IF($C40="","",IF(Control!$C$12="Directly",BH31,IF(MAX(BH16-'Baseline Reinforcement'!$D$9,0)=0,"",MAX(BH16-'Baseline Reinforcement'!$D$9,0)))) ->  | BI40: =IF($C40="","",IF(Control!$C$12="Directly",BI31,IF(MAX(BI16-'Baseline Reinforcement'!$D$9,0)=0,"",MAX(BI16-'Baseline Reinforcement'!$D$9,0)))) ->  | BJ40: =IF($C40="","",IF(Control!$C$12="Directly",BJ31,IF(MAX(BJ16-'Baseline Reinforcement'!$D$9,0)=0,"",MAX(BJ16-'Baseline Reinforcement'!$D$9,0)))) ->  | BK40: =IF($C40="","",IF(Control!$C$12="Directly",BK31,IF(MAX(BK16-'Baseline Reinforcement'!$D$9,0)=0,"",MAX(BK16-'Baseline Reinforcement'!$D$9,0)))) ->  | BL40: =IF($C40="","",IF(Control!$C$12="Directly",BL31,IF(MAX(BL16-'Baseline Reinforcement'!$D$9,0)=0,"",MAX(BL16-'Baseline Reinforcement'!$D$9,0)))) ->  | BM40: =IF($C40="","",IF(Control!$C$12="Directly",BM31,IF(MAX(BM16-'Baseline Reinforcement'!$D$9,0)=0,"",MAX(BM16-'Baseline Reinforcement'!$D$9,0)))) ->  | BN40: =IF($C40="","",IF(Control!$C$12="Directly",BN31,IF(MAX(BN16-'Baseline Reinforcement'!$D$9,0)=0,"",MAX(BN16-'Baseline Reinforcement'!$D$9,0)))) ->  | BO40: =IF($C40="","",IF(Control!$C$12="Directly",BO31,IF(MAX(BO16-'Baseline Reinforcement'!$D$9,0)=0,"",MAX(BO16-'Baseline Reinforcement'!$D$9,0)))) ->  | BP40: =IF($C40="","",IF(Control!$C$12="Directly",BP31,IF(MAX(BP16-'Baseline Reinforcement'!$D$9,0)=0,"",MAX(BP16-'Baseline Reinforcement'!$D$9,0)))) ->  | BQ40: =IF($C40="","",IF(Control!$C$12="Directly",BQ31,IF(MAX(BQ16-'Baseline Reinforcement'!$D$9,0)=0,"",MAX(BQ16-'Baseline Reinforcement'!$D$9,0)))) ->  | BR40: =IF($C40="","",IF(Control!$C$12="Directly",BR31,IF(MAX(BR16-'Baseline Reinforcement'!$D$9,0)=0,"",MAX(BR16-'Baseline Reinforcement'!$D$9,0)))) -> 
A41: Scn | B41: 7 | C41: =IF(Control!C41="","",Control!C41) ->  | D41: =IF($C41="","",IF(Control!$C$12="Directly",D32,IF(MAX(D17-'Baseline Reinforcement'!$D$9,0)=0,"",MAX(D17-'Baseline Reinforcement'!$D$9,0)))) ->  | E41: =IF($C41="","",IF(Control!$C$12="Directly",E32,IF(MAX(E17-'Baseline Reinforcement'!$D$9,0)=0,"",MAX(E17-'Baseline Reinforcement'!$D$9,0)))) ->  | F41: =IF($C41="","",IF(Control!$C$12="Directly",F32,IF(MAX(F17-'Baseline Reinforcement'!$D$9,0)=0,"",MAX(F17-'Baseline Reinforcement'!$D$9,0)))) ->  | G41: =IF($C41="","",IF(Control!$C$12="Directly",G32,IF(MAX(G17-'Baseline Reinforcement'!$D$9,0)=0,"",MAX(G17-'Baseline Reinforcement'!$D$9,0)))) ->  | H41: =IF($C41="","",IF(Control!$C$12="Directly",H32,IF(MAX(H17-'Baseline Reinforcement'!$D$9,0)=0,"",MAX(H17-'Baseline Reinforcement'!$D$9,0)))) ->  | I41: =IF($C41="","",IF(Control!$C$12="Directly",I32,IF(MAX(I17-'Baseline Reinforcement'!$D$9,0)=0,"",MAX(I17-'Baseline Reinforcement'!$D$9,0)))) ->  | J41: =IF($C41="","",IF(Control!$C$12="Directly",J32,IF(MAX(J17-'Baseline Reinforcement'!$D$9,0)=0,"",MAX(J17-'Baseline Reinforcement'!$D$9,0)))) ->  | K41: =IF($C41="","",IF(Control!$C$12="Directly",K32,IF(MAX(K17-'Baseline Reinforcement'!$D$9,0)=0,"",MAX(K17-'Baseline Reinforcement'!$D$9,0)))) ->  | L41: =IF($C41="","",IF(Control!$C$12="Directly",L32,IF(MAX(L17-'Baseline Reinforcement'!$D$9,0)=0,"",MAX(L17-'Baseline Reinforcement'!$D$9,0)))) ->  | M41: =IF($C41="","",IF(Control!$C$12="Directly",M32,IF(MAX(M17-'Baseline Reinforcement'!$D$9,0)=0,"",MAX(M17-'Baseline Reinforcement'!$D$9,0)))) ->  | N41: =IF($C41="","",IF(Control!$C$12="Directly",N32,IF(MAX(N17-'Baseline Reinforcement'!$D$9,0)=0,"",MAX(N17-'Baseline Reinforcement'!$D$9,0)))) ->  | O41: =IF($C41="","",IF(Control!$C$12="Directly",O32,IF(MAX(O17-'Baseline Reinforcement'!$D$9,0)=0,"",MAX(O17-'Baseline Reinforcement'!$D$9,0)))) ->  | P41: =IF($C41="","",IF(Control!$C$12="Directly",P32,IF(MAX(P17-'Baseline Reinforcement'!$D$9,0)=0,"",MAX(P17-'Baseline Reinforcement'!$D$9,0)))) ->  | Q41: =IF($C41="","",IF(Control!$C$12="Directly",Q32,IF(MAX(Q17-'Baseline Reinforcement'!$D$9,0)=0,"",MAX(Q17-'Baseline Reinforcement'!$D$9,0)))) ->  | R41: =IF($C41="","",IF(Control!$C$12="Directly",R32,IF(MAX(R17-'Baseline Reinforcement'!$D$9,0)=0,"",MAX(R17-'Baseline Reinforcement'!$D$9,0)))) ->  | S41: =IF($C41="","",IF(Control!$C$12="Directly",S32,IF(MAX(S17-'Baseline Reinforcement'!$D$9,0)=0,"",MAX(S17-'Baseline Reinforcement'!$D$9,0)))) ->  | T41: =IF($C41="","",IF(Control!$C$12="Directly",T32,IF(MAX(T17-'Baseline Reinforcement'!$D$9,0)=0,"",MAX(T17-'Baseline Reinforcement'!$D$9,0)))) ->  | U41: =IF($C41="","",IF(Control!$C$12="Directly",U32,IF(MAX(U17-'Baseline Reinforcement'!$D$9,0)=0,"",MAX(U17-'Baseline Reinforcement'!$D$9,0)))) ->  | V41: =IF($C41="","",IF(Control!$C$12="Directly",V32,IF(MAX(V17-'Baseline Reinforcement'!$D$9,0)=0,"",MAX(V17-'Baseline Reinforcement'!$D$9,0)))) ->  | W41: =IF($C41="","",IF(Control!$C$12="Directly",W32,IF(MAX(W17-'Baseline Reinforcement'!$D$9,0)=0,"",MAX(W17-'Baseline Reinforcement'!$D$9,0)))) ->  | X41: =IF($C41="","",IF(Control!$C$12="Directly",X32,IF(MAX(X17-'Baseline Reinforcement'!$D$9,0)=0,"",MAX(X17-'Baseline Reinforcement'!$D$9,0)))) ->  | Y41: =IF($C41="","",IF(Control!$C$12="Directly",Y32,IF(MAX(Y17-'Baseline Reinforcement'!$D$9,0)=0,"",MAX(Y17-'Baseline Reinforcement'!$D$9,0)))) ->  | Z41: =IF($C41="","",IF(Control!$C$12="Directly",Z32,IF(MAX(Z17-'Baseline Reinforcement'!$D$9,0)=0,"",MAX(Z17-'Baseline Reinforcement'!$D$9,0)))) ->  | AA41: =IF($C41="","",IF(Control!$C$12="Directly",AA32,IF(MAX(AA17-'Baseline Reinforcement'!$D$9,0)=0,"",MAX(AA17-'Baseline Reinforcement'!$D$9,0)))) ->  | AB41: =IF($C41="","",IF(Control!$C$12="Directly",AB32,IF(MAX(AB17-'Baseline Reinforcement'!$D$9,0)=0,"",MAX(AB17-'Baseline Reinforcement'!$D$9,0)))) ->  | AC41: =IF($C41="","",IF(Control!$C$12="Directly",AC32,IF(MAX(AC17-'Baseline Reinforcement'!$D$9,0)=0,"",MAX(AC17-'Baseline Reinforcement'!$D$9,0)))) ->  | AD41: =IF($C41="","",IF(Control!$C$12="Directly",AD32,IF(MAX(AD17-'Baseline Reinforcement'!$D$9,0)=0,"",MAX(AD17-'Baseline Reinforcement'!$D$9,0)))) ->  | AE41: =IF($C41="","",IF(Control!$C$12="Directly",AE32,IF(MAX(AE17-'Baseline Reinforcement'!$D$9,0)=0,"",MAX(AE17-'Baseline Reinforcement'!$D$9,0)))) ->  | AF41: =IF($C41="","",IF(Control!$C$12="Directly",AF32,IF(MAX(AF17-'Baseline Reinforcement'!$D$9,0)=0,"",MAX(AF17-'Baseline Reinforcement'!$D$9,0)))) ->  | AG41: =IF($C41="","",IF(Control!$C$12="Directly",AG32,IF(MAX(AG17-'Baseline Reinforcement'!$D$9,0)=0,"",MAX(AG17-'Baseline Reinforcement'!$D$9,0)))) ->  | AH41: =IF($C41="","",IF(Control!$C$12="Directly",AH32,IF(MAX(AH17-'Baseline Reinforcement'!$D$9,0)=0,"",MAX(AH17-'Baseline Reinforcement'!$D$9,0)))) ->  | AI41: =IF($C41="","",IF(Control!$C$12="Directly",AI32,IF(MAX(AI17-'Baseline Reinforcement'!$D$9,0)=0,"",MAX(AI17-'Baseline Reinforcement'!$D$9,0)))) ->  | AJ41: =IF($C41="","",IF(Control!$C$12="Directly",AJ32,IF(MAX(AJ17-'Baseline Reinforcement'!$D$9,0)=0,"",MAX(AJ17-'Baseline Reinforcement'!$D$9,0)))) ->  | AK41: =IF($C41="","",IF(Control!$C$12="Directly",AK32,IF(MAX(AK17-'Baseline Reinforcement'!$D$9,0)=0,"",MAX(AK17-'Baseline Reinforcement'!$D$9,0)))) ->  | AL41: =IF($C41="","",IF(Control!$C$12="Directly",AL32,IF(MAX(AL17-'Baseline Reinforcement'!$D$9,0)=0,"",MAX(AL17-'Baseline Reinforcement'!$D$9,0)))) ->  | AM41: =IF($C41="","",IF(Control!$C$12="Directly",AM32,IF(MAX(AM17-'Baseline Reinforcement'!$D$9,0)=0,"",MAX(AM17-'Baseline Reinforcement'!$D$9,0)))) ->  | AN41: =IF($C41="","",IF(Control!$C$12="Directly",AN32,IF(MAX(AN17-'Baseline Reinforcement'!$D$9,0)=0,"",MAX(AN17-'Baseline Reinforcement'!$D$9,0)))) ->  | AO41: =IF($C41="","",IF(Control!$C$12="Directly",AO32,IF(MAX(AO17-'Baseline Reinforcement'!$D$9,0)=0,"",MAX(AO17-'Baseline Reinforcement'!$D$9,0)))) ->  | AP41: =IF($C41="","",IF(Control!$C$12="Directly",AP32,IF(MAX(AP17-'Baseline Reinforcement'!$D$9,0)=0,"",MAX(AP17-'Baseline Reinforcement'!$D$9,0)))) ->  | AQ41: =IF($C41="","",IF(Control!$C$12="Directly",AQ32,IF(MAX(AQ17-'Baseline Reinforcement'!$D$9,0)=0,"",MAX(AQ17-'Baseline Reinforcement'!$D$9,0)))) ->  | AR41: =IF($C41="","",IF(Control!$C$12="Directly",AR32,IF(MAX(AR17-'Baseline Reinforcement'!$D$9,0)=0,"",MAX(AR17-'Baseline Reinforcement'!$D$9,0)))) ->  | AS41: =IF($C41="","",IF(Control!$C$12="Directly",AS32,IF(MAX(AS17-'Baseline Reinforcement'!$D$9,0)=0,"",MAX(AS17-'Baseline Reinforcement'!$D$9,0)))) ->  | AT41: =IF($C41="","",IF(Control!$C$12="Directly",AT32,IF(MAX(AT17-'Baseline Reinforcement'!$D$9,0)=0,"",MAX(AT17-'Baseline Reinforcement'!$D$9,0)))) ->  | AU41: =IF($C41="","",IF(Control!$C$12="Directly",AU32,IF(MAX(AU17-'Baseline Reinforcement'!$D$9,0)=0,"",MAX(AU17-'Baseline Reinforcement'!$D$9,0)))) ->  | AV41: =IF($C41="","",IF(Control!$C$12="Directly",AV32,IF(MAX(AV17-'Baseline Reinforcement'!$D$9,0)=0,"",MAX(AV17-'Baseline Reinforcement'!$D$9,0)))) ->  | AW41: =IF($C41="","",IF(Control!$C$12="Directly",AW32,IF(MAX(AW17-'Baseline Reinforcement'!$D$9,0)=0,"",MAX(AW17-'Baseline Reinforcement'!$D$9,0)))) ->  | AX41: =IF($C41="","",IF(Control!$C$12="Directly",AX32,IF(MAX(AX17-'Baseline Reinforcement'!$D$9,0)=0,"",MAX(AX17-'Baseline Reinforcement'!$D$9,0)))) ->  | AY41: =IF($C41="","",IF(Control!$C$12="Directly",AY32,IF(MAX(AY17-'Baseline Reinforcement'!$D$9,0)=0,"",MAX(AY17-'Baseline Reinforcement'!$D$9,0)))) ->  | AZ41: =IF($C41="","",IF(Control!$C$12="Directly",AZ32,IF(MAX(AZ17-'Baseline Reinforcement'!$D$9,0)=0,"",MAX(AZ17-'Baseline Reinforcement'!$D$9,0)))) ->  | BA41: =IF($C41="","",IF(Control!$C$12="Directly",BA32,IF(MAX(BA17-'Baseline Reinforcement'!$D$9,0)=0,"",MAX(BA17-'Baseline Reinforcement'!$D$9,0)))) ->  | BB41: =IF($C41="","",IF(Control!$C$12="Directly",BB32,IF(MAX(BB17-'Baseline Reinforcement'!$D$9,0)=0,"",MAX(BB17-'Baseline Reinforcement'!$D$9,0)))) ->  | BC41: =IF($C41="","",IF(Control!$C$12="Directly",BC32,IF(MAX(BC17-'Baseline Reinforcement'!$D$9,0)=0,"",MAX(BC17-'Baseline Reinforcement'!$D$9,0)))) ->  | BD41: =IF($C41="","",IF(Control!$C$12="Directly",BD32,IF(MAX(BD17-'Baseline Reinforcement'!$D$9,0)=0,"",MAX(BD17-'Baseline Reinforcement'!$D$9,0)))) ->  | BE41: =IF($C41="","",IF(Control!$C$12="Directly",BE32,IF(MAX(BE17-'Baseline Reinforcement'!$D$9,0)=0,"",MAX(BE17-'Baseline Reinforcement'!$D$9,0)))) ->  | BF41: =IF($C41="","",IF(Control!$C$12="Directly",BF32,IF(MAX(BF17-'Baseline Reinforcement'!$D$9,0)=0,"",MAX(BF17-'Baseline Reinforcement'!$D$9,0)))) ->  | BG41: =IF($C41="","",IF(Control!$C$12="Directly",BG32,IF(MAX(BG17-'Baseline Reinforcement'!$D$9,0)=0,"",MAX(BG17-'Baseline Reinforcement'!$D$9,0)))) ->  | BH41: =IF($C41="","",IF(Control!$C$12="Directly",BH32,IF(MAX(BH17-'Baseline Reinforcement'!$D$9,0)=0,"",MAX(BH17-'Baseline Reinforcement'!$D$9,0)))) ->  | BI41: =IF($C41="","",IF(Control!$C$12="Directly",BI32,IF(MAX(BI17-'Baseline Reinforcement'!$D$9,0)=0,"",MAX(BI17-'Baseline Reinforcement'!$D$9,0)))) ->  | BJ41: =IF($C41="","",IF(Control!$C$12="Directly",BJ32,IF(MAX(BJ17-'Baseline Reinforcement'!$D$9,0)=0,"",MAX(BJ17-'Baseline Reinforcement'!$D$9,0)))) ->  | BK41: =IF($C41="","",IF(Control!$C$12="Directly",BK32,IF(MAX(BK17-'Baseline Reinforcement'!$D$9,0)=0,"",MAX(BK17-'Baseline Reinforcement'!$D$9,0)))) ->  | BL41: =IF($C41="","",IF(Control!$C$12="Directly",BL32,IF(MAX(BL17-'Baseline Reinforcement'!$D$9,0)=0,"",MAX(BL17-'Baseline Reinforcement'!$D$9,0)))) ->  | BM41: =IF($C41="","",IF(Control!$C$12="Directly",BM32,IF(MAX(BM17-'Baseline Reinforcement'!$D$9,0)=0,"",MAX(BM17-'Baseline Reinforcement'!$D$9,0)))) ->  | BN41: =IF($C41="","",IF(Control!$C$12="Directly",BN32,IF(MAX(BN17-'Baseline Reinforcement'!$D$9,0)=0,"",MAX(BN17-'Baseline Reinforcement'!$D$9,0)))) ->  | BO41: =IF($C41="","",IF(Control!$C$12="Directly",BO32,IF(MAX(BO17-'Baseline Reinforcement'!$D$9,0)=0,"",MAX(BO17-'Baseline Reinforcement'!$D$9,0)))) ->  | BP41: =IF($C41="","",IF(Control!$C$12="Directly",BP32,IF(MAX(BP17-'Baseline Reinforcement'!$D$9,0)=0,"",MAX(BP17-'Baseline Reinforcement'!$D$9,0)))) ->  | BQ41: =IF($C41="","",IF(Control!$C$12="Directly",BQ32,IF(MAX(BQ17-'Baseline Reinforcement'!$D$9,0)=0,"",MAX(BQ17-'Baseline Reinforcement'!$D$9,0)))) ->  | BR41: =IF($C41="","",IF(Control!$C$12="Directly",BR32,IF(MAX(BR17-'Baseline Reinforcement'!$D$9,0)=0,"",MAX(BR17-'Baseline Reinforcement'!$D$9,0)))) -> 
A42: Scn | B42: 8 | C42: =IF(Control!C42="","",Control!C42) ->  | D42: =IF($C42="","",IF(Control!$C$12="Directly",D33,IF(MAX(D18-'Baseline Reinforcement'!$D$9,0)=0,"",MAX(D18-'Baseline Reinforcement'!$D$9,0)))) ->  | E42: =IF($C42="","",IF(Control!$C$12="Directly",E33,IF(MAX(E18-'Baseline Reinforcement'!$D$9,0)=0,"",MAX(E18-'Baseline Reinforcement'!$D$9,0)))) ->  | F42: =IF($C42="","",IF(Control!$C$12="Directly",F33,IF(MAX(F18-'Baseline Reinforcement'!$D$9,0)=0,"",MAX(F18-'Baseline Reinforcement'!$D$9,0)))) ->  | G42: =IF($C42="","",IF(Control!$C$12="Directly",G33,IF(MAX(G18-'Baseline Reinforcement'!$D$9,0)=0,"",MAX(G18-'Baseline Reinforcement'!$D$9,0)))) ->  | H42: =IF($C42="","",IF(Control!$C$12="Directly",H33,IF(MAX(H18-'Baseline Reinforcement'!$D$9,0)=0,"",MAX(H18-'Baseline Reinforcement'!$D$9,0)))) ->  | I42: =IF($C42="","",IF(Control!$C$12="Directly",I33,IF(MAX(I18-'Baseline Reinforcement'!$D$9,0)=0,"",MAX(I18-'Baseline Reinforcement'!$D$9,0)))) ->  | J42: =IF($C42="","",IF(Control!$C$12="Directly",J33,IF(MAX(J18-'Baseline Reinforcement'!$D$9,0)=0,"",MAX(J18-'Baseline Reinforcement'!$D$9,0)))) ->  | K42: =IF($C42="","",IF(Control!$C$12="Directly",K33,IF(MAX(K18-'Baseline Reinforcement'!$D$9,0)=0,"",MAX(K18-'Baseline Reinforcement'!$D$9,0)))) ->  | L42: =IF($C42="","",IF(Control!$C$12="Directly",L33,IF(MAX(L18-'Baseline Reinforcement'!$D$9,0)=0,"",MAX(L18-'Baseline Reinforcement'!$D$9,0)))) ->  | M42: =IF($C42="","",IF(Control!$C$12="Directly",M33,IF(MAX(M18-'Baseline Reinforcement'!$D$9,0)=0,"",MAX(M18-'Baseline Reinforcement'!$D$9,0)))) ->  | N42: =IF($C42="","",IF(Control!$C$12="Directly",N33,IF(MAX(N18-'Baseline Reinforcement'!$D$9,0)=0,"",MAX(N18-'Baseline Reinforcement'!$D$9,0)))) ->  | O42: =IF($C42="","",IF(Control!$C$12="Directly",O33,IF(MAX(O18-'Baseline Reinforcement'!$D$9,0)=0,"",MAX(O18-'Baseline Reinforcement'!$D$9,0)))) ->  | P42: =IF($C42="","",IF(Control!$C$12="Directly",P33,IF(MAX(P18-'Baseline Reinforcement'!$D$9,0)=0,"",MAX(P18-'Baseline Reinforcement'!$D$9,0)))) ->  | Q42: =IF($C42="","",IF(Control!$C$12="Directly",Q33,IF(MAX(Q18-'Baseline Reinforcement'!$D$9,0)=0,"",MAX(Q18-'Baseline Reinforcement'!$D$9,0)))) ->  | R42: =IF($C42="","",IF(Control!$C$12="Directly",R33,IF(MAX(R18-'Baseline Reinforcement'!$D$9,0)=0,"",MAX(R18-'Baseline Reinforcement'!$D$9,0)))) ->  | S42: =IF($C42="","",IF(Control!$C$12="Directly",S33,IF(MAX(S18-'Baseline Reinforcement'!$D$9,0)=0,"",MAX(S18-'Baseline Reinforcement'!$D$9,0)))) ->  | T42: =IF($C42="","",IF(Control!$C$12="Directly",T33,IF(MAX(T18-'Baseline Reinforcement'!$D$9,0)=0,"",MAX(T18-'Baseline Reinforcement'!$D$9,0)))) ->  | U42: =IF($C42="","",IF(Control!$C$12="Directly",U33,IF(MAX(U18-'Baseline Reinforcement'!$D$9,0)=0,"",MAX(U18-'Baseline Reinforcement'!$D$9,0)))) ->  | V42: =IF($C42="","",IF(Control!$C$12="Directly",V33,IF(MAX(V18-'Baseline Reinforcement'!$D$9,0)=0,"",MAX(V18-'Baseline Reinforcement'!$D$9,0)))) ->  | W42: =IF($C42="","",IF(Control!$C$12="Directly",W33,IF(MAX(W18-'Baseline Reinforcement'!$D$9,0)=0,"",MAX(W18-'Baseline Reinforcement'!$D$9,0)))) ->  | X42: =IF($C42="","",IF(Control!$C$12="Directly",X33,IF(MAX(X18-'Baseline Reinforcement'!$D$9,0)=0,"",MAX(X18-'Baseline Reinforcement'!$D$9,0)))) ->  | Y42: =IF($C42="","",IF(Control!$C$12="Directly",Y33,IF(MAX(Y18-'Baseline Reinforcement'!$D$9,0)=0,"",MAX(Y18-'Baseline Reinforcement'!$D$9,0)))) ->  | Z42: =IF($C42="","",IF(Control!$C$12="Directly",Z33,IF(MAX(Z18-'Baseline Reinforcement'!$D$9,0)=0,"",MAX(Z18-'Baseline Reinforcement'!$D$9,0)))) ->  | AA42: =IF($C42="","",IF(Control!$C$12="Directly",AA33,IF(MAX(AA18-'Baseline Reinforcement'!$D$9,0)=0,"",MAX(AA18-'Baseline Reinforcement'!$D$9,0)))) ->  | AB42: =IF($C42="","",IF(Control!$C$12="Directly",AB33,IF(MAX(AB18-'Baseline Reinforcement'!$D$9,0)=0,"",MAX(AB18-'Baseline Reinforcement'!$D$9,0)))) ->  | AC42: =IF($C42="","",IF(Control!$C$12="Directly",AC33,IF(MAX(AC18-'Baseline Reinforcement'!$D$9,0)=0,"",MAX(AC18-'Baseline Reinforcement'!$D$9,0)))) ->  | AD42: =IF($C42="","",IF(Control!$C$12="Directly",AD33,IF(MAX(AD18-'Baseline Reinforcement'!$D$9,0)=0,"",MAX(AD18-'Baseline Reinforcement'!$D$9,0)))) ->  | AE42: =IF($C42="","",IF(Control!$C$12="Directly",AE33,IF(MAX(AE18-'Baseline Reinforcement'!$D$9,0)=0,"",MAX(AE18-'Baseline Reinforcement'!$D$9,0)))) ->  | AF42: =IF($C42="","",IF(Control!$C$12="Directly",AF33,IF(MAX(AF18-'Baseline Reinforcement'!$D$9,0)=0,"",MAX(AF18-'Baseline Reinforcement'!$D$9,0)))) ->  | AG42: =IF($C42="","",IF(Control!$C$12="Directly",AG33,IF(MAX(AG18-'Baseline Reinforcement'!$D$9,0)=0,"",MAX(AG18-'Baseline Reinforcement'!$D$9,0)))) ->  | AH42: =IF($C42="","",IF(Control!$C$12="Directly",AH33,IF(MAX(AH18-'Baseline Reinforcement'!$D$9,0)=0,"",MAX(AH18-'Baseline Reinforcement'!$D$9,0)))) ->  | AI42: =IF($C42="","",IF(Control!$C$12="Directly",AI33,IF(MAX(AI18-'Baseline Reinforcement'!$D$9,0)=0,"",MAX(AI18-'Baseline Reinforcement'!$D$9,0)))) ->  | AJ42: =IF($C42="","",IF(Control!$C$12="Directly",AJ33,IF(MAX(AJ18-'Baseline Reinforcement'!$D$9,0)=0,"",MAX(AJ18-'Baseline Reinforcement'!$D$9,0)))) ->  | AK42: =IF($C42="","",IF(Control!$C$12="Directly",AK33,IF(MAX(AK18-'Baseline Reinforcement'!$D$9,0)=0,"",MAX(AK18-'Baseline Reinforcement'!$D$9,0)))) ->  | AL42: =IF($C42="","",IF(Control!$C$12="Directly",AL33,IF(MAX(AL18-'Baseline Reinforcement'!$D$9,0)=0,"",MAX(AL18-'Baseline Reinforcement'!$D$9,0)))) ->  | AM42: =IF($C42="","",IF(Control!$C$12="Directly",AM33,IF(MAX(AM18-'Baseline Reinforcement'!$D$9,0)=0,"",MAX(AM18-'Baseline Reinforcement'!$D$9,0)))) ->  | AN42: =IF($C42="","",IF(Control!$C$12="Directly",AN33,IF(MAX(AN18-'Baseline Reinforcement'!$D$9,0)=0,"",MAX(AN18-'Baseline Reinforcement'!$D$9,0)))) ->  | AO42: =IF($C42="","",IF(Control!$C$12="Directly",AO33,IF(MAX(AO18-'Baseline Reinforcement'!$D$9,0)=0,"",MAX(AO18-'Baseline Reinforcement'!$D$9,0)))) ->  | AP42: =IF($C42="","",IF(Control!$C$12="Directly",AP33,IF(MAX(AP18-'Baseline Reinforcement'!$D$9,0)=0,"",MAX(AP18-'Baseline Reinforcement'!$D$9,0)))) ->  | AQ42: =IF($C42="","",IF(Control!$C$12="Directly",AQ33,IF(MAX(AQ18-'Baseline Reinforcement'!$D$9,0)=0,"",MAX(AQ18-'Baseline Reinforcement'!$D$9,0)))) ->  | AR42: =IF($C42="","",IF(Control!$C$12="Directly",AR33,IF(MAX(AR18-'Baseline Reinforcement'!$D$9,0)=0,"",MAX(AR18-'Baseline Reinforcement'!$D$9,0)))) ->  | AS42: =IF($C42="","",IF(Control!$C$12="Directly",AS33,IF(MAX(AS18-'Baseline Reinforcement'!$D$9,0)=0,"",MAX(AS18-'Baseline Reinforcement'!$D$9,0)))) ->  | AT42: =IF($C42="","",IF(Control!$C$12="Directly",AT33,IF(MAX(AT18-'Baseline Reinforcement'!$D$9,0)=0,"",MAX(AT18-'Baseline Reinforcement'!$D$9,0)))) ->  | AU42: =IF($C42="","",IF(Control!$C$12="Directly",AU33,IF(MAX(AU18-'Baseline Reinforcement'!$D$9,0)=0,"",MAX(AU18-'Baseline Reinforcement'!$D$9,0)))) ->  | AV42: =IF($C42="","",IF(Control!$C$12="Directly",AV33,IF(MAX(AV18-'Baseline Reinforcement'!$D$9,0)=0,"",MAX(AV18-'Baseline Reinforcement'!$D$9,0)))) ->  | AW42: =IF($C42="","",IF(Control!$C$12="Directly",AW33,IF(MAX(AW18-'Baseline Reinforcement'!$D$9,0)=0,"",MAX(AW18-'Baseline Reinforcement'!$D$9,0)))) ->  | AX42: =IF($C42="","",IF(Control!$C$12="Directly",AX33,IF(MAX(AX18-'Baseline Reinforcement'!$D$9,0)=0,"",MAX(AX18-'Baseline Reinforcement'!$D$9,0)))) ->  | AY42: =IF($C42="","",IF(Control!$C$12="Directly",AY33,IF(MAX(AY18-'Baseline Reinforcement'!$D$9,0)=0,"",MAX(AY18-'Baseline Reinforcement'!$D$9,0)))) ->  | AZ42: =IF($C42="","",IF(Control!$C$12="Directly",AZ33,IF(MAX(AZ18-'Baseline Reinforcement'!$D$9,0)=0,"",MAX(AZ18-'Baseline Reinforcement'!$D$9,0)))) ->  | BA42: =IF($C42="","",IF(Control!$C$12="Directly",BA33,IF(MAX(BA18-'Baseline Reinforcement'!$D$9,0)=0,"",MAX(BA18-'Baseline Reinforcement'!$D$9,0)))) ->  | BB42: =IF($C42="","",IF(Control!$C$12="Directly",BB33,IF(MAX(BB18-'Baseline Reinforcement'!$D$9,0)=0,"",MAX(BB18-'Baseline Reinforcement'!$D$9,0)))) ->  | BC42: =IF($C42="","",IF(Control!$C$12="Directly",BC33,IF(MAX(BC18-'Baseline Reinforcement'!$D$9,0)=0,"",MAX(BC18-'Baseline Reinforcement'!$D$9,0)))) ->  | BD42: =IF($C42="","",IF(Control!$C$12="Directly",BD33,IF(MAX(BD18-'Baseline Reinforcement'!$D$9,0)=0,"",MAX(BD18-'Baseline Reinforcement'!$D$9,0)))) ->  | BE42: =IF($C42="","",IF(Control!$C$12="Directly",BE33,IF(MAX(BE18-'Baseline Reinforcement'!$D$9,0)=0,"",MAX(BE18-'Baseline Reinforcement'!$D$9,0)))) ->  | BF42: =IF($C42="","",IF(Control!$C$12="Directly",BF33,IF(MAX(BF18-'Baseline Reinforcement'!$D$9,0)=0,"",MAX(BF18-'Baseline Reinforcement'!$D$9,0)))) ->  | BG42: =IF($C42="","",IF(Control!$C$12="Directly",BG33,IF(MAX(BG18-'Baseline Reinforcement'!$D$9,0)=0,"",MAX(BG18-'Baseline Reinforcement'!$D$9,0)))) ->  | BH42: =IF($C42="","",IF(Control!$C$12="Directly",BH33,IF(MAX(BH18-'Baseline Reinforcement'!$D$9,0)=0,"",MAX(BH18-'Baseline Reinforcement'!$D$9,0)))) ->  | BI42: =IF($C42="","",IF(Control!$C$12="Directly",BI33,IF(MAX(BI18-'Baseline Reinforcement'!$D$9,0)=0,"",MAX(BI18-'Baseline Reinforcement'!$D$9,0)))) ->  | BJ42: =IF($C42="","",IF(Control!$C$12="Directly",BJ33,IF(MAX(BJ18-'Baseline Reinforcement'!$D$9,0)=0,"",MAX(BJ18-'Baseline Reinforcement'!$D$9,0)))) ->  | BK42: =IF($C42="","",IF(Control!$C$12="Directly",BK33,IF(MAX(BK18-'Baseline Reinforcement'!$D$9,0)=0,"",MAX(BK18-'Baseline Reinforcement'!$D$9,0)))) ->  | BL42: =IF($C42="","",IF(Control!$C$12="Directly",BL33,IF(MAX(BL18-'Baseline Reinforcement'!$D$9,0)=0,"",MAX(BL18-'Baseline Reinforcement'!$D$9,0)))) ->  | BM42: =IF($C42="","",IF(Control!$C$12="Directly",BM33,IF(MAX(BM18-'Baseline Reinforcement'!$D$9,0)=0,"",MAX(BM18-'Baseline Reinforcement'!$D$9,0)))) ->  | BN42: =IF($C42="","",IF(Control!$C$12="Directly",BN33,IF(MAX(BN18-'Baseline Reinforcement'!$D$9,0)=0,"",MAX(BN18-'Baseline Reinforcement'!$D$9,0)))) ->  | BO42: =IF($C42="","",IF(Control!$C$12="Directly",BO33,IF(MAX(BO18-'Baseline Reinforcement'!$D$9,0)=0,"",MAX(BO18-'Baseline Reinforcement'!$D$9,0)))) ->  | BP42: =IF($C42="","",IF(Control!$C$12="Directly",BP33,IF(MAX(BP18-'Baseline Reinforcement'!$D$9,0)=0,"",MAX(BP18-'Baseline Reinforcement'!$D$9,0)))) ->  | BQ42: =IF($C42="","",IF(Control!$C$12="Directly",BQ33,IF(MAX(BQ18-'Baseline Reinforcement'!$D$9,0)=0,"",MAX(BQ18-'Baseline Reinforcement'!$D$9,0)))) ->  | BR42: =IF($C42="","",IF(Control!$C$12="Directly",BR33,IF(MAX(BR18-'Baseline Reinforcement'!$D$9,0)=0,"",MAX(BR18-'Baseline Reinforcement'!$D$9,0)))) -> 
A43: Scn | B43: 9 | C43: =IF(Control!C43="","",Control!C43) ->  | D43: =IF($C43="","",IF(Control!$C$12="Directly",D34,IF(MAX(D19-'Baseline Reinforcement'!$D$9,0)=0,"",MAX(D19-'Baseline Reinforcement'!$D$9,0)))) ->  | E43: =IF($C43="","",IF(Control!$C$12="Directly",E34,IF(MAX(E19-'Baseline Reinforcement'!$D$9,0)=0,"",MAX(E19-'Baseline Reinforcement'!$D$9,0)))) ->  | F43: =IF($C43="","",IF(Control!$C$12="Directly",F34,IF(MAX(F19-'Baseline Reinforcement'!$D$9,0)=0,"",MAX(F19-'Baseline Reinforcement'!$D$9,0)))) ->  | G43: =IF($C43="","",IF(Control!$C$12="Directly",G34,IF(MAX(G19-'Baseline Reinforcement'!$D$9,0)=0,"",MAX(G19-'Baseline Reinforcement'!$D$9,0)))) ->  | H43: =IF($C43="","",IF(Control!$C$12="Directly",H34,IF(MAX(H19-'Baseline Reinforcement'!$D$9,0)=0,"",MAX(H19-'Baseline Reinforcement'!$D$9,0)))) ->  | I43: =IF($C43="","",IF(Control!$C$12="Directly",I34,IF(MAX(I19-'Baseline Reinforcement'!$D$9,0)=0,"",MAX(I19-'Baseline Reinforcement'!$D$9,0)))) ->  | J43: =IF($C43="","",IF(Control!$C$12="Directly",J34,IF(MAX(J19-'Baseline Reinforcement'!$D$9,0)=0,"",MAX(J19-'Baseline Reinforcement'!$D$9,0)))) ->  | K43: =IF($C43="","",IF(Control!$C$12="Directly",K34,IF(MAX(K19-'Baseline Reinforcement'!$D$9,0)=0,"",MAX(K19-'Baseline Reinforcement'!$D$9,0)))) ->  | L43: =IF($C43="","",IF(Control!$C$12="Directly",L34,IF(MAX(L19-'Baseline Reinforcement'!$D$9,0)=0,"",MAX(L19-'Baseline Reinforcement'!$D$9,0)))) ->  | M43: =IF($C43="","",IF(Control!$C$12="Directly",M34,IF(MAX(M19-'Baseline Reinforcement'!$D$9,0)=0,"",MAX(M19-'Baseline Reinforcement'!$D$9,0)))) ->  | N43: =IF($C43="","",IF(Control!$C$12="Directly",N34,IF(MAX(N19-'Baseline Reinforcement'!$D$9,0)=0,"",MAX(N19-'Baseline Reinforcement'!$D$9,0)))) ->  | O43: =IF($C43="","",IF(Control!$C$12="Directly",O34,IF(MAX(O19-'Baseline Reinforcement'!$D$9,0)=0,"",MAX(O19-'Baseline Reinforcement'!$D$9,0)))) ->  | P43: =IF($C43="","",IF(Control!$C$12="Directly",P34,IF(MAX(P19-'Baseline Reinforcement'!$D$9,0)=0,"",MAX(P19-'Baseline Reinforcement'!$D$9,0)))) ->  | Q43: =IF($C43="","",IF(Control!$C$12="Directly",Q34,IF(MAX(Q19-'Baseline Reinforcement'!$D$9,0)=0,"",MAX(Q19-'Baseline Reinforcement'!$D$9,0)))) ->  | R43: =IF($C43="","",IF(Control!$C$12="Directly",R34,IF(MAX(R19-'Baseline Reinforcement'!$D$9,0)=0,"",MAX(R19-'Baseline Reinforcement'!$D$9,0)))) ->  | S43: =IF($C43="","",IF(Control!$C$12="Directly",S34,IF(MAX(S19-'Baseline Reinforcement'!$D$9,0)=0,"",MAX(S19-'Baseline Reinforcement'!$D$9,0)))) ->  | T43: =IF($C43="","",IF(Control!$C$12="Directly",T34,IF(MAX(T19-'Baseline Reinforcement'!$D$9,0)=0,"",MAX(T19-'Baseline Reinforcement'!$D$9,0)))) ->  | U43: =IF($C43="","",IF(Control!$C$12="Directly",U34,IF(MAX(U19-'Baseline Reinforcement'!$D$9,0)=0,"",MAX(U19-'Baseline Reinforcement'!$D$9,0)))) ->  | V43: =IF($C43="","",IF(Control!$C$12="Directly",V34,IF(MAX(V19-'Baseline Reinforcement'!$D$9,0)=0,"",MAX(V19-'Baseline Reinforcement'!$D$9,0)))) ->  | W43: =IF($C43="","",IF(Control!$C$12="Directly",W34,IF(MAX(W19-'Baseline Reinforcement'!$D$9,0)=0,"",MAX(W19-'Baseline Reinforcement'!$D$9,0)))) ->  | X43: =IF($C43="","",IF(Control!$C$12="Directly",X34,IF(MAX(X19-'Baseline Reinforcement'!$D$9,0)=0,"",MAX(X19-'Baseline Reinforcement'!$D$9,0)))) ->  | Y43: =IF($C43="","",IF(Control!$C$12="Directly",Y34,IF(MAX(Y19-'Baseline Reinforcement'!$D$9,0)=0,"",MAX(Y19-'Baseline Reinforcement'!$D$9,0)))) ->  | Z43: =IF($C43="","",IF(Control!$C$12="Directly",Z34,IF(MAX(Z19-'Baseline Reinforcement'!$D$9,0)=0,"",MAX(Z19-'Baseline Reinforcement'!$D$9,0)))) ->  | AA43: =IF($C43="","",IF(Control!$C$12="Directly",AA34,IF(MAX(AA19-'Baseline Reinforcement'!$D$9,0)=0,"",MAX(AA19-'Baseline Reinforcement'!$D$9,0)))) ->  | AB43: =IF($C43="","",IF(Control!$C$12="Directly",AB34,IF(MAX(AB19-'Baseline Reinforcement'!$D$9,0)=0,"",MAX(AB19-'Baseline Reinforcement'!$D$9,0)))) ->  | AC43: =IF($C43="","",IF(Control!$C$12="Directly",AC34,IF(MAX(AC19-'Baseline Reinforcement'!$D$9,0)=0,"",MAX(AC19-'Baseline Reinforcement'!$D$9,0)))) ->  | AD43: =IF($C43="","",IF(Control!$C$12="Directly",AD34,IF(MAX(AD19-'Baseline Reinforcement'!$D$9,0)=0,"",MAX(AD19-'Baseline Reinforcement'!$D$9,0)))) ->  | AE43: =IF($C43="","",IF(Control!$C$12="Directly",AE34,IF(MAX(AE19-'Baseline Reinforcement'!$D$9,0)=0,"",MAX(AE19-'Baseline Reinforcement'!$D$9,0)))) ->  | AF43: =IF($C43="","",IF(Control!$C$12="Directly",AF34,IF(MAX(AF19-'Baseline Reinforcement'!$D$9,0)=0,"",MAX(AF19-'Baseline Reinforcement'!$D$9,0)))) ->  | AG43: =IF($C43="","",IF(Control!$C$12="Directly",AG34,IF(MAX(AG19-'Baseline Reinforcement'!$D$9,0)=0,"",MAX(AG19-'Baseline Reinforcement'!$D$9,0)))) ->  | AH43: =IF($C43="","",IF(Control!$C$12="Directly",AH34,IF(MAX(AH19-'Baseline Reinforcement'!$D$9,0)=0,"",MAX(AH19-'Baseline Reinforcement'!$D$9,0)))) ->  | AI43: =IF($C43="","",IF(Control!$C$12="Directly",AI34,IF(MAX(AI19-'Baseline Reinforcement'!$D$9,0)=0,"",MAX(AI19-'Baseline Reinforcement'!$D$9,0)))) ->  | AJ43: =IF($C43="","",IF(Control!$C$12="Directly",AJ34,IF(MAX(AJ19-'Baseline Reinforcement'!$D$9,0)=0,"",MAX(AJ19-'Baseline Reinforcement'!$D$9,0)))) ->  | AK43: =IF($C43="","",IF(Control!$C$12="Directly",AK34,IF(MAX(AK19-'Baseline Reinforcement'!$D$9,0)=0,"",MAX(AK19-'Baseline Reinforcement'!$D$9,0)))) ->  | AL43: =IF($C43="","",IF(Control!$C$12="Directly",AL34,IF(MAX(AL19-'Baseline Reinforcement'!$D$9,0)=0,"",MAX(AL19-'Baseline Reinforcement'!$D$9,0)))) ->  | AM43: =IF($C43="","",IF(Control!$C$12="Directly",AM34,IF(MAX(AM19-'Baseline Reinforcement'!$D$9,0)=0,"",MAX(AM19-'Baseline Reinforcement'!$D$9,0)))) ->  | AN43: =IF($C43="","",IF(Control!$C$12="Directly",AN34,IF(MAX(AN19-'Baseline Reinforcement'!$D$9,0)=0,"",MAX(AN19-'Baseline Reinforcement'!$D$9,0)))) ->  | AO43: =IF($C43="","",IF(Control!$C$12="Directly",AO34,IF(MAX(AO19-'Baseline Reinforcement'!$D$9,0)=0,"",MAX(AO19-'Baseline Reinforcement'!$D$9,0)))) ->  | AP43: =IF($C43="","",IF(Control!$C$12="Directly",AP34,IF(MAX(AP19-'Baseline Reinforcement'!$D$9,0)=0,"",MAX(AP19-'Baseline Reinforcement'!$D$9,0)))) ->  | AQ43: =IF($C43="","",IF(Control!$C$12="Directly",AQ34,IF(MAX(AQ19-'Baseline Reinforcement'!$D$9,0)=0,"",MAX(AQ19-'Baseline Reinforcement'!$D$9,0)))) ->  | AR43: =IF($C43="","",IF(Control!$C$12="Directly",AR34,IF(MAX(AR19-'Baseline Reinforcement'!$D$9,0)=0,"",MAX(AR19-'Baseline Reinforcement'!$D$9,0)))) ->  | AS43: =IF($C43="","",IF(Control!$C$12="Directly",AS34,IF(MAX(AS19-'Baseline Reinforcement'!$D$9,0)=0,"",MAX(AS19-'Baseline Reinforcement'!$D$9,0)))) ->  | AT43: =IF($C43="","",IF(Control!$C$12="Directly",AT34,IF(MAX(AT19-'Baseline Reinforcement'!$D$9,0)=0,"",MAX(AT19-'Baseline Reinforcement'!$D$9,0)))) ->  | AU43: =IF($C43="","",IF(Control!$C$12="Directly",AU34,IF(MAX(AU19-'Baseline Reinforcement'!$D$9,0)=0,"",MAX(AU19-'Baseline Reinforcement'!$D$9,0)))) ->  | AV43: =IF($C43="","",IF(Control!$C$12="Directly",AV34,IF(MAX(AV19-'Baseline Reinforcement'!$D$9,0)=0,"",MAX(AV19-'Baseline Reinforcement'!$D$9,0)))) ->  | AW43: =IF($C43="","",IF(Control!$C$12="Directly",AW34,IF(MAX(AW19-'Baseline Reinforcement'!$D$9,0)=0,"",MAX(AW19-'Baseline Reinforcement'!$D$9,0)))) ->  | AX43: =IF($C43="","",IF(Control!$C$12="Directly",AX34,IF(MAX(AX19-'Baseline Reinforcement'!$D$9,0)=0,"",MAX(AX19-'Baseline Reinforcement'!$D$9,0)))) ->  | AY43: =IF($C43="","",IF(Control!$C$12="Directly",AY34,IF(MAX(AY19-'Baseline Reinforcement'!$D$9,0)=0,"",MAX(AY19-'Baseline Reinforcement'!$D$9,0)))) ->  | AZ43: =IF($C43="","",IF(Control!$C$12="Directly",AZ34,IF(MAX(AZ19-'Baseline Reinforcement'!$D$9,0)=0,"",MAX(AZ19-'Baseline Reinforcement'!$D$9,0)))) ->  | BA43: =IF($C43="","",IF(Control!$C$12="Directly",BA34,IF(MAX(BA19-'Baseline Reinforcement'!$D$9,0)=0,"",MAX(BA19-'Baseline Reinforcement'!$D$9,0)))) ->  | BB43: =IF($C43="","",IF(Control!$C$12="Directly",BB34,IF(MAX(BB19-'Baseline Reinforcement'!$D$9,0)=0,"",MAX(BB19-'Baseline Reinforcement'!$D$9,0)))) ->  | BC43: =IF($C43="","",IF(Control!$C$12="Directly",BC34,IF(MAX(BC19-'Baseline Reinforcement'!$D$9,0)=0,"",MAX(BC19-'Baseline Reinforcement'!$D$9,0)))) ->  | BD43: =IF($C43="","",IF(Control!$C$12="Directly",BD34,IF(MAX(BD19-'Baseline Reinforcement'!$D$9,0)=0,"",MAX(BD19-'Baseline Reinforcement'!$D$9,0)))) ->  | BE43: =IF($C43="","",IF(Control!$C$12="Directly",BE34,IF(MAX(BE19-'Baseline Reinforcement'!$D$9,0)=0,"",MAX(BE19-'Baseline Reinforcement'!$D$9,0)))) ->  | BF43: =IF($C43="","",IF(Control!$C$12="Directly",BF34,IF(MAX(BF19-'Baseline Reinforcement'!$D$9,0)=0,"",MAX(BF19-'Baseline Reinforcement'!$D$9,0)))) ->  | BG43: =IF($C43="","",IF(Control!$C$12="Directly",BG34,IF(MAX(BG19-'Baseline Reinforcement'!$D$9,0)=0,"",MAX(BG19-'Baseline Reinforcement'!$D$9,0)))) ->  | BH43: =IF($C43="","",IF(Control!$C$12="Directly",BH34,IF(MAX(BH19-'Baseline Reinforcement'!$D$9,0)=0,"",MAX(BH19-'Baseline Reinforcement'!$D$9,0)))) ->  | BI43: =IF($C43="","",IF(Control!$C$12="Directly",BI34,IF(MAX(BI19-'Baseline Reinforcement'!$D$9,0)=0,"",MAX(BI19-'Baseline Reinforcement'!$D$9,0)))) ->  | BJ43: =IF($C43="","",IF(Control!$C$12="Directly",BJ34,IF(MAX(BJ19-'Baseline Reinforcement'!$D$9,0)=0,"",MAX(BJ19-'Baseline Reinforcement'!$D$9,0)))) ->  | BK43: =IF($C43="","",IF(Control!$C$12="Directly",BK34,IF(MAX(BK19-'Baseline Reinforcement'!$D$9,0)=0,"",MAX(BK19-'Baseline Reinforcement'!$D$9,0)))) ->  | BL43: =IF($C43="","",IF(Control!$C$12="Directly",BL34,IF(MAX(BL19-'Baseline Reinforcement'!$D$9,0)=0,"",MAX(BL19-'Baseline Reinforcement'!$D$9,0)))) ->  | BM43: =IF($C43="","",IF(Control!$C$12="Directly",BM34,IF(MAX(BM19-'Baseline Reinforcement'!$D$9,0)=0,"",MAX(BM19-'Baseline Reinforcement'!$D$9,0)))) ->  | BN43: =IF($C43="","",IF(Control!$C$12="Directly",BN34,IF(MAX(BN19-'Baseline Reinforcement'!$D$9,0)=0,"",MAX(BN19-'Baseline Reinforcement'!$D$9,0)))) ->  | BO43: =IF($C43="","",IF(Control!$C$12="Directly",BO34,IF(MAX(BO19-'Baseline Reinforcement'!$D$9,0)=0,"",MAX(BO19-'Baseline Reinforcement'!$D$9,0)))) ->  | BP43: =IF($C43="","",IF(Control!$C$12="Directly",BP34,IF(MAX(BP19-'Baseline Reinforcement'!$D$9,0)=0,"",MAX(BP19-'Baseline Reinforcement'!$D$9,0)))) ->  | BQ43: =IF($C43="","",IF(Control!$C$12="Directly",BQ34,IF(MAX(BQ19-'Baseline Reinforcement'!$D$9,0)=0,"",MAX(BQ19-'Baseline Reinforcement'!$D$9,0)))) ->  | BR43: =IF($C43="","",IF(Control!$C$12="Directly",BR34,IF(MAX(BR19-'Baseline Reinforcement'!$D$9,0)=0,"",MAX(BR19-'Baseline Reinforcement'!$D$9,0)))) -> 
A44: Scn | B44: 10 | C44: =IF(Control!C44="","",Control!C44) ->  | D44: =IF($C44="","",IF(Control!$C$12="Directly",D35,IF(MAX(D20-'Baseline Reinforcement'!$D$9,0)=0,"",MAX(D20-'Baseline Reinforcement'!$D$9,0)))) ->  | E44: =IF($C44="","",IF(Control!$C$12="Directly",E35,IF(MAX(E20-'Baseline Reinforcement'!$D$9,0)=0,"",MAX(E20-'Baseline Reinforcement'!$D$9,0)))) ->  | F44: =IF($C44="","",IF(Control!$C$12="Directly",F35,IF(MAX(F20-'Baseline Reinforcement'!$D$9,0)=0,"",MAX(F20-'Baseline Reinforcement'!$D$9,0)))) ->  | G44: =IF($C44="","",IF(Control!$C$12="Directly",G35,IF(MAX(G20-'Baseline Reinforcement'!$D$9,0)=0,"",MAX(G20-'Baseline Reinforcement'!$D$9,0)))) ->  | H44: =IF($C44="","",IF(Control!$C$12="Directly",H35,IF(MAX(H20-'Baseline Reinforcement'!$D$9,0)=0,"",MAX(H20-'Baseline Reinforcement'!$D$9,0)))) ->  | I44: =IF($C44="","",IF(Control!$C$12="Directly",I35,IF(MAX(I20-'Baseline Reinforcement'!$D$9,0)=0,"",MAX(I20-'Baseline Reinforcement'!$D$9,0)))) ->  | J44: =IF($C44="","",IF(Control!$C$12="Directly",J35,IF(MAX(J20-'Baseline Reinforcement'!$D$9,0)=0,"",MAX(J20-'Baseline Reinforcement'!$D$9,0)))) ->  | K44: =IF($C44="","",IF(Control!$C$12="Directly",K35,IF(MAX(K20-'Baseline Reinforcement'!$D$9,0)=0,"",MAX(K20-'Baseline Reinforcement'!$D$9,0)))) ->  | L44: =IF($C44="","",IF(Control!$C$12="Directly",L35,IF(MAX(L20-'Baseline Reinforcement'!$D$9,0)=0,"",MAX(L20-'Baseline Reinforcement'!$D$9,0)))) ->  | M44: =IF($C44="","",IF(Control!$C$12="Directly",M35,IF(MAX(M20-'Baseline Reinforcement'!$D$9,0)=0,"",MAX(M20-'Baseline Reinforcement'!$D$9,0)))) ->  | N44: =IF($C44="","",IF(Control!$C$12="Directly",N35,IF(MAX(N20-'Baseline Reinforcement'!$D$9,0)=0,"",MAX(N20-'Baseline Reinforcement'!$D$9,0)))) ->  | O44: =IF($C44="","",IF(Control!$C$12="Directly",O35,IF(MAX(O20-'Baseline Reinforcement'!$D$9,0)=0,"",MAX(O20-'Baseline Reinforcement'!$D$9,0)))) ->  | P44: =IF($C44="","",IF(Control!$C$12="Directly",P35,IF(MAX(P20-'Baseline Reinforcement'!$D$9,0)=0,"",MAX(P20-'Baseline Reinforcement'!$D$9,0)))) ->  | Q44: =IF($C44="","",IF(Control!$C$12="Directly",Q35,IF(MAX(Q20-'Baseline Reinforcement'!$D$9,0)=0,"",MAX(Q20-'Baseline Reinforcement'!$D$9,0)))) ->  | R44: =IF($C44="","",IF(Control!$C$12="Directly",R35,IF(MAX(R20-'Baseline Reinforcement'!$D$9,0)=0,"",MAX(R20-'Baseline Reinforcement'!$D$9,0)))) ->  | S44: =IF($C44="","",IF(Control!$C$12="Directly",S35,IF(MAX(S20-'Baseline Reinforcement'!$D$9,0)=0,"",MAX(S20-'Baseline Reinforcement'!$D$9,0)))) ->  | T44: =IF($C44="","",IF(Control!$C$12="Directly",T35,IF(MAX(T20-'Baseline Reinforcement'!$D$9,0)=0,"",MAX(T20-'Baseline Reinforcement'!$D$9,0)))) ->  | U44: =IF($C44="","",IF(Control!$C$12="Directly",U35,IF(MAX(U20-'Baseline Reinforcement'!$D$9,0)=0,"",MAX(U20-'Baseline Reinforcement'!$D$9,0)))) ->  | V44: =IF($C44="","",IF(Control!$C$12="Directly",V35,IF(MAX(V20-'Baseline Reinforcement'!$D$9,0)=0,"",MAX(V20-'Baseline Reinforcement'!$D$9,0)))) ->  | W44: =IF($C44="","",IF(Control!$C$12="Directly",W35,IF(MAX(W20-'Baseline Reinforcement'!$D$9,0)=0,"",MAX(W20-'Baseline Reinforcement'!$D$9,0)))) ->  | X44: =IF($C44="","",IF(Control!$C$12="Directly",X35,IF(MAX(X20-'Baseline Reinforcement'!$D$9,0)=0,"",MAX(X20-'Baseline Reinforcement'!$D$9,0)))) ->  | Y44: =IF($C44="","",IF(Control!$C$12="Directly",Y35,IF(MAX(Y20-'Baseline Reinforcement'!$D$9,0)=0,"",MAX(Y20-'Baseline Reinforcement'!$D$9,0)))) ->  | Z44: =IF($C44="","",IF(Control!$C$12="Directly",Z35,IF(MAX(Z20-'Baseline Reinforcement'!$D$9,0)=0,"",MAX(Z20-'Baseline Reinforcement'!$D$9,0)))) ->  | AA44: =IF($C44="","",IF(Control!$C$12="Directly",AA35,IF(MAX(AA20-'Baseline Reinforcement'!$D$9,0)=0,"",MAX(AA20-'Baseline Reinforcement'!$D$9,0)))) ->  | AB44: =IF($C44="","",IF(Control!$C$12="Directly",AB35,IF(MAX(AB20-'Baseline Reinforcement'!$D$9,0)=0,"",MAX(AB20-'Baseline Reinforcement'!$D$9,0)))) ->  | AC44: =IF($C44="","",IF(Control!$C$12="Directly",AC35,IF(MAX(AC20-'Baseline Reinforcement'!$D$9,0)=0,"",MAX(AC20-'Baseline Reinforcement'!$D$9,0)))) ->  | AD44: =IF($C44="","",IF(Control!$C$12="Directly",AD35,IF(MAX(AD20-'Baseline Reinforcement'!$D$9,0)=0,"",MAX(AD20-'Baseline Reinforcement'!$D$9,0)))) ->  | AE44: =IF($C44="","",IF(Control!$C$12="Directly",AE35,IF(MAX(AE20-'Baseline Reinforcement'!$D$9,0)=0,"",MAX(AE20-'Baseline Reinforcement'!$D$9,0)))) ->  | AF44: =IF($C44="","",IF(Control!$C$12="Directly",AF35,IF(MAX(AF20-'Baseline Reinforcement'!$D$9,0)=0,"",MAX(AF20-'Baseline Reinforcement'!$D$9,0)))) ->  | AG44: =IF($C44="","",IF(Control!$C$12="Directly",AG35,IF(MAX(AG20-'Baseline Reinforcement'!$D$9,0)=0,"",MAX(AG20-'Baseline Reinforcement'!$D$9,0)))) ->  | AH44: =IF($C44="","",IF(Control!$C$12="Directly",AH35,IF(MAX(AH20-'Baseline Reinforcement'!$D$9,0)=0,"",MAX(AH20-'Baseline Reinforcement'!$D$9,0)))) ->  | AI44: =IF($C44="","",IF(Control!$C$12="Directly",AI35,IF(MAX(AI20-'Baseline Reinforcement'!$D$9,0)=0,"",MAX(AI20-'Baseline Reinforcement'!$D$9,0)))) ->  | AJ44: =IF($C44="","",IF(Control!$C$12="Directly",AJ35,IF(MAX(AJ20-'Baseline Reinforcement'!$D$9,0)=0,"",MAX(AJ20-'Baseline Reinforcement'!$D$9,0)))) ->  | AK44: =IF($C44="","",IF(Control!$C$12="Directly",AK35,IF(MAX(AK20-'Baseline Reinforcement'!$D$9,0)=0,"",MAX(AK20-'Baseline Reinforcement'!$D$9,0)))) ->  | AL44: =IF($C44="","",IF(Control!$C$12="Directly",AL35,IF(MAX(AL20-'Baseline Reinforcement'!$D$9,0)=0,"",MAX(AL20-'Baseline Reinforcement'!$D$9,0)))) ->  | AM44: =IF($C44="","",IF(Control!$C$12="Directly",AM35,IF(MAX(AM20-'Baseline Reinforcement'!$D$9,0)=0,"",MAX(AM20-'Baseline Reinforcement'!$D$9,0)))) ->  | AN44: =IF($C44="","",IF(Control!$C$12="Directly",AN35,IF(MAX(AN20-'Baseline Reinforcement'!$D$9,0)=0,"",MAX(AN20-'Baseline Reinforcement'!$D$9,0)))) ->  | AO44: =IF($C44="","",IF(Control!$C$12="Directly",AO35,IF(MAX(AO20-'Baseline Reinforcement'!$D$9,0)=0,"",MAX(AO20-'Baseline Reinforcement'!$D$9,0)))) ->  | AP44: =IF($C44="","",IF(Control!$C$12="Directly",AP35,IF(MAX(AP20-'Baseline Reinforcement'!$D$9,0)=0,"",MAX(AP20-'Baseline Reinforcement'!$D$9,0)))) ->  | AQ44: =IF($C44="","",IF(Control!$C$12="Directly",AQ35,IF(MAX(AQ20-'Baseline Reinforcement'!$D$9,0)=0,"",MAX(AQ20-'Baseline Reinforcement'!$D$9,0)))) ->  | AR44: =IF($C44="","",IF(Control!$C$12="Directly",AR35,IF(MAX(AR20-'Baseline Reinforcement'!$D$9,0)=0,"",MAX(AR20-'Baseline Reinforcement'!$D$9,0)))) ->  | AS44: =IF($C44="","",IF(Control!$C$12="Directly",AS35,IF(MAX(AS20-'Baseline Reinforcement'!$D$9,0)=0,"",MAX(AS20-'Baseline Reinforcement'!$D$9,0)))) ->  | AT44: =IF($C44="","",IF(Control!$C$12="Directly",AT35,IF(MAX(AT20-'Baseline Reinforcement'!$D$9,0)=0,"",MAX(AT20-'Baseline Reinforcement'!$D$9,0)))) ->  | AU44: =IF($C44="","",IF(Control!$C$12="Directly",AU35,IF(MAX(AU20-'Baseline Reinforcement'!$D$9,0)=0,"",MAX(AU20-'Baseline Reinforcement'!$D$9,0)))) ->  | AV44: =IF($C44="","",IF(Control!$C$12="Directly",AV35,IF(MAX(AV20-'Baseline Reinforcement'!$D$9,0)=0,"",MAX(AV20-'Baseline Reinforcement'!$D$9,0)))) ->  | AW44: =IF($C44="","",IF(Control!$C$12="Directly",AW35,IF(MAX(AW20-'Baseline Reinforcement'!$D$9,0)=0,"",MAX(AW20-'Baseline Reinforcement'!$D$9,0)))) ->  | AX44: =IF($C44="","",IF(Control!$C$12="Directly",AX35,IF(MAX(AX20-'Baseline Reinforcement'!$D$9,0)=0,"",MAX(AX20-'Baseline Reinforcement'!$D$9,0)))) ->  | AY44: =IF($C44="","",IF(Control!$C$12="Directly",AY35,IF(MAX(AY20-'Baseline Reinforcement'!$D$9,0)=0,"",MAX(AY20-'Baseline Reinforcement'!$D$9,0)))) ->  | AZ44: =IF($C44="","",IF(Control!$C$12="Directly",AZ35,IF(MAX(AZ20-'Baseline Reinforcement'!$D$9,0)=0,"",MAX(AZ20-'Baseline Reinforcement'!$D$9,0)))) ->  | BA44: =IF($C44="","",IF(Control!$C$12="Directly",BA35,IF(MAX(BA20-'Baseline Reinforcement'!$D$9,0)=0,"",MAX(BA20-'Baseline Reinforcement'!$D$9,0)))) ->  | BB44: =IF($C44="","",IF(Control!$C$12="Directly",BB35,IF(MAX(BB20-'Baseline Reinforcement'!$D$9,0)=0,"",MAX(BB20-'Baseline Reinforcement'!$D$9,0)))) ->  | BC44: =IF($C44="","",IF(Control!$C$12="Directly",BC35,IF(MAX(BC20-'Baseline Reinforcement'!$D$9,0)=0,"",MAX(BC20-'Baseline Reinforcement'!$D$9,0)))) ->  | BD44: =IF($C44="","",IF(Control!$C$12="Directly",BD35,IF(MAX(BD20-'Baseline Reinforcement'!$D$9,0)=0,"",MAX(BD20-'Baseline Reinforcement'!$D$9,0)))) ->  | BE44: =IF($C44="","",IF(Control!$C$12="Directly",BE35,IF(MAX(BE20-'Baseline Reinforcement'!$D$9,0)=0,"",MAX(BE20-'Baseline Reinforcement'!$D$9,0)))) ->  | BF44: =IF($C44="","",IF(Control!$C$12="Directly",BF35,IF(MAX(BF20-'Baseline Reinforcement'!$D$9,0)=0,"",MAX(BF20-'Baseline Reinforcement'!$D$9,0)))) ->  | BG44: =IF($C44="","",IF(Control!$C$12="Directly",BG35,IF(MAX(BG20-'Baseline Reinforcement'!$D$9,0)=0,"",MAX(BG20-'Baseline Reinforcement'!$D$9,0)))) ->  | BH44: =IF($C44="","",IF(Control!$C$12="Directly",BH35,IF(MAX(BH20-'Baseline Reinforcement'!$D$9,0)=0,"",MAX(BH20-'Baseline Reinforcement'!$D$9,0)))) ->  | BI44: =IF($C44="","",IF(Control!$C$12="Directly",BI35,IF(MAX(BI20-'Baseline Reinforcement'!$D$9,0)=0,"",MAX(BI20-'Baseline Reinforcement'!$D$9,0)))) ->  | BJ44: =IF($C44="","",IF(Control!$C$12="Directly",BJ35,IF(MAX(BJ20-'Baseline Reinforcement'!$D$9,0)=0,"",MAX(BJ20-'Baseline Reinforcement'!$D$9,0)))) ->  | BK44: =IF($C44="","",IF(Control!$C$12="Directly",BK35,IF(MAX(BK20-'Baseline Reinforcement'!$D$9,0)=0,"",MAX(BK20-'Baseline Reinforcement'!$D$9,0)))) ->  | BL44: =IF($C44="","",IF(Control!$C$12="Directly",BL35,IF(MAX(BL20-'Baseline Reinforcement'!$D$9,0)=0,"",MAX(BL20-'Baseline Reinforcement'!$D$9,0)))) ->  | BM44: =IF($C44="","",IF(Control!$C$12="Directly",BM35,IF(MAX(BM20-'Baseline Reinforcement'!$D$9,0)=0,"",MAX(BM20-'Baseline Reinforcement'!$D$9,0)))) ->  | BN44: =IF($C44="","",IF(Control!$C$12="Directly",BN35,IF(MAX(BN20-'Baseline Reinforcement'!$D$9,0)=0,"",MAX(BN20-'Baseline Reinforcement'!$D$9,0)))) ->  | BO44: =IF($C44="","",IF(Control!$C$12="Directly",BO35,IF(MAX(BO20-'Baseline Reinforcement'!$D$9,0)=0,"",MAX(BO20-'Baseline Reinforcement'!$D$9,0)))) ->  | BP44: =IF($C44="","",IF(Control!$C$12="Directly",BP35,IF(MAX(BP20-'Baseline Reinforcement'!$D$9,0)=0,"",MAX(BP20-'Baseline Reinforcement'!$D$9,0)))) ->  | BQ44: =IF($C44="","",IF(Control!$C$12="Directly",BQ35,IF(MAX(BQ20-'Baseline Reinforcement'!$D$9,0)=0,"",MAX(BQ20-'Baseline Reinforcement'!$D$9,0)))) ->  | BR44: =IF($C44="","",IF(Control!$C$12="Directly",BR35,IF(MAX(BR20-'Baseline Reinforcement'!$D$9,0)=0,"",MAX(BR20-'Baseline Reinforcement'!$D$9,0)))) -> 
C47: BASELINE REINFORCEMENT AND UPFRONT CAPEX (TO BE DEFERRED) | D47: =Current_year -> 2026 | E47: =D47+1 -> 2027 | F47: 2028 | G47: 2029 | H47: 2030 | I47: 2031 | J47: 2032 | K47: 2033 | L47: 2034 | M47: 2035 | N47: 2036 | O47: 2037 | P47: 2038 | Q47: 2039 | R47: 2040 | S47: 2041 | T47: 2042 | U47: 2043 | V47: 2044 | W47: 2045 | X47: 2046 | Y47: 2047 | Z47: 2048 | AA47: 2049 | AB47: 2050 | AC47: 2051 | AD47: 2052 | AE47: 2053 | AF47: 2054 | AG47: 2055 | AH47: 2056 | AI47: 2057 | AJ47: 2058 | AK47: =AJ47+1 -> 2059 | AL47: 2060 | AM47: 2061 | AN47: 2062 | AO47: 2063 | AP47: 2064 | AQ47: 2065 | AR47: 2066 | AS47: 2067 | AT47: 2068 | AU47: 2069 | AV47: 2070 | AW47: 2071 | AX47: 2072 | AY47: 2073 | AZ47: 2074 | BA47: 2075 | BB47: 2076 | BC47: 2077 | BD47: 2078 | BE47: 2079 | BF47: 2080 | BG47: 2081 | BH47: 2082 | BI47: 2083 | BJ47: 2084 | BK47: 2085 | BL47: 2086 | BM47: 2087 | BN47: 2088 | BO47: 2089 | BP47: 2090 | BQ47: 2091 | BR47: 2092
C48: Cost 1 | E48: 1852649
C49: Cost 2
C50: Cost 3
C51: Total | D51: =IF(AND(D48="",D49="",D50=""),"",SUM(D48:D50)) ->  | E51: =IF(AND(E48="",E49="",E50=""),"",SUM(E48:E50)) -> 1852649 | BQ51: =IF(AND(BQ48="",BQ49="",BQ50=""),"",SUM(BQ48:BQ50)) -> 
A55: end

Sheet Flex Cost Inputs
B1: =MATCH("end",A:A,0) -> 55
A2: Flex Cost Inputs
A3: Sheet only used if flex_cost_input_type (in Control sheet) is set to "Input all flex costs directly"
C5: Upfront Costs (incured regardless of strategy duration) (£/yr) | D5: =Current_year -> 2026 | E5: =D5+1 -> 2027 | F5: 2028 | G5: 2029 | H5: 2030 | I5: 2031 | J5: 2032 | K5: 2033 | L5: 2034 | M5: 2035 | N5: 2036 | O5: 2037 | P5: 2038 | Q5: 2039 | R5: 2040 | S5: 2041 | T5: 2042 | U5: 2043 | V5: 2044 | W5: 2045 | X5: 2046 | Y5: 2047 | Z5: 2048 | AA5: 2049 | AB5: 2050 | AC5: 2051 | AD5: 2052 | AE5: 2053 | AF5: 2054 | AG5: 2055 | AH5: 2056 | AI5: 2057 | AJ5: 2058 | AK5: =AJ5+1 -> 2059 | AL5: 2060 | AM5: 2061 | AN5: 2062 | AO5: 2063 | AP5: 2064 | AQ5: 2065 | AR5: 2066 | AS5: 2067 | AT5: 2068 | AU5: 2069 | AV5: 2070 | AW5: 2071 | AX5: 2072 | AY5: 2073 | AZ5: 2074 | BA5: 2075 | BB5: 2076 | BC5: 2077 | BD5: 2078 | BE5: 2079 | BF5: 2080 | BG5: 2081 | BH5: 2082 | BI5: 2083 | BJ5: 2084 | BK5: 2085 | BL5: 2086 | BM5: 2087 | BN5: 2088 | BO5: 2089 | BP5: 2090 | BQ5: 2091 | BR5: 2092
A6: Config | B6: 1 | C6: =IF(INDIRECT("Config"&B6&"_name")="","",INDIRECT("Config"&B6&"_name")) -> Flexibility under smaller value flex
A7: Config | B7: 2 | C7: Flexibility under larger value flex
A8: Config | B8: 3
A9: Config | B9: 4
A10: Config | B10: 5
A11: Config | B11: 6
A12: Config | B12: 7
A13: Config | B13: 8
A14: Config | B14: 9
A15: Config | B15: 10
C17: Annual Fixed costs (incurred only if strategy is still being pursued) (£/yr) | D17: =Current_year -> 2026 | E17: =D17+1 -> 2027 | F17: 2028 | G17: 2029 | H17: 2030 | I17: 2031 | J17: 2032 | K17: 2033 | L17: 2034 | M17: 2035 | N17: 2036 | O17: 2037 | P17: 2038 | Q17: 2039 | R17: 2040 | S17: 2041 | T17: 2042 | U17: 2043 | V17: 2044 | W17: 2045 | X17: 2046 | Y17: 2047 | Z17: 2048 | AA17: 2049 | AB17: 2050 | AC17: 2051 | AD17: 2052 | AE17: 2053 | AF17: 2054 | AG17: 2055 | AH17: 2056 | AI17: 2057 | AJ17: 2058 | AK17: =AJ17+1 -> 2059 | AL17: 2060 | AM17: 2061 | AN17: 2062 | AO17: 2063 | AP17: 2064 | AQ17: 2065 | AR17: 2066 | AS17: 2067 | AT17: 2068 | AU17: 2069 | AV17: 2070 | AW17: 2071 | AX17: 2072 | AY17: 2073 | AZ17: 2074 | BA17: 2075 | BB17: 2076 | BC17: 2077 | BD17: 2078 | BE17: 2079 | BF17: 2080 | BG17: 2081 | BH17: 2082 | BI17: 2083 | BJ17: 2084 | BK17: 2085 | BL17: 2086 | BM17: 2087 | BN17: 2088 | BO17: 2089 | BP17: 2090 | BQ17: 2091 | BR17: 2092
A18: Config | B18: 1 | C18: =IF(INDIRECT("Config"&B18&"_name")="","",INDIRECT("Config"&B18&"_name")) -> Flexibility under smaller value flex
A19: Config | B19: 2 | C19: Flexibility under larger value flex
A20: Config | B20: 3
A21: Config | B21: 4
A22: Config | B22: 5
A23: Config | B23: 6
A24: Config | B24: 7
A25: Config | B25: 8
A26: Config | B26: 9
A27: Config | B27: 10
C29: Availability costs (incurred only if strategy is still being pursued) (£/yr) | D29: =Current_year -> 2026 | E29: =D29+1 -> 2027 | F29: 2028 | G29: 2029 | H29: 2030 | I29: 2031 | J29: 2032 | K29: 2033 | L29: 2034 | M29: 2035 | N29: 2036 | O29: 2037 | P29: 2038 | Q29: 2039 | R29: 2040 | S29: 2041 | T29: 2042 | U29: 2043 | V29: 2044 | W29: 2045 | X29: 2046 | Y29: 2047 | Z29: 2048 | AA29: 2049 | AB29: 2050 | AC29: 2051 | AD29: 2052 | AE29: 2053 | AF29: 2054 | AG29: 2055 | AH29: 2056 | AI29: 2057 | AJ29: 2058 | AK29: =AJ29+1 -> 2059 | AL29: 2060 | AM29: 2061 | AN29: 2062 | AO29: 2063 | AP29: 2064 | AQ29: 2065 | AR29: 2066 | AS29: 2067 | AT29: 2068 | AU29: 2069 | AV29: 2070 | AW29: 2071 | AX29: 2072 | AY29: 2073 | AZ29: 2074 | BA29: 2075 | BB29: 2076 | BC29: 2077 | BD29: 2078 | BE29: 2079 | BF29: 2080 | BG29: 2081 | BH29: 2082 | BI29: 2083 | BJ29: 2084 | BK29: 2085 | BL29: 2086 | BM29: 2087 | BN29: 2088 | BO29: 2089 | BP29: 2090 | BQ29: 2091 | BR29: 2092
A30: Config | B30: 1 | C30: =IF(INDIRECT("Config"&B30&"_name")="","",INDIRECT("Config"&B30&"_name")) -> Flexibility under smaller value flex
A31: Config | B31: 2 | C31: Flexibility under larger value flex
A32: Config | B32: 3
A33: Config | B33: 4
A34: Config | B34: 5
A35: Config | B35: 6
A36: Config | B36: 7
A37: Config | B37: 8
A38: Config | B38: 9
A39: Config | B39: 10
C41: Utilisation costs (incurred only if strategy is still being pursued) (£/yr) | D41: =Current_year -> 2026 | E41: =D41+1 -> 2027 | F41: 2028 | G41: 2029 | H41: 2030 | I41: 2031 | J41: 2032 | K41: 2033 | L41: 2034 | M41: 2035 | N41: 2036 | O41: 2037 | P41: 2038 | Q41: 2039 | R41: 2040 | S41: 2041 | T41: 2042 | U41: 2043 | V41: 2044 | W41: 2045 | X41: 2046 | Y41: 2047 | Z41: 2048 | AA41: 2049 | AB41: 2050 | AC41: 2051 | AD41: 2052 | AE41: 2053 | AF41: 2054 | AG41: 2055 | AH41: 2056 | AI41: 2057 | AJ41: 2058 | AK41: =AJ41+1 -> 2059 | AL41: 2060 | AM41: 2061 | AN41: 2062 | AO41: 2063 | AP41: 2064 | AQ41: 2065 | AR41: 2066 | AS41: 2067 | AT41: 2068 | AU41: 2069 | AV41: 2070 | AW41: 2071 | AX41: 2072 | AY41: 2073 | AZ41: 2074 | BA41: 2075 | BB41: 2076 | BC41: 2077 | BD41: 2078 | BE41: 2079 | BF41: 2080 | BG41: 2081 | BH41: 2082 | BI41: 2083 | BJ41: 2084 | BK41: 2085 | BL41: 2086 | BM41: 2087 | BN41: 2088 | BO41: 2089 | BP41: 2090 | BQ41: 2091 | BR41: 2092
A42: Config | B42: 1 | C42: =IF(INDIRECT("Config"&B42&"_name")="","",INDIRECT("Config"&B42&"_name")) -> Flexibility under smaller value flex | E42: 45904.8 | F42: 46782.72
A43: Config | B43: 2 | C43: Flexibility under larger value flex | E43: 45904.8 | F43: 46782.72
A44: Config | B44: 3
A45: Config | B45: 4
A46: Config | B46: 5
A47: Config | B47: 6
A48: Config | B48: 7
A49: Config | B49: 8
A50: Config | B50: 9
A51: Config | B51: 10
A55: end

Sheet Flex Volume and Cost Inputs (hidden)
B1: =MATCH("end",A:A,0) -> 199
A2: Flex Volume and Cost Inputs
A3: Sheet only used if flex_cost_input_type (in Control sheet) is set to "Flex Costs from Volumes"
B5: Availability and Utilisation Price Assumptions
C6: Initial flexibility price assumptions
C7: Availability Price (£/MW/h) | D7: 0
C8: Utilisation Price (£/MWh) | D8: 1
C10: Availability price trend assumption | D10: =Current_year -> 2026 | E10: =D10+1 -> 2027 | F10: 2028 | G10: 2029 | H10: 2030 | I10: 2031 | J10: 2032 | K10: 2033 | L10: 2034 | M10: 2035 | N10: 2036 | O10: 2037 | P10: 2038 | Q10: 2039 | R10: 2040 | S10: 2041 | T10: 2042 | U10: 2043 | V10: 2044 | W10: 2045 | X10: 2046 | Y10: 2047 | Z10: 2048 | AA10: 2049 | AB10: 2050 | AC10: 2051 | AD10: 2052 | AE10: 2053 | AF10: 2054 | AG10: 2055 | AH10: 2056 | AI10: 2057 | AJ10: 2058 | AK10: =AJ10+1 -> 2059 | AL10: 2060 | AM10: 2061 | AN10: 2062 | AO10: 2063 | AP10: 2064 | AQ10: 2065 | AR10: 2066 | AS10: 2067 | AT10: 2068 | AU10: 2069 | AV10: 2070 | AW10: 2071 | AX10: 2072 | AY10: 2073 | AZ10: 2074 | BA10: 2075 | BB10: 2076 | BC10: 2077 | BD10: 2078 | BE10: 2079 | BF10: 2080 | BG10: 2081 | BH10: 2082 | BI10: 2083 | BJ10: 2084 | BK10: 2085 | BL10: 2086 | BM10: 2087 | BN10: 2088 | BO10: 2089 | BP10: 2090 | BQ10: 2091 | BR10: 2092
C11: Price trend | D11: 1 | E11: 1 | F11: 1 | G11: 1 | H11: 1 | I11: 1 | J11: 1 | K11: 1 | L11: 1 | M11: 1 | N11: 1 | O11: 1 | P11: 1 | Q11: 1 | R11: 1 | S11: 1 | T11: 1 | U11: 1 | V11: 1 | W11: 1 | X11: 1 | Y11: 1 | Z11: 1 | AA11: 1 | AB11: 1 | AC11: 1 | AD11: 1 | AE11: 1 | AF11: 1 | AG11: 1 | AH11: 1 | AI11: 1 | AJ11: 1 | AK11: 1 | AL11: 1 | AM11: 1 | AN11: 1 | AO11: 1 | AP11: 1 | AQ11: 1 | AR11: 1 | AS11: 1 | AT11: 1 | AU11: 1 | AV11: 1 | AW11: 1 | AX11: 1 | AY11: 1 | AZ11: 1 | BA11: 1 | BB11: 1 | BC11: 1 | BD11: 1 | BE11: 1 | BF11: 1 | BG11: 1 | BH11: 1 | BI11: 1 | BJ11: 1 | BK11: 1 | BL11: 1 | BM11: 1 | BN11: 1 | BO11: 1 | BP11: 1 | BQ11: 1 | BR11: 1
C12: Effective availability price (£/MW/h) | D12: =Avail_price*D$11 -> 0 | E12: 0 | F12: 0 | G12: 0 | H12: 0 | I12: 0 | J12: 0 | K12: 0 | L12: 0 | M12: 0 | N12: 0 | O12: 0 | P12: 0 | Q12: 0 | R12: 0 | S12: 0 | T12: 0 | U12: 0 | V12: 0 | W12: 0 | X12: 0 | Y12: 0 | Z12: 0 | AA12: 0 | AB12: 0 | AC12: 0 | AD12: 0 | AE12: 0 | AF12: 0 | AG12: 0 | AH12: 0 | AI12: 0 | AJ12: =Avail_price*AJ$11 -> 0 | AK12: 0 | AL12: 0 | AM12: 0 | AN12: 0 | AO12: 0 | AP12: 0 | AQ12: 0 | AR12: 0 | AS12: 0 | AT12: 0 | AU12: 0 | AV12: 0 | AW12: 0 | AX12: 0 | AY12: 0 | AZ12: 0 | BA12: 0 | BB12: 0 | BC12: 0 | BD12: 0 | BE12: 0 | BF12: 0 | BG12: 0 | BH12: 0 | BI12: 0 | BJ12: 0 | BK12: 0 | BL12: 0 | BM12: 0 | BN12: 0 | BO12: 0 | BP12: 0 | BQ12: 0 | BR12: 0
C13: Effective utilisation price (£/MWh) | D13: =Util_price*D$11 -> 1 | E13: 1 | F13: 1 | G13: 1 | H13: 1 | I13: 1 | J13: 1 | K13: 1 | L13: 1 | M13: 1 | N13: 1 | O13: 1 | P13: 1 | Q13: 1 | R13: 1 | S13: 1 | T13: 1 | U13: 1 | V13: 1 | W13: 1 | X13: 1 | Y13: 1 | Z13: 1 | AA13: 1 | AB13: 1 | AC13: 1 | AD13: 1 | AE13: 1 | AF13: 1 | AG13: 1 | AH13: 1 | AI13: 1 | AJ13: =Util_price*AJ$11 -> 1 | AK13: 1 | AL13: 1 | AM13: 1 | AN13: 1 | AO13: 1 | AP13: 1 | AQ13: 1 | AR13: 1 | AS13: 1 | AT13: 1 | AU13: 1 | AV13: 1 | AW13: 1 | AX13: 1 | AY13: 1 | AZ13: 1 | BA13: 1 | BB13: 1 | BC13: 1 | BD13: 1 | BE13: 1 | BF13: 1 | BG13: 1 | BH13: 1 | BI13: 1 | BJ13: 1 | BK13: 1 | BL13: 1 | BM13: 1 | BN13: 1 | BO13: 1 | BP13: 1 | BQ13: 1 | BR13: 1
C15: First Year of Flex | D15: 2027
C16: Contract shaping logic | D16: Ramping
C17: Initial contract length (years) | D17: 1
C18: Apply discount for longer contracts? | D18: No Discount
C20: Availability and Utilisation cost saving from multi-year flexibility procurement
C21: Contract length (years) | D21: Multi-year discount (input) | E21: Multi-year discount applied
C22: 1 | D22: 0 | E22: =IF(Discount_multiyear_flex_toggle="Discount",D22,0) -> 0
C23: 2 | D23: 0 | E23: 0
C24: 3 | D24: 0 | E24: 0
C25: 4 | D25: 0 | E25: 0
C26: 5 | D26: 0 | E26: 0
C27: 6 | D27: 0 | E27: 0
C28: 7 | D28: 0 | E28: 0
C29: 8 | D29: 0 | E29: 0
C30: 9 | D30: 0 | E30: 0
C31: 10 | D31: 0 | E31: 0
C32: 15 | D32: 0 | E32: 0
C33: 20 | D33: 0 | E33: 0
C34: 45 | D34: 0 | E34: 0
C36: Availability price trend assumption | D36: =Current_year -> 2026 | E36: =D36+1 -> 2027 | F36: =E36+1 -> 2028 | G36: =F36+1 -> 2029 | H36: =G36+1 -> 2030 | I36: =H36+1 -> 2031 | J36: =I36+1 -> 2032 | K36: =J36+1 -> 2033 | L36: =K36+1 -> 2034 | M36: =L36+1 -> 2035 | N36: =M36+1 -> 2036 | O36: =N36+1 -> 2037 | P36: =O36+1 -> 2038 | Q36: =P36+1 -> 2039 | R36: =Q36+1 -> 2040 | S36: =R36+1 -> 2041 | T36: =S36+1 -> 2042 | U36: =T36+1 -> 2043 | V36: =U36+1 -> 2044 | W36: =V36+1 -> 2045 | X36: =W36+1 -> 2046 | Y36: =X36+1 -> 2047 | Z36: =Y36+1 -> 2048 | AA36: =Z36+1 -> 2049 | AB36: =AA36+1 -> 2050 | AC36: =AB36+1 -> 2051 | AD36: =AC36+1 -> 2052 | AE36: =AD36+1 -> 2053 | AF36: =AE36+1 -> 2054 | AG36: =AF36+1 -> 2055 | AH36: =AG36+1 -> 2056 | AI36: =AH36+1 -> 2057 | AJ36: =AI36+1 -> 2058 | AK36: =AJ36+1 -> 2059 | AL36: =AK36+1 -> 2060 | AM36: =AL36+1 -> 2061 | AN36: =AM36+1 -> 2062 | AO36: =AN36+1 -> 2063 | AP36: =AO36+1 -> 2064 | AQ36: =AP36+1 -> 2065 | AR36: =AQ36+1 -> 2066 | AS36: =AR36+1 -> 2067 | AT36: =AS36+1 -> 2068 | AU36: =AT36+1 -> 2069 | AV36: =AU36+1 -> 2070 | AW36: =AV36+1 -> 2071 | AX36: =AW36+1 -> 2072 | AY36: =AX36+1 -> 2073 | AZ36: =AY36+1 -> 2074 | BA36: =AZ36+1 -> 2075 | BB36: =BA36+1 -> 2076 | BC36: =BB36+1 -> 2077 | BD36: =BC36+1 -> 2078 | BE36: =BD36+1 -> 2079 | BF36: =BE36+1 -> 2080 | BG36: =BF36+1 -> 2081 | BH36: =BG36+1 -> 2082 | BI36: =BH36+1 -> 2083 | BJ36: =BI36+1 -> 2084 | BK36: =BJ36+1 -> 2085 | BL36: =BK36+1 -> 2086 | BM36: =BL36+1 -> 2087 | BN36: =BM36+1 -> 2088 | BO36: =BN36+1 -> 2089 | BP36: =BO36+1 -> 2090 | BQ36: =BP36+1 -> 2091 | BR36: =BQ36+1 -> 2092
C37: Cost reduction from multi-year contract | D37: =IF(AND(D$36>=$D$15,D$36<$D$15+initial_contract_length),1-INDEX(multiyear_discount_range,MATCH(initial_contract_length,multiyear_discount_year_range,0)),1) -> 1 | E37: 1 | F37: 1 | G37: 1 | H37: 1 | I37: 1 | J37: 1 | K37: 1 | L37: 1 | M37: 1 | N37: 1 | O37: 1 | P37: 1 | Q37: 1 | R37: 1 | S37: 1 | T37: 1 | U37: 1 | V37: 1 | W37: 1 | X37: 1 | Y37: 1 | Z37: 1 | AA37: 1 | AB37: 1 | AC37: 1 | AD37: 1 | AE37: 1 | AF37: 1 | AG37: 1 | AH37: 1 | AI37: 1 | AJ37: =IF(AND(AJ$36>=$D$15,AJ$36<$D$15+initial_contract_length),1-INDEX(multiyear_discount_range,MATCH(initial_contract_length,multiyear_discount_year_range,0)),1) -> 1 | AK37: 1 | AL37: 1 | AM37: 1 | AN37: 1 | AO37: 1 | AP37: 1 | AQ37: 1 | AR37: 1 | AS37: 1 | AT37: 1 | AU37: 1 | AV37: 1 | AW37: 1 | AX37: 1 | AY37: 1 | AZ37: 1 | BA37: 1 | BB37: 1 | BC37: 1 | BD37: 1 | BE37: 1 | BF37: 1 | BG37: 1 | BH37: 1 | BI37: 1 | BJ37: 1 | BK37: 1 | BL37: 1 | BM37: 1 | BN37: 1 | BO37: 1 | BP37: 1 | BQ37: 1 | BR37: 1
B39: Fixed Costs
C40: Upfront Costs (incured regardless of strategy duration) (£/yr) | D40: =Current_year -> 2026 | E40: =D40+1 -> 2027 | F40: 2028 | G40: 2029 | H40: 2030 | I40: 2031 | J40: 2032 | K40: 2033 | L40: 2034 | M40: 2035 | N40: 2036 | O40: 2037 | P40: 2038 | Q40: 2039 | R40: 2040 | S40: 2041 | T40: 2042 | U40: 2043 | V40: 2044 | W40: 2045 | X40: 2046 | Y40: 2047 | Z40: 2048 | AA40: 2049 | AB40: 2050 | AC40: 2051 | AD40: 2052 | AE40: 2053 | AF40: 2054 | AG40: 2055 | AH40: 2056 | AI40: 2057 | AJ40: 2058 | AK40: =AJ40+1 -> 2059 | AL40: 2060 | AM40: 2061 | AN40: 2062 | AO40: 2063 | AP40: 2064 | AQ40: 2065 | AR40: 2066 | AS40: 2067 | AT40: 2068 | AU40: 2069 | AV40: 2070 | AW40: 2071 | AX40: 2072 | AY40: 2073 | AZ40: 2074 | BA40: 2075 | BB40: 2076 | BC40: 2077 | BD40: 2078 | BE40: 2079 | BF40: 2080 | BG40: 2081 | BH40: 2082 | BI40: 2083 | BJ40: 2084 | BK40: 2085 | BL40: 2086 | BM40: 2087 | BN40: 2088 | BO40: 2089 | BP40: 2090 | BQ40: 2091 | BR40: 2092
A41: Config | B41: 1 | C41: =IF(INDIRECT("Config"&B41&"_name")="","",INDIRECT("Config"&B41&"_name")) -> Flexibility under smaller value flex
A42: Config | B42: 2 | C42: Flexibility under larger value flex
A43: Config | B43: 3
A44: Config | B44: 4
A45: Config | B45: 5
A46: Config | B46: 6
A47: Config | B47: 7
A48: Config | B48: 8
A49: Config | B49: 9
A50: Config | B50: 10
C52: Annual Fixed costs (incurred only if strategy is still being pursued) (£/yr) | D52: =Current_year -> 2026 | E52: =D52+1 -> 2027 | F52: 2028 | G52: 2029 | H52: 2030 | I52: 2031 | J52: 2032 | K52: 2033 | L52: 2034 | M52: 2035 | N52: 2036 | O52: 2037 | P52: 2038 | Q52: 2039 | R52: 2040 | S52: 2041 | T52: 2042 | U52: 2043 | V52: 2044 | W52: 2045 | X52: 2046 | Y52: 2047 | Z52: 2048 | AA52: 2049 | AB52: 2050 | AC52: 2051 | AD52: 2052 | AE52: 2053 | AF52: 2054 | AG52: 2055 | AH52: 2056 | AI52: 2057 | AJ52: 2058 | AK52: =AJ52+1 -> 2059 | AL52: 2060 | AM52: 2061 | AN52: 2062 | AO52: 2063 | AP52: 2064 | AQ52: 2065 | AR52: 2066 | AS52: 2067 | AT52: 2068 | AU52: 2069 | AV52: 2070 | AW52: 2071 | AX52: 2072 | AY52: 2073 | AZ52: 2074 | BA52: 2075 | BB52: 2076 | BC52: 2077 | BD52: 2078 | BE52: 2079 | BF52: 2080 | BG52: 2081 | BH52: 2082 | BI52: 2083 | BJ52: 2084 | BK52: 2085 | BL52: 2086 | BM52: 2087 | BN52: 2088 | BO52: 2089 | BP52: 2090 | BQ52: 2091 | BR52: 2092
A53: Config | B53: 1 | C53: =IF(INDIRECT("Config"&B53&"_name")="","",INDIRECT("Config"&B53&"_name")) -> Flexibility under smaller value flex
A54: Config | B54: 2 | C54: Flexibility under larger value flex
A55: Config | B55: 3
A56: Config | B56: 4
A57: Config | B57: 5
A58: Config | B58: 6
A59: Config | B59: 7
A60: Config | B60: 8
A61: Config | B61: 9
A62: Config | B62: 10
C64: Flex input method
C65: MWh/MW.h | D65: n.b. if set to "MW/MW.h" then specify the annual utilisation and availability requirement directy (hours and days will be ignored). If "Hours-days-average" then specify the hours, days and average availability & utilisation.
B67: Hours and days of required flexibility
C68: Hours per day required | D68: =Current_year -> 2026 | E68: =D68+1 -> 2027 | F68: 2028 | G68: 2029 | H68: 2030 | I68: 2031 | J68: 2032 | K68: 2033 | L68: 2034 | M68: 2035 | N68: 2036 | O68: 2037 | P68: 2038 | Q68: 2039 | R68: 2040 | S68: 2041 | T68: 2042 | U68: 2043 | V68: 2044 | W68: 2045 | X68: 2046 | Y68: 2047 | Z68: 2048 | AA68: 2049 | AB68: 2050 | AC68: 2051 | AD68: 2052 | AE68: 2053 | AF68: 2054 | AG68: 2055 | AH68: 2056 | AI68: 2057 | AJ68: 2058 | AK68: =AJ68+1 -> 2059 | AL68: 2060 | AM68: 2061 | AN68: 2062 | AO68: 2063 | AP68: 2064 | AQ68: 2065 | AR68: 2066 | AS68: 2067 | AT68: 2068 | AU68: 2069 | AV68: 2070 | AW68: 2071 | AX68: 2072 | AY68: 2073 | AZ68: 2074 | BA68: 2075 | BB68: 2076 | BC68: 2077 | BD68: 2078 | BE68: 2079 | BF68: 2080 | BG68: 2081 | BH68: 2082 | BI68: 2083 | BJ68: 2084 | BK68: 2085 | BL68: 2086 | BM68: 2087 | BN68: 2088 | BO68: 2089 | BP68: 2090 | BQ68: 2091 | BR68: 2092
A69: Config | B69: 1 | C69: =IF(INDIRECT("Config"&B69&"_name")="","",INDIRECT("Config"&B69&"_name")) -> Flexibility under smaller value flex
A70: Config | B70: 2 | C70: Flexibility under larger value flex
A71: Config | B71: 3
A72: Config | B72: 4
A73: Config | B73: 5
A74: Config | B74: 6
A75: Config | B75: 7
A76: Config | B76: 8
A77: Config | B77: 9
A78: Config | B78: 10
C80: Days per year required | D80: =Current_year -> 2026 | E80: =D80+1 -> 2027 | F80: 2028 | G80: 2029 | H80: 2030 | I80: 2031 | J80: 2032 | K80: 2033 | L80: 2034 | M80: 2035 | N80: 2036 | O80: 2037 | P80: 2038 | Q80: 2039 | R80: 2040 | S80: 2041 | T80: 2042 | U80: 2043 | V80: 2044 | W80: 2045 | X80: 2046 | Y80: 2047 | Z80: 2048 | AA80: 2049 | AB80: 2050 | AC80: 2051 | AD80: 2052 | AE80: 2053 | AF80: 2054 | AG80: 2055 | AH80: 2056 | AI80: 2057 | AJ80: 2058 | AK80: =AJ80+1 -> 2059 | AL80: 2060 | AM80: 2061 | AN80: 2062 | AO80: 2063 | AP80: 2064 | AQ80: 2065 | AR80: 2066 | AS80: 2067 | AT80: 2068 | AU80: 2069 | AV80: 2070 | AW80: 2071 | AX80: 2072 | AY80: 2073 | AZ80: 2074 | BA80: 2075 | BB80: 2076 | BC80: 2077 | BD80: 2078 | BE80: 2079 | BF80: 2080 | BG80: 2081 | BH80: 2082 | BI80: 2083 | BJ80: 2084 | BK80: 2085 | BL80: 2086 | BM80: 2087 | BN80: 2088 | BO80: 2089 | BP80: 2090 | BQ80: 2091 | BR80: 2092
A81: Config | B81: 1 | C81: =IF(INDIRECT("Config"&B81&"_name")="","",INDIRECT("Config"&B81&"_name")) -> Flexibility under smaller value flex
A82: Config | B82: 2 | C82: Flexibility under larger value flex
A83: Config | B83: 3
A84: Config | B84: 4
A85: Config | B85: 5
A86: Config | B86: 6
A87: Config | B87: 7
A88: Config | B88: 8
A89: Config | B89: 9
A90: Config | B90: 10
B92: Average hourly flex requirement
C93: Average availability held in each hour (MW/h) | D93: =Current_year -> 2026 | E93: =D93+1 -> 2027 | F93: =E93+1 -> 2028 | G93: =F93+1 -> 2029 | H93: =G93+1 -> 2030 | I93: =H93+1 -> 2031 | J93: =I93+1 -> 2032 | K93: =J93+1 -> 2033 | L93: =K93+1 -> 2034 | M93: =L93+1 -> 2035 | N93: =M93+1 -> 2036 | O93: =N93+1 -> 2037 | P93: =O93+1 -> 2038 | Q93: =P93+1 -> 2039 | R93: =Q93+1 -> 2040 | S93: =R93+1 -> 2041 | T93: =S93+1 -> 2042 | U93: =T93+1 -> 2043 | V93: =U93+1 -> 2044 | W93: =V93+1 -> 2045 | X93: =W93+1 -> 2046 | Y93: =X93+1 -> 2047 | Z93: =Y93+1 -> 2048 | AA93: =Z93+1 -> 2049 | AB93: =AA93+1 -> 2050 | AC93: =AB93+1 -> 2051 | AD93: =AC93+1 -> 2052 | AE93: =AD93+1 -> 2053 | AF93: =AE93+1 -> 2054 | AG93: =AF93+1 -> 2055 | AH93: =AG93+1 -> 2056 | AI93: =AH93+1 -> 2057 | AJ93: =AI93+1 -> 2058 | AK93: =AJ93+1 -> 2059 | AL93: =AK93+1 -> 2060 | AM93: =AL93+1 -> 2061 | AN93: =AM93+1 -> 2062 | AO93: =AN93+1 -> 2063 | AP93: =AO93+1 -> 2064 | AQ93: =AP93+1 -> 2065 | AR93: =AQ93+1 -> 2066 | AS93: =AR93+1 -> 2067 | AT93: =AS93+1 -> 2068 | AU93: =AT93+1 -> 2069 | AV93: =AU93+1 -> 2070 | AW93: =AV93+1 -> 2071 | AX93: =AW93+1 -> 2072 | AY93: =AX93+1 -> 2073 | AZ93: =AY93+1 -> 2074 | BA93: =AZ93+1 -> 2075 | BB93: =BA93+1 -> 2076 | BC93: =BB93+1 -> 2077 | BD93: =BC93+1 -> 2078 | BE93: =BD93+1 -> 2079 | BF93: =BE93+1 -> 2080 | BG93: =BF93+1 -> 2081 | BH93: =BG93+1 -> 2082 | BI93: =BH93+1 -> 2083 | BJ93: =BI93+1 -> 2084 | BK93: =BJ93+1 -> 2085 | BL93: =BK93+1 -> 2086 | BM93: =BL93+1 -> 2087 | BN93: =BM93+1 -> 2088 | BO93: =BN93+1 -> 2089 | BP93: =BO93+1 -> 2090 | BQ93: =BP93+1 -> 2091 | BR93: =BQ93+1 -> 2092
A94: Config | B94: 1 | C94: =IF(INDIRECT("Config"&B94&"_name")="","",INDIRECT("Config"&B94&"_name")) -> Flexibility under smaller value flex
A95: Config | B95: 2 | C95: Flexibility under larger value flex
A96: Config | B96: 3
A97: Config | B97: 4
A98: Config | B98: 5
A99: Config | B99: 6
A100: Config | B100: 7
A101: Config | B101: 8
A102: Config | B102: 9
A103: Config | B103: 10
C105: Average utilisation dispatched in each hour (MWh/h) | D105: =Current_year -> 2026 | E105: =D105+1 -> 2027 | F105: =E105+1 -> 2028 | G105: =F105+1 -> 2029 | H105: =G105+1 -> 2030 | I105: =H105+1 -> 2031 | J105: =I105+1 -> 2032 | K105: =J105+1 -> 2033 | L105: =K105+1 -> 2034 | M105: =L105+1 -> 2035 | N105: =M105+1 -> 2036 | O105: =N105+1 -> 2037 | P105: =O105+1 -> 2038 | Q105: =P105+1 -> 2039 | R105: =Q105+1 -> 2040 | S105: =R105+1 -> 2041 | T105: =S105+1 -> 2042 | U105: =T105+1 -> 2043 | V105: =U105+1 -> 2044 | W105: =V105+1 -> 2045 | X105: =W105+1 -> 2046 | Y105: =X105+1 -> 2047 | Z105: =Y105+1 -> 2048 | AA105: =Z105+1 -> 2049 | AB105: =AA105+1 -> 2050 | AC105: =AB105+1 -> 2051 | AD105: =AC105+1 -> 2052 | AE105: =AD105+1 -> 2053 | AF105: =AE105+1 -> 2054 | AG105: =AF105+1 -> 2055 | AH105: =AG105+1 -> 2056 | AI105: =AH105+1 -> 2057 | AJ105: =AI105+1 -> 2058 | AK105: =AJ105+1 -> 2059 | AL105: =AK105+1 -> 2060 | AM105: =AL105+1 -> 2061 | AN105: =AM105+1 -> 2062 | AO105: =AN105+1 -> 2063 | AP105: =AO105+1 -> 2064 | AQ105: =AP105+1 -> 2065 | AR105: =AQ105+1 -> 2066 | AS105: =AR105+1 -> 2067 | AT105: =AS105+1 -> 2068 | AU105: =AT105+1 -> 2069 | AV105: =AU105+1 -> 2070 | AW105: =AV105+1 -> 2071 | AX105: =AW105+1 -> 2072 | AY105: =AX105+1 -> 2073 | AZ105: =AY105+1 -> 2074 | BA105: =AZ105+1 -> 2075 | BB105: =BA105+1 -> 2076 | BC105: =BB105+1 -> 2077 | BD105: =BC105+1 -> 2078 | BE105: =BD105+1 -> 2079 | BF105: =BE105+1 -> 2080 | BG105: =BF105+1 -> 2081 | BH105: =BG105+1 -> 2082 | BI105: =BH105+1 -> 2083 | BJ105: =BI105+1 -> 2084 | BK105: =BJ105+1 -> 2085 | BL105: =BK105+1 -> 2086 | BM105: =BL105+1 -> 2087 | BN105: =BM105+1 -> 2088 | BO105: =BN105+1 -> 2089 | BP105: =BO105+1 -> 2090 | BQ105: =BP105+1 -> 2091 | BR105: =BQ105+1 -> 2092
A106: Config | B106: 1 | C106: =IF(INDIRECT("Config"&B106&"_name")="","",INDIRECT("Config"&B106&"_name")) -> Flexibility under smaller value flex
A107: Config | B107: 2 | C107: Flexibility under larger value flex
A108: Config | B108: 3
A109: Config | B109: 4
A110: Config | B110: 5
A111: Config | B111: 6
A112: Config | B112: 7
A113: Config | B113: 8
A114: Config | B114: 9
A115: Config | B115: 10
B117: Manual specification on annual availability held and utilisation dispatched
C118: Total capacity of availability procured each year (MW.h/y) | D118: =Current_year -> 2026 | E118: =D118+1 -> 2027 | F118: 2028 | G118: 2029 | H118: 2030 | I118: 2031 | J118: 2032 | K118: 2033 | L118: 2034 | M118: 2035 | N118: 2036 | O118: 2037 | P118: 2038 | Q118: 2039 | R118: 2040 | S118: 2041 | T118: 2042 | U118: 2043 | V118: 2044 | W118: 2045 | X118: 2046 | Y118: 2047 | Z118: 2048 | AA118: 2049 | AB118: 2050 | AC118: 2051 | AD118: 2052 | AE118: 2053 | AF118: 2054 | AG118: 2055 | AH118: 2056 | AI118: 2057 | AJ118: 2058 | AK118: =AJ118+1 -> 2059 | AL118: 2060 | AM118: 2061 | AN118: 2062 | AO118: 2063 | AP118: 2064 | AQ118: 2065 | AR118: 2066 | AS118: 2067 | AT118: 2068 | AU118: 2069 | AV118: 2070 | AW118: 2071 | AX118: 2072 | AY118: 2073 | AZ118: 2074 | BA118: 2075 | BB118: 2076 | BC118: 2077 | BD118: 2078 | BE118: 2079 | BF118: 2080 | BG118: 2081 | BH118: 2082 | BI118: 2083 | BJ118: 2084 | BK118: 2085 | BL118: 2086 | BM118: 2087 | BN118: 2088 | BO118: 2089 | BP118: 2090 | BQ118: 2091 | BR118: 2092
A119: Config | B119: 1 | C119: =IF(INDIRECT("Config"&B119&"_name")="","",INDIRECT("Config"&B119&"_name")) -> Flexibility under smaller value flex
A120: Config | B120: 2 | C120: Flexibility under larger value flex
A121: Config | B121: 3
A122: Config | B122: 4
A123: Config | B123: 5
A124: Config | B124: 6
A125: Config | B125: 7
A126: Config | B126: 8
A127: Config | B127: 9
A128: Config | B128: 10
C130: Expected annual volume of utilisation dispatched (MWh/y) | D130: =Current_year -> 2026 | E130: =D130+1 -> 2027 | F130: 2028 | G130: 2029 | H130: 2030 | I130: 2031 | J130: 2032 | K130: 2033 | L130: 2034 | M130: 2035 | N130: 2036 | O130: 2037 | P130: 2038 | Q130: 2039 | R130: 2040 | S130: 2041 | T130: 2042 | U130: 2043 | V130: 2044 | W130: 2045 | X130: 2046 | Y130: 2047 | Z130: 2048 | AA130: 2049 | AB130: 2050 | AC130: 2051 | AD130: 2052 | AE130: 2053 | AF130: 2054 | AG130: 2055 | AH130: 2056 | AI130: 2057 | AJ130: 2058 | AK130: =AJ130+1 -> 2059 | AL130: 2060 | AM130: 2061 | AN130: 2062 | AO130: 2063 | AP130: 2064 | AQ130: 2065 | AR130: 2066 | AS130: 2067 | AT130: 2068 | AU130: 2069 | AV130: 2070 | AW130: 2071 | AX130: 2072 | AY130: 2073 | AZ130: 2074 | BA130: 2075 | BB130: 2076 | BC130: 2077 | BD130: 2078 | BE130: 2079 | BF130: 2080 | BG130: 2081 | BH130: 2082 | BI130: 2083 | BJ130: 2084 | BK130: 2085 | BL130: 2086 | BM130: 2087 | BN130: 2088 | BO130: 2089 | BP130: 2090 | BQ130: 2091 | BR130: 2092
A131: Config | B131: 1 | C131: =IF(INDIRECT("Config"&B131&"_name")="","",INDIRECT("Config"&B131&"_name")) -> Flexibility under smaller value flex | E131: 3000 | F131: 3000
A132: Config | B132: 2 | C132: Flexibility under larger value flex
A133: Config | B133: 3
A134: Config | B134: 4
A135: Config | B135: 5
A136: Config | B136: 6
A137: Config | B137: 7
A138: Config | B138: 8
A139: Config | B139: 9
A140: Config | B140: 10
B142: Flexibility volumes selected (pre-adjustment)
C143: Total capacity of availability procured each year (MW.h/y) | D143: =Current_year -> 2026 | E143: =D143+1 -> 2027 | F143: =E143+1 -> 2028 | G143: =F143+1 -> 2029 | H143: =G143+1 -> 2030 | I143: =H143+1 -> 2031 | J143: =I143+1 -> 2032 | K143: =J143+1 -> 2033 | L143: =K143+1 -> 2034 | M143: =L143+1 -> 2035 | N143: =M143+1 -> 2036 | O143: =N143+1 -> 2037 | P143: =O143+1 -> 2038 | Q143: =P143+1 -> 2039 | R143: =Q143+1 -> 2040 | S143: =R143+1 -> 2041 | T143: =S143+1 -> 2042 | U143: =T143+1 -> 2043 | V143: =U143+1 -> 2044 | W143: =V143+1 -> 2045 | X143: =W143+1 -> 2046 | Y143: =X143+1 -> 2047 | Z143: =Y143+1 -> 2048 | AA143: =Z143+1 -> 2049 | AB143: =AA143+1 -> 2050 | AC143: =AB143+1 -> 2051 | AD143: =AC143+1 -> 2052 | AE143: =AD143+1 -> 2053 | AF143: =AE143+1 -> 2054 | AG143: =AF143+1 -> 2055 | AH143: =AG143+1 -> 2056 | AI143: =AH143+1 -> 2057 | AJ143: =AI143+1 -> 2058 | AK143: =AJ143+1 -> 2059 | AL143: =AK143+1 -> 2060 | AM143: =AL143+1 -> 2061 | AN143: =AM143+1 -> 2062 | AO143: =AN143+1 -> 2063 | AP143: =AO143+1 -> 2064 | AQ143: =AP143+1 -> 2065 | AR143: =AQ143+1 -> 2066 | AS143: =AR143+1 -> 2067 | AT143: =AS143+1 -> 2068 | AU143: =AT143+1 -> 2069 | AV143: =AU143+1 -> 2070 | AW143: =AV143+1 -> 2071 | AX143: =AW143+1 -> 2072 | AY143: =AX143+1 -> 2073 | AZ143: =AY143+1 -> 2074 | BA143: =AZ143+1 -> 2075 | BB143: =BA143+1 -> 2076 | BC143: =BB143+1 -> 2077 | BD143: =BC143+1 -> 2078 | BE143: =BD143+1 -> 2079 | BF143: =BE143+1 -> 2080 | BG143: =BF143+1 -> 2081 | BH143: =BG143+1 -> 2082 | BI143: =BH143+1 -> 2083 | BJ143: =BI143+1 -> 2084 | BK143: =BJ143+1 -> 2085 | BL143: =BK143+1 -> 2086 | BM143: =BL143+1 -> 2087 | BN143: =BM143+1 -> 2088 | BO143: =BN143+1 -> 2089 | BP143: =BO143+1 -> 2090 | BQ143: =BP143+1 -> 2091 | BR143: =BQ143+1 -> 2092
A144: Config | B144: 1 | C144: =IF(INDIRECT("Config"&B144&"_name")="","",INDIRECT("Config"&B144&"_name")) -> Flexibility under smaller value flex | D144: =IF($C$65="Hours-days-average",D69*D81*D94,D119) -> 0 | E144: =IF($C$65="Hours-days-average",E69*E81*E94,E119) -> 0 | F144: 0 | G144: 0 | H144: 0 | I144: 0 | J144: 0 | K144: 0 | L144: 0 | M144: 0 | N144: 0 | O144: 0 | P144: 0 | Q144: 0 | R144: 0 | S144: 0 | T144: 0 | U144: 0 | V144: 0 | W144: 0 | X144: 0 | Y144: 0 | Z144: 0 | AA144: 0 | AB144: 0 | AC144: 0 | AD144: 0 | AE144: 0 | AF144: 0 | AG144: 0 | AH144: 0 | AI144: 0 | AJ144: 0 | AK144: 0 | AL144: 0 | AM144: 0 | AN144: 0 | AO144: 0 | AP144: 0 | AQ144: 0 | AR144: 0 | AS144: 0 | AT144: 0 | AU144: 0 | AV144: 0 | AW144: 0 | AX144: 0 | AY144: 0 | AZ144: 0 | BA144: 0 | BB144: 0 | BC144: 0 | BD144: 0 | BE144: 0 | BF144: 0 | BG144: 0 | BH144: 0 | BI144: 0 | BJ144: 0 | BK144: 0 | BL144: 0 | BM144: 0 | BN144: 0 | BO144: 0 | BP144: 0 | BQ144: =IF($C$65="Hours-days-average",BQ69*BQ81*BQ94,BQ119) -> 0 | BR144: 0
A145: Config | B145: 2 | C145: Flexibility under larger value flex | D145: =IF($C$65="Hours-days-average",D70*D82*D95,D120) -> 0 | E145: 0 | F145: 0 | G145: 0 | H145: 0 | I145: 0 | J145: 0 | K145: 0 | L145: 0 | M145: 0 | N145: 0 | O145: 0 | P145: 0 | Q145: 0 | R145: 0 | S145: 0 | T145: 0 | U145: 0 | V145: 0 | W145: 0 | X145: 0 | Y145: 0 | Z145: 0 | AA145: 0 | AB145: 0 | AC145: 0 | AD145: 0 | AE145: 0 | AF145: 0 | AG145: 0 | AH145: 0 | AI145: 0 | AJ145: 0 | AK145: 0 | AL145: 0 | AM145: 0 | AN145: 0 | AO145: 0 | AP145: 0 | AQ145: 0 | AR145: 0 | AS145: 0 | AT145: 0 | AU145: 0 | AV145: 0 | AW145: 0 | AX145: 0 | AY145: 0 | AZ145: 0 | BA145: 0 | BB145: 0 | BC145: 0 | BD145: 0 | BE145: 0 | BF145: 0 | BG145: 0 | BH145: 0 | BI145: 0 | BJ145: 0 | BK145: 0 | BL145: 0 | BM145: 0 | BN145: 0 | BO145: 0 | BP145: =IF($C$65="Hours-days-average",BP70*BP82*BP95,BP120) -> 0 | BQ145: 0 | BR145: 0
A146: Config | B146: 3 | D146: =IF($C$65="Hours-days-average",D71*D83*D96,D121) -> 0 | E146: 0 | F146: 0 | G146: 0 | H146: 0 | I146: 0 | J146: 0 | K146: 0 | L146: 0 | M146: 0 | N146: 0 | O146: 0 | P146: 0 | Q146: 0 | R146: 0 | S146: 0 | T146: 0 | U146: 0 | V146: 0 | W146: 0 | X146: 0 | Y146: 0 | Z146: 0 | AA146: 0 | AB146: 0 | AC146: 0 | AD146: 0 | AE146: 0 | AF146: 0 | AG146: 0 | AH146: 0 | AI146: 0 | AJ146: 0 | AK146: 0 | AL146: 0 | AM146: 0 | AN146: 0 | AO146: 0 | AP146: 0 | AQ146: 0 | AR146: 0 | AS146: 0 | AT146: 0 | AU146: 0 | AV146: 0 | AW146: 0 | AX146: 0 | AY146: 0 | AZ146: 0 | BA146: 0 | BB146: 0 | BC146: 0 | BD146: 0 | BE146: 0 | BF146: 0 | BG146: 0 | BH146: 0 | BI146: 0 | BJ146: 0 | BK146: 0 | BL146: 0 | BM146: 0 | BN146: 0 | BO146: 0 | BP146: =IF($C$65="Hours-days-average",BP71*BP83*BP96,BP121) -> 0 | BQ146: 0 | BR146: 0
A147: Config | B147: 4 | D147: =IF($C$65="Hours-days-average",D72*D84*D97,D122) -> 0 | E147: 0 | F147: 0 | G147: 0 | H147: 0 | I147: 0 | J147: 0 | K147: 0 | L147: 0 | M147: 0 | N147: 0 | O147: 0 | P147: 0 | Q147: 0 | R147: 0 | S147: 0 | T147: 0 | U147: 0 | V147: 0 | W147: 0 | X147: 0 | Y147: 0 | Z147: 0 | AA147: 0 | AB147: 0 | AC147: 0 | AD147: 0 | AE147: 0 | AF147: 0 | AG147: 0 | AH147: 0 | AI147: 0 | AJ147: 0 | AK147: 0 | AL147: 0 | AM147: 0 | AN147: 0 | AO147: 0 | AP147: 0 | AQ147: 0 | AR147: 0 | AS147: 0 | AT147: 0 | AU147: 0 | AV147: 0 | AW147: 0 | AX147: 0 | AY147: 0 | AZ147: 0 | BA147: 0 | BB147: 0 | BC147: 0 | BD147: 0 | BE147: 0 | BF147: 0 | BG147: 0 | BH147: 0 | BI147: 0 | BJ147: 0 | BK147: 0 | BL147: 0 | BM147: 0 | BN147: 0 | BO147: 0 | BP147: =IF($C$65="Hours-days-average",BP72*BP84*BP97,BP122) -> 0 | BQ147: 0 | BR147: 0
A148: Config | B148: 5 | D148: =IF($C$65="Hours-days-average",D73*D85*D98,D123) -> 0 | E148: 0 | F148: 0 | G148: 0 | H148: 0 | I148: 0 | J148: 0 | K148: 0 | L148: 0 | M148: 0 | N148: 0 | O148: 0 | P148: 0 | Q148: 0 | R148: 0 | S148: 0 | T148: 0 | U148: 0 | V148: 0 | W148: 0 | X148: 0 | Y148: 0 | Z148: 0 | AA148: 0 | AB148: 0 | AC148: 0 | AD148: 0 | AE148: 0 | AF148: 0 | AG148: 0 | AH148: 0 | AI148: 0 | AJ148: 0 | AK148: 0 | AL148: 0 | AM148: 0 | AN148: 0 | AO148: 0 | AP148: 0 | AQ148: 0 | AR148: 0 | AS148: 0 | AT148: 0 | AU148: 0 | AV148: 0 | AW148: 0 | AX148: 0 | AY148: 0 | AZ148: 0 | BA148: 0 | BB148: 0 | BC148: 0 | BD148: 0 | BE148: 0 | BF148: 0 | BG148: 0 | BH148: 0 | BI148: 0 | BJ148: 0 | BK148: 0 | BL148: 0 | BM148: 0 | BN148: 0 | BO148: 0 | BP148: =IF($C$65="Hours-days-average",BP73*BP85*BP98,BP123) -> 0 | BQ148: 0 | BR148: 0
A149: Config | B149: 6 | D149: =IF($C$65="Hours-days-average",D74*D86*D99,D124) -> 0 | E149: 0 | F149: 0 | G149: 0 | H149: 0 | I149: 0 | J149: 0 | K149: 0 | L149: 0 | M149: 0 | N149: 0 | O149: 0 | P149: 0 | Q149: 0 | R149: 0 | S149: 0 | T149: 0 | U149: 0 | V149: 0 | W149: 0 | X149: 0 | Y149: 0 | Z149: 0 | AA149: 0 | AB149: 0 | AC149: 0 | AD149: 0 | AE149: 0 | AF149: 0 | AG149: 0 | AH149: 0 | AI149: 0 | AJ149: 0 | AK149: 0 | AL149: 0 | AM149: 0 | AN149: 0 | AO149: 0 | AP149: 0 | AQ149: 0 | AR149: 0 | AS149: 0 | AT149: 0 | AU149: 0 | AV149: 0 | AW149: 0 | AX149: 0 | AY149: 0 | AZ149: 0 | BA149: 0 | BB149: 0 | BC149: 0 | BD149: 0 | BE149: 0 | BF149: 0 | BG149: 0 | BH149: 0 | BI149: 0 | BJ149: 0 | BK149: 0 | BL149: 0 | BM149: 0 | BN149: 0 | BO149: 0 | BP149: =IF($C$65="Hours-days-average",BP74*BP86*BP99,BP124) -> 0 | BQ149: 0 | BR149: 0
A150: Config | B150: 7 | D150: =IF($C$65="Hours-days-average",D75*D87*D100,D125) -> 0 | E150: 0 | F150: 0 | G150: 0 | H150: 0 | I150: 0 | J150: 0 | K150: 0 | L150: 0 | M150: 0 | N150: 0 | O150: 0 | P150: 0 | Q150: 0 | R150: 0 | S150: 0 | T150: 0 | U150: 0 | V150: 0 | W150: 0 | X150: 0 | Y150: 0 | Z150: 0 | AA150: 0 | AB150: 0 | AC150: 0 | AD150: 0 | AE150: 0 | AF150: 0 | AG150: 0 | AH150: 0 | AI150: 0 | AJ150: 0 | AK150: 0 | AL150: 0 | AM150: 0 | AN150: 0 | AO150: 0 | AP150: 0 | AQ150: 0 | AR150: 0 | AS150: 0 | AT150: 0 | AU150: 0 | AV150: 0 | AW150: 0 | AX150: 0 | AY150: 0 | AZ150: 0 | BA150: 0 | BB150: 0 | BC150: 0 | BD150: 0 | BE150: 0 | BF150: 0 | BG150: 0 | BH150: 0 | BI150: 0 | BJ150: 0 | BK150: 0 | BL150: 0 | BM150: 0 | BN150: 0 | BO150: 0 | BP150: =IF($C$65="Hours-days-average",BP75*BP87*BP100,BP125) -> 0 | BQ150: 0 | BR150: 0
A151: Config | B151: 8 | D151: =IF($C$65="Hours-days-average",D76*D88*D101,D126) -> 0 | E151: 0 | F151: 0 | G151: 0 | H151: 0 | I151: 0 | J151: 0 | K151: 0 | L151: 0 | M151: 0 | N151: 0 | O151: 0 | P151: 0 | Q151: 0 | R151: 0 | S151: 0 | T151: 0 | U151: 0 | V151: 0 | W151: 0 | X151: 0 | Y151: 0 | Z151: 0 | AA151: 0 | AB151: 0 | AC151: 0 | AD151: 0 | AE151: 0 | AF151: 0 | AG151: 0 | AH151: 0 | AI151: 0 | AJ151: 0 | AK151: 0 | AL151: 0 | AM151: 0 | AN151: 0 | AO151: 0 | AP151: 0 | AQ151: 0 | AR151: 0 | AS151: 0 | AT151: 0 | AU151: 0 | AV151: 0 | AW151: 0 | AX151: 0 | AY151: 0 | AZ151: 0 | BA151: 0 | BB151: 0 | BC151: 0 | BD151: 0 | BE151: 0 | BF151: 0 | BG151: 0 | BH151: 0 | BI151: 0 | BJ151: 0 | BK151: 0 | BL151: 0 | BM151: 0 | BN151: 0 | BO151: 0 | BP151: =IF($C$65="Hours-days-average",BP76*BP88*BP101,BP126) -> 0 | BQ151: 0 | BR151: 0
A152: Config | B152: 9 | D152: =IF($C$65="Hours-days-average",D77*D89*D102,D127) -> 0 | E152: 0 | F152: 0 | G152: 0 | H152: 0 | I152: 0 | J152: 0 | K152: 0 | L152: 0 | M152: 0 | N152: 0 | O152: 0 | P152: 0 | Q152: 0 | R152: 0 | S152: 0 | T152: 0 | U152: 0 | V152: 0 | W152: 0 | X152: 0 | Y152: 0 | Z152: 0 | AA152: 0 | AB152: 0 | AC152: 0 | AD152: 0 | AE152: 0 | AF152: 0 | AG152: 0 | AH152: 0 | AI152: 0 | AJ152: 0 | AK152: 0 | AL152: 0 | AM152: 0 | AN152: 0 | AO152: 0 | AP152: 0 | AQ152: 0 | AR152: 0 | AS152: 0 | AT152: 0 | AU152: 0 | AV152: 0 | AW152: 0 | AX152: 0 | AY152: 0 | AZ152: 0 | BA152: 0 | BB152: 0 | BC152: 0 | BD152: 0 | BE152: 0 | BF152: 0 | BG152: 0 | BH152: 0 | BI152: 0 | BJ152: 0 | BK152: 0 | BL152: 0 | BM152: 0 | BN152: 0 | BO152: 0 | BP152: =IF($C$65="Hours-days-average",BP77*BP89*BP102,BP127) -> 0 | BQ152: 0 | BR152: 0
A153: Config | B153: 10 | D153: =IF($C$65="Hours-days-average",D78*D90*D103,D128) -> 0 | E153: 0 | F153: 0 | G153: 0 | H153: 0 | I153: 0 | J153: 0 | K153: 0 | L153: 0 | M153: 0 | N153: 0 | O153: 0 | P153: 0 | Q153: 0 | R153: 0 | S153: 0 | T153: 0 | U153: 0 | V153: 0 | W153: 0 | X153: 0 | Y153: 0 | Z153: 0 | AA153: 0 | AB153: 0 | AC153: 0 | AD153: 0 | AE153: 0 | AF153: 0 | AG153: 0 | AH153: 0 | AI153: 0 | AJ153: 0 | AK153: 0 | AL153: 0 | AM153: 0 | AN153: 0 | AO153: 0 | AP153: 0 | AQ153: 0 | AR153: 0 | AS153: 0 | AT153: 0 | AU153: 0 | AV153: 0 | AW153: 0 | AX153: 0 | AY153: 0 | AZ153: 0 | BA153: 0 | BB153: 0 | BC153: 0 | BD153: 0 | BE153: 0 | BF153: 0 | BG153: 0 | BH153: 0 | BI153: 0 | BJ153: 0 | BK153: 0 | BL153: 0 | BM153: 0 | BN153: 0 | BO153: 0 | BP153: =IF($C$65="Hours-days-average",BP78*BP90*BP103,BP128) -> 0 | BQ153: 0 | BR153: 0
B156: Flexibility volumes selected
C157: Total capacity of availability procured each year (MW.h/y) | D157: =Current_year -> 2026 | E157: =D157+1 -> 2027 | F157: =E157+1 -> 2028 | G157: =F157+1 -> 2029 | H157: =G157+1 -> 2030 | I157: =H157+1 -> 2031 | J157: =I157+1 -> 2032 | K157: =J157+1 -> 2033 | L157: =K157+1 -> 2034 | M157: =L157+1 -> 2035 | N157: =M157+1 -> 2036 | O157: =N157+1 -> 2037 | P157: =O157+1 -> 2038 | Q157: =P157+1 -> 2039 | R157: =Q157+1 -> 2040 | S157: =R157+1 -> 2041 | T157: =S157+1 -> 2042 | U157: =T157+1 -> 2043 | V157: =U157+1 -> 2044 | W157: =V157+1 -> 2045 | X157: =W157+1 -> 2046 | Y157: =X157+1 -> 2047 | Z157: =Y157+1 -> 2048 | AA157: =Z157+1 -> 2049 | AB157: =AA157+1 -> 2050 | AC157: =AB157+1 -> 2051 | AD157: =AC157+1 -> 2052 | AE157: =AD157+1 -> 2053 | AF157: =AE157+1 -> 2054 | AG157: =AF157+1 -> 2055 | AH157: =AG157+1 -> 2056 | AI157: =AH157+1 -> 2057 | AJ157: =AI157+1 -> 2058 | AK157: =AJ157+1 -> 2059 | AL157: =AK157+1 -> 2060 | AM157: =AL157+1 -> 2061 | AN157: =AM157+1 -> 2062 | AO157: =AN157+1 -> 2063 | AP157: =AO157+1 -> 2064 | AQ157: =AP157+1 -> 2065 | AR157: =AQ157+1 -> 2066 | AS157: =AR157+1 -> 2067 | AT157: =AS157+1 -> 2068 | AU157: =AT157+1 -> 2069 | AV157: =AU157+1 -> 2070 | AW157: =AV157+1 -> 2071 | AX157: =AW157+1 -> 2072 | AY157: =AX157+1 -> 2073 | AZ157: =AY157+1 -> 2074 | BA157: =AZ157+1 -> 2075 | BB157: =BA157+1 -> 2076 | BC157: =BB157+1 -> 2077 | BD157: =BC157+1 -> 2078 | BE157: =BD157+1 -> 2079 | BF157: =BE157+1 -> 2080 | BG157: =BF157+1 -> 2081 | BH157: =BG157+1 -> 2082 | BI157: =BH157+1 -> 2083 | BJ157: =BI157+1 -> 2084 | BK157: =BJ157+1 -> 2085 | BL157: =BK157+1 -> 2086 | BM157: =BL157+1 -> 2087 | BN157: =BM157+1 -> 2088 | BO157: =BN157+1 -> 2089 | BP157: =BO157+1 -> 2090 | BQ157: =BP157+1 -> 2091 | BR157: =BQ157+1 -> 2092
A158: Config | B158: 1 | C158: =IF(INDIRECT("Config"&B158&"_name")="","",INDIRECT("Config"&B158&"_name")) -> Flexibility under smaller value flex | D158: =IF($D$16="Flat",IF(AND(D$157>=$D$15,D$157<$D$15+initial_contract_length),MAX(OFFSET($D144,0,$D$15-Current_year,1,initial_contract_length)),D144),D144) -> 0 | E158: 0 | F158: 0 | G158: 0 | H158: 0 | I158: 0 | J158: 0 | K158: 0 | L158: 0 | M158: 0 | N158: 0 | O158: 0 | P158: 0 | Q158: 0 | R158: 0 | S158: 0 | T158: 0 | U158: 0 | V158: 0 | W158: 0 | X158: 0 | Y158: 0 | Z158: 0 | AA158: 0 | AB158: 0 | AC158: 0 | AD158: 0 | AE158: 0 | AF158: 0 | AG158: 0 | AH158: 0 | AI158: 0 | AJ158: =IF($D$16="Flat",IF(AND(AJ$157>=$D$15,AJ$157<$D$15+initial_contract_length),MAX(OFFSET($D144,0,$D$15-Current_year,1,initial_contract_length)),AJ144),AJ144) -> 0 | AK158: 0 | AL158: 0 | AM158: 0 | AN158: 0 | AO158: 0 | AP158: 0 | AQ158: 0 | AR158: 0 | AS158: 0 | AT158: 0 | AU158: 0 | AV158: 0 | AW158: 0 | AX158: 0 | AY158: 0 | AZ158: 0 | BA158: 0 | BB158: 0 | BC158: 0 | BD158: 0 | BE158: 0 | BF158: 0 | BG158: 0 | BH158: 0 | BI158: 0 | BJ158: 0 | BK158: 0 | BL158: 0 | BM158: 0 | BN158: 0 | BO158: 0 | BP158: 0 | BQ158: 0 | BR158: 0
A159: Config | B159: 2 | C159: Flexibility under larger value flex | D159: =IF($D$16="Flat",IF(AND(D$157>=$D$15,D$157<$D$15+initial_contract_length),MAX(OFFSET($D145,0,$D$15-Current_year,1,initial_contract_length)),D145),D145) -> 0 | E159: 0 | F159: 0 | G159: 0 | H159: 0 | I159: 0 | J159: 0 | K159: 0 | L159: 0 | M159: 0 | N159: 0 | O159: 0 | P159: 0 | Q159: 0 | R159: 0 | S159: 0 | T159: 0 | U159: 0 | V159: 0 | W159: 0 | X159: 0 | Y159: 0 | Z159: 0 | AA159: 0 | AB159: 0 | AC159: 0 | AD159: 0 | AE159: 0 | AF159: 0 | AG159: 0 | AH159: 0 | AI159: 0 | AJ159: =IF($D$16="Flat",IF(AND(AJ$157>=$D$15,AJ$157<$D$15+initial_contract_length),MAX(OFFSET($D145,0,$D$15-Current_year,1,initial_contract_length)),AJ145),AJ145) -> 0 | AK159: 0 | AL159: 0 | AM159: 0 | AN159: 0 | AO159: 0 | AP159: 0 | AQ159: 0 | AR159: 0 | AS159: 0 | AT159: 0 | AU159: 0 | AV159: 0 | AW159: 0 | AX159: 0 | AY159: 0 | AZ159: 0 | BA159: 0 | BB159: 0 | BC159: 0 | BD159: 0 | BE159: 0 | BF159: 0 | BG159: 0 | BH159: 0 | BI159: 0 | BJ159: 0 | BK159: 0 | BL159: 0 | BM159: 0 | BN159: 0 | BO159: 0 | BP159: 0 | BQ159: 0 | BR159: 0
A160: Config | B160: 3 | D160: =IF($D$16="Flat",IF(AND(D$157>=$D$15,D$157<$D$15+initial_contract_length),MAX(OFFSET($D146,0,$D$15-Current_year,1,initial_contract_length)),D146),D146) -> 0 | E160: 0 | F160: 0 | G160: 0 | H160: 0 | I160: 0 | J160: 0 | K160: 0 | L160: 0 | M160: 0 | N160: 0 | O160: 0 | P160: 0 | Q160: 0 | R160: 0 | S160: 0 | T160: 0 | U160: 0 | V160: 0 | W160: 0 | X160: 0 | Y160: 0 | Z160: 0 | AA160: 0 | AB160: 0 | AC160: 0 | AD160: 0 | AE160: 0 | AF160: 0 | AG160: 0 | AH160: 0 | AI160: 0 | AJ160: =IF($D$16="Flat",IF(AND(AJ$157>=$D$15,AJ$157<$D$15+initial_contract_length),MAX(OFFSET($D146,0,$D$15-Current_year,1,initial_contract_length)),AJ146),AJ146) -> 0 | AK160: 0 | AL160: 0 | AM160: 0 | AN160: 0 | AO160: 0 | AP160: 0 | AQ160: 0 | AR160: 0 | AS160: 0 | AT160: 0 | AU160: 0 | AV160: 0 | AW160: 0 | AX160: 0 | AY160: 0 | AZ160: 0 | BA160: 0 | BB160: 0 | BC160: 0 | BD160: 0 | BE160: 0 | BF160: 0 | BG160: 0 | BH160: 0 | BI160: 0 | BJ160: 0 | BK160: 0 | BL160: 0 | BM160: 0 | BN160: 0 | BO160: 0 | BP160: 0 | BQ160: 0 | BR160: 0
A161: Config | B161: 4 | D161: =IF($D$16="Flat",IF(AND(D$157>=$D$15,D$157<$D$15+initial_contract_length),MAX(OFFSET($D147,0,$D$15-Current_year,1,initial_contract_length)),D147),D147) -> 0 | E161: 0 | F161: 0 | G161: 0 | H161: 0 | I161: 0 | J161: 0 | K161: 0 | L161: 0 | M161: 0 | N161: 0 | O161: 0 | P161: 0 | Q161: 0 | R161: 0 | S161: 0 | T161: 0 | U161: 0 | V161: 0 | W161: 0 | X161: 0 | Y161: 0 | Z161: 0 | AA161: 0 | AB161: 0 | AC161: 0 | AD161: 0 | AE161: 0 | AF161: 0 | AG161: 0 | AH161: 0 | AI161: 0 | AJ161: =IF($D$16="Flat",IF(AND(AJ$157>=$D$15,AJ$157<$D$15+initial_contract_length),MAX(OFFSET($D147,0,$D$15-Current_year,1,initial_contract_length)),AJ147),AJ147) -> 0 | AK161: 0 | AL161: 0 | AM161: 0 | AN161: 0 | AO161: 0 | AP161: 0 | AQ161: 0 | AR161: 0 | AS161: 0 | AT161: 0 | AU161: 0 | AV161: 0 | AW161: 0 | AX161: 0 | AY161: 0 | AZ161: 0 | BA161: 0 | BB161: 0 | BC161: 0 | BD161: 0 | BE161: 0 | BF161: 0 | BG161: 0 | BH161: 0 | BI161: 0 | BJ161: 0 | BK161: 0 | BL161: 0 | BM161: 0 | BN161: 0 | BO161: 0 | BP161: 0 | BQ161: 0 | BR161: 0
A162: Config | B162: 5 | D162: =IF($D$16="Flat",IF(AND(D$157>=$D$15,D$157<$D$15+initial_contract_length),MAX(OFFSET($D148,0,$D$15-Current_year,1,initial_contract_length)),D148),D148) -> 0 | E162: 0 | F162: 0 | G162: 0 | H162: 0 | I162: 0 | J162: 0 | K162: 0 | L162: 0 | M162: 0 | N162: 0 | O162: 0 | P162: 0 | Q162: 0 | R162: 0 | S162: 0 | T162: 0 | U162: 0 | V162: 0 | W162: 0 | X162: 0 | Y162: 0 | Z162: 0 | AA162: 0 | AB162: 0 | AC162: 0 | AD162: 0 | AE162: 0 | AF162: 0 | AG162: 0 | AH162: 0 | AI162: 0 | AJ162: =IF($D$16="Flat",IF(AND(AJ$157>=$D$15,AJ$157<$D$15+initial_contract_length),MAX(OFFSET($D148,0,$D$15-Current_year,1,initial_contract_length)),AJ148),AJ148) -> 0 | AK162: 0 | AL162: 0 | AM162: 0 | AN162: 0 | AO162: 0 | AP162: 0 | AQ162: 0 | AR162: 0 | AS162: 0 | AT162: 0 | AU162: 0 | AV162: 0 | AW162: 0 | AX162: 0 | AY162: 0 | AZ162: 0 | BA162: 0 | BB162: 0 | BC162: 0 | BD162: 0 | BE162: 0 | BF162: 0 | BG162: 0 | BH162: 0 | BI162: 0 | BJ162: 0 | BK162: 0 | BL162: 0 | BM162: 0 | BN162: 0 | BO162: 0 | BP162: 0 | BQ162: 0 | BR162: 0
A163: Config | B163: 6 | D163: =IF($D$16="Flat",IF(AND(D$157>=$D$15,D$157<$D$15+initial_contract_length),MAX(OFFSET($D149,0,$D$15-Current_year,1,initial_contract_length)),D149),D149) -> 0 | E163: 0 | F163: 0 | G163: 0 | H163: 0 | I163: 0 | J163: 0 | K163: 0 | L163: 0 | M163: 0 | N163: 0 | O163: 0 | P163: 0 | Q163: 0 | R163: 0 | S163: 0 | T163: 0 | U163: 0 | V163: 0 | W163: 0 | X163: 0 | Y163: 0 | Z163: 0 | AA163: 0 | AB163: 0 | AC163: 0 | AD163: 0 | AE163: 0 | AF163: 0 | AG163: 0 | AH163: 0 | AI163: 0 | AJ163: =IF($D$16="Flat",IF(AND(AJ$157>=$D$15,AJ$157<$D$15+initial_contract_length),MAX(OFFSET($D149,0,$D$15-Current_year,1,initial_contract_length)),AJ149),AJ149) -> 0 | AK163: 0 | AL163: 0 | AM163: 0 | AN163: 0 | AO163: 0 | AP163: 0 | AQ163: 0 | AR163: 0 | AS163: 0 | AT163: 0 | AU163: 0 | AV163: 0 | AW163: 0 | AX163: 0 | AY163: 0 | AZ163: 0 | BA163: 0 | BB163: 0 | BC163: 0 | BD163: 0 | BE163: 0 | BF163: 0 | BG163: 0 | BH163: 0 | BI163: 0 | BJ163: 0 | BK163: 0 | BL163: 0 | BM163: 0 | BN163: 0 | BO163: 0 | BP163: 0 | BQ163: 0 | BR163: 0
A164: Config | B164: 7 | D164: =IF($D$16="Flat",IF(AND(D$157>=$D$15,D$157<$D$15+initial_contract_length),MAX(OFFSET($D150,0,$D$15-Current_year,1,initial_contract_length)),D150),D150) -> 0 | E164: 0 | F164: 0 | G164: 0 | H164: 0 | I164: 0 | J164: 0 | K164: 0 | L164: 0 | M164: 0 | N164: 0 | O164: 0 | P164: 0 | Q164: 0 | R164: 0 | S164: 0 | T164: 0 | U164: 0 | V164: 0 | W164: 0 | X164: 0 | Y164: 0 | Z164: 0 | AA164: 0 | AB164: 0 | AC164: 0 | AD164: 0 | AE164: 0 | AF164: 0 | AG164: 0 | AH164: 0 | AI164: 0 | AJ164: =IF($D$16="Flat",IF(AND(AJ$157>=$D$15,AJ$157<$D$15+initial_contract_length),MAX(OFFSET($D150,0,$D$15-Current_year,1,initial_contract_length)),AJ150),AJ150) -> 0 | AK164: 0 | AL164: 0 | AM164: 0 | AN164: 0 | AO164: 0 | AP164: 0 | AQ164: 0 | AR164: 0 | AS164: 0 | AT164: 0 | AU164: 0 | AV164: 0 | AW164: 0 | AX164: 0 | AY164: 0 | AZ164: 0 | BA164: 0 | BB164: 0 | BC164: 0 | BD164: 0 | BE164: 0 | BF164: 0 | BG164: 0 | BH164: 0 | BI164: 0 | BJ164: 0 | BK164: 0 | BL164: 0 | BM164: 0 | BN164: 0 | BO164: 0 | BP164: 0 | BQ164: 0 | BR164: 0
A165: Config | B165: 8 | D165: =IF($D$16="Flat",IF(AND(D$157>=$D$15,D$157<$D$15+initial_contract_length),MAX(OFFSET($D151,0,$D$15-Current_year,1,initial_contract_length)),D151),D151) -> 0 | E165: 0 | F165: 0 | G165: 0 | H165: 0 | I165: 0 | J165: 0 | K165: 0 | L165: 0 | M165: 0 | N165: 0 | O165: 0 | P165: 0 | Q165: 0 | R165: 0 | S165: 0 | T165: 0 | U165: 0 | V165: 0 | W165: 0 | X165: 0 | Y165: 0 | Z165: 0 | AA165: 0 | AB165: 0 | AC165: 0 | AD165: 0 | AE165: 0 | AF165: 0 | AG165: 0 | AH165: 0 | AI165: 0 | AJ165: =IF($D$16="Flat",IF(AND(AJ$157>=$D$15,AJ$157<$D$15+initial_contract_length),MAX(OFFSET($D151,0,$D$15-Current_year,1,initial_contract_length)),AJ151),AJ151) -> 0 | AK165: 0 | AL165: 0 | AM165: 0 | AN165: 0 | AO165: 0 | AP165: 0 | AQ165: 0 | AR165: 0 | AS165: 0 | AT165: 0 | AU165: 0 | AV165: 0 | AW165: 0 | AX165: 0 | AY165: 0 | AZ165: 0 | BA165: 0 | BB165: 0 | BC165: 0 | BD165: 0 | BE165: 0 | BF165: 0 | BG165: 0 | BH165: 0 | BI165: 0 | BJ165: 0 | BK165: 0 | BL165: 0 | BM165: 0 | BN165: 0 | BO165: 0 | BP165: 0 | BQ165: 0 | BR165: 0
A166: Config | B166: 9 | D166: =IF($D$16="Flat",IF(AND(D$157>=$D$15,D$157<$D$15+initial_contract_length),MAX(OFFSET($D152,0,$D$15-Current_year,1,initial_contract_length)),D152),D152) -> 0 | E166: 0 | F166: 0 | G166: 0 | H166: 0 | I166: 0 | J166: 0 | K166: 0 | L166: 0 | M166: 0 | N166: 0 | O166: 0 | P166: 0 | Q166: 0 | R166: 0 | S166: 0 | T166: 0 | U166: 0 | V166: 0 | W166: 0 | X166: 0 | Y166: 0 | Z166: 0 | AA166: 0 | AB166: 0 | AC166: 0 | AD166: 0 | AE166: 0 | AF166: 0 | AG166: 0 | AH166: 0 | AI166: 0 | AJ166: =IF($D$16="Flat",IF(AND(AJ$157>=$D$15,AJ$157<$D$15+initial_contract_length),MAX(OFFSET($D152,0,$D$15-Current_year,1,initial_contract_length)),AJ152),AJ152) -> 0 | AK166: 0 | AL166: 0 | AM166: 0 | AN166: 0 | AO166: 0 | AP166: 0 | AQ166: 0 | AR166: 0 | AS166: 0 | AT166: 0 | AU166: 0 | AV166: 0 | AW166: 0 | AX166: 0 | AY166: 0 | AZ166: 0 | BA166: 0 | BB166: 0 | BC166: 0 | BD166: 0 | BE166: 0 | BF166: 0 | BG166: 0 | BH166: 0 | BI166: 0 | BJ166: 0 | BK166: 0 | BL166: 0 | BM166: 0 | BN166: 0 | BO166: 0 | BP166: 0 | BQ166: 0 | BR166: 0
A167: Config | B167: 10 | D167: =IF($D$16="Flat",IF(AND(D$157>=$D$15,D$157<$D$15+initial_contract_length),MAX(OFFSET($D153,0,$D$15-Current_year,1,initial_contract_length)),D153),D153) -> 0 | E167: 0 | F167: 0 | G167: 0 | H167: 0 | I167: 0 | J167: 0 | K167: 0 | L167: 0 | M167: 0 | N167: 0 | O167: 0 | P167: 0 | Q167: 0 | R167: 0 | S167: 0 | T167: 0 | U167: 0 | V167: 0 | W167: 0 | X167: 0 | Y167: 0 | Z167: 0 | AA167: 0 | AB167: 0 | AC167: 0 | AD167: 0 | AE167: 0 | AF167: 0 | AG167: 0 | AH167: 0 | AI167: 0 | AJ167: =IF($D$16="Flat",IF(AND(AJ$157>=$D$15,AJ$157<$D$15+initial_contract_length),MAX(OFFSET($D153,0,$D$15-Current_year,1,initial_contract_length)),AJ153),AJ153) -> 0 | AK167: 0 | AL167: 0 | AM167: 0 | AN167: 0 | AO167: 0 | AP167: 0 | AQ167: 0 | AR167: 0 | AS167: 0 | AT167: 0 | AU167: 0 | AV167: 0 | AW167: 0 | AX167: 0 | AY167: 0 | AZ167: 0 | BA167: 0 | BB167: 0 | BC167: 0 | BD167: 0 | BE167: 0 | BF167: 0 | BG167: 0 | BH167: 0 | BI167: 0 | BJ167: 0 | BK167: 0 | BL167: 0 | BM167: 0 | BN167: 0 | BO167: 0 | BP167: 0 | BQ167: 0 | BR167: 0
C169: Expected annual volume of utilisation dispatched (MWh/y) | D169: =Current_year -> 2026 | E169: =D169+1 -> 2027 | F169: =E169+1 -> 2028 | G169: =F169+1 -> 2029 | H169: =G169+1 -> 2030 | I169: =H169+1 -> 2031 | J169: =I169+1 -> 2032 | K169: =J169+1 -> 2033 | L169: =K169+1 -> 2034 | M169: =L169+1 -> 2035 | N169: =M169+1 -> 2036 | O169: =N169+1 -> 2037 | P169: =O169+1 -> 2038 | Q169: =P169+1 -> 2039 | R169: =Q169+1 -> 2040 | S169: =R169+1 -> 2041 | T169: =S169+1 -> 2042 | U169: =T169+1 -> 2043 | V169: =U169+1 -> 2044 | W169: =V169+1 -> 2045 | X169: =W169+1 -> 2046 | Y169: =X169+1 -> 2047 | Z169: =Y169+1 -> 2048 | AA169: =Z169+1 -> 2049 | AB169: =AA169+1 -> 2050 | AC169: =AB169+1 -> 2051 | AD169: =AC169+1 -> 2052 | AE169: =AD169+1 -> 2053 | AF169: =AE169+1 -> 2054 | AG169: =AF169+1 -> 2055 | AH169: =AG169+1 -> 2056 | AI169: =AH169+1 -> 2057 | AJ169: =AI169+1 -> 2058 | AK169: =AJ169+1 -> 2059 | AL169: =AK169+1 -> 2060 | AM169: =AL169+1 -> 2061 | AN169: =AM169+1 -> 2062 | AO169: =AN169+1 -> 2063 | AP169: =AO169+1 -> 2064 | AQ169: =AP169+1 -> 2065 | AR169: =AQ169+1 -> 2066 | AS169: =AR169+1 -> 2067 | AT169: =AS169+1 -> 2068 | AU169: =AT169+1 -> 2069 | AV169: =AU169+1 -> 2070 | AW169: =AV169+1 -> 2071 | AX169: =AW169+1 -> 2072 | AY169: =AX169+1 -> 2073 | AZ169: =AY169+1 -> 2074 | BA169: =AZ169+1 -> 2075 | BB169: =BA169+1 -> 2076 | BC169: =BB169+1 -> 2077 | BD169: =BC169+1 -> 2078 | BE169: =BD169+1 -> 2079 | BF169: =BE169+1 -> 2080 | BG169: =BF169+1 -> 2081 | BH169: =BG169+1 -> 2082 | BI169: =BH169+1 -> 2083 | BJ169: =BI169+1 -> 2084 | BK169: =BJ169+1 -> 2085 | BL169: =BK169+1 -> 2086 | BM169: =BL169+1 -> 2087 | BN169: =BM169+1 -> 2088 | BO169: =BN169+1 -> 2089 | BP169: =BO169+1 -> 2090 | BQ169: =BP169+1 -> 2091 | BR169: =BQ169+1 -> 2092
A170: Config | B170: 1 | C170: =IF(INDIRECT("Config"&B170&"_name")="","",INDIRECT("Config"&B170&"_name")) -> Flexibility under smaller value flex | D170: =IF($C$65="Hours-days-average",D69*D81*D106,D131) -> 0 | E170: 3000 | F170: 3000 | G170: 0 | H170: 0 | I170: 0 | J170: 0 | K170: 0 | L170: 0 | M170: 0 | N170: 0 | O170: 0 | P170: 0 | Q170: 0 | R170: 0 | S170: 0 | T170: 0 | U170: 0 | V170: 0 | W170: 0 | X170: 0 | Y170: 0 | Z170: 0 | AA170: 0 | AB170: 0 | AC170: 0 | AD170: 0 | AE170: 0 | AF170: 0 | AG170: 0 | AH170: 0 | AI170: 0 | AJ170: =IF($C$65="Hours-days-average",AJ69*AJ81*AJ106,AJ131) -> 0 | AK170: 0 | AL170: 0 | AM170: 0 | AN170: 0 | AO170: 0 | AP170: 0 | AQ170: 0 | AR170: 0 | AS170: 0 | AT170: 0 | AU170: 0 | AV170: 0 | AW170: 0 | AX170: 0 | AY170: 0 | AZ170: 0 | BA170: 0 | BB170: 0 | BC170: 0 | BD170: 0 | BE170: 0 | BF170: 0 | BG170: 0 | BH170: 0 | BI170: 0 | BJ170: 0 | BK170: 0 | BL170: 0 | BM170: 0 | BN170: 0 | BO170: 0 | BP170: 0 | BQ170: 0 | BR170: 0
A171: Config | B171: 2 | C171: Flexibility under larger value flex | D171: =IF($C$65="Hours-days-average",D70*D82*D107,D132) -> 0 | E171: 0 | F171: 0 | G171: 0 | H171: 0 | I171: 0 | J171: 0 | K171: 0 | L171: 0 | M171: 0 | N171: 0 | O171: 0 | P171: 0 | Q171: 0 | R171: 0 | S171: 0 | T171: 0 | U171: 0 | V171: 0 | W171: 0 | X171: 0 | Y171: 0 | Z171: 0 | AA171: 0 | AB171: 0 | AC171: 0 | AD171: 0 | AE171: 0 | AF171: 0 | AG171: 0 | AH171: 0 | AI171: 0 | AJ171: =IF($C$65="Hours-days-average",AJ70*AJ82*AJ107,AJ132) -> 0 | AK171: 0 | AL171: 0 | AM171: 0 | AN171: 0 | AO171: 0 | AP171: 0 | AQ171: 0 | AR171: 0 | AS171: 0 | AT171: 0 | AU171: 0 | AV171: 0 | AW171: 0 | AX171: 0 | AY171: 0 | AZ171: 0 | BA171: 0 | BB171: 0 | BC171: 0 | BD171: 0 | BE171: 0 | BF171: 0 | BG171: 0 | BH171: 0 | BI171: 0 | BJ171: 0 | BK171: 0 | BL171: 0 | BM171: 0 | BN171: 0 | BO171: 0 | BP171: 0 | BQ171: 0 | BR171: 0
A172: Config | B172: 3 | D172: =IF($C$65="Hours-days-average",D71*D83*D108,D133) -> 0 | E172: 0 | F172: 0 | G172: 0 | H172: 0 | I172: 0 | J172: 0 | K172: 0 | L172: 0 | M172: 0 | N172: 0 | O172: 0 | P172: 0 | Q172: 0 | R172: 0 | S172: 0 | T172: 0 | U172: 0 | V172: 0 | W172: 0 | X172: 0 | Y172: 0 | Z172: 0 | AA172: 0 | AB172: 0 | AC172: 0 | AD172: 0 | AE172: 0 | AF172: 0 | AG172: 0 | AH172: 0 | AI172: 0 | AJ172: =IF($C$65="Hours-days-average",AJ71*AJ83*AJ108,AJ133) -> 0 | AK172: 0 | AL172: 0 | AM172: 0 | AN172: 0 | AO172: 0 | AP172: 0 | AQ172: 0 | AR172: 0 | AS172: 0 | AT172: 0 | AU172: 0 | AV172: 0 | AW172: 0 | AX172: 0 | AY172: 0 | AZ172: 0 | BA172: 0 | BB172: 0 | BC172: 0 | BD172: 0 | BE172: 0 | BF172: 0 | BG172: 0 | BH172: 0 | BI172: 0 | BJ172: 0 | BK172: 0 | BL172: 0 | BM172: 0 | BN172: 0 | BO172: 0 | BP172: 0 | BQ172: 0 | BR172: 0
A173: Config | B173: 4 | D173: =IF($C$65="Hours-days-average",D72*D84*D109,D134) -> 0 | E173: 0 | F173: 0 | G173: 0 | H173: 0 | I173: 0 | J173: 0 | K173: 0 | L173: 0 | M173: 0 | N173: 0 | O173: 0 | P173: 0 | Q173: 0 | R173: 0 | S173: 0 | T173: 0 | U173: 0 | V173: 0 | W173: 0 | X173: 0 | Y173: 0 | Z173: 0 | AA173: 0 | AB173: 0 | AC173: 0 | AD173: 0 | AE173: 0 | AF173: 0 | AG173: 0 | AH173: 0 | AI173: 0 | AJ173: =IF($C$65="Hours-days-average",AJ72*AJ84*AJ109,AJ134) -> 0 | AK173: 0 | AL173: 0 | AM173: 0 | AN173: 0 | AO173: 0 | AP173: 0 | AQ173: 0 | AR173: 0 | AS173: 0 | AT173: 0 | AU173: 0 | AV173: 0 | AW173: 0 | AX173: 0 | AY173: 0 | AZ173: 0 | BA173: 0 | BB173: 0 | BC173: 0 | BD173: 0 | BE173: 0 | BF173: 0 | BG173: 0 | BH173: 0 | BI173: 0 | BJ173: 0 | BK173: 0 | BL173: 0 | BM173: 0 | BN173: 0 | BO173: 0 | BP173: 0 | BQ173: 0 | BR173: 0
A174: Config | B174: 5 | D174: =IF($C$65="Hours-days-average",D73*D85*D110,D135) -> 0 | E174: 0 | F174: 0 | G174: 0 | H174: 0 | I174: 0 | J174: 0 | K174: 0 | L174: 0 | M174: 0 | N174: 0 | O174: 0 | P174: 0 | Q174: 0 | R174: 0 | S174: 0 | T174: 0 | U174: 0 | V174: 0 | W174: 0 | X174: 0 | Y174: 0 | Z174: 0 | AA174: 0 | AB174: 0 | AC174: 0 | AD174: 0 | AE174: 0 | AF174: 0 | AG174: 0 | AH174: 0 | AI174: 0 | AJ174: =IF($C$65="Hours-days-average",AJ73*AJ85*AJ110,AJ135) -> 0 | AK174: 0 | AL174: 0 | AM174: 0 | AN174: 0 | AO174: 0 | AP174: 0 | AQ174: 0 | AR174: 0 | AS174: 0 | AT174: 0 | AU174: 0 | AV174: 0 | AW174: 0 | AX174: 0 | AY174: 0 | AZ174: 0 | BA174: 0 | BB174: 0 | BC174: 0 | BD174: 0 | BE174: 0 | BF174: 0 | BG174: 0 | BH174: 0 | BI174: 0 | BJ174: 0 | BK174: 0 | BL174: 0 | BM174: 0 | BN174: 0 | BO174: 0 | BP174: 0 | BQ174: 0 | BR174: 0
A175: Config | B175: 6 | D175: =IF($C$65="Hours-days-average",D74*D86*D111,D136) -> 0 | E175: 0 | F175: 0 | G175: 0 | H175: 0 | I175: 0 | J175: 0 | K175: 0 | L175: 0 | M175: 0 | N175: 0 | O175: 0 | P175: 0 | Q175: 0 | R175: 0 | S175: 0 | T175: 0 | U175: 0 | V175: 0 | W175: 0 | X175: 0 | Y175: 0 | Z175: 0 | AA175: 0 | AB175: 0 | AC175: 0 | AD175: 0 | AE175: 0 | AF175: 0 | AG175: 0 | AH175: 0 | AI175: 0 | AJ175: =IF($C$65="Hours-days-average",AJ74*AJ86*AJ111,AJ136) -> 0 | AK175: 0 | AL175: 0 | AM175: 0 | AN175: 0 | AO175: 0 | AP175: 0 | AQ175: 0 | AR175: 0 | AS175: 0 | AT175: 0 | AU175: 0 | AV175: 0 | AW175: 0 | AX175: 0 | AY175: 0 | AZ175: 0 | BA175: 0 | BB175: 0 | BC175: 0 | BD175: 0 | BE175: 0 | BF175: 0 | BG175: 0 | BH175: 0 | BI175: 0 | BJ175: 0 | BK175: 0 | BL175: 0 | BM175: 0 | BN175: 0 | BO175: 0 | BP175: 0 | BQ175: 0 | BR175: 0
A176: Config | B176: 7 | D176: =IF($C$65="Hours-days-average",D75*D87*D112,D137) -> 0 | E176: 0 | F176: 0 | G176: 0 | H176: 0 | I176: 0 | J176: 0 | K176: 0 | L176: 0 | M176: 0 | N176: 0 | O176: 0 | P176: 0 | Q176: 0 | R176: 0 | S176: 0 | T176: 0 | U176: 0 | V176: 0 | W176: 0 | X176: 0 | Y176: 0 | Z176: 0 | AA176: 0 | AB176: 0 | AC176: 0 | AD176: 0 | AE176: 0 | AF176: 0 | AG176: 0 | AH176: 0 | AI176: 0 | AJ176: =IF($C$65="Hours-days-average",AJ75*AJ87*AJ112,AJ137) -> 0 | AK176: 0 | AL176: 0 | AM176: 0 | AN176: 0 | AO176: 0 | AP176: 0 | AQ176: 0 | AR176: 0 | AS176: 0 | AT176: 0 | AU176: 0 | AV176: 0 | AW176: 0 | AX176: 0 | AY176: 0 | AZ176: 0 | BA176: 0 | BB176: 0 | BC176: 0 | BD176: 0 | BE176: 0 | BF176: 0 | BG176: 0 | BH176: 0 | BI176: 0 | BJ176: 0 | BK176: 0 | BL176: 0 | BM176: 0 | BN176: 0 | BO176: 0 | BP176: 0 | BQ176: 0 | BR176: 0
A177: Config | B177: 8 | D177: =IF($C$65="Hours-days-average",D76*D88*D113,D138) -> 0 | E177: 0 | F177: 0 | G177: 0 | H177: 0 | I177: 0 | J177: 0 | K177: 0 | L177: 0 | M177: 0 | N177: 0 | O177: 0 | P177: 0 | Q177: 0 | R177: 0 | S177: 0 | T177: 0 | U177: 0 | V177: 0 | W177: 0 | X177: 0 | Y177: 0 | Z177: 0 | AA177: 0 | AB177: 0 | AC177: 0 | AD177: 0 | AE177: 0 | AF177: 0 | AG177: 0 | AH177: 0 | AI177: 0 | AJ177: =IF($C$65="Hours-days-average",AJ76*AJ88*AJ113,AJ138) -> 0 | AK177: 0 | AL177: 0 | AM177: 0 | AN177: 0 | AO177: 0 | AP177: 0 | AQ177: 0 | AR177: 0 | AS177: 0 | AT177: 0 | AU177: 0 | AV177: 0 | AW177: 0 | AX177: 0 | AY177: 0 | AZ177: 0 | BA177: 0 | BB177: 0 | BC177: 0 | BD177: 0 | BE177: 0 | BF177: 0 | BG177: 0 | BH177: 0 | BI177: 0 | BJ177: 0 | BK177: 0 | BL177: 0 | BM177: 0 | BN177: 0 | BO177: 0 | BP177: 0 | BQ177: 0 | BR177: 0
A178: Config | B178: 9 | D178: =IF($C$65="Hours-days-average",D77*D89*D114,D139) -> 0 | E178: 0 | F178: 0 | G178: 0 | H178: 0 | I178: 0 | J178: 0 | K178: 0 | L178: 0 | M178: 0 | N178: 0 | O178: 0 | P178: 0 | Q178: 0 | R178: 0 | S178: 0 | T178: 0 | U178: 0 | V178: 0 | W178: 0 | X178: 0 | Y178: 0 | Z178: 0 | AA178: 0 | AB178: 0 | AC178: 0 | AD178: 0 | AE178: 0 | AF178: 0 | AG178: 0 | AH178: 0 | AI178: 0 | AJ178: =IF($C$65="Hours-days-average",AJ77*AJ89*AJ114,AJ139) -> 0 | AK178: 0 | AL178: 0 | AM178: 0 | AN178: 0 | AO178: 0 | AP178: 0 | AQ178: 0 | AR178: 0 | AS178: 0 | AT178: 0 | AU178: 0 | AV178: 0 | AW178: 0 | AX178: 0 | AY178: 0 | AZ178: 0 | BA178: 0 | BB178: 0 | BC178: 0 | BD178: 0 | BE178: 0 | BF178: 0 | BG178: 0 | BH178: 0 | BI178: 0 | BJ178: 0 | BK178: 0 | BL178: 0 | BM178: 0 | BN178: 0 | BO178: 0 | BP178: 0 | BQ178: 0 | BR178: 0
A179: Config | B179: 10 | D179: =IF($C$65="Hours-days-average",D78*D90*D115,D140) -> 0 | E179: 0 | F179: 0 | G179: 0 | H179: 0 | I179: 0 | J179: 0 | K179: 0 | L179: 0 | M179: 0 | N179: 0 | O179: 0 | P179: 0 | Q179: 0 | R179: 0 | S179: 0 | T179: 0 | U179: 0 | V179: 0 | W179: 0 | X179: 0 | Y179: 0 | Z179: 0 | AA179: 0 | AB179: 0 | AC179: 0 | AD179: 0 | AE179: 0 | AF179: 0 | AG179: 0 | AH179: 0 | AI179: 0 | AJ179: =IF($C$65="Hours-days-average",AJ78*AJ90*AJ115,AJ140) -> 0 | AK179: 0 | AL179: 0 | AM179: 0 | AN179: 0 | AO179: 0 | AP179: 0 | AQ179: 0 | AR179: 0 | AS179: 0 | AT179: 0 | AU179: 0 | AV179: 0 | AW179: 0 | AX179: 0 | AY179: 0 | AZ179: 0 | BA179: 0 | BB179: 0 | BC179: 0 | BD179: 0 | BE179: 0 | BF179: 0 | BG179: 0 | BH179: 0 | BI179: 0 | BJ179: 0 | BK179: 0 | BL179: 0 | BM179: 0 | BN179: 0 | BO179: 0 | BP179: 0 | BQ179: 0 | BR179: 0
B183: Flexibility availability requirement exceeds availability check
A185: =A170 -> Config | B185: =B158 -> 1 | C185: =C158 -> Flexibility under smaller value flex | D185: =IF(D158>'Additional inputs and control'!$D$6,1,0) -> 0 | E185: =IF(AND(E158>'Additional inputs and control'!$D$6,SUM($D185:D185)=0),1,0) -> 0 | F185: =IF(AND(F158>'Additional inputs and control'!$D$6,SUM($D185:E185)=0),1,0) -> 0 | G185: =IF(AND(G158>'Additional inputs and control'!$D$6,SUM($D185:F185)=0),1,0) -> 0 | H185: =IF(AND(H158>'Additional inputs and control'!$D$6,SUM($D185:G185)=0),1,0) -> 0 | I185: =IF(AND(I158>'Additional inputs and control'!$D$6,SUM($D185:H185)=0),1,0) -> 0 | J185: =IF(AND(J158>'Additional inputs and control'!$D$6,SUM($D185:I185)=0),1,0) -> 0 | K185: =IF(AND(K158>'Additional inputs and control'!$D$6,SUM($D185:J185)=0),1,0) -> 0 | L185: =IF(AND(L158>'Additional inputs and control'!$D$6,SUM($D185:K185)=0),1,0) -> 0 | M185: =IF(AND(M158>'Additional inputs and control'!$D$6,SUM($D185:L185)=0),1,0) -> 0 | N185: =IF(AND(N158>'Additional inputs and control'!$D$6,SUM($D185:M185)=0),1,0) -> 0 | O185: =IF(AND(O158>'Additional inputs and control'!$D$6,SUM($D185:N185)=0),1,0) -> 0 | P185: =IF(AND(P158>'Additional inputs and control'!$D$6,SUM($D185:O185)=0),1,0) -> 0 | Q185: =IF(AND(Q158>'Additional inputs and control'!$D$6,SUM($D185:P185)=0),1,0) -> 0 | R185: =IF(AND(R158>'Additional inputs and control'!$D$6,SUM($D185:Q185)=0),1,0) -> 0 | S185: =IF(AND(S158>'Additional inputs and control'!$D$6,SUM($D185:R185)=0),1,0) -> 0 | T185: =IF(AND(T158>'Additional inputs and control'!$D$6,SUM($D185:S185)=0),1,0) -> 0 | U185: =IF(AND(U158>'Additional inputs and control'!$D$6,SUM($D185:T185)=0),1,0) -> 0 | V185: =IF(AND(V158>'Additional inputs and control'!$D$6,SUM($D185:U185)=0),1,0) -> 0 | W185: =IF(AND(W158>'Additional inputs and control'!$D$6,SUM($D185:V185)=0),1,0) -> 0 | X185: =IF(AND(X158>'Additional inputs and control'!$D$6,SUM($D185:W185)=0),1,0) -> 0 | Y185: =IF(AND(Y158>'Additional inputs and control'!$D$6,SUM($D185:X185)=0),1,0) -> 0 | Z185: =IF(AND(Z158>'Additional inputs and control'!$D$6,SUM($D185:Y185)=0),1,0) -> 0 | AA185: =IF(AND(AA158>'Additional inputs and control'!$D$6,SUM($D185:Z185)=0),1,0) -> 0 | AB185: =IF(AND(AB158>'Additional inputs and control'!$D$6,SUM($D185:AA185)=0),1,0) -> 0 | AC185: =IF(AND(AC158>'Additional inputs and control'!$D$6,SUM($D185:AB185)=0),1,0) -> 0 | AD185: =IF(AND(AD158>'Additional inputs and control'!$D$6,SUM($D185:AC185)=0),1,0) -> 0 | AE185: =IF(AND(AE158>'Additional inputs and control'!$D$6,SUM($D185:AD185)=0),1,0) -> 0 | AF185: =IF(AND(AF158>'Additional inputs and control'!$D$6,SUM($D185:AE185)=0),1,0) -> 0 | AG185: =IF(AND(AG158>'Additional inputs and control'!$D$6,SUM($D185:AF185)=0),1,0) -> 0 | AH185: =IF(AND(AH158>'Additional inputs and control'!$D$6,SUM($D185:AG185)=0),1,0) -> 0 | AI185: =IF(AND(AI158>'Additional inputs and control'!$D$6,SUM($D185:AH185)=0),1,0) -> 0 | AJ185: =IF(AND(AJ158>'Additional inputs and control'!$D$6,SUM($D185:AI185)=0),1,0) -> 0 | AK185: =IF(AND(AK158>'Additional inputs and control'!$D$6,SUM($D185:AJ185)=0),1,0) -> 0 | AL185: =IF(AND(AL158>'Additional inputs and control'!$D$6,SUM($D185:AK185)=0),1,0) -> 0 | AM185: =IF(AND(AM158>'Additional inputs and control'!$D$6,SUM($D185:AL185)=0),1,0) -> 0 | AN185: =IF(AND(AN158>'Additional inputs and control'!$D$6,SUM($D185:AM185)=0),1,0) -> 0 | AO185: =IF(AND(AO158>'Additional inputs and control'!$D$6,SUM($D185:AN185)=0),1,0) -> 0 | AP185: =IF(AND(AP158>'Additional inputs and control'!$D$6,SUM($D185:AO185)=0),1,0) -> 0 | AQ185: =IF(AND(AQ158>'Additional inputs and control'!$D$6,SUM($D185:AP185)=0),1,0) -> 0 | AR185: =IF(AND(AR158>'Additional inputs and control'!$D$6,SUM($D185:AQ185)=0),1,0) -> 0 | AS185: =IF(AND(AS158>'Additional inputs and control'!$D$6,SUM($D185:AR185)=0),1,0) -> 0 | AT185: =IF(AND(AT158>'Additional inputs and control'!$D$6,SUM($D185:AS185)=0),1,0) -> 0 | AU185: =IF(AND(AU158>'Additional inputs and control'!$D$6,SUM($D185:AT185)=0),1,0) -> 0 | AV185: =IF(AND(AV158>'Additional inputs and control'!$D$6,SUM($D185:AU185)=0),1,0) -> 0 | AW185: =IF(AND(AW158>'Additional inputs and control'!$D$6,SUM($D185:AV185)=0),1,0) -> 0 | AX185: =IF(AND(AX158>'Additional inputs and control'!$D$6,SUM($D185:AW185)=0),1,0) -> 0 | AY185: =IF(AND(AY158>'Additional inputs and control'!$D$6,SUM($D185:AX185)=0),1,0) -> 0 | AZ185: =IF(AND(AZ158>'Additional inputs and control'!$D$6,SUM($D185:AY185)=0),1,0) -> 0 | BA185: =IF(AND(BA158>'Additional inputs and control'!$D$6,SUM($D185:AZ185)=0),1,0) -> 0 | BB185: =IF(AND(BB158>'Additional inputs and control'!$D$6,SUM($D185:BA185)=0),1,0) -> 0 | BC185: =IF(AND(BC158>'Additional inputs and control'!$D$6,SUM($D185:BB185)=0),1,0) -> 0 | BD185: =IF(AND(BD158>'Additional inputs and control'!$D$6,SUM($D185:BC185)=0),1,0) -> 0 | BE185: =IF(AND(BE158>'Additional inputs and control'!$D$6,SUM($D185:BD185)=0),1,0) -> 0 | BF185: =IF(AND(BF158>'Additional inputs and control'!$D$6,SUM($D185:BE185)=0),1,0) -> 0 | BG185: =IF(AND(BG158>'Additional inputs and control'!$D$6,SUM($D185:BF185)=0),1,0) -> 0 | BH185: =IF(AND(BH158>'Additional inputs and control'!$D$6,SUM($D185:BG185)=0),1,0) -> 0 | BI185: =IF(AND(BI158>'Additional inputs and control'!$D$6,SUM($D185:BH185)=0),1,0) -> 0 | BJ185: =IF(AND(BJ158>'Additional inputs and control'!$D$6,SUM($D185:BI185)=0),1,0) -> 0 | BK185: =IF(AND(BK158>'Additional inputs and control'!$D$6,SUM($D185:BJ185)=0),1,0) -> 0 | BL185: =IF(AND(BL158>'Additional inputs and control'!$D$6,SUM($D185:BK185)=0),1,0) -> 0 | BM185: =IF(AND(BM158>'Additional inputs and control'!$D$6,SUM($D185:BL185)=0),1,0) -> 0 | BN185: =IF(AND(BN158>'Additional inputs and control'!$D$6,SUM($D185:BM185)=0),1,0) -> 0 | BO185: =IF(AND(BO158>'Additional inputs and control'!$D$6,SUM($D185:BN185)=0),1,0) -> 0 | BP185: =IF(AND(BP158>'Additional inputs and control'!$D$6,SUM($D185:BO185)=0),1,0) -> 0 | BQ185: =IF(AND(BQ158>'Additional inputs and control'!$D$6,SUM($D185:BP185)=0),1,0) -> 0 | BR185: =IF(AND(BR158>'Additional inputs and control'!$D$6,SUM($D185:BQ185)=0),1,0) -> 0
A186: =A171 -> Config | B186: =B159 -> 2 | C186: =C159 -> Flexibility under larger value flex | D186: =IF(D159>'Additional inputs and control'!$D$6,1,0) -> 0 | E186: =IF(AND(E159>'Additional inputs and control'!$D$6,SUM($D186:D186)=0),1,0) -> 0 | F186: =IF(AND(F159>'Additional inputs and control'!$D$6,SUM($D186:E186)=0),1,0) -> 0 | G186: =IF(AND(G159>'Additional inputs and control'!$D$6,SUM($D186:F186)=0),1,0) -> 0 | H186: =IF(AND(H159>'Additional inputs and control'!$D$6,SUM($D186:G186)=0),1,0) -> 0 | I186: =IF(AND(I159>'Additional inputs and control'!$D$6,SUM($D186:H186)=0),1,0) -> 0 | J186: =IF(AND(J159>'Additional inputs and control'!$D$6,SUM($D186:I186)=0),1,0) -> 0 | K186: =IF(AND(K159>'Additional inputs and control'!$D$6,SUM($D186:J186)=0),1,0) -> 0 | L186: =IF(AND(L159>'Additional inputs and control'!$D$6,SUM($D186:K186)=0),1,0) -> 0 | M186: =IF(AND(M159>'Additional inputs and control'!$D$6,SUM($D186:L186)=0),1,0) -> 0 | N186: =IF(AND(N159>'Additional inputs and control'!$D$6,SUM($D186:M186)=0),1,0) -> 0 | O186: =IF(AND(O159>'Additional inputs and control'!$D$6,SUM($D186:N186)=0),1,0) -> 0 | P186: =IF(AND(P159>'Additional inputs and control'!$D$6,SUM($D186:O186)=0),1,0) -> 0 | Q186: =IF(AND(Q159>'Additional inputs and control'!$D$6,SUM($D186:P186)=0),1,0) -> 0 | R186: =IF(AND(R159>'Additional inputs and control'!$D$6,SUM($D186:Q186)=0),1,0) -> 0 | S186: =IF(AND(S159>'Additional inputs and control'!$D$6,SUM($D186:R186)=0),1,0) -> 0 | T186: =IF(AND(T159>'Additional inputs and control'!$D$6,SUM($D186:S186)=0),1,0) -> 0 | U186: =IF(AND(U159>'Additional inputs and control'!$D$6,SUM($D186:T186)=0),1,0) -> 0 | V186: =IF(AND(V159>'Additional inputs and control'!$D$6,SUM($D186:U186)=0),1,0) -> 0 | W186: =IF(AND(W159>'Additional inputs and control'!$D$6,SUM($D186:V186)=0),1,0) -> 0 | X186: =IF(AND(X159>'Additional inputs and control'!$D$6,SUM($D186:W186)=0),1,0) -> 0 | Y186: =IF(AND(Y159>'Additional inputs and control'!$D$6,SUM($D186:X186)=0),1,0) -> 0 | Z186: =IF(AND(Z159>'Additional inputs and control'!$D$6,SUM($D186:Y186)=0),1,0) -> 0 | AA186: =IF(AND(AA159>'Additional inputs and control'!$D$6,SUM($D186:Z186)=0),1,0) -> 0 | AB186: =IF(AND(AB159>'Additional inputs and control'!$D$6,SUM($D186:AA186)=0),1,0) -> 0 | AC186: =IF(AND(AC159>'Additional inputs and control'!$D$6,SUM($D186:AB186)=0),1,0) -> 0 | AD186: =IF(AND(AD159>'Additional inputs and control'!$D$6,SUM($D186:AC186)=0),1,0) -> 0 | AE186: =IF(AND(AE159>'Additional inputs and control'!$D$6,SUM($D186:AD186)=0),1,0) -> 0 | AF186: =IF(AND(AF159>'Additional inputs and control'!$D$6,SUM($D186:AE186)=0),1,0) -> 0 | AG186: =IF(AND(AG159>'Additional inputs and control'!$D$6,SUM($D186:AF186)=0),1,0) -> 0 | AH186: =IF(AND(AH159>'Additional inputs and control'!$D$6,SUM($D186:AG186)=0),1,0) -> 0 | AI186: =IF(AND(AI159>'Additional inputs and control'!$D$6,SUM($D186:AH186)=0),1,0) -> 0 | AJ186: =IF(AND(AJ159>'Additional inputs and control'!$D$6,SUM($D186:AI186)=0),1,0) -> 0 | AK186: =IF(AND(AK159>'Additional inputs and control'!$D$6,SUM($D186:AJ186)=0),1,0) -> 0 | AL186: =IF(AND(AL159>'Additional inputs and control'!$D$6,SUM($D186:AK186)=0),1,0) -> 0 | AM186: =IF(AND(AM159>'Additional inputs and control'!$D$6,SUM($D186:AL186)=0),1,0) -> 0 | AN186: =IF(AND(AN159>'Additional inputs and control'!$D$6,SUM($D186:AM186)=0),1,0) -> 0 | AO186: =IF(AND(AO159>'Additional inputs and control'!$D$6,SUM($D186:AN186)=0),1,0) -> 0 | AP186: =IF(AND(AP159>'Additional inputs and control'!$D$6,SUM($D186:AO186)=0),1,0) -> 0 | AQ186: =IF(AND(AQ159>'Additional inputs and control'!$D$6,SUM($D186:AP186)=0),1,0) -> 0 | AR186: =IF(AND(AR159>'Additional inputs and control'!$D$6,SUM($D186:AQ186)=0),1,0) -> 0 | AS186: =IF(AND(AS159>'Additional inputs and control'!$D$6,SUM($D186:AR186)=0),1,0) -> 0 | AT186: =IF(AND(AT159>'Additional inputs and control'!$D$6,SUM($D186:AS186)=0),1,0) -> 0 | AU186: =IF(AND(AU159>'Additional inputs and control'!$D$6,SUM($D186:AT186)=0),1,0) -> 0 | AV186: =IF(AND(AV159>'Additional inputs and control'!$D$6,SUM($D186:AU186)=0),1,0) -> 0 | AW186: =IF(AND(AW159>'Additional inputs and control'!$D$6,SUM($D186:AV186)=0),1,0) -> 0 | AX186: =IF(AND(AX159>'Additional inputs and control'!$D$6,SUM($D186:AW186)=0),1,0) -> 0 | AY186: =IF(AND(AY159>'Additional inputs and control'!$D$6,SUM($D186:AX186)=0),1,0) -> 0 | AZ186: =IF(AND(AZ159>'Additional inputs and control'!$D$6,SUM($D186:AY186)=0),1,0) -> 0 | BA186: =IF(AND(BA159>'Additional inputs and control'!$D$6,SUM($D186:AZ186)=0),1,0) -> 0 | BB186: =IF(AND(BB159>'Additional inputs and control'!$D$6,SUM($D186:BA186)=0),1,0) -> 0 | BC186: =IF(AND(BC159>'Additional inputs and control'!$D$6,SUM($D186:BB186)=0),1,0) -> 0 | BD186: =IF(AND(BD159>'Additional inputs and control'!$D$6,SUM($D186:BC186)=0),1,0) -> 0 | BE186: =IF(AND(BE159>'Additional inputs and control'!$D$6,SUM($D186:BD186)=0),1,0) -> 0 | BF186: =IF(AND(BF159>'Additional inputs and control'!$D$6,SUM($D186:BE186)=0),1,0) -> 0 | BG186: =IF(AND(BG159>'Additional inputs and control'!$D$6,SUM($D186:BF186)=0),1,0) -> 0 | BH186: =IF(AND(BH159>'Additional inputs and control'!$D$6,SUM($D186:BG186)=0),1,0) -> 0 | BI186: =IF(AND(BI159>'Additional inputs and control'!$D$6,SUM($D186:BH186)=0),1,0) -> 0 | BJ186: =IF(AND(BJ159>'Additional inputs and control'!$D$6,SUM($D186:BI186)=0),1,0) -> 0 | BK186: =IF(AND(BK159>'Additional inputs and control'!$D$6,SUM($D186:BJ186)=0),1,0) -> 0 | BL186: =IF(AND(BL159>'Additional inputs and control'!$D$6,SUM($D186:BK186)=0),1,0) -> 0 | BM186: =IF(AND(BM159>'Additional inputs and control'!$D$6,SUM($D186:BL186)=0),1,0) -> 0 | BN186: =IF(AND(BN159>'Additional inputs and control'!$D$6,SUM($D186:BM186)=0),1,0) -> 0 | BO186: =IF(AND(BO159>'Additional inputs and control'!$D$6,SUM($D186:BN186)=0),1,0) -> 0 | BP186: =IF(AND(BP159>'Additional inputs and control'!$D$6,SUM($D186:BO186)=0),1,0) -> 0 | BQ186: =IF(AND(BQ159>'Additional inputs and control'!$D$6,SUM($D186:BP186)=0),1,0) -> 0 | BR186: =IF(AND(BR159>'Additional inputs and control'!$D$6,SUM($D186:BQ186)=0),1,0) -> 0
A187: Config | B187: 3 | D187: =IF(D160>'Additional inputs and control'!$D$6,1,0) -> 0 | E187: =IF(AND(E160>'Additional inputs and control'!$D$6,SUM($D187:D187)=0),1,0) -> 0 | F187: =IF(AND(F160>'Additional inputs and control'!$D$6,SUM($D187:E187)=0),1,0) -> 0 | G187: =IF(AND(G160>'Additional inputs and control'!$D$6,SUM($D187:F187)=0),1,0) -> 0 | H187: =IF(AND(H160>'Additional inputs and control'!$D$6,SUM($D187:G187)=0),1,0) -> 0 | I187: =IF(AND(I160>'Additional inputs and control'!$D$6,SUM($D187:H187)=0),1,0) -> 0 | J187: =IF(AND(J160>'Additional inputs and control'!$D$6,SUM($D187:I187)=0),1,0) -> 0 | K187: =IF(AND(K160>'Additional inputs and control'!$D$6,SUM($D187:J187)=0),1,0) -> 0 | L187: =IF(AND(L160>'Additional inputs and control'!$D$6,SUM($D187:K187)=0),1,0) -> 0 | M187: =IF(AND(M160>'Additional inputs and control'!$D$6,SUM($D187:L187)=0),1,0) -> 0 | N187: =IF(AND(N160>'Additional inputs and control'!$D$6,SUM($D187:M187)=0),1,0) -> 0 | O187: =IF(AND(O160>'Additional inputs and control'!$D$6,SUM($D187:N187)=0),1,0) -> 0 | P187: =IF(AND(P160>'Additional inputs and control'!$D$6,SUM($D187:O187)=0),1,0) -> 0 | Q187: =IF(AND(Q160>'Additional inputs and control'!$D$6,SUM($D187:P187)=0),1,0) -> 0 | R187: =IF(AND(R160>'Additional inputs and control'!$D$6,SUM($D187:Q187)=0),1,0) -> 0 | S187: =IF(AND(S160>'Additional inputs and control'!$D$6,SUM($D187:R187)=0),1,0) -> 0 | T187: =IF(AND(T160>'Additional inputs and control'!$D$6,SUM($D187:S187)=0),1,0) -> 0 | U187: =IF(AND(U160>'Additional inputs and control'!$D$6,SUM($D187:T187)=0),1,0) -> 0 | V187: =IF(AND(V160>'Additional inputs and control'!$D$6,SUM($D187:U187)=0),1,0) -> 0 | W187: =IF(AND(W160>'Additional inputs and control'!$D$6,SUM($D187:V187)=0),1,0) -> 0 | X187: =IF(AND(X160>'Additional inputs and control'!$D$6,SUM($D187:W187)=0),1,0) -> 0 | Y187: =IF(AND(Y160>'Additional inputs and control'!$D$6,SUM($D187:X187)=0),1,0) -> 0 | Z187: =IF(AND(Z160>'Additional inputs and control'!$D$6,SUM($D187:Y187)=0),1,0) -> 0 | AA187: =IF(AND(AA160>'Additional inputs and control'!$D$6,SUM($D187:Z187)=0),1,0) -> 0 | AB187: =IF(AND(AB160>'Additional inputs and control'!$D$6,SUM($D187:AA187)=0),1,0) -> 0 | AC187: =IF(AND(AC160>'Additional inputs and control'!$D$6,SUM($D187:AB187)=0),1,0) -> 0 | AD187: =IF(AND(AD160>'Additional inputs and control'!$D$6,SUM($D187:AC187)=0),1,0) -> 0 | AE187: =IF(AND(AE160>'Additional inputs and control'!$D$6,SUM($D187:AD187)=0),1,0) -> 0 | AF187: =IF(AND(AF160>'Additional inputs and control'!$D$6,SUM($D187:AE187)=0),1,0) -> 0 | AG187: =IF(AND(AG160>'Additional inputs and control'!$D$6,SUM($D187:AF187)=0),1,0) -> 0 | AH187: =IF(AND(AH160>'Additional inputs and control'!$D$6,SUM($D187:AG187)=0),1,0) -> 0 | AI187: =IF(AND(AI160>'Additional inputs and control'!$D$6,SUM($D187:AH187)=0),1,0) -> 0 | AJ187: =IF(AND(AJ160>'Additional inputs and control'!$D$6,SUM($D187:AI187)=0),1,0) -> 0 | AK187: =IF(AND(AK160>'Additional inputs and control'!$D$6,SUM($D187:AJ187)=0),1,0) -> 0 | AL187: =IF(AND(AL160>'Additional inputs and control'!$D$6,SUM($D187:AK187)=0),1,0) -> 0 | AM187: =IF(AND(AM160>'Additional inputs and control'!$D$6,SUM($D187:AL187)=0),1,0) -> 0 | AN187: =IF(AND(AN160>'Additional inputs and control'!$D$6,SUM($D187:AM187)=0),1,0) -> 0 | AO187: =IF(AND(AO160>'Additional inputs and control'!$D$6,SUM($D187:AN187)=0),1,0) -> 0 | AP187: =IF(AND(AP160>'Additional inputs and control'!$D$6,SUM($D187:AO187)=0),1,0) -> 0 | AQ187: =IF(AND(AQ160>'Additional inputs and control'!$D$6,SUM($D187:AP187)=0),1,0) -> 0 | AR187: =IF(AND(AR160>'Additional inputs and control'!$D$6,SUM($D187:AQ187)=0),1,0) -> 0 | AS187: =IF(AND(AS160>'Additional inputs and control'!$D$6,SUM($D187:AR187)=0),1,0) -> 0 | AT187: =IF(AND(AT160>'Additional inputs and control'!$D$6,SUM($D187:AS187)=0),1,0) -> 0 | AU187: =IF(AND(AU160>'Additional inputs and control'!$D$6,SUM($D187:AT187)=0),1,0) -> 0 | AV187: =IF(AND(AV160>'Additional inputs and control'!$D$6,SUM($D187:AU187)=0),1,0) -> 0 | AW187: =IF(AND(AW160>'Additional inputs and control'!$D$6,SUM($D187:AV187)=0),1,0) -> 0 | AX187: =IF(AND(AX160>'Additional inputs and control'!$D$6,SUM($D187:AW187)=0),1,0) -> 0 | AY187: =IF(AND(AY160>'Additional inputs and control'!$D$6,SUM($D187:AX187)=0),1,0) -> 0 | AZ187: =IF(AND(AZ160>'Additional inputs and control'!$D$6,SUM($D187:AY187)=0),1,0) -> 0 | BA187: =IF(AND(BA160>'Additional inputs and control'!$D$6,SUM($D187:AZ187)=0),1,0) -> 0 | BB187: =IF(AND(BB160>'Additional inputs and control'!$D$6,SUM($D187:BA187)=0),1,0) -> 0 | BC187: =IF(AND(BC160>'Additional inputs and control'!$D$6,SUM($D187:BB187)=0),1,0) -> 0 | BD187: =IF(AND(BD160>'Additional inputs and control'!$D$6,SUM($D187:BC187)=0),1,0) -> 0 | BE187: =IF(AND(BE160>'Additional inputs and control'!$D$6,SUM($D187:BD187)=0),1,0) -> 0 | BF187: =IF(AND(BF160>'Additional inputs and control'!$D$6,SUM($D187:BE187)=0),1,0) -> 0 | BG187: =IF(AND(BG160>'Additional inputs and control'!$D$6,SUM($D187:BF187)=0),1,0) -> 0 | BH187: =IF(AND(BH160>'Additional inputs and control'!$D$6,SUM($D187:BG187)=0),1,0) -> 0 | BI187: =IF(AND(BI160>'Additional inputs and control'!$D$6,SUM($D187:BH187)=0),1,0) -> 0 | BJ187: =IF(AND(BJ160>'Additional inputs and control'!$D$6,SUM($D187:BI187)=0),1,0) -> 0 | BK187: =IF(AND(BK160>'Additional inputs and control'!$D$6,SUM($D187:BJ187)=0),1,0) -> 0 | BL187: =IF(AND(BL160>'Additional inputs and control'!$D$6,SUM($D187:BK187)=0),1,0) -> 0 | BM187: =IF(AND(BM160>'Additional inputs and control'!$D$6,SUM($D187:BL187)=0),1,0) -> 0 | BN187: =IF(AND(BN160>'Additional inputs and control'!$D$6,SUM($D187:BM187)=0),1,0) -> 0 | BO187: =IF(AND(BO160>'Additional inputs and control'!$D$6,SUM($D187:BN187)=0),1,0) -> 0 | BP187: =IF(AND(BP160>'Additional inputs and control'!$D$6,SUM($D187:BO187)=0),1,0) -> 0 | BQ187: =IF(AND(BQ160>'Additional inputs and control'!$D$6,SUM($D187:BP187)=0),1,0) -> 0 | BR187: =IF(AND(BR160>'Additional inputs and control'!$D$6,SUM($D187:BQ187)=0),1,0) -> 0
A188: Config | B188: 4 | D188: =IF(D161>'Additional inputs and control'!$D$6,1,0) -> 0 | E188: =IF(AND(E161>'Additional inputs and control'!$D$6,SUM($D188:D188)=0),1,0) -> 0 | F188: =IF(AND(F161>'Additional inputs and control'!$D$6,SUM($D188:E188)=0),1,0) -> 0 | G188: =IF(AND(G161>'Additional inputs and control'!$D$6,SUM($D188:F188)=0),1,0) -> 0 | H188: =IF(AND(H161>'Additional inputs and control'!$D$6,SUM($D188:G188)=0),1,0) -> 0 | I188: =IF(AND(I161>'Additional inputs and control'!$D$6,SUM($D188:H188)=0),1,0) -> 0 | J188: =IF(AND(J161>'Additional inputs and control'!$D$6,SUM($D188:I188)=0),1,0) -> 0 | K188: =IF(AND(K161>'Additional inputs and control'!$D$6,SUM($D188:J188)=0),1,0) -> 0 | L188: =IF(AND(L161>'Additional inputs and control'!$D$6,SUM($D188:K188)=0),1,0) -> 0 | M188: =IF(AND(M161>'Additional inputs and control'!$D$6,SUM($D188:L188)=0),1,0) -> 0 | N188: =IF(AND(N161>'Additional inputs and control'!$D$6,SUM($D188:M188)=0),1,0) -> 0 | O188: =IF(AND(O161>'Additional inputs and control'!$D$6,SUM($D188:N188)=0),1,0) -> 0 | P188: =IF(AND(P161>'Additional inputs and control'!$D$6,SUM($D188:O188)=0),1,0) -> 0 | Q188: =IF(AND(Q161>'Additional inputs and control'!$D$6,SUM($D188:P188)=0),1,0) -> 0 | R188: =IF(AND(R161>'Additional inputs and control'!$D$6,SUM($D188:Q188)=0),1,0) -> 0 | S188: =IF(AND(S161>'Additional inputs and control'!$D$6,SUM($D188:R188)=0),1,0) -> 0 | T188: =IF(AND(T161>'Additional inputs and control'!$D$6,SUM($D188:S188)=0),1,0) -> 0 | U188: =IF(AND(U161>'Additional inputs and control'!$D$6,SUM($D188:T188)=0),1,0) -> 0 | V188: =IF(AND(V161>'Additional inputs and control'!$D$6,SUM($D188:U188)=0),1,0) -> 0 | W188: =IF(AND(W161>'Additional inputs and control'!$D$6,SUM($D188:V188)=0),1,0) -> 0 | X188: =IF(AND(X161>'Additional inputs and control'!$D$6,SUM($D188:W188)=0),1,0) -> 0 | Y188: =IF(AND(Y161>'Additional inputs and control'!$D$6,SUM($D188:X188)=0),1,0) -> 0 | Z188: =IF(AND(Z161>'Additional inputs and control'!$D$6,SUM($D188:Y188)=0),1,0) -> 0 | AA188: =IF(AND(AA161>'Additional inputs and control'!$D$6,SUM($D188:Z188)=0),1,0) -> 0 | AB188: =IF(AND(AB161>'Additional inputs and control'!$D$6,SUM($D188:AA188)=0),1,0) -> 0 | AC188: =IF(AND(AC161>'Additional inputs and control'!$D$6,SUM($D188:AB188)=0),1,0) -> 0 | AD188: =IF(AND(AD161>'Additional inputs and control'!$D$6,SUM($D188:AC188)=0),1,0) -> 0 | AE188: =IF(AND(AE161>'Additional inputs and control'!$D$6,SUM($D188:AD188)=0),1,0) -> 0 | AF188: =IF(AND(AF161>'Additional inputs and control'!$D$6,SUM($D188:AE188)=0),1,0) -> 0 | AG188: =IF(AND(AG161>'Additional inputs and control'!$D$6,SUM($D188:AF188)=0),1,0) -> 0 | AH188: =IF(AND(AH161>'Additional inputs and control'!$D$6,SUM($D188:AG188)=0),1,0) -> 0 | AI188: =IF(AND(AI161>'Additional inputs and control'!$D$6,SUM($D188:AH188)=0),1,0) -> 0 | AJ188: =IF(AND(AJ161>'Additional inputs and control'!$D$6,SUM($D188:AI188)=0),1,0) -> 0 | AK188: =IF(AND(AK161>'Additional inputs and control'!$D$6,SUM($D188:AJ188)=0),1,0) -> 0 | AL188: =IF(AND(AL161>'Additional inputs and control'!$D$6,SUM($D188:AK188)=0),1,0) -> 0 | AM188: =IF(AND(AM161>'Additional inputs and control'!$D$6,SUM($D188:AL188)=0),1,0) -> 0 | AN188: =IF(AND(AN161>'Additional inputs and control'!$D$6,SUM($D188:AM188)=0),1,0) -> 0 | AO188: =IF(AND(AO161>'Additional inputs and control'!$D$6,SUM($D188:AN188)=0),1,0) -> 0 | AP188: =IF(AND(AP161>'Additional inputs and control'!$D$6,SUM($D188:AO188)=0),1,0) -> 0 | AQ188: =IF(AND(AQ161>'Additional inputs and control'!$D$6,SUM($D188:AP188)=0),1,0) -> 0 | AR188: =IF(AND(AR161>'Additional inputs and control'!$D$6,SUM($D188:AQ188)=0),1,0) -> 0 | AS188: =IF(AND(AS161>'Additional inputs and control'!$D$6,SUM($D188:AR188)=0),1,0) -> 0 | AT188: =IF(AND(AT161>'Additional inputs and control'!$D$6,SUM($D188:AS188)=0),1,0) -> 0 | AU188: =IF(AND(AU161>'Additional inputs and control'!$D$6,SUM($D188:AT188)=0),1,0) -> 0 | AV188: =IF(AND(AV161>'Additional inputs and control'!$D$6,SUM($D188:AU188)=0),1,0) -> 0 | AW188: =IF(AND(AW161>'Additional inputs and control'!$D$6,SUM($D188:AV188)=0),1,0) -> 0 | AX188: =IF(AND(AX161>'Additional inputs and control'!$D$6,SUM($D188:AW188)=0),1,0) -> 0 | AY188: =IF(AND(AY161>'Additional inputs and control'!$D$6,SUM($D188:AX188)=0),1,0) -> 0 | AZ188: =IF(AND(AZ161>'Additional inputs and control'!$D$6,SUM($D188:AY188)=0),1,0) -> 0 | BA188: =IF(AND(BA161>'Additional inputs and control'!$D$6,SUM($D188:AZ188)=0),1,0) -> 0 | BB188: =IF(AND(BB161>'Additional inputs and control'!$D$6,SUM($D188:BA188)=0),1,0) -> 0 | BC188: =IF(AND(BC161>'Additional inputs and control'!$D$6,SUM($D188:BB188)=0),1,0) -> 0 | BD188: =IF(AND(BD161>'Additional inputs and control'!$D$6,SUM($D188:BC188)=0),1,0) -> 0 | BE188: =IF(AND(BE161>'Additional inputs and control'!$D$6,SUM($D188:BD188)=0),1,0) -> 0 | BF188: =IF(AND(BF161>'Additional inputs and control'!$D$6,SUM($D188:BE188)=0),1,0) -> 0 | BG188: =IF(AND(BG161>'Additional inputs and control'!$D$6,SUM($D188:BF188)=0),1,0) -> 0 | BH188: =IF(AND(BH161>'Additional inputs and control'!$D$6,SUM($D188:BG188)=0),1,0) -> 0 | BI188: =IF(AND(BI161>'Additional inputs and control'!$D$6,SUM($D188:BH188)=0),1,0) -> 0 | BJ188: =IF(AND(BJ161>'Additional inputs and control'!$D$6,SUM($D188:BI188)=0),1,0) -> 0 | BK188: =IF(AND(BK161>'Additional inputs and control'!$D$6,SUM($D188:BJ188)=0),1,0) -> 0 | BL188: =IF(AND(BL161>'Additional inputs and control'!$D$6,SUM($D188:BK188)=0),1,0) -> 0 | BM188: =IF(AND(BM161>'Additional inputs and control'!$D$6,SUM($D188:BL188)=0),1,0) -> 0 | BN188: =IF(AND(BN161>'Additional inputs and control'!$D$6,SUM($D188:BM188)=0),1,0) -> 0 | BO188: =IF(AND(BO161>'Additional inputs and control'!$D$6,SUM($D188:BN188)=0),1,0) -> 0 | BP188: =IF(AND(BP161>'Additional inputs and control'!$D$6,SUM($D188:BO188)=0),1,0) -> 0 | BQ188: =IF(AND(BQ161>'Additional inputs and control'!$D$6,SUM($D188:BP188)=0),1,0) -> 0 | BR188: =IF(AND(BR161>'Additional inputs and control'!$D$6,SUM($D188:BQ188)=0),1,0) -> 0
A189: Config | B189: 5 | D189: =IF(D162>'Additional inputs and control'!$D$6,1,0) -> 0 | E189: =IF(AND(E162>'Additional inputs and control'!$D$6,SUM($D189:D189)=0),1,0) -> 0 | F189: =IF(AND(F162>'Additional inputs and control'!$D$6,SUM($D189:E189)=0),1,0) -> 0 | G189: =IF(AND(G162>'Additional inputs and control'!$D$6,SUM($D189:F189)=0),1,0) -> 0 | H189: =IF(AND(H162>'Additional inputs and control'!$D$6,SUM($D189:G189)=0),1,0) -> 0 | I189: =IF(AND(I162>'Additional inputs and control'!$D$6,SUM($D189:H189)=0),1,0) -> 0 | J189: =IF(AND(J162>'Additional inputs and control'!$D$6,SUM($D189:I189)=0),1,0) -> 0 | K189: =IF(AND(K162>'Additional inputs and control'!$D$6,SUM($D189:J189)=0),1,0) -> 0 | L189: =IF(AND(L162>'Additional inputs and control'!$D$6,SUM($D189:K189)=0),1,0) -> 0 | M189: =IF(AND(M162>'Additional inputs and control'!$D$6,SUM($D189:L189)=0),1,0) -> 0 | N189: =IF(AND(N162>'Additional inputs and control'!$D$6,SUM($D189:M189)=0),1,0) -> 0 | O189: =IF(AND(O162>'Additional inputs and control'!$D$6,SUM($D189:N189)=0),1,0) -> 0 | P189: =IF(AND(P162>'Additional inputs and control'!$D$6,SUM($D189:O189)=0),1,0) -> 0 | Q189: =IF(AND(Q162>'Additional inputs and control'!$D$6,SUM($D189:P189)=0),1,0) -> 0 | R189: =IF(AND(R162>'Additional inputs and control'!$D$6,SUM($D189:Q189)=0),1,0) -> 0 | S189: =IF(AND(S162>'Additional inputs and control'!$D$6,SUM($D189:R189)=0),1,0) -> 0 | T189: =IF(AND(T162>'Additional inputs and control'!$D$6,SUM($D189:S189)=0),1,0) -> 0 | U189: =IF(AND(U162>'Additional inputs and control'!$D$6,SUM($D189:T189)=0),1,0) -> 0 | V189: =IF(AND(V162>'Additional inputs and control'!$D$6,SUM($D189:U189)=0),1,0) -> 0 | W189: =IF(AND(W162>'Additional inputs and control'!$D$6,SUM($D189:V189)=0),1,0) -> 0 | X189: =IF(AND(X162>'Additional inputs and control'!$D$6,SUM($D189:W189)=0),1,0) -> 0 | Y189: =IF(AND(Y162>'Additional inputs and control'!$D$6,SUM($D189:X189)=0),1,0) -> 0 | Z189: =IF(AND(Z162>'Additional inputs and control'!$D$6,SUM($D189:Y189)=0),1,0) -> 0 | AA189: =IF(AND(AA162>'Additional inputs and control'!$D$6,SUM($D189:Z189)=0),1,0) -> 0 | AB189: =IF(AND(AB162>'Additional inputs and control'!$D$6,SUM($D189:AA189)=0),1,0) -> 0 | AC189: =IF(AND(AC162>'Additional inputs and control'!$D$6,SUM($D189:AB189)=0),1,0) -> 0 | AD189: =IF(AND(AD162>'Additional inputs and control'!$D$6,SUM($D189:AC189)=0),1,0) -> 0 | AE189: =IF(AND(AE162>'Additional inputs and control'!$D$6,SUM($D189:AD189)=0),1,0) -> 0 | AF189: =IF(AND(AF162>'Additional inputs and control'!$D$6,SUM($D189:AE189)=0),1,0) -> 0 | AG189: =IF(AND(AG162>'Additional inputs and control'!$D$6,SUM($D189:AF189)=0),1,0) -> 0 | AH189: =IF(AND(AH162>'Additional inputs and control'!$D$6,SUM($D189:AG189)=0),1,0) -> 0 | AI189: =IF(AND(AI162>'Additional inputs and control'!$D$6,SUM($D189:AH189)=0),1,0) -> 0 | AJ189: =IF(AND(AJ162>'Additional inputs and control'!$D$6,SUM($D189:AI189)=0),1,0) -> 0 | AK189: =IF(AND(AK162>'Additional inputs and control'!$D$6,SUM($D189:AJ189)=0),1,0) -> 0 | AL189: =IF(AND(AL162>'Additional inputs and control'!$D$6,SUM($D189:AK189)=0),1,0) -> 0 | AM189: =IF(AND(AM162>'Additional inputs and control'!$D$6,SUM($D189:AL189)=0),1,0) -> 0 | AN189: =IF(AND(AN162>'Additional inputs and control'!$D$6,SUM($D189:AM189)=0),1,0) -> 0 | AO189: =IF(AND(AO162>'Additional inputs and control'!$D$6,SUM($D189:AN189)=0),1,0) -> 0 | AP189: =IF(AND(AP162>'Additional inputs and control'!$D$6,SUM($D189:AO189)=0),1,0) -> 0 | AQ189: =IF(AND(AQ162>'Additional inputs and control'!$D$6,SUM($D189:AP189)=0),1,0) -> 0 | AR189: =IF(AND(AR162>'Additional inputs and control'!$D$6,SUM($D189:AQ189)=0),1,0) -> 0 | AS189: =IF(AND(AS162>'Additional inputs and control'!$D$6,SUM($D189:AR189)=0),1,0) -> 0 | AT189: =IF(AND(AT162>'Additional inputs and control'!$D$6,SUM($D189:AS189)=0),1,0) -> 0 | AU189: =IF(AND(AU162>'Additional inputs and control'!$D$6,SUM($D189:AT189)=0),1,0) -> 0 | AV189: =IF(AND(AV162>'Additional inputs and control'!$D$6,SUM($D189:AU189)=0),1,0) -> 0 | AW189: =IF(AND(AW162>'Additional inputs and control'!$D$6,SUM($D189:AV189)=0),1,0) -> 0 | AX189: =IF(AND(AX162>'Additional inputs and control'!$D$6,SUM($D189:AW189)=0),1,0) -> 0 | AY189: =IF(AND(AY162>'Additional inputs and control'!$D$6,SUM($D189:AX189)=0),1,0) -> 0 | AZ189: =IF(AND(AZ162>'Additional inputs and control'!$D$6,SUM($D189:AY189)=0),1,0) -> 0 | BA189: =IF(AND(BA162>'Additional inputs and control'!$D$6,SUM($D189:AZ189)=0),1,0) -> 0 | BB189: =IF(AND(BB162>'Additional inputs and control'!$D$6,SUM($D189:BA189)=0),1,0) -> 0 | BC189: =IF(AND(BC162>'Additional inputs and control'!$D$6,SUM($D189:BB189)=0),1,0) -> 0 | BD189: =IF(AND(BD162>'Additional inputs and control'!$D$6,SUM($D189:BC189)=0),1,0) -> 0 | BE189: =IF(AND(BE162>'Additional inputs and control'!$D$6,SUM($D189:BD189)=0),1,0) -> 0 | BF189: =IF(AND(BF162>'Additional inputs and control'!$D$6,SUM($D189:BE189)=0),1,0) -> 0 | BG189: =IF(AND(BG162>'Additional inputs and control'!$D$6,SUM($D189:BF189)=0),1,0) -> 0 | BH189: =IF(AND(BH162>'Additional inputs and control'!$D$6,SUM($D189:BG189)=0),1,0) -> 0 | BI189: =IF(AND(BI162>'Additional inputs and control'!$D$6,SUM($D189:BH189)=0),1,0) -> 0 | BJ189: =IF(AND(BJ162>'Additional inputs and control'!$D$6,SUM($D189:BI189)=0),1,0) -> 0 | BK189: =IF(AND(BK162>'Additional inputs and control'!$D$6,SUM($D189:BJ189)=0),1,0) -> 0 | BL189: =IF(AND(BL162>'Additional inputs and control'!$D$6,SUM($D189:BK189)=0),1,0) -> 0 | BM189: =IF(AND(BM162>'Additional inputs and control'!$D$6,SUM($D189:BL189)=0),1,0) -> 0 | BN189: =IF(AND(BN162>'Additional inputs and control'!$D$6,SUM($D189:BM189)=0),1,0) -> 0 | BO189: =IF(AND(BO162>'Additional inputs and control'!$D$6,SUM($D189:BN189)=0),1,0) -> 0 | BP189: =IF(AND(BP162>'Additional inputs and control'!$D$6,SUM($D189:BO189)=0),1,0) -> 0 | BQ189: =IF(AND(BQ162>'Additional inputs and control'!$D$6,SUM($D189:BP189)=0),1,0) -> 0 | BR189: =IF(AND(BR162>'Additional inputs and control'!$D$6,SUM($D189:BQ189)=0),1,0) -> 0
A190: Config | B190: 6 | D190: =IF(D163>'Additional inputs and control'!$D$6,1,0) -> 0 | E190: =IF(AND(E163>'Additional inputs and control'!$D$6,SUM($D190:D190)=0),1,0) -> 0 | F190: =IF(AND(F163>'Additional inputs and control'!$D$6,SUM($D190:E190)=0),1,0) -> 0 | G190: =IF(AND(G163>'Additional inputs and control'!$D$6,SUM($D190:F190)=0),1,0) -> 0 | H190: =IF(AND(H163>'Additional inputs and control'!$D$6,SUM($D190:G190)=0),1,0) -> 0 | I190: =IF(AND(I163>'Additional inputs and control'!$D$6,SUM($D190:H190)=0),1,0) -> 0 | J190: =IF(AND(J163>'Additional inputs and control'!$D$6,SUM($D190:I190)=0),1,0) -> 0 | K190: =IF(AND(K163>'Additional inputs and control'!$D$6,SUM($D190:J190)=0),1,0) -> 0 | L190: =IF(AND(L163>'Additional inputs and control'!$D$6,SUM($D190:K190)=0),1,0) -> 0 | M190: =IF(AND(M163>'Additional inputs and control'!$D$6,SUM($D190:L190)=0),1,0) -> 0 | N190: =IF(AND(N163>'Additional inputs and control'!$D$6,SUM($D190:M190)=0),1,0) -> 0 | O190: =IF(AND(O163>'Additional inputs and control'!$D$6,SUM($D190:N190)=0),1,0) -> 0 | P190: =IF(AND(P163>'Additional inputs and control'!$D$6,SUM($D190:O190)=0),1,0) -> 0 | Q190: =IF(AND(Q163>'Additional inputs and control'!$D$6,SUM($D190:P190)=0),1,0) -> 0 | R190: =IF(AND(R163>'Additional inputs and control'!$D$6,SUM($D190:Q190)=0),1,0) -> 0 | S190: =IF(AND(S163>'Additional inputs and control'!$D$6,SUM($D190:R190)=0),1,0) -> 0 | T190: =IF(AND(T163>'Additional inputs and control'!$D$6,SUM($D190:S190)=0),1,0) -> 0 | U190: =IF(AND(U163>'Additional inputs and control'!$D$6,SUM($D190:T190)=0),1,0) -> 0 | V190: =IF(AND(V163>'Additional inputs and control'!$D$6,SUM($D190:U190)=0),1,0) -> 0 | W190: =IF(AND(W163>'Additional inputs and control'!$D$6,SUM($D190:V190)=0),1,0) -> 0 | X190: =IF(AND(X163>'Additional inputs and control'!$D$6,SUM($D190:W190)=0),1,0) -> 0 | Y190: =IF(AND(Y163>'Additional inputs and control'!$D$6,SUM($D190:X190)=0),1,0) -> 0 | Z190: =IF(AND(Z163>'Additional inputs and control'!$D$6,SUM($D190:Y190)=0),1,0) -> 0 | AA190: =IF(AND(AA163>'Additional inputs and control'!$D$6,SUM($D190:Z190)=0),1,0) -> 0 | AB190: =IF(AND(AB163>'Additional inputs and control'!$D$6,SUM($D190:AA190)=0),1,0) -> 0 | AC190: =IF(AND(AC163>'Additional inputs and control'!$D$6,SUM($D190:AB190)=0),1,0) -> 0 | AD190: =IF(AND(AD163>'Additional inputs and control'!$D$6,SUM($D190:AC190)=0),1,0) -> 0 | AE190: =IF(AND(AE163>'Additional inputs and control'!$D$6,SUM($D190:AD190)=0),1,0) -> 0 | AF190: =IF(AND(AF163>'Additional inputs and control'!$D$6,SUM($D190:AE190)=0),1,0) -> 0 | AG190: =IF(AND(AG163>'Additional inputs and control'!$D$6,SUM($D190:AF190)=0),1,0) -> 0 | AH190: =IF(AND(AH163>'Additional inputs and control'!$D$6,SUM($D190:AG190)=0),1,0) -> 0 | AI190: =IF(AND(AI163>'Additional inputs and control'!$D$6,SUM($D190:AH190)=0),1,0) -> 0 | AJ190: =IF(AND(AJ163>'Additional inputs and control'!$D$6,SUM($D190:AI190)=0),1,0) -> 0 | AK190: =IF(AND(AK163>'Additional inputs and control'!$D$6,SUM($D190:AJ190)=0),1,0) -> 0 | AL190: =IF(AND(AL163>'Additional inputs and control'!$D$6,SUM($D190:AK190)=0),1,0) -> 0 | AM190: =IF(AND(AM163>'Additional inputs and control'!$D$6,SUM($D190:AL190)=0),1,0) -> 0 | AN190: =IF(AND(AN163>'Additional inputs and control'!$D$6,SUM($D190:AM190)=0),1,0) -> 0 | AO190: =IF(AND(AO163>'Additional inputs and control'!$D$6,SUM($D190:AN190)=0),1,0) -> 0 | AP190: =IF(AND(AP163>'Additional inputs and control'!$D$6,SUM($D190:AO190)=0),1,0) -> 0 | AQ190: =IF(AND(AQ163>'Additional inputs and control'!$D$6,SUM($D190:AP190)=0),1,0) -> 0 | AR190: =IF(AND(AR163>'Additional inputs and control'!$D$6,SUM($D190:AQ190)=0),1,0) -> 0 | AS190: =IF(AND(AS163>'Additional inputs and control'!$D$6,SUM($D190:AR190)=0),1,0) -> 0 | AT190: =IF(AND(AT163>'Additional inputs and control'!$D$6,SUM($D190:AS190)=0),1,0) -> 0 | AU190: =IF(AND(AU163>'Additional inputs and control'!$D$6,SUM($D190:AT190)=0),1,0) -> 0 | AV190: =IF(AND(AV163>'Additional inputs and control'!$D$6,SUM($D190:AU190)=0),1,0) -> 0 | AW190: =IF(AND(AW163>'Additional inputs and control'!$D$6,SUM($D190:AV190)=0),1,0) -> 0 | AX190: =IF(AND(AX163>'Additional inputs and control'!$D$6,SUM($D190:AW190)=0),1,0) -> 0 | AY190: =IF(AND(AY163>'Additional inputs and control'!$D$6,SUM($D190:AX190)=0),1,0) -> 0 | AZ190: =IF(AND(AZ163>'Additional inputs and control'!$D$6,SUM($D190:AY190)=0),1,0) -> 0 | BA190: =IF(AND(BA163>'Additional inputs and control'!$D$6,SUM($D190:AZ190)=0),1,0) -> 0 | BB190: =IF(AND(BB163>'Additional inputs and control'!$D$6,SUM($D190:BA190)=0),1,0) -> 0 | BC190: =IF(AND(BC163>'Additional inputs and control'!$D$6,SUM($D190:BB190)=0),1,0) -> 0 | BD190: =IF(AND(BD163>'Additional inputs and control'!$D$6,SUM($D190:BC190)=0),1,0) -> 0 | BE190: =IF(AND(BE163>'Additional inputs and control'!$D$6,SUM($D190:BD190)=0),1,0) -> 0 | BF190: =IF(AND(BF163>'Additional inputs and control'!$D$6,SUM($D190:BE190)=0),1,0) -> 0 | BG190: =IF(AND(BG163>'Additional inputs and control'!$D$6,SUM($D190:BF190)=0),1,0) -> 0 | BH190: =IF(AND(BH163>'Additional inputs and control'!$D$6,SUM($D190:BG190)=0),1,0) -> 0 | BI190: =IF(AND(BI163>'Additional inputs and control'!$D$6,SUM($D190:BH190)=0),1,0) -> 0 | BJ190: =IF(AND(BJ163>'Additional inputs and control'!$D$6,SUM($D190:BI190)=0),1,0) -> 0 | BK190: =IF(AND(BK163>'Additional inputs and control'!$D$6,SUM($D190:BJ190)=0),1,0) -> 0 | BL190: =IF(AND(BL163>'Additional inputs and control'!$D$6,SUM($D190:BK190)=0),1,0) -> 0 | BM190: =IF(AND(BM163>'Additional inputs and control'!$D$6,SUM($D190:BL190)=0),1,0) -> 0 | BN190: =IF(AND(BN163>'Additional inputs and control'!$D$6,SUM($D190:BM190)=0),1,0) -> 0 | BO190: =IF(AND(BO163>'Additional inputs and control'!$D$6,SUM($D190:BN190)=0),1,0) -> 0 | BP190: =IF(AND(BP163>'Additional inputs and control'!$D$6,SUM($D190:BO190)=0),1,0) -> 0 | BQ190: =IF(AND(BQ163>'Additional inputs and control'!$D$6,SUM($D190:BP190)=0),1,0) -> 0 | BR190: =IF(AND(BR163>'Additional inputs and control'!$D$6,SUM($D190:BQ190)=0),1,0) -> 0
A191: Config | B191: 7 | D191: =IF(D164>'Additional inputs and control'!$D$6,1,0) -> 0 | E191: =IF(AND(E164>'Additional inputs and control'!$D$6,SUM($D191:D191)=0),1,0) -> 0 | F191: =IF(AND(F164>'Additional inputs and control'!$D$6,SUM($D191:E191)=0),1,0) -> 0 | G191: =IF(AND(G164>'Additional inputs and control'!$D$6,SUM($D191:F191)=0),1,0) -> 0 | H191: =IF(AND(H164>'Additional inputs and control'!$D$6,SUM($D191:G191)=0),1,0) -> 0 | I191: =IF(AND(I164>'Additional inputs and control'!$D$6,SUM($D191:H191)=0),1,0) -> 0 | J191: =IF(AND(J164>'Additional inputs and control'!$D$6,SUM($D191:I191)=0),1,0) -> 0 | K191: =IF(AND(K164>'Additional inputs and control'!$D$6,SUM($D191:J191)=0),1,0) -> 0 | L191: =IF(AND(L164>'Additional inputs and control'!$D$6,SUM($D191:K191)=0),1,0) -> 0 | M191: =IF(AND(M164>'Additional inputs and control'!$D$6,SUM($D191:L191)=0),1,0) -> 0 | N191: =IF(AND(N164>'Additional inputs and control'!$D$6,SUM($D191:M191)=0),1,0) -> 0 | O191: =IF(AND(O164>'Additional inputs and control'!$D$6,SUM($D191:N191)=0),1,0) -> 0 | P191: =IF(AND(P164>'Additional inputs and control'!$D$6,SUM($D191:O191)=0),1,0) -> 0 | Q191: =IF(AND(Q164>'Additional inputs and control'!$D$6,SUM($D191:P191)=0),1,0) -> 0 | R191: =IF(AND(R164>'Additional inputs and control'!$D$6,SUM($D191:Q191)=0),1,0) -> 0 | S191: =IF(AND(S164>'Additional inputs and control'!$D$6,SUM($D191:R191)=0),1,0) -> 0 | T191: =IF(AND(T164>'Additional inputs and control'!$D$6,SUM($D191:S191)=0),1,0) -> 0 | U191: =IF(AND(U164>'Additional inputs and control'!$D$6,SUM($D191:T191)=0),1,0) -> 0 | V191: =IF(AND(V164>'Additional inputs and control'!$D$6,SUM($D191:U191)=0),1,0) -> 0 | W191: =IF(AND(W164>'Additional inputs and control'!$D$6,SUM($D191:V191)=0),1,0) -> 0 | X191: =IF(AND(X164>'Additional inputs and control'!$D$6,SUM($D191:W191)=0),1,0) -> 0 | Y191: =IF(AND(Y164>'Additional inputs and control'!$D$6,SUM($D191:X191)=0),1,0) -> 0 | Z191: =IF(AND(Z164>'Additional inputs and control'!$D$6,SUM($D191:Y191)=0),1,0) -> 0 | AA191: =IF(AND(AA164>'Additional inputs and control'!$D$6,SUM($D191:Z191)=0),1,0) -> 0 | AB191: =IF(AND(AB164>'Additional inputs and control'!$D$6,SUM($D191:AA191)=0),1,0) -> 0 | AC191: =IF(AND(AC164>'Additional inputs and control'!$D$6,SUM($D191:AB191)=0),1,0) -> 0 | AD191: =IF(AND(AD164>'Additional inputs and control'!$D$6,SUM($D191:AC191)=0),1,0) -> 0 | AE191: =IF(AND(AE164>'Additional inputs and control'!$D$6,SUM($D191:AD191)=0),1,0) -> 0 | AF191: =IF(AND(AF164>'Additional inputs and control'!$D$6,SUM($D191:AE191)=0),1,0) -> 0 | AG191: =IF(AND(AG164>'Additional inputs and control'!$D$6,SUM($D191:AF191)=0),1,0) -> 0 | AH191: =IF(AND(AH164>'Additional inputs and control'!$D$6,SUM($D191:AG191)=0),1,0) -> 0 | AI191: =IF(AND(AI164>'Additional inputs and control'!$D$6,SUM($D191:AH191)=0),1,0) -> 0 | AJ191: =IF(AND(AJ164>'Additional inputs and control'!$D$6,SUM($D191:AI191)=0),1,0) -> 0 | AK191: =IF(AND(AK164>'Additional inputs and control'!$D$6,SUM($D191:AJ191)=0),1,0) -> 0 | AL191: =IF(AND(AL164>'Additional inputs and control'!$D$6,SUM($D191:AK191)=0),1,0) -> 0 | AM191: =IF(AND(AM164>'Additional inputs and control'!$D$6,SUM($D191:AL191)=0),1,0) -> 0 | AN191: =IF(AND(AN164>'Additional inputs and control'!$D$6,SUM($D191:AM191)=0),1,0) -> 0 | AO191: =IF(AND(AO164>'Additional inputs and control'!$D$6,SUM($D191:AN191)=0),1,0) -> 0 | AP191: =IF(AND(AP164>'Additional inputs and control'!$D$6,SUM($D191:AO191)=0),1,0) -> 0 | AQ191: =IF(AND(AQ164>'Additional inputs and control'!$D$6,SUM($D191:AP191)=0),1,0) -> 0 | AR191: =IF(AND(AR164>'Additional inputs and control'!$D$6,SUM($D191:AQ191)=0),1,0) -> 0 | AS191: =IF(AND(AS164>'Additional inputs and control'!$D$6,SUM($D191:AR191)=0),1,0) -> 0 | AT191: =IF(AND(AT164>'Additional inputs and control'!$D$6,SUM($D191:AS191)=0),1,0) -> 0 | AU191: =IF(AND(AU164>'Additional inputs and control'!$D$6,SUM($D191:AT191)=0),1,0) -> 0 | AV191: =IF(AND(AV164>'Additional inputs and control'!$D$6,SUM($D191:AU191)=0),1,0) -> 0 | AW191: =IF(AND(AW164>'Additional inputs and control'!$D$6,SUM($D191:AV191)=0),1,0) -> 0 | AX191: =IF(AND(AX164>'Additional inputs and control'!$D$6,SUM($D191:AW191)=0),1,0) -> 0 | AY191: =IF(AND(AY164>'Additional inputs and control'!$D$6,SUM($D191:AX191)=0),1,0) -> 0 | AZ191: =IF(AND(AZ164>'Additional inputs and control'!$D$6,SUM($D191:AY191)=0),1,0) -> 0 | BA191: =IF(AND(BA164>'Additional inputs and control'!$D$6,SUM($D191:AZ191)=0),1,0) -> 0 | BB191: =IF(AND(BB164>'Additional inputs and control'!$D$6,SUM($D191:BA191)=0),1,0) -> 0 | BC191: =IF(AND(BC164>'Additional inputs and control'!$D$6,SUM($D191:BB191)=0),1,0) -> 0 | BD191: =IF(AND(BD164>'Additional inputs and control'!$D$6,SUM($D191:BC191)=0),1,0) -> 0 | BE191: =IF(AND(BE164>'Additional inputs and control'!$D$6,SUM($D191:BD191)=0),1,0) -> 0 | BF191: =IF(AND(BF164>'Additional inputs and control'!$D$6,SUM($D191:BE191)=0),1,0) -> 0 | BG191: =IF(AND(BG164>'Additional inputs and control'!$D$6,SUM($D191:BF191)=0),1,0) -> 0 | BH191: =IF(AND(BH164>'Additional inputs and control'!$D$6,SUM($D191:BG191)=0),1,0) -> 0 | BI191: =IF(AND(BI164>'Additional inputs and control'!$D$6,SUM($D191:BH191)=0),1,0) -> 0 | BJ191: =IF(AND(BJ164>'Additional inputs and control'!$D$6,SUM($D191:BI191)=0),1,0) -> 0 | BK191: =IF(AND(BK164>'Additional inputs and control'!$D$6,SUM($D191:BJ191)=0),1,0) -> 0 | BL191: =IF(AND(BL164>'Additional inputs and control'!$D$6,SUM($D191:BK191)=0),1,0) -> 0 | BM191: =IF(AND(BM164>'Additional inputs and control'!$D$6,SUM($D191:BL191)=0),1,0) -> 0 | BN191: =IF(AND(BN164>'Additional inputs and control'!$D$6,SUM($D191:BM191)=0),1,0) -> 0 | BO191: =IF(AND(BO164>'Additional inputs and control'!$D$6,SUM($D191:BN191)=0),1,0) -> 0 | BP191: =IF(AND(BP164>'Additional inputs and control'!$D$6,SUM($D191:BO191)=0),1,0) -> 0 | BQ191: =IF(AND(BQ164>'Additional inputs and control'!$D$6,SUM($D191:BP191)=0),1,0) -> 0 | BR191: =IF(AND(BR164>'Additional inputs and control'!$D$6,SUM($D191:BQ191)=0),1,0) -> 0
A192: Config | B192: 8 | D192: =IF(D165>'Additional inputs and control'!$D$6,1,0) -> 0 | E192: =IF(AND(E165>'Additional inputs and control'!$D$6,SUM($D192:D192)=0),1,0) -> 0 | F192: =IF(AND(F165>'Additional inputs and control'!$D$6,SUM($D192:E192)=0),1,0) -> 0 | G192: =IF(AND(G165>'Additional inputs and control'!$D$6,SUM($D192:F192)=0),1,0) -> 0 | H192: =IF(AND(H165>'Additional inputs and control'!$D$6,SUM($D192:G192)=0),1,0) -> 0 | I192: =IF(AND(I165>'Additional inputs and control'!$D$6,SUM($D192:H192)=0),1,0) -> 0 | J192: =IF(AND(J165>'Additional inputs and control'!$D$6,SUM($D192:I192)=0),1,0) -> 0 | K192: =IF(AND(K165>'Additional inputs and control'!$D$6,SUM($D192:J192)=0),1,0) -> 0 | L192: =IF(AND(L165>'Additional inputs and control'!$D$6,SUM($D192:K192)=0),1,0) -> 0 | M192: =IF(AND(M165>'Additional inputs and control'!$D$6,SUM($D192:L192)=0),1,0) -> 0 | N192: =IF(AND(N165>'Additional inputs and control'!$D$6,SUM($D192:M192)=0),1,0) -> 0 | O192: =IF(AND(O165>'Additional inputs and control'!$D$6,SUM($D192:N192)=0),1,0) -> 0 | P192: =IF(AND(P165>'Additional inputs and control'!$D$6,SUM($D192:O192)=0),1,0) -> 0 | Q192: =IF(AND(Q165>'Additional inputs and control'!$D$6,SUM($D192:P192)=0),1,0) -> 0 | R192: =IF(AND(R165>'Additional inputs and control'!$D$6,SUM($D192:Q192)=0),1,0) -> 0 | S192: =IF(AND(S165>'Additional inputs and control'!$D$6,SUM($D192:R192)=0),1,0) -> 0 | T192: =IF(AND(T165>'Additional inputs and control'!$D$6,SUM($D192:S192)=0),1,0) -> 0 | U192: =IF(AND(U165>'Additional inputs and control'!$D$6,SUM($D192:T192)=0),1,0) -> 0 | V192: =IF(AND(V165>'Additional inputs and control'!$D$6,SUM($D192:U192)=0),1,0) -> 0 | W192: =IF(AND(W165>'Additional inputs and control'!$D$6,SUM($D192:V192)=0),1,0) -> 0 | X192: =IF(AND(X165>'Additional inputs and control'!$D$6,SUM($D192:W192)=0),1,0) -> 0 | Y192: =IF(AND(Y165>'Additional inputs and control'!$D$6,SUM($D192:X192)=0),1,0) -> 0 | Z192: =IF(AND(Z165>'Additional inputs and control'!$D$6,SUM($D192:Y192)=0),1,0) -> 0 | AA192: =IF(AND(AA165>'Additional inputs and control'!$D$6,SUM($D192:Z192)=0),1,0) -> 0 | AB192: =IF(AND(AB165>'Additional inputs and control'!$D$6,SUM($D192:AA192)=0),1,0) -> 0 | AC192: =IF(AND(AC165>'Additional inputs and control'!$D$6,SUM($D192:AB192)=0),1,0) -> 0 | AD192: =IF(AND(AD165>'Additional inputs and control'!$D$6,SUM($D192:AC192)=0),1,0) -> 0 | AE192: =IF(AND(AE165>'Additional inputs and control'!$D$6,SUM($D192:AD192)=0),1,0) -> 0 | AF192: =IF(AND(AF165>'Additional inputs and control'!$D$6,SUM($D192:AE192)=0),1,0) -> 0 | AG192: =IF(AND(AG165>'Additional inputs and control'!$D$6,SUM($D192:AF192)=0),1,0) -> 0 | AH192: =IF(AND(AH165>'Additional inputs and control'!$D$6,SUM($D192:AG192)=0),1,0) -> 0 | AI192: =IF(AND(AI165>'Additional inputs and control'!$D$6,SUM($D192:AH192)=0),1,0) -> 0 | AJ192: =IF(AND(AJ165>'Additional inputs and control'!$D$6,SUM($D192:AI192)=0),1,0) -> 0 | AK192: =IF(AND(AK165>'Additional inputs and control'!$D$6,SUM($D192:AJ192)=0),1,0) -> 0 | AL192: =IF(AND(AL165>'Additional inputs and control'!$D$6,SUM($D192:AK192)=0),1,0) -> 0 | AM192: =IF(AND(AM165>'Additional inputs and control'!$D$6,SUM($D192:AL192)=0),1,0) -> 0 | AN192: =IF(AND(AN165>'Additional inputs and control'!$D$6,SUM($D192:AM192)=0),1,0) -> 0 | AO192: =IF(AND(AO165>'Additional inputs and control'!$D$6,SUM($D192:AN192)=0),1,0) -> 0 | AP192: =IF(AND(AP165>'Additional inputs and control'!$D$6,SUM($D192:AO192)=0),1,0) -> 0 | AQ192: =IF(AND(AQ165>'Additional inputs and control'!$D$6,SUM($D192:AP192)=0),1,0) -> 0 | AR192: =IF(AND(AR165>'Additional inputs and control'!$D$6,SUM($D192:AQ192)=0),1,0) -> 0 | AS192: =IF(AND(AS165>'Additional inputs and control'!$D$6,SUM($D192:AR192)=0),1,0) -> 0 | AT192: =IF(AND(AT165>'Additional inputs and control'!$D$6,SUM($D192:AS192)=0),1,0) -> 0 | AU192: =IF(AND(AU165>'Additional inputs and control'!$D$6,SUM($D192:AT192)=0),1,0) -> 0 | AV192: =IF(AND(AV165>'Additional inputs and control'!$D$6,SUM($D192:AU192)=0),1,0) -> 0 | AW192: =IF(AND(AW165>'Additional inputs and control'!$D$6,SUM($D192:AV192)=0),1,0) -> 0 | AX192: =IF(AND(AX165>'Additional inputs and control'!$D$6,SUM($D192:AW192)=0),1,0) -> 0 | AY192: =IF(AND(AY165>'Additional inputs and control'!$D$6,SUM($D192:AX192)=0),1,0) -> 0 | AZ192: =IF(AND(AZ165>'Additional inputs and control'!$D$6,SUM($D192:AY192)=0),1,0) -> 0 | BA192: =IF(AND(BA165>'Additional inputs and control'!$D$6,SUM($D192:AZ192)=0),1,0) -> 0 | BB192: =IF(AND(BB165>'Additional inputs and control'!$D$6,SUM($D192:BA192)=0),1,0) -> 0 | BC192: =IF(AND(BC165>'Additional inputs and control'!$D$6,SUM($D192:BB192)=0),1,0) -> 0 | BD192: =IF(AND(BD165>'Additional inputs and control'!$D$6,SUM($D192:BC192)=0),1,0) -> 0 | BE192: =IF(AND(BE165>'Additional inputs and control'!$D$6,SUM($D192:BD192)=0),1,0) -> 0 | BF192: =IF(AND(BF165>'Additional inputs and control'!$D$6,SUM($D192:BE192)=0),1,0) -> 0 | BG192: =IF(AND(BG165>'Additional inputs and control'!$D$6,SUM($D192:BF192)=0),1,0) -> 0 | BH192: =IF(AND(BH165>'Additional inputs and control'!$D$6,SUM($D192:BG192)=0),1,0) -> 0 | BI192: =IF(AND(BI165>'Additional inputs and control'!$D$6,SUM($D192:BH192)=0),1,0) -> 0 | BJ192: =IF(AND(BJ165>'Additional inputs and control'!$D$6,SUM($D192:BI192)=0),1,0) -> 0 | BK192: =IF(AND(BK165>'Additional inputs and control'!$D$6,SUM($D192:BJ192)=0),1,0) -> 0 | BL192: =IF(AND(BL165>'Additional inputs and control'!$D$6,SUM($D192:BK192)=0),1,0) -> 0 | BM192: =IF(AND(BM165>'Additional inputs and control'!$D$6,SUM($D192:BL192)=0),1,0) -> 0 | BN192: =IF(AND(BN165>'Additional inputs and control'!$D$6,SUM($D192:BM192)=0),1,0) -> 0 | BO192: =IF(AND(BO165>'Additional inputs and control'!$D$6,SUM($D192:BN192)=0),1,0) -> 0 | BP192: =IF(AND(BP165>'Additional inputs and control'!$D$6,SUM($D192:BO192)=0),1,0) -> 0 | BQ192: =IF(AND(BQ165>'Additional inputs and control'!$D$6,SUM($D192:BP192)=0),1,0) -> 0 | BR192: =IF(AND(BR165>'Additional inputs and control'!$D$6,SUM($D192:BQ192)=0),1,0) -> 0
A193: Config | B193: 9 | D193: =IF(D166>'Additional inputs and control'!$D$6,1,0) -> 0 | E193: =IF(AND(E166>'Additional inputs and control'!$D$6,SUM($D193:D193)=0),1,0) -> 0 | F193: =IF(AND(F166>'Additional inputs and control'!$D$6,SUM($D193:E193)=0),1,0) -> 0 | G193: =IF(AND(G166>'Additional inputs and control'!$D$6,SUM($D193:F193)=0),1,0) -> 0 | H193: =IF(AND(H166>'Additional inputs and control'!$D$6,SUM($D193:G193)=0),1,0) -> 0 | I193: =IF(AND(I166>'Additional inputs and control'!$D$6,SUM($D193:H193)=0),1,0) -> 0 | J193: =IF(AND(J166>'Additional inputs and control'!$D$6,SUM($D193:I193)=0),1,0) -> 0 | K193: =IF(AND(K166>'Additional inputs and control'!$D$6,SUM($D193:J193)=0),1,0) -> 0 | L193: =IF(AND(L166>'Additional inputs and control'!$D$6,SUM($D193:K193)=0),1,0) -> 0 | M193: =IF(AND(M166>'Additional inputs and control'!$D$6,SUM($D193:L193)=0),1,0) -> 0 | N193: =IF(AND(N166>'Additional inputs and control'!$D$6,SUM($D193:M193)=0),1,0) -> 0 | O193: =IF(AND(O166>'Additional inputs and control'!$D$6,SUM($D193:N193)=0),1,0) -> 0 | P193: =IF(AND(P166>'Additional inputs and control'!$D$6,SUM($D193:O193)=0),1,0) -> 0 | Q193: =IF(AND(Q166>'Additional inputs and control'!$D$6,SUM($D193:P193)=0),1,0) -> 0 | R193: =IF(AND(R166>'Additional inputs and control'!$D$6,SUM($D193:Q193)=0),1,0) -> 0 | S193: =IF(AND(S166>'Additional inputs and control'!$D$6,SUM($D193:R193)=0),1,0) -> 0 | T193: =IF(AND(T166>'Additional inputs and control'!$D$6,SUM($D193:S193)=0),1,0) -> 0 | U193: =IF(AND(U166>'Additional inputs and control'!$D$6,SUM($D193:T193)=0),1,0) -> 0 | V193: =IF(AND(V166>'Additional inputs and control'!$D$6,SUM($D193:U193)=0),1,0) -> 0 | W193: =IF(AND(W166>'Additional inputs and control'!$D$6,SUM($D193:V193)=0),1,0) -> 0 | X193: =IF(AND(X166>'Additional inputs and control'!$D$6,SUM($D193:W193)=0),1,0) -> 0 | Y193: =IF(AND(Y166>'Additional inputs and control'!$D$6,SUM($D193:X193)=0),1,0) -> 0 | Z193: =IF(AND(Z166>'Additional inputs and control'!$D$6,SUM($D193:Y193)=0),1,0) -> 0 | AA193: =IF(AND(AA166>'Additional inputs and control'!$D$6,SUM($D193:Z193)=0),1,0) -> 0 | AB193: =IF(AND(AB166>'Additional inputs and control'!$D$6,SUM($D193:AA193)=0),1,0) -> 0 | AC193: =IF(AND(AC166>'Additional inputs and control'!$D$6,SUM($D193:AB193)=0),1,0) -> 0 | AD193: =IF(AND(AD166>'Additional inputs and control'!$D$6,SUM($D193:AC193)=0),1,0) -> 0 | AE193: =IF(AND(AE166>'Additional inputs and control'!$D$6,SUM($D193:AD193)=0),1,0) -> 0 | AF193: =IF(AND(AF166>'Additional inputs and control'!$D$6,SUM($D193:AE193)=0),1,0) -> 0 | AG193: =IF(AND(AG166>'Additional inputs and control'!$D$6,SUM($D193:AF193)=0),1,0) -> 0 | AH193: =IF(AND(AH166>'Additional inputs and control'!$D$6,SUM($D193:AG193)=0),1,0) -> 0 | AI193: =IF(AND(AI166>'Additional inputs and control'!$D$6,SUM($D193:AH193)=0),1,0) -> 0 | AJ193: =IF(AND(AJ166>'Additional inputs and control'!$D$6,SUM($D193:AI193)=0),1,0) -> 0 | AK193: =IF(AND(AK166>'Additional inputs and control'!$D$6,SUM($D193:AJ193)=0),1,0) -> 0 | AL193: =IF(AND(AL166>'Additional inputs and control'!$D$6,SUM($D193:AK193)=0),1,0) -> 0 | AM193: =IF(AND(AM166>'Additional inputs and control'!$D$6,SUM($D193:AL193)=0),1,0) -> 0 | AN193: =IF(AND(AN166>'Additional inputs and control'!$D$6,SUM($D193:AM193)=0),1,0) -> 0 | AO193: =IF(AND(AO166>'Additional inputs and control'!$D$6,SUM($D193:AN193)=0),1,0) -> 0 | AP193: =IF(AND(AP166>'Additional inputs and control'!$D$6,SUM($D193:AO193)=0),1,0) -> 0 | AQ193: =IF(AND(AQ166>'Additional inputs and control'!$D$6,SUM($D193:AP193)=0),1,0) -> 0 | AR193: =IF(AND(AR166>'Additional inputs and control'!$D$6,SUM($D193:AQ193)=0),1,0) -> 0 | AS193: =IF(AND(AS166>'Additional inputs and control'!$D$6,SUM($D193:AR193)=0),1,0) -> 0 | AT193: =IF(AND(AT166>'Additional inputs and control'!$D$6,SUM($D193:AS193)=0),1,0) -> 0 | AU193: =IF(AND(AU166>'Additional inputs and control'!$D$6,SUM($D193:AT193)=0),1,0) -> 0 | AV193: =IF(AND(AV166>'Additional inputs and control'!$D$6,SUM($D193:AU193)=0),1,0) -> 0 | AW193: =IF(AND(AW166>'Additional inputs and control'!$D$6,SUM($D193:AV193)=0),1,0) -> 0 | AX193: =IF(AND(AX166>'Additional inputs and control'!$D$6,SUM($D193:AW193)=0),1,0) -> 0 | AY193: =IF(AND(AY166>'Additional inputs and control'!$D$6,SUM($D193:AX193)=0),1,0) -> 0 | AZ193: =IF(AND(AZ166>'Additional inputs and control'!$D$6,SUM($D193:AY193)=0),1,0) -> 0 | BA193: =IF(AND(BA166>'Additional inputs and control'!$D$6,SUM($D193:AZ193)=0),1,0) -> 0 | BB193: =IF(AND(BB166>'Additional inputs and control'!$D$6,SUM($D193:BA193)=0),1,0) -> 0 | BC193: =IF(AND(BC166>'Additional inputs and control'!$D$6,SUM($D193:BB193)=0),1,0) -> 0 | BD193: =IF(AND(BD166>'Additional inputs and control'!$D$6,SUM($D193:BC193)=0),1,0) -> 0 | BE193: =IF(AND(BE166>'Additional inputs and control'!$D$6,SUM($D193:BD193)=0),1,0) -> 0 | BF193: =IF(AND(BF166>'Additional inputs and control'!$D$6,SUM($D193:BE193)=0),1,0) -> 0 | BG193: =IF(AND(BG166>'Additional inputs and control'!$D$6,SUM($D193:BF193)=0),1,0) -> 0 | BH193: =IF(AND(BH166>'Additional inputs and control'!$D$6,SUM($D193:BG193)=0),1,0) -> 0 | BI193: =IF(AND(BI166>'Additional inputs and control'!$D$6,SUM($D193:BH193)=0),1,0) -> 0 | BJ193: =IF(AND(BJ166>'Additional inputs and control'!$D$6,SUM($D193:BI193)=0),1,0) -> 0 | BK193: =IF(AND(BK166>'Additional inputs and control'!$D$6,SUM($D193:BJ193)=0),1,0) -> 0 | BL193: =IF(AND(BL166>'Additional inputs and control'!$D$6,SUM($D193:BK193)=0),1,0) -> 0 | BM193: =IF(AND(BM166>'Additional inputs and control'!$D$6,SUM($D193:BL193)=0),1,0) -> 0 | BN193: =IF(AND(BN166>'Additional inputs and control'!$D$6,SUM($D193:BM193)=0),1,0) -> 0 | BO193: =IF(AND(BO166>'Additional inputs and control'!$D$6,SUM($D193:BN193)=0),1,0) -> 0 | BP193: =IF(AND(BP166>'Additional inputs and control'!$D$6,SUM($D193:BO193)=0),1,0) -> 0 | BQ193: =IF(AND(BQ166>'Additional inputs and control'!$D$6,SUM($D193:BP193)=0),1,0) -> 0 | BR193: =IF(AND(BR166>'Additional inputs and control'!$D$6,SUM($D193:BQ193)=0),1,0) -> 0
A194: Config | B194: 10 | D194: =IF(D167>'Additional inputs and control'!$D$6,1,0) -> 0 | E194: =IF(AND(E167>'Additional inputs and control'!$D$6,SUM($D194:D194)=0),1,0) -> 0 | F194: =IF(AND(F167>'Additional inputs and control'!$D$6,SUM($D194:E194)=0),1,0) -> 0 | G194: =IF(AND(G167>'Additional inputs and control'!$D$6,SUM($D194:F194)=0),1,0) -> 0 | H194: =IF(AND(H167>'Additional inputs and control'!$D$6,SUM($D194:G194)=0),1,0) -> 0 | I194: =IF(AND(I167>'Additional inputs and control'!$D$6,SUM($D194:H194)=0),1,0) -> 0 | J194: =IF(AND(J167>'Additional inputs and control'!$D$6,SUM($D194:I194)=0),1,0) -> 0 | K194: =IF(AND(K167>'Additional inputs and control'!$D$6,SUM($D194:J194)=0),1,0) -> 0 | L194: =IF(AND(L167>'Additional inputs and control'!$D$6,SUM($D194:K194)=0),1,0) -> 0 | M194: =IF(AND(M167>'Additional inputs and control'!$D$6,SUM($D194:L194)=0),1,0) -> 0 | N194: =IF(AND(N167>'Additional inputs and control'!$D$6,SUM($D194:M194)=0),1,0) -> 0 | O194: =IF(AND(O167>'Additional inputs and control'!$D$6,SUM($D194:N194)=0),1,0) -> 0 | P194: =IF(AND(P167>'Additional inputs and control'!$D$6,SUM($D194:O194)=0),1,0) -> 0 | Q194: =IF(AND(Q167>'Additional inputs and control'!$D$6,SUM($D194:P194)=0),1,0) -> 0 | R194: =IF(AND(R167>'Additional inputs and control'!$D$6,SUM($D194:Q194)=0),1,0) -> 0 | S194: =IF(AND(S167>'Additional inputs and control'!$D$6,SUM($D194:R194)=0),1,0) -> 0 | T194: =IF(AND(T167>'Additional inputs and control'!$D$6,SUM($D194:S194)=0),1,0) -> 0 | U194: =IF(AND(U167>'Additional inputs and control'!$D$6,SUM($D194:T194)=0),1,0) -> 0 | V194: =IF(AND(V167>'Additional inputs and control'!$D$6,SUM($D194:U194)=0),1,0) -> 0 | W194: =IF(AND(W167>'Additional inputs and control'!$D$6,SUM($D194:V194)=0),1,0) -> 0 | X194: =IF(AND(X167>'Additional inputs and control'!$D$6,SUM($D194:W194)=0),1,0) -> 0 | Y194: =IF(AND(Y167>'Additional inputs and control'!$D$6,SUM($D194:X194)=0),1,0) -> 0 | Z194: =IF(AND(Z167>'Additional inputs and control'!$D$6,SUM($D194:Y194)=0),1,0) -> 0 | AA194: =IF(AND(AA167>'Additional inputs and control'!$D$6,SUM($D194:Z194)=0),1,0) -> 0 | AB194: =IF(AND(AB167>'Additional inputs and control'!$D$6,SUM($D194:AA194)=0),1,0) -> 0 | AC194: =IF(AND(AC167>'Additional inputs and control'!$D$6,SUM($D194:AB194)=0),1,0) -> 0 | AD194: =IF(AND(AD167>'Additional inputs and control'!$D$6,SUM($D194:AC194)=0),1,0) -> 0 | AE194: =IF(AND(AE167>'Additional inputs and control'!$D$6,SUM($D194:AD194)=0),1,0) -> 0 | AF194: =IF(AND(AF167>'Additional inputs and control'!$D$6,SUM($D194:AE194)=0),1,0) -> 0 | AG194: =IF(AND(AG167>'Additional inputs and control'!$D$6,SUM($D194:AF194)=0),1,0) -> 0 | AH194: =IF(AND(AH167>'Additional inputs and control'!$D$6,SUM($D194:AG194)=0),1,0) -> 0 | AI194: =IF(AND(AI167>'Additional inputs and control'!$D$6,SUM($D194:AH194)=0),1,0) -> 0 | AJ194: =IF(AND(AJ167>'Additional inputs and control'!$D$6,SUM($D194:AI194)=0),1,0) -> 0 | AK194: =IF(AND(AK167>'Additional inputs and control'!$D$6,SUM($D194:AJ194)=0),1,0) -> 0 | AL194: =IF(AND(AL167>'Additional inputs and control'!$D$6,SUM($D194:AK194)=0),1,0) -> 0 | AM194: =IF(AND(AM167>'Additional inputs and control'!$D$6,SUM($D194:AL194)=0),1,0) -> 0 | AN194: =IF(AND(AN167>'Additional inputs and control'!$D$6,SUM($D194:AM194)=0),1,0) -> 0 | AO194: =IF(AND(AO167>'Additional inputs and control'!$D$6,SUM($D194:AN194)=0),1,0) -> 0 | AP194: =IF(AND(AP167>'Additional inputs and control'!$D$6,SUM($D194:AO194)=0),1,0) -> 0 | AQ194: =IF(AND(AQ167>'Additional inputs and control'!$D$6,SUM($D194:AP194)=0),1,0) -> 0 | AR194: =IF(AND(AR167>'Additional inputs and control'!$D$6,SUM($D194:AQ194)=0),1,0) -> 0 | AS194: =IF(AND(AS167>'Additional inputs and control'!$D$6,SUM($D194:AR194)=0),1,0) -> 0 | AT194: =IF(AND(AT167>'Additional inputs and control'!$D$6,SUM($D194:AS194)=0),1,0) -> 0 | AU194: =IF(AND(AU167>'Additional inputs and control'!$D$6,SUM($D194:AT194)=0),1,0) -> 0 | AV194: =IF(AND(AV167>'Additional inputs and control'!$D$6,SUM($D194:AU194)=0),1,0) -> 0 | AW194: =IF(AND(AW167>'Additional inputs and control'!$D$6,SUM($D194:AV194)=0),1,0) -> 0 | AX194: =IF(AND(AX167>'Additional inputs and control'!$D$6,SUM($D194:AW194)=0),1,0) -> 0 | AY194: =IF(AND(AY167>'Additional inputs and control'!$D$6,SUM($D194:AX194)=0),1,0) -> 0 | AZ194: =IF(AND(AZ167>'Additional inputs and control'!$D$6,SUM($D194:AY194)=0),1,0) -> 0 | BA194: =IF(AND(BA167>'Additional inputs and control'!$D$6,SUM($D194:AZ194)=0),1,0) -> 0 | BB194: =IF(AND(BB167>'Additional inputs and control'!$D$6,SUM($D194:BA194)=0),1,0) -> 0 | BC194: =IF(AND(BC167>'Additional inputs and control'!$D$6,SUM($D194:BB194)=0),1,0) -> 0 | BD194: =IF(AND(BD167>'Additional inputs and control'!$D$6,SUM($D194:BC194)=0),1,0) -> 0 | BE194: =IF(AND(BE167>'Additional inputs and control'!$D$6,SUM($D194:BD194)=0),1,0) -> 0 | BF194: =IF(AND(BF167>'Additional inputs and control'!$D$6,SUM($D194:BE194)=0),1,0) -> 0 | BG194: =IF(AND(BG167>'Additional inputs and control'!$D$6,SUM($D194:BF194)=0),1,0) -> 0 | BH194: =IF(AND(BH167>'Additional inputs and control'!$D$6,SUM($D194:BG194)=0),1,0) -> 0 | BI194: =IF(AND(BI167>'Additional inputs and control'!$D$6,SUM($D194:BH194)=0),1,0) -> 0 | BJ194: =IF(AND(BJ167>'Additional inputs and control'!$D$6,SUM($D194:BI194)=0),1,0) -> 0 | BK194: =IF(AND(BK167>'Additional inputs and control'!$D$6,SUM($D194:BJ194)=0),1,0) -> 0 | BL194: =IF(AND(BL167>'Additional inputs and control'!$D$6,SUM($D194:BK194)=0),1,0) -> 0 | BM194: =IF(AND(BM167>'Additional inputs and control'!$D$6,SUM($D194:BL194)=0),1,0) -> 0 | BN194: =IF(AND(BN167>'Additional inputs and control'!$D$6,SUM($D194:BM194)=0),1,0) -> 0 | BO194: =IF(AND(BO167>'Additional inputs and control'!$D$6,SUM($D194:BN194)=0),1,0) -> 0 | BP194: =IF(AND(BP167>'Additional inputs and control'!$D$6,SUM($D194:BO194)=0),1,0) -> 0 | BQ194: =IF(AND(BQ167>'Additional inputs and control'!$D$6,SUM($D194:BP194)=0),1,0) -> 0 | BR194: =IF(AND(BR167>'Additional inputs and control'!$D$6,SUM($D194:BQ194)=0),1,0) -> 0
A199: end

Sheet Flex Costs Summary
B1: =MATCH("end",A:A,0) -> 72
A2: Flexibility Requirements
C4: Upfront Costs (incured regardless of strategy duration) (£/yr) | D4: =Current_year -> 2026 | E4: =D4+1 -> 2027 | F4: =E4+1 -> 2028 | G4: =F4+1 -> 2029 | H4: =G4+1 -> 2030 | I4: =H4+1 -> 2031 | J4: =I4+1 -> 2032 | K4: =J4+1 -> 2033 | L4: =K4+1 -> 2034 | M4: =L4+1 -> 2035 | N4: =M4+1 -> 2036 | O4: =N4+1 -> 2037 | P4: =O4+1 -> 2038 | Q4: =P4+1 -> 2039 | R4: =Q4+1 -> 2040 | S4: =R4+1 -> 2041 | T4: =S4+1 -> 2042 | U4: =T4+1 -> 2043 | V4: =U4+1 -> 2044 | W4: =V4+1 -> 2045 | X4: =W4+1 -> 2046 | Y4: =X4+1 -> 2047 | Z4: =Y4+1 -> 2048 | AA4: =Z4+1 -> 2049 | AB4: =AA4+1 -> 2050 | AC4: =AB4+1 -> 2051 | AD4: =AC4+1 -> 2052 | AE4: =AD4+1 -> 2053 | AF4: =AE4+1 -> 2054 | AG4: =AF4+1 -> 2055 | AH4: =AG4+1 -> 2056 | AI4: =AH4+1 -> 2057 | AJ4: =AI4+1 -> 2058 | AK4: =AJ4+1 -> 2059 | AL4: =AK4+1 -> 2060 | AM4: =AL4+1 -> 2061 | AN4: =AM4+1 -> 2062 | AO4: =AN4+1 -> 2063 | AP4: =AO4+1 -> 2064 | AQ4: =AP4+1 -> 2065 | AR4: =AQ4+1 -> 2066 | AS4: =AR4+1 -> 2067 | AT4: =AS4+1 -> 2068 | AU4: =AT4+1 -> 2069 | AV4: =AU4+1 -> 2070 | AW4: =AV4+1 -> 2071 | AX4: =AW4+1 -> 2072 | AY4: =AX4+1 -> 2073 | AZ4: =AY4+1 -> 2074 | BA4: =AZ4+1 -> 2075 | BB4: =BA4+1 -> 2076 | BC4: =BB4+1 -> 2077 | BD4: =BC4+1 -> 2078 | BE4: =BD4+1 -> 2079 | BF4: =BE4+1 -> 2080 | BG4: =BF4+1 -> 2081 | BH4: =BG4+1 -> 2082 | BI4: =BH4+1 -> 2083 | BJ4: =BI4+1 -> 2084 | BK4: =BJ4+1 -> 2085 | BL4: =BK4+1 -> 2086 | BM4: =BL4+1 -> 2087 | BN4: =BM4+1 -> 2088 | BO4: =BN4+1 -> 2089 | BP4: =BO4+1 -> 2090 | BQ4: =BP4+1 -> 2091 | BR4: =BQ4+1 -> 2092
A5: Config | B5: 1 | C5: =IF(INDIRECT("Config"&B5&"_name")="","",INDIRECT("Config"&B5&"_name")) -> Flexibility under smaller value flex | D5: =IF($C5="","",IF(flex_cost_input_type="Input all flex costs directly",'Flex Cost Inputs'!D6,'Flex Volume and Cost Inputs'!D41)) -> 0 | E5: =IF($C5="","",IF(flex_cost_input_type="Input all flex costs directly",'Flex Cost Inputs'!E6,'Flex Volume and Cost Inputs'!E41)) -> 0 | F5: =IF($C5="","",IF(flex_cost_input_type="Input all flex costs directly",'Flex Cost Inputs'!F6,'Flex Volume and Cost Inputs'!F41)) -> 0 | G5: =IF($C5="","",IF(flex_cost_input_type="Input all flex costs directly",'Flex Cost Inputs'!G6,'Flex Volume and Cost Inputs'!G41)) -> 0 | H5: =IF($C5="","",IF(flex_cost_input_type="Input all flex costs directly",'Flex Cost Inputs'!H6,'Flex Volume and Cost Inputs'!H41)) -> 0 | I5: =IF($C5="","",IF(flex_cost_input_type="Input all flex costs directly",'Flex Cost Inputs'!I6,'Flex Volume and Cost Inputs'!I41)) -> 0 | J5: =IF($C5="","",IF(flex_cost_input_type="Input all flex costs directly",'Flex Cost Inputs'!J6,'Flex Volume and Cost Inputs'!J41)) -> 0 | K5: =IF($C5="","",IF(flex_cost_input_type="Input all flex costs directly",'Flex Cost Inputs'!K6,'Flex Volume and Cost Inputs'!K41)) -> 0 | L5: =IF($C5="","",IF(flex_cost_input_type="Input all flex costs directly",'Flex Cost Inputs'!L6,'Flex Volume and Cost Inputs'!L41)) -> 0 | M5: =IF($C5="","",IF(flex_cost_input_type="Input all flex costs directly",'Flex Cost Inputs'!M6,'Flex Volume and Cost Inputs'!M41)) -> 0 | N5: =IF($C5="","",IF(flex_cost_input_type="Input all flex costs directly",'Flex Cost Inputs'!N6,'Flex Volume and Cost Inputs'!N41)) -> 0 | O5: =IF($C5="","",IF(flex_cost_input_type="Input all flex costs directly",'Flex Cost Inputs'!O6,'Flex Volume and Cost Inputs'!O41)) -> 0 | P5: =IF($C5="","",IF(flex_cost_input_type="Input all flex costs directly",'Flex Cost Inputs'!P6,'Flex Volume and Cost Inputs'!P41)) -> 0 | Q5: =IF($C5="","",IF(flex_cost_input_type="Input all flex costs directly",'Flex Cost Inputs'!Q6,'Flex Volume and Cost Inputs'!Q41)) -> 0 | R5: =IF($C5="","",IF(flex_cost_input_type="Input all flex costs directly",'Flex Cost Inputs'!R6,'Flex Volume and Cost Inputs'!R41)) -> 0 | S5: =IF($C5="","",IF(flex_cost_input_type="Input all flex costs directly",'Flex Cost Inputs'!S6,'Flex Volume and Cost Inputs'!S41)) -> 0 | T5: =IF($C5="","",IF(flex_cost_input_type="Input all flex costs directly",'Flex Cost Inputs'!T6,'Flex Volume and Cost Inputs'!T41)) -> 0 | U5: =IF($C5="","",IF(flex_cost_input_type="Input all flex costs directly",'Flex Cost Inputs'!U6,'Flex Volume and Cost Inputs'!U41)) -> 0 | V5: =IF($C5="","",IF(flex_cost_input_type="Input all flex costs directly",'Flex Cost Inputs'!V6,'Flex Volume and Cost Inputs'!V41)) -> 0 | W5: =IF($C5="","",IF(flex_cost_input_type="Input all flex costs directly",'Flex Cost Inputs'!W6,'Flex Volume and Cost Inputs'!W41)) -> 0 | X5: =IF($C5="","",IF(flex_cost_input_type="Input all flex costs directly",'Flex Cost Inputs'!X6,'Flex Volume and Cost Inputs'!X41)) -> 0 | Y5: =IF($C5="","",IF(flex_cost_input_type="Input all flex costs directly",'Flex Cost Inputs'!Y6,'Flex Volume and Cost Inputs'!Y41)) -> 0 | Z5: =IF($C5="","",IF(flex_cost_input_type="Input all flex costs directly",'Flex Cost Inputs'!Z6,'Flex Volume and Cost Inputs'!Z41)) -> 0 | AA5: =IF($C5="","",IF(flex_cost_input_type="Input all flex costs directly",'Flex Cost Inputs'!AA6,'Flex Volume and Cost Inputs'!AA41)) -> 0 | AB5: =IF($C5="","",IF(flex_cost_input_type="Input all flex costs directly",'Flex Cost Inputs'!AB6,'Flex Volume and Cost Inputs'!AB41)) -> 0 | AC5: =IF($C5="","",IF(flex_cost_input_type="Input all flex costs directly",'Flex Cost Inputs'!AC6,'Flex Volume and Cost Inputs'!AC41)) -> 0 | AD5: =IF($C5="","",IF(flex_cost_input_type="Input all flex costs directly",'Flex Cost Inputs'!AD6,'Flex Volume and Cost Inputs'!AD41)) -> 0 | AE5: =IF($C5="","",IF(flex_cost_input_type="Input all flex costs directly",'Flex Cost Inputs'!AE6,'Flex Volume and Cost Inputs'!AE41)) -> 0 | AF5: =IF($C5="","",IF(flex_cost_input_type="Input all flex costs directly",'Flex Cost Inputs'!AF6,'Flex Volume and Cost Inputs'!AF41)) -> 0 | AG5: =IF($C5="","",IF(flex_cost_input_type="Input all flex costs directly",'Flex Cost Inputs'!AG6,'Flex Volume and Cost Inputs'!AG41)) -> 0 | AH5: =IF($C5="","",IF(flex_cost_input_type="Input all flex costs directly",'Flex Cost Inputs'!AH6,'Flex Volume and Cost Inputs'!AH41)) -> 0 | AI5: =IF($C5="","",IF(flex_cost_input_type="Input all flex costs directly",'Flex Cost Inputs'!AI6,'Flex Volume and Cost Inputs'!AI41)) -> 0 | AJ5: =IF($C5="","",IF(flex_cost_input_type="Input all flex costs directly",'Flex Cost Inputs'!AJ6,'Flex Volume and Cost Inputs'!AJ41)) -> 0 | AK5: =IF($C5="","",IF(flex_cost_input_type="Input all flex costs directly",'Flex Cost Inputs'!AK6,'Flex Volume and Cost Inputs'!AK41)) -> 0 | AL5: =IF($C5="","",IF(flex_cost_input_type="Input all flex costs directly",'Flex Cost Inputs'!AL6,'Flex Volume and Cost Inputs'!AL41)) -> 0 | AM5: =IF($C5="","",IF(flex_cost_input_type="Input all flex costs directly",'Flex Cost Inputs'!AM6,'Flex Volume and Cost Inputs'!AM41)) -> 0 | AN5: =IF($C5="","",IF(flex_cost_input_type="Input all flex costs directly",'Flex Cost Inputs'!AN6,'Flex Volume and Cost Inputs'!AN41)) -> 0 | AO5: =IF($C5="","",IF(flex_cost_input_type="Input all flex costs directly",'Flex Cost Inputs'!AO6,'Flex Volume and Cost Inputs'!AO41)) -> 0 | AP5: =IF($C5="","",IF(flex_cost_input_type="Input all flex costs directly",'Flex Cost Inputs'!AP6,'Flex Volume and Cost Inputs'!AP41)) -> 0 | AQ5: =IF($C5="","",IF(flex_cost_input_type="Input all flex costs directly",'Flex Cost Inputs'!AQ6,'Flex Volume and Cost Inputs'!AQ41)) -> 0 | AR5: =IF($C5="","",IF(flex_cost_input_type="Input all flex costs directly",'Flex Cost Inputs'!AR6,'Flex Volume and Cost Inputs'!AR41)) -> 0 | AS5: =IF($C5="","",IF(flex_cost_input_type="Input all flex costs directly",'Flex Cost Inputs'!AS6,'Flex Volume and Cost Inputs'!AS41)) -> 0 | AT5: =IF($C5="","",IF(flex_cost_input_type="Input all flex costs directly",'Flex Cost Inputs'!AT6,'Flex Volume and Cost Inputs'!AT41)) -> 0 | AU5: =IF($C5="","",IF(flex_cost_input_type="Input all flex costs directly",'Flex Cost Inputs'!AU6,'Flex Volume and Cost Inputs'!AU41)) -> 0 | AV5: =IF($C5="","",IF(flex_cost_input_type="Input all flex costs directly",'Flex Cost Inputs'!AV6,'Flex Volume and Cost Inputs'!AV41)) -> 0 | AW5: =IF($C5="","",IF(flex_cost_input_type="Input all flex costs directly",'Flex Cost Inputs'!AW6,'Flex Volume and Cost Inputs'!AW41)) -> 0 | AX5: =IF($C5="","",IF(flex_cost_input_type="Input all flex costs directly",'Flex Cost Inputs'!AX6,'Flex Volume and Cost Inputs'!AX41)) -> 0 | AY5: =IF($C5="","",IF(flex_cost_input_type="Input all flex costs directly",'Flex Cost Inputs'!AY6,'Flex Volume and Cost Inputs'!AY41)) -> 0 | AZ5: =IF($C5="","",IF(flex_cost_input_type="Input all flex costs directly",'Flex Cost Inputs'!AZ6,'Flex Volume and Cost Inputs'!AZ41)) -> 0 | BA5: =IF($C5="","",IF(flex_cost_input_type="Input all flex costs directly",'Flex Cost Inputs'!BA6,'Flex Volume and Cost Inputs'!BA41)) -> 0 | BB5: =IF($C5="","",IF(flex_cost_input_type="Input all flex costs directly",'Flex Cost Inputs'!BB6,'Flex Volume and Cost Inputs'!BB41)) -> 0 | BC5: =IF($C5="","",IF(flex_cost_input_type="Input all flex costs directly",'Flex Cost Inputs'!BC6,'Flex Volume and Cost Inputs'!BC41)) -> 0 | BD5: =IF($C5="","",IF(flex_cost_input_type="Input all flex costs directly",'Flex Cost Inputs'!BD6,'Flex Volume and Cost Inputs'!BD41)) -> 0 | BE5: =IF($C5="","",IF(flex_cost_input_type="Input all flex costs directly",'Flex Cost Inputs'!BE6,'Flex Volume and Cost Inputs'!BE41)) -> 0 | BF5: =IF($C5="","",IF(flex_cost_input_type="Input all flex costs directly",'Flex Cost Inputs'!BF6,'Flex Volume and Cost Inputs'!BF41)) -> 0 | BG5: =IF($C5="","",IF(flex_cost_input_type="Input all flex costs directly",'Flex Cost Inputs'!BG6,'Flex Volume and Cost Inputs'!BG41)) -> 0 | BH5: =IF($C5="","",IF(flex_cost_input_type="Input all flex costs directly",'Flex Cost Inputs'!BH6,'Flex Volume and Cost Inputs'!BH41)) -> 0 | BI5: =IF($C5="","",IF(flex_cost_input_type="Input all flex costs directly",'Flex Cost Inputs'!BI6,'Flex Volume and Cost Inputs'!BI41)) -> 0 | BJ5: =IF($C5="","",IF(flex_cost_input_type="Input all flex costs directly",'Flex Cost Inputs'!BJ6,'Flex Volume and Cost Inputs'!BJ41)) -> 0 | BK5: =IF($C5="","",IF(flex_cost_input_type="Input all flex costs directly",'Flex Cost Inputs'!BK6,'Flex Volume and Cost Inputs'!BK41)) -> 0 | BL5: =IF($C5="","",IF(flex_cost_input_type="Input all flex costs directly",'Flex Cost Inputs'!BL6,'Flex Volume and Cost Inputs'!BL41)) -> 0 | BM5: =IF($C5="","",IF(flex_cost_input_type="Input all flex costs directly",'Flex Cost Inputs'!BM6,'Flex Volume and Cost Inputs'!BM41)) -> 0 | BN5: =IF($C5="","",IF(flex_cost_input_type="Input all flex costs directly",'Flex Cost Inputs'!BN6,'Flex Volume and Cost Inputs'!BN41)) -> 0 | BO5: =IF($C5="","",IF(flex_cost_input_type="Input all flex costs directly",'Flex Cost Inputs'!BO6,'Flex Volume and Cost Inputs'!BO41)) -> 0 | BP5: =IF($C5="","",IF(flex_cost_input_type="Input all flex costs directly",'Flex Cost Inputs'!BP6,'Flex Volume and Cost Inputs'!BP41)) -> 0 | BQ5: =IF($C5="","",IF(flex_cost_input_type="Input all flex costs directly",'Flex Cost Inputs'!BQ6,'Flex Volume and Cost Inputs'!BQ41)) -> 0 | BR5: =IF($C5="","",IF(flex_cost_input_type="Input all flex costs directly",'Flex Cost Inputs'!BR6,'Flex Volume and Cost Inputs'!BR41)) -> 0
A6: Config | B6: 2 | C6: Flexibility under larger value flex | D6: =IF($C6="","",IF(flex_cost_input_type="Input all flex costs directly",'Flex Cost Inputs'!D7,'Flex Volume and Cost Inputs'!D42)) -> 0 | E6: =IF($C6="","",IF(flex_cost_input_type="Input all flex costs directly",'Flex Cost Inputs'!E7,'Flex Volume and Cost Inputs'!E42)) -> 0 | F6: =IF($C6="","",IF(flex_cost_input_type="Input all flex costs directly",'Flex Cost Inputs'!F7,'Flex Volume and Cost Inputs'!F42)) -> 0 | G6: =IF($C6="","",IF(flex_cost_input_type="Input all flex costs directly",'Flex Cost Inputs'!G7,'Flex Volume and Cost Inputs'!G42)) -> 0 | H6: =IF($C6="","",IF(flex_cost_input_type="Input all flex costs directly",'Flex Cost Inputs'!H7,'Flex Volume and Cost Inputs'!H42)) -> 0 | I6: =IF($C6="","",IF(flex_cost_input_type="Input all flex costs directly",'Flex Cost Inputs'!I7,'Flex Volume and Cost Inputs'!I42)) -> 0 | J6: =IF($C6="","",IF(flex_cost_input_type="Input all flex costs directly",'Flex Cost Inputs'!J7,'Flex Volume and Cost Inputs'!J42)) -> 0 | K6: =IF($C6="","",IF(flex_cost_input_type="Input all flex costs directly",'Flex Cost Inputs'!K7,'Flex Volume and Cost Inputs'!K42)) -> 0 | L6: =IF($C6="","",IF(flex_cost_input_type="Input all flex costs directly",'Flex Cost Inputs'!L7,'Flex Volume and Cost Inputs'!L42)) -> 0 | M6: =IF($C6="","",IF(flex_cost_input_type="Input all flex costs directly",'Flex Cost Inputs'!M7,'Flex Volume and Cost Inputs'!M42)) -> 0 | N6: =IF($C6="","",IF(flex_cost_input_type="Input all flex costs directly",'Flex Cost Inputs'!N7,'Flex Volume and Cost Inputs'!N42)) -> 0 | O6: =IF($C6="","",IF(flex_cost_input_type="Input all flex costs directly",'Flex Cost Inputs'!O7,'Flex Volume and Cost Inputs'!O42)) -> 0 | P6: =IF($C6="","",IF(flex_cost_input_type="Input all flex costs directly",'Flex Cost Inputs'!P7,'Flex Volume and Cost Inputs'!P42)) -> 0 | Q6: =IF($C6="","",IF(flex_cost_input_type="Input all flex costs directly",'Flex Cost Inputs'!Q7,'Flex Volume and Cost Inputs'!Q42)) -> 0 | R6: =IF($C6="","",IF(flex_cost_input_type="Input all flex costs directly",'Flex Cost Inputs'!R7,'Flex Volume and Cost Inputs'!R42)) -> 0 | S6: =IF($C6="","",IF(flex_cost_input_type="Input all flex costs directly",'Flex Cost Inputs'!S7,'Flex Volume and Cost Inputs'!S42)) -> 0 | T6: =IF($C6="","",IF(flex_cost_input_type="Input all flex costs directly",'Flex Cost Inputs'!T7,'Flex Volume and Cost Inputs'!T42)) -> 0 | U6: =IF($C6="","",IF(flex_cost_input_type="Input all flex costs directly",'Flex Cost Inputs'!U7,'Flex Volume and Cost Inputs'!U42)) -> 0 | V6: =IF($C6="","",IF(flex_cost_input_type="Input all flex costs directly",'Flex Cost Inputs'!V7,'Flex Volume and Cost Inputs'!V42)) -> 0 | W6: =IF($C6="","",IF(flex_cost_input_type="Input all flex costs directly",'Flex Cost Inputs'!W7,'Flex Volume and Cost Inputs'!W42)) -> 0 | X6: =IF($C6="","",IF(flex_cost_input_type="Input all flex costs directly",'Flex Cost Inputs'!X7,'Flex Volume and Cost Inputs'!X42)) -> 0 | Y6: =IF($C6="","",IF(flex_cost_input_type="Input all flex costs directly",'Flex Cost Inputs'!Y7,'Flex Volume and Cost Inputs'!Y42)) -> 0 | Z6: =IF($C6="","",IF(flex_cost_input_type="Input all flex costs directly",'Flex Cost Inputs'!Z7,'Flex Volume and Cost Inputs'!Z42)) -> 0 | AA6: =IF($C6="","",IF(flex_cost_input_type="Input all flex costs directly",'Flex Cost Inputs'!AA7,'Flex Volume and Cost Inputs'!AA42)) -> 0 | AB6: =IF($C6="","",IF(flex_cost_input_type="Input all flex costs directly",'Flex Cost Inputs'!AB7,'Flex Volume and Cost Inputs'!AB42)) -> 0 | AC6: =IF($C6="","",IF(flex_cost_input_type="Input all flex costs directly",'Flex Cost Inputs'!AC7,'Flex Volume and Cost Inputs'!AC42)) -> 0 | AD6: =IF($C6="","",IF(flex_cost_input_type="Input all flex costs directly",'Flex Cost Inputs'!AD7,'Flex Volume and Cost Inputs'!AD42)) -> 0 | AE6: =IF($C6="","",IF(flex_cost_input_type="Input all flex costs directly",'Flex Cost Inputs'!AE7,'Flex Volume and Cost Inputs'!AE42)) -> 0 | AF6: =IF($C6="","",IF(flex_cost_input_type="Input all flex costs directly",'Flex Cost Inputs'!AF7,'Flex Volume and Cost Inputs'!AF42)) -> 0 | AG6: =IF($C6="","",IF(flex_cost_input_type="Input all flex costs directly",'Flex Cost Inputs'!AG7,'Flex Volume and Cost Inputs'!AG42)) -> 0 | AH6: =IF($C6="","",IF(flex_cost_input_type="Input all flex costs directly",'Flex Cost Inputs'!AH7,'Flex Volume and Cost Inputs'!AH42)) -> 0 | AI6: =IF($C6="","",IF(flex_cost_input_type="Input all flex costs directly",'Flex Cost Inputs'!AI7,'Flex Volume and Cost Inputs'!AI42)) -> 0 | AJ6: =IF($C6="","",IF(flex_cost_input_type="Input all flex costs directly",'Flex Cost Inputs'!AJ7,'Flex Volume and Cost Inputs'!AJ42)) -> 0 | AK6: =IF($C6="","",IF(flex_cost_input_type="Input all flex costs directly",'Flex Cost Inputs'!AK7,'Flex Volume and Cost Inputs'!AK42)) -> 0 | AL6: =IF($C6="","",IF(flex_cost_input_type="Input all flex costs directly",'Flex Cost Inputs'!AL7,'Flex Volume and Cost Inputs'!AL42)) -> 0 | AM6: =IF($C6="","",IF(flex_cost_input_type="Input all flex costs directly",'Flex Cost Inputs'!AM7,'Flex Volume and Cost Inputs'!AM42)) -> 0 | AN6: =IF($C6="","",IF(flex_cost_input_type="Input all flex costs directly",'Flex Cost Inputs'!AN7,'Flex Volume and Cost Inputs'!AN42)) -> 0 | AO6: =IF($C6="","",IF(flex_cost_input_type="Input all flex costs directly",'Flex Cost Inputs'!AO7,'Flex Volume and Cost Inputs'!AO42)) -> 0 | AP6: =IF($C6="","",IF(flex_cost_input_type="Input all flex costs directly",'Flex Cost Inputs'!AP7,'Flex Volume and Cost Inputs'!AP42)) -> 0 | AQ6: =IF($C6="","",IF(flex_cost_input_type="Input all flex costs directly",'Flex Cost Inputs'!AQ7,'Flex Volume and Cost Inputs'!AQ42)) -> 0 | AR6: =IF($C6="","",IF(flex_cost_input_type="Input all flex costs directly",'Flex Cost Inputs'!AR7,'Flex Volume and Cost Inputs'!AR42)) -> 0 | AS6: =IF($C6="","",IF(flex_cost_input_type="Input all flex costs directly",'Flex Cost Inputs'!AS7,'Flex Volume and Cost Inputs'!AS42)) -> 0 | AT6: =IF($C6="","",IF(flex_cost_input_type="Input all flex costs directly",'Flex Cost Inputs'!AT7,'Flex Volume and Cost Inputs'!AT42)) -> 0 | AU6: =IF($C6="","",IF(flex_cost_input_type="Input all flex costs directly",'Flex Cost Inputs'!AU7,'Flex Volume and Cost Inputs'!AU42)) -> 0 | AV6: =IF($C6="","",IF(flex_cost_input_type="Input all flex costs directly",'Flex Cost Inputs'!AV7,'Flex Volume and Cost Inputs'!AV42)) -> 0 | AW6: =IF($C6="","",IF(flex_cost_input_type="Input all flex costs directly",'Flex Cost Inputs'!AW7,'Flex Volume and Cost Inputs'!AW42)) -> 0 | AX6: =IF($C6="","",IF(flex_cost_input_type="Input all flex costs directly",'Flex Cost Inputs'!AX7,'Flex Volume and Cost Inputs'!AX42)) -> 0 | AY6: =IF($C6="","",IF(flex_cost_input_type="Input all flex costs directly",'Flex Cost Inputs'!AY7,'Flex Volume and Cost Inputs'!AY42)) -> 0 | AZ6: =IF($C6="","",IF(flex_cost_input_type="Input all flex costs directly",'Flex Cost Inputs'!AZ7,'Flex Volume and Cost Inputs'!AZ42)) -> 0 | BA6: =IF($C6="","",IF(flex_cost_input_type="Input all flex costs directly",'Flex Cost Inputs'!BA7,'Flex Volume and Cost Inputs'!BA42)) -> 0 | BB6: =IF($C6="","",IF(flex_cost_input_type="Input all flex costs directly",'Flex Cost Inputs'!BB7,'Flex Volume and Cost Inputs'!BB42)) -> 0 | BC6: =IF($C6="","",IF(flex_cost_input_type="Input all flex costs directly",'Flex Cost Inputs'!BC7,'Flex Volume and Cost Inputs'!BC42)) -> 0 | BD6: =IF($C6="","",IF(flex_cost_input_type="Input all flex costs directly",'Flex Cost Inputs'!BD7,'Flex Volume and Cost Inputs'!BD42)) -> 0 | BE6: =IF($C6="","",IF(flex_cost_input_type="Input all flex costs directly",'Flex Cost Inputs'!BE7,'Flex Volume and Cost Inputs'!BE42)) -> 0 | BF6: =IF($C6="","",IF(flex_cost_input_type="Input all flex costs directly",'Flex Cost Inputs'!BF7,'Flex Volume and Cost Inputs'!BF42)) -> 0 | BG6: =IF($C6="","",IF(flex_cost_input_type="Input all flex costs directly",'Flex Cost Inputs'!BG7,'Flex Volume and Cost Inputs'!BG42)) -> 0 | BH6: =IF($C6="","",IF(flex_cost_input_type="Input all flex costs directly",'Flex Cost Inputs'!BH7,'Flex Volume and Cost Inputs'!BH42)) -> 0 | BI6: =IF($C6="","",IF(flex_cost_input_type="Input all flex costs directly",'Flex Cost Inputs'!BI7,'Flex Volume and Cost Inputs'!BI42)) -> 0 | BJ6: =IF($C6="","",IF(flex_cost_input_type="Input all flex costs directly",'Flex Cost Inputs'!BJ7,'Flex Volume and Cost Inputs'!BJ42)) -> 0 | BK6: =IF($C6="","",IF(flex_cost_input_type="Input all flex costs directly",'Flex Cost Inputs'!BK7,'Flex Volume and Cost Inputs'!BK42)) -> 0 | BL6: =IF($C6="","",IF(flex_cost_input_type="Input all flex costs directly",'Flex Cost Inputs'!BL7,'Flex Volume and Cost Inputs'!BL42)) -> 0 | BM6: =IF($C6="","",IF(flex_cost_input_type="Input all flex costs directly",'Flex Cost Inputs'!BM7,'Flex Volume and Cost Inputs'!BM42)) -> 0 | BN6: =IF($C6="","",IF(flex_cost_input_type="Input all flex costs directly",'Flex Cost Inputs'!BN7,'Flex Volume and Cost Inputs'!BN42)) -> 0 | BO6: =IF($C6="","",IF(flex_cost_input_type="Input all flex costs directly",'Flex Cost Inputs'!BO7,'Flex Volume and Cost Inputs'!BO42)) -> 0 | BP6: =IF($C6="","",IF(flex_cost_input_type="Input all flex costs directly",'Flex Cost Inputs'!BP7,'Flex Volume and Cost Inputs'!BP42)) -> 0 | BQ6: =IF($C6="","",IF(flex_cost_input_type="Input all flex costs directly",'Flex Cost Inputs'!BQ7,'Flex Volume and Cost Inputs'!BQ42)) -> 0 | BR6: =IF($C6="","",IF(flex_cost_input_type="Input all flex costs directly",'Flex Cost Inputs'!BR7,'Flex Volume and Cost Inputs'!BR42)) -> 0
A7: Config | B7: 3 | D7: =IF($C7="","",IF(flex_cost_input_type="Input all flex costs directly",'Flex Cost Inputs'!D8,'Flex Volume and Cost Inputs'!D43)) ->  | E7: =IF($C7="","",IF(flex_cost_input_type="Input all flex costs directly",'Flex Cost Inputs'!E8,'Flex Volume and Cost Inputs'!E43)) ->  | F7: =IF($C7="","",IF(flex_cost_input_type="Input all flex costs directly",'Flex Cost Inputs'!F8,'Flex Volume and Cost Inputs'!F43)) ->  | G7: =IF($C7="","",IF(flex_cost_input_type="Input all flex costs directly",'Flex Cost Inputs'!G8,'Flex Volume and Cost Inputs'!G43)) ->  | H7: =IF($C7="","",IF(flex_cost_input_type="Input all flex costs directly",'Flex Cost Inputs'!H8,'Flex Volume and Cost Inputs'!H43)) ->  | I7: =IF($C7="","",IF(flex_cost_input_type="Input all flex costs directly",'Flex Cost Inputs'!I8,'Flex Volume and Cost Inputs'!I43)) ->  | J7: =IF($C7="","",IF(flex_cost_input_type="Input all flex costs directly",'Flex Cost Inputs'!J8,'Flex Volume and Cost Inputs'!J43)) ->  | K7: =IF($C7="","",IF(flex_cost_input_type="Input all flex costs directly",'Flex Cost Inputs'!K8,'Flex Volume and Cost Inputs'!K43)) ->  | L7: =IF($C7="","",IF(flex_cost_input_type="Input all flex costs directly",'Flex Cost Inputs'!L8,'Flex Volume and Cost Inputs'!L43)) ->  | M7: =IF($C7="","",IF(flex_cost_input_type="Input all flex costs directly",'Flex Cost Inputs'!M8,'Flex Volume and Cost Inputs'!M43)) ->  | N7: =IF($C7="","",IF(flex_cost_input_type="Input all flex costs directly",'Flex Cost Inputs'!N8,'Flex Volume and Cost Inputs'!N43)) ->  | O7: =IF($C7="","",IF(flex_cost_input_type="Input all flex costs directly",'Flex Cost Inputs'!O8,'Flex Volume and Cost Inputs'!O43)) ->  | P7: =IF($C7="","",IF(flex_cost_input_type="Input all flex costs directly",'Flex Cost Inputs'!P8,'Flex Volume and Cost Inputs'!P43)) ->  | Q7: =IF($C7="","",IF(flex_cost_input_type="Input all flex costs directly",'Flex Cost Inputs'!Q8,'Flex Volume and Cost Inputs'!Q43)) ->  | R7: =IF($C7="","",IF(flex_cost_input_type="Input all flex costs directly",'Flex Cost Inputs'!R8,'Flex Volume and Cost Inputs'!R43)) ->  | S7: =IF($C7="","",IF(flex_cost_input_type="Input all flex costs directly",'Flex Cost Inputs'!S8,'Flex Volume and Cost Inputs'!S43)) ->  | T7: =IF($C7="","",IF(flex_cost_input_type="Input all flex costs directly",'Flex Cost Inputs'!T8,'Flex Volume and Cost Inputs'!T43)) ->  | U7: =IF($C7="","",IF(flex_cost_input_type="Input all flex costs directly",'Flex Cost Inputs'!U8,'Flex Volume and Cost Inputs'!U43)) ->  | V7: =IF($C7="","",IF(flex_cost_input_type="Input all flex costs directly",'Flex Cost Inputs'!V8,'Flex Volume and Cost Inputs'!V43)) ->  | W7: =IF($C7="","",IF(flex_cost_input_type="Input all flex costs directly",'Flex Cost Inputs'!W8,'Flex Volume and Cost Inputs'!W43)) ->  | X7: =IF($C7="","",IF(flex_cost_input_type="Input all flex costs directly",'Flex Cost Inputs'!X8,'Flex Volume and Cost Inputs'!X43)) ->  | Y7: =IF($C7="","",IF(flex_cost_input_type="Input all flex costs directly",'Flex Cost Inputs'!Y8,'Flex Volume and Cost Inputs'!Y43)) ->  | Z7: =IF($C7="","",IF(flex_cost_input_type="Input all flex costs directly",'Flex Cost Inputs'!Z8,'Flex Volume and Cost Inputs'!Z43)) ->  | AA7: =IF($C7="","",IF(flex_cost_input_type="Input all flex costs directly",'Flex Cost Inputs'!AA8,'Flex Volume and Cost Inputs'!AA43)) ->  | AB7: =IF($C7="","",IF(flex_cost_input_type="Input all flex costs directly",'Flex Cost Inputs'!AB8,'Flex Volume and Cost Inputs'!AB43)) ->  | AC7: =IF($C7="","",IF(flex_cost_input_type="Input all flex costs directly",'Flex Cost Inputs'!AC8,'Flex Volume and Cost Inputs'!AC43)) ->  | AD7: =IF($C7="","",IF(flex_cost_input_type="Input all flex costs directly",'Flex Cost Inputs'!AD8,'Flex Volume and Cost Inputs'!AD43)) ->  | AE7: =IF($C7="","",IF(flex_cost_input_type="Input all flex costs directly",'Flex Cost Inputs'!AE8,'Flex Volume and Cost Inputs'!AE43)) ->  | AF7: =IF($C7="","",IF(flex_cost_input_type="Input all flex costs directly",'Flex Cost Inputs'!AF8,'Flex Volume and Cost Inputs'!AF43)) ->  | AG7: =IF($C7="","",IF(flex_cost_input_type="Input all flex costs directly",'Flex Cost Inputs'!AG8,'Flex Volume and Cost Inputs'!AG43)) ->  | AH7: =IF($C7="","",IF(flex_cost_input_type="Input all flex costs directly",'Flex Cost Inputs'!AH8,'Flex Volume and Cost Inputs'!AH43)) ->  | AI7: =IF($C7="","",IF(flex_cost_input_type="Input all flex costs directly",'Flex Cost Inputs'!AI8,'Flex Volume and Cost Inputs'!AI43)) ->  | AJ7: =IF($C7="","",IF(flex_cost_input_type="Input all flex costs directly",'Flex Cost Inputs'!AJ8,'Flex Volume and Cost Inputs'!AJ43)) ->  | AK7: =IF($C7="","",IF(flex_cost_input_type="Input all flex costs directly",'Flex Cost Inputs'!AK8,'Flex Volume and Cost Inputs'!AK43)) ->  | AL7: =IF($C7="","",IF(flex_cost_input_type="Input all flex costs directly",'Flex Cost Inputs'!AL8,'Flex Volume and Cost Inputs'!AL43)) ->  | AM7: =IF($C7="","",IF(flex_cost_input_type="Input all flex costs directly",'Flex Cost Inputs'!AM8,'Flex Volume and Cost Inputs'!AM43)) ->  | AN7: =IF($C7="","",IF(flex_cost_input_type="Input all flex costs directly",'Flex Cost Inputs'!AN8,'Flex Volume and Cost Inputs'!AN43)) ->  | AO7: =IF($C7="","",IF(flex_cost_input_type="Input all flex costs directly",'Flex Cost Inputs'!AO8,'Flex Volume and Cost Inputs'!AO43)) ->  | AP7: =IF($C7="","",IF(flex_cost_input_type="Input all flex costs directly",'Flex Cost Inputs'!AP8,'Flex Volume and Cost Inputs'!AP43)) ->  | AQ7: =IF($C7="","",IF(flex_cost_input_type="Input all flex costs directly",'Flex Cost Inputs'!AQ8,'Flex Volume and Cost Inputs'!AQ43)) ->  | AR7: =IF($C7="","",IF(flex_cost_input_type="Input all flex costs directly",'Flex Cost Inputs'!AR8,'Flex Volume and Cost Inputs'!AR43)) ->  | AS7: =IF($C7="","",IF(flex_cost_input_type="Input all flex costs directly",'Flex Cost Inputs'!AS8,'Flex Volume and Cost Inputs'!AS43)) ->  | AT7: =IF($C7="","",IF(flex_cost_input_type="Input all flex costs directly",'Flex Cost Inputs'!AT8,'Flex Volume and Cost Inputs'!AT43)) ->  | AU7: =IF($C7="","",IF(flex_cost_input_type="Input all flex costs directly",'Flex Cost Inputs'!AU8,'Flex Volume and Cost Inputs'!AU43)) ->  | AV7: =IF($C7="","",IF(flex_cost_input_type="Input all flex costs directly",'Flex Cost Inputs'!AV8,'Flex Volume and Cost Inputs'!AV43)) ->  | AW7: =IF($C7="","",IF(flex_cost_input_type="Input all flex costs directly",'Flex Cost Inputs'!AW8,'Flex Volume and Cost Inputs'!AW43)) ->  | AX7: =IF($C7="","",IF(flex_cost_input_type="Input all flex costs directly",'Flex Cost Inputs'!AX8,'Flex Volume and Cost Inputs'!AX43)) ->  | AY7: =IF($C7="","",IF(flex_cost_input_type="Input all flex costs directly",'Flex Cost Inputs'!AY8,'Flex Volume and Cost Inputs'!AY43)) ->  | AZ7: =IF($C7="","",IF(flex_cost_input_type="Input all flex costs directly",'Flex Cost Inputs'!AZ8,'Flex Volume and Cost Inputs'!AZ43)) ->  | BA7: =IF($C7="","",IF(flex_cost_input_type="Input all flex costs directly",'Flex Cost Inputs'!BA8,'Flex Volume and Cost Inputs'!BA43)) ->  | BB7: =IF($C7="","",IF(flex_cost_input_type="Input all flex costs directly",'Flex Cost Inputs'!BB8,'Flex Volume and Cost Inputs'!BB43)) ->  | BC7: =IF($C7="","",IF(flex_cost_input_type="Input all flex costs directly",'Flex Cost Inputs'!BC8,'Flex Volume and Cost Inputs'!BC43)) ->  | BD7: =IF($C7="","",IF(flex_cost_input_type="Input all flex costs directly",'Flex Cost Inputs'!BD8,'Flex Volume and Cost Inputs'!BD43)) ->  | BE7: =IF($C7="","",IF(flex_cost_input_type="Input all flex costs directly",'Flex Cost Inputs'!BE8,'Flex Volume and Cost Inputs'!BE43)) ->  | BF7: =IF($C7="","",IF(flex_cost_input_type="Input all flex costs directly",'Flex Cost Inputs'!BF8,'Flex Volume and Cost Inputs'!BF43)) ->  | BG7: =IF($C7="","",IF(flex_cost_input_type="Input all flex costs directly",'Flex Cost Inputs'!BG8,'Flex Volume and Cost Inputs'!BG43)) ->  | BH7: =IF($C7="","",IF(flex_cost_input_type="Input all flex costs directly",'Flex Cost Inputs'!BH8,'Flex Volume and Cost Inputs'!BH43)) ->  | BI7: =IF($C7="","",IF(flex_cost_input_type="Input all flex costs directly",'Flex Cost Inputs'!BI8,'Flex Volume and Cost Inputs'!BI43)) ->  | BJ7: =IF($C7="","",IF(flex_cost_input_type="Input all flex costs directly",'Flex Cost Inputs'!BJ8,'Flex Volume and Cost Inputs'!BJ43)) ->  | BK7: =IF($C7="","",IF(flex_cost_input_type="Input all flex costs directly",'Flex Cost Inputs'!BK8,'Flex Volume and Cost Inputs'!BK43)) ->  | BL7: =IF($C7="","",IF(flex_cost_input_type="Input all flex costs directly",'Flex Cost Inputs'!BL8,'Flex Volume and Cost Inputs'!BL43)) ->  | BM7: =IF($C7="","",IF(flex_cost_input_type="Input all flex costs directly",'Flex Cost Inputs'!BM8,'Flex Volume and Cost Inputs'!BM43)) ->  | BN7: =IF($C7="","",IF(flex_cost_input_type="Input all flex costs directly",'Flex Cost Inputs'!BN8,'Flex Volume and Cost Inputs'!BN43)) ->  | BO7: =IF($C7="","",IF(flex_cost_input_type="Input all flex costs directly",'Flex Cost Inputs'!BO8,'Flex Volume and Cost Inputs'!BO43)) ->  | BP7: =IF($C7="","",IF(flex_cost_input_type="Input all flex costs directly",'Flex Cost Inputs'!BP8,'Flex Volume and Cost Inputs'!BP43)) ->  | BQ7: =IF($C7="","",IF(flex_cost_input_type="Input all flex costs directly",'Flex Cost Inputs'!BQ8,'Flex Volume and Cost Inputs'!BQ43)) ->  | BR7: =IF($C7="","",IF(flex_cost_input_type="Input all flex costs directly",'Flex Cost Inputs'!BR8,'Flex Volume and Cost Inputs'!BR43)) -> 
A8: Config | B8: 4 | D8: =IF($C8="","",IF(flex_cost_input_type="Input all flex costs directly",'Flex Cost Inputs'!D9,'Flex Volume and Cost Inputs'!D44)) ->  | E8: =IF($C8="","",IF(flex_cost_input_type="Input all flex costs directly",'Flex Cost Inputs'!E9,'Flex Volume and Cost Inputs'!E44)) ->  | F8: =IF($C8="","",IF(flex_cost_input_type="Input all flex costs directly",'Flex Cost Inputs'!F9,'Flex Volume and Cost Inputs'!F44)) ->  | G8: =IF($C8="","",IF(flex_cost_input_type="Input all flex costs directly",'Flex Cost Inputs'!G9,'Flex Volume and Cost Inputs'!G44)) ->  | H8: =IF($C8="","",IF(flex_cost_input_type="Input all flex costs directly",'Flex Cost Inputs'!H9,'Flex Volume and Cost Inputs'!H44)) ->  | I8: =IF($C8="","",IF(flex_cost_input_type="Input all flex costs directly",'Flex Cost Inputs'!I9,'Flex Volume and Cost Inputs'!I44)) ->  | J8: =IF($C8="","",IF(flex_cost_input_type="Input all flex costs directly",'Flex Cost Inputs'!J9,'Flex Volume and Cost Inputs'!J44)) ->  | K8: =IF($C8="","",IF(flex_cost_input_type="Input all flex costs directly",'Flex Cost Inputs'!K9,'Flex Volume and Cost Inputs'!K44)) ->  | L8: =IF($C8="","",IF(flex_cost_input_type="Input all flex costs directly",'Flex Cost Inputs'!L9,'Flex Volume and Cost Inputs'!L44)) ->  | M8: =IF($C8="","",IF(flex_cost_input_type="Input all flex costs directly",'Flex Cost Inputs'!M9,'Flex Volume and Cost Inputs'!M44)) ->  | N8: =IF($C8="","",IF(flex_cost_input_type="Input all flex costs directly",'Flex Cost Inputs'!N9,'Flex Volume and Cost Inputs'!N44)) ->  | O8: =IF($C8="","",IF(flex_cost_input_type="Input all flex costs directly",'Flex Cost Inputs'!O9,'Flex Volume and Cost Inputs'!O44)) ->  | P8: =IF($C8="","",IF(flex_cost_input_type="Input all flex costs directly",'Flex Cost Inputs'!P9,'Flex Volume and Cost Inputs'!P44)) ->  | Q8: =IF($C8="","",IF(flex_cost_input_type="Input all flex costs directly",'Flex Cost Inputs'!Q9,'Flex Volume and Cost Inputs'!Q44)) ->  | R8: =IF($C8="","",IF(flex_cost_input_type="Input all flex costs directly",'Flex Cost Inputs'!R9,'Flex Volume and Cost Inputs'!R44)) ->  | S8: =IF($C8="","",IF(flex_cost_input_type="Input all flex costs directly",'Flex Cost Inputs'!S9,'Flex Volume and Cost Inputs'!S44)) ->  | T8: =IF($C8="","",IF(flex_cost_input_type="Input all flex costs directly",'Flex Cost Inputs'!T9,'Flex Volume and Cost Inputs'!T44)) ->  | U8: =IF($C8="","",IF(flex_cost_input_type="Input all flex costs directly",'Flex Cost Inputs'!U9,'Flex Volume and Cost Inputs'!U44)) ->  | V8: =IF($C8="","",IF(flex_cost_input_type="Input all flex costs directly",'Flex Cost Inputs'!V9,'Flex Volume and Cost Inputs'!V44)) ->  | W8: =IF($C8="","",IF(flex_cost_input_type="Input all flex costs directly",'Flex Cost Inputs'!W9,'Flex Volume and Cost Inputs'!W44)) ->  | X8: =IF($C8="","",IF(flex_cost_input_type="Input all flex costs directly",'Flex Cost Inputs'!X9,'Flex Volume and Cost Inputs'!X44)) ->  | Y8: =IF($C8="","",IF(flex_cost_input_type="Input all flex costs directly",'Flex Cost Inputs'!Y9,'Flex Volume and Cost Inputs'!Y44)) ->  | Z8: =IF($C8="","",IF(flex_cost_input_type="Input all flex costs directly",'Flex Cost Inputs'!Z9,'Flex Volume and Cost Inputs'!Z44)) ->  | AA8: =IF($C8="","",IF(flex_cost_input_type="Input all flex costs directly",'Flex Cost Inputs'!AA9,'Flex Volume and Cost Inputs'!AA44)) ->  | AB8: =IF($C8="","",IF(flex_cost_input_type="Input all flex costs directly",'Flex Cost Inputs'!AB9,'Flex Volume and Cost Inputs'!AB44)) ->  | AC8: =IF($C8="","",IF(flex_cost_input_type="Input all flex costs directly",'Flex Cost Inputs'!AC9,'Flex Volume and Cost Inputs'!AC44)) ->  | AD8: =IF($C8="","",IF(flex_cost_input_type="Input all flex costs directly",'Flex Cost Inputs'!AD9,'Flex Volume and Cost Inputs'!AD44)) ->  | AE8: =IF($C8="","",IF(flex_cost_input_type="Input all flex costs directly",'Flex Cost Inputs'!AE9,'Flex Volume and Cost Inputs'!AE44)) ->  | AF8: =IF($C8="","",IF(flex_cost_input_type="Input all flex costs directly",'Flex Cost Inputs'!AF9,'Flex Volume and Cost Inputs'!AF44)) ->  | AG8: =IF($C8="","",IF(flex_cost_input_type="Input all flex costs directly",'Flex Cost Inputs'!AG9,'Flex Volume and Cost Inputs'!AG44)) ->  | AH8: =IF($C8="","",IF(flex_cost_input_type="Input all flex costs directly",'Flex Cost Inputs'!AH9,'Flex Volume and Cost Inputs'!AH44)) ->  | AI8: =IF($C8="","",IF(flex_cost_input_type="Input all flex costs directly",'Flex Cost Inputs'!AI9,'Flex Volume and Cost Inputs'!AI44)) ->  | AJ8: =IF($C8="","",IF(flex_cost_input_type="Input all flex costs directly",'Flex Cost Inputs'!AJ9,'Flex Volume and Cost Inputs'!AJ44)) ->  | AK8: =IF($C8="","",IF(flex_cost_input_type="Input all flex costs directly",'Flex Cost Inputs'!AK9,'Flex Volume and Cost Inputs'!AK44)) ->  | AL8: =IF($C8="","",IF(flex_cost_input_type="Input all flex costs directly",'Flex Cost Inputs'!AL9,'Flex Volume and Cost Inputs'!AL44)) ->  | AM8: =IF($C8="","",IF(flex_cost_input_type="Input all flex costs directly",'Flex Cost Inputs'!AM9,'Flex Volume and Cost Inputs'!AM44)) ->  | AN8: =IF($C8="","",IF(flex_cost_input_type="Input all flex costs directly",'Flex Cost Inputs'!AN9,'Flex Volume and Cost Inputs'!AN44)) ->  | AO8: =IF($C8="","",IF(flex_cost_input_type="Input all flex costs directly",'Flex Cost Inputs'!AO9,'Flex Volume and Cost Inputs'!AO44)) ->  | AP8: =IF($C8="","",IF(flex_cost_input_type="Input all flex costs directly",'Flex Cost Inputs'!AP9,'Flex Volume and Cost Inputs'!AP44)) ->  | AQ8: =IF($C8="","",IF(flex_cost_input_type="Input all flex costs directly",'Flex Cost Inputs'!AQ9,'Flex Volume and Cost Inputs'!AQ44)) ->  | AR8: =IF($C8="","",IF(flex_cost_input_type="Input all flex costs directly",'Flex Cost Inputs'!AR9,'Flex Volume and Cost Inputs'!AR44)) ->  | AS8: =IF($C8="","",IF(flex_cost_input_type="Input all flex costs directly",'Flex Cost Inputs'!AS9,'Flex Volume and Cost Inputs'!AS44)) ->  | AT8: =IF($C8="","",IF(flex_cost_input_type="Input all flex costs directly",'Flex Cost Inputs'!AT9,'Flex Volume and Cost Inputs'!AT44)) ->  | AU8: =IF($C8="","",IF(flex_cost_input_type="Input all flex costs directly",'Flex Cost Inputs'!AU9,'Flex Volume and Cost Inputs'!AU44)) ->  | AV8: =IF($C8="","",IF(flex_cost_input_type="Input all flex costs directly",'Flex Cost Inputs'!AV9,'Flex Volume and Cost Inputs'!AV44)) ->  | AW8: =IF($C8="","",IF(flex_cost_input_type="Input all flex costs directly",'Flex Cost Inputs'!AW9,'Flex Volume and Cost Inputs'!AW44)) ->  | AX8: =IF($C8="","",IF(flex_cost_input_type="Input all flex costs directly",'Flex Cost Inputs'!AX9,'Flex Volume and Cost Inputs'!AX44)) ->  | AY8: =IF($C8="","",IF(flex_cost_input_type="Input all flex costs directly",'Flex Cost Inputs'!AY9,'Flex Volume and Cost Inputs'!AY44)) ->  | AZ8: =IF($C8="","",IF(flex_cost_input_type="Input all flex costs directly",'Flex Cost Inputs'!AZ9,'Flex Volume and Cost Inputs'!AZ44)) ->  | BA8: =IF($C8="","",IF(flex_cost_input_type="Input all flex costs directly",'Flex Cost Inputs'!BA9,'Flex Volume and Cost Inputs'!BA44)) ->  | BB8: =IF($C8="","",IF(flex_cost_input_type="Input all flex costs directly",'Flex Cost Inputs'!BB9,'Flex Volume and Cost Inputs'!BB44)) ->  | BC8: =IF($C8="","",IF(flex_cost_input_type="Input all flex costs directly",'Flex Cost Inputs'!BC9,'Flex Volume and Cost Inputs'!BC44)) ->  | BD8: =IF($C8="","",IF(flex_cost_input_type="Input all flex costs directly",'Flex Cost Inputs'!BD9,'Flex Volume and Cost Inputs'!BD44)) ->  | BE8: =IF($C8="","",IF(flex_cost_input_type="Input all flex costs directly",'Flex Cost Inputs'!BE9,'Flex Volume and Cost Inputs'!BE44)) ->  | BF8: =IF($C8="","",IF(flex_cost_input_type="Input all flex costs directly",'Flex Cost Inputs'!BF9,'Flex Volume and Cost Inputs'!BF44)) ->  | BG8: =IF($C8="","",IF(flex_cost_input_type="Input all flex costs directly",'Flex Cost Inputs'!BG9,'Flex Volume and Cost Inputs'!BG44)) ->  | BH8: =IF($C8="","",IF(flex_cost_input_type="Input all flex costs directly",'Flex Cost Inputs'!BH9,'Flex Volume and Cost Inputs'!BH44)) ->  | BI8: =IF($C8="","",IF(flex_cost_input_type="Input all flex costs directly",'Flex Cost Inputs'!BI9,'Flex Volume and Cost Inputs'!BI44)) ->  | BJ8: =IF($C8="","",IF(flex_cost_input_type="Input all flex costs directly",'Flex Cost Inputs'!BJ9,'Flex Volume and Cost Inputs'!BJ44)) ->  | BK8: =IF($C8="","",IF(flex_cost_input_type="Input all flex costs directly",'Flex Cost Inputs'!BK9,'Flex Volume and Cost Inputs'!BK44)) ->  | BL8: =IF($C8="","",IF(flex_cost_input_type="Input all flex costs directly",'Flex Cost Inputs'!BL9,'Flex Volume and Cost Inputs'!BL44)) ->  | BM8: =IF($C8="","",IF(flex_cost_input_type="Input all flex costs directly",'Flex Cost Inputs'!BM9,'Flex Volume and Cost Inputs'!BM44)) ->  | BN8: =IF($C8="","",IF(flex_cost_input_type="Input all flex costs directly",'Flex Cost Inputs'!BN9,'Flex Volume and Cost Inputs'!BN44)) ->  | BO8: =IF($C8="","",IF(flex_cost_input_type="Input all flex costs directly",'Flex Cost Inputs'!BO9,'Flex Volume and Cost Inputs'!BO44)) ->  | BP8: =IF($C8="","",IF(flex_cost_input_type="Input all flex costs directly",'Flex Cost Inputs'!BP9,'Flex Volume and Cost Inputs'!BP44)) ->  | BQ8: =IF($C8="","",IF(flex_cost_input_type="Input all flex costs directly",'Flex Cost Inputs'!BQ9,'Flex Volume and Cost Inputs'!BQ44)) ->  | BR8: =IF($C8="","",IF(flex_cost_input_type="Input all flex costs directly",'Flex Cost Inputs'!BR9,'Flex Volume and Cost Inputs'!BR44)) -> 
A9: Config | B9: 5 | D9: =IF($C9="","",IF(flex_cost_input_type="Input all flex costs directly",'Flex Cost Inputs'!D10,'Flex Volume and Cost Inputs'!D45)) ->  | E9: =IF($C9="","",IF(flex_cost_input_type="Input all flex costs directly",'Flex Cost Inputs'!E10,'Flex Volume and Cost Inputs'!E45)) ->  | F9: =IF($C9="","",IF(flex_cost_input_type="Input all flex costs directly",'Flex Cost Inputs'!F10,'Flex Volume and Cost Inputs'!F45)) ->  | G9: =IF($C9="","",IF(flex_cost_input_type="Input all flex costs directly",'Flex Cost Inputs'!G10,'Flex Volume and Cost Inputs'!G45)) ->  | H9: =IF($C9="","",IF(flex_cost_input_type="Input all flex costs directly",'Flex Cost Inputs'!H10,'Flex Volume and Cost Inputs'!H45)) ->  | I9: =IF($C9="","",IF(flex_cost_input_type="Input all flex costs directly",'Flex Cost Inputs'!I10,'Flex Volume and Cost Inputs'!I45)) ->  | J9: =IF($C9="","",IF(flex_cost_input_type="Input all flex costs directly",'Flex Cost Inputs'!J10,'Flex Volume and Cost Inputs'!J45)) ->  | K9: =IF($C9="","",IF(flex_cost_input_type="Input all flex costs directly",'Flex Cost Inputs'!K10,'Flex Volume and Cost Inputs'!K45)) ->  | L9: =IF($C9="","",IF(flex_cost_input_type="Input all flex costs directly",'Flex Cost Inputs'!L10,'Flex Volume and Cost Inputs'!L45)) ->  | M9: =IF($C9="","",IF(flex_cost_input_type="Input all flex costs directly",'Flex Cost Inputs'!M10,'Flex Volume and Cost Inputs'!M45)) ->  | N9: =IF($C9="","",IF(flex_cost_input_type="Input all flex costs directly",'Flex Cost Inputs'!N10,'Flex Volume and Cost Inputs'!N45)) ->  | O9: =IF($C9="","",IF(flex_cost_input_type="Input all flex costs directly",'Flex Cost Inputs'!O10,'Flex Volume and Cost Inputs'!O45)) ->  | P9: =IF($C9="","",IF(flex_cost_input_type="Input all flex costs directly",'Flex Cost Inputs'!P10,'Flex Volume and Cost Inputs'!P45)) ->  | Q9: =IF($C9="","",IF(flex_cost_input_type="Input all flex costs directly",'Flex Cost Inputs'!Q10,'Flex Volume and Cost Inputs'!Q45)) ->  | R9: =IF($C9="","",IF(flex_cost_input_type="Input all flex costs directly",'Flex Cost Inputs'!R10,'Flex Volume and Cost Inputs'!R45)) ->  | S9: =IF($C9="","",IF(flex_cost_input_type="Input all flex costs directly",'Flex Cost Inputs'!S10,'Flex Volume and Cost Inputs'!S45)) ->  | T9: =IF($C9="","",IF(flex_cost_input_type="Input all flex costs directly",'Flex Cost Inputs'!T10,'Flex Volume and Cost Inputs'!T45)) ->  | U9: =IF($C9="","",IF(flex_cost_input_type="Input all flex costs directly",'Flex Cost Inputs'!U10,'Flex Volume and Cost Inputs'!U45)) ->  | V9: =IF($C9="","",IF(flex_cost_input_type="Input all flex costs directly",'Flex Cost Inputs'!V10,'Flex Volume and Cost Inputs'!V45)) ->  | W9: =IF($C9="","",IF(flex_cost_input_type="Input all flex costs directly",'Flex Cost Inputs'!W10,'Flex Volume and Cost Inputs'!W45)) ->  | X9: =IF($C9="","",IF(flex_cost_input_type="Input all flex costs directly",'Flex Cost Inputs'!X10,'Flex Volume and Cost Inputs'!X45)) ->  | Y9: =IF($C9="","",IF(flex_cost_input_type="Input all flex costs directly",'Flex Cost Inputs'!Y10,'Flex Volume and Cost Inputs'!Y45)) ->  | Z9: =IF($C9="","",IF(flex_cost_input_type="Input all flex costs directly",'Flex Cost Inputs'!Z10,'Flex Volume and Cost Inputs'!Z45)) ->  | AA9: =IF($C9="","",IF(flex_cost_input_type="Input all flex costs directly",'Flex Cost Inputs'!AA10,'Flex Volume and Cost Inputs'!AA45)) ->  | AB9: =IF($C9="","",IF(flex_cost_input_type="Input all flex costs directly",'Flex Cost Inputs'!AB10,'Flex Volume and Cost Inputs'!AB45)) ->  | AC9: =IF($C9="","",IF(flex_cost_input_type="Input all flex costs directly",'Flex Cost Inputs'!AC10,'Flex Volume and Cost Inputs'!AC45)) ->  | AD9: =IF($C9="","",IF(flex_cost_input_type="Input all flex costs directly",'Flex Cost Inputs'!AD10,'Flex Volume and Cost Inputs'!AD45)) ->  | AE9: =IF($C9="","",IF(flex_cost_input_type="Input all flex costs directly",'Flex Cost Inputs'!AE10,'Flex Volume and Cost Inputs'!AE45)) ->  | AF9: =IF($C9="","",IF(flex_cost_input_type="Input all flex costs directly",'Flex Cost Inputs'!AF10,'Flex Volume and Cost Inputs'!AF45)) ->  | AG9: =IF($C9="","",IF(flex_cost_input_type="Input all flex costs directly",'Flex Cost Inputs'!AG10,'Flex Volume and Cost Inputs'!AG45)) ->  | AH9: =IF($C9="","",IF(flex_cost_input_type="Input all flex costs directly",'Flex Cost Inputs'!AH10,'Flex Volume and Cost Inputs'!AH45)) ->  | AI9: =IF($C9="","",IF(flex_cost_input_type="Input all flex costs directly",'Flex Cost Inputs'!AI10,'Flex Volume and Cost Inputs'!AI45)) ->  | AJ9: =IF($C9="","",IF(flex_cost_input_type="Input all flex costs directly",'Flex Cost Inputs'!AJ10,'Flex Volume and Cost Inputs'!AJ45)) ->  | AK9: =IF($C9="","",IF(flex_cost_input_type="Input all flex costs directly",'Flex Cost Inputs'!AK10,'Flex Volume and Cost Inputs'!AK45)) ->  | AL9: =IF($C9="","",IF(flex_cost_input_type="Input all flex costs directly",'Flex Cost Inputs'!AL10,'Flex Volume and Cost Inputs'!AL45)) ->  | AM9: =IF($C9="","",IF(flex_cost_input_type="Input all flex costs directly",'Flex Cost Inputs'!AM10,'Flex Volume and Cost Inputs'!AM45)) ->  | AN9: =IF($C9="","",IF(flex_cost_input_type="Input all flex costs directly",'Flex Cost Inputs'!AN10,'Flex Volume and Cost Inputs'!AN45)) ->  | AO9: =IF($C9="","",IF(flex_cost_input_type="Input all flex costs directly",'Flex Cost Inputs'!AO10,'Flex Volume and Cost Inputs'!AO45)) ->  | AP9: =IF($C9="","",IF(flex_cost_input_type="Input all flex costs directly",'Flex Cost Inputs'!AP10,'Flex Volume and Cost Inputs'!AP45)) ->  | AQ9: =IF($C9="","",IF(flex_cost_input_type="Input all flex costs directly",'Flex Cost Inputs'!AQ10,'Flex Volume and Cost Inputs'!AQ45)) ->  | AR9: =IF($C9="","",IF(flex_cost_input_type="Input all flex costs directly",'Flex Cost Inputs'!AR10,'Flex Volume and Cost Inputs'!AR45)) ->  | AS9: =IF($C9="","",IF(flex_cost_input_type="Input all flex costs directly",'Flex Cost Inputs'!AS10,'Flex Volume and Cost Inputs'!AS45)) ->  | AT9: =IF($C9="","",IF(flex_cost_input_type="Input all flex costs directly",'Flex Cost Inputs'!AT10,'Flex Volume and Cost Inputs'!AT45)) ->  | AU9: =IF($C9="","",IF(flex_cost_input_type="Input all flex costs directly",'Flex Cost Inputs'!AU10,'Flex Volume and Cost Inputs'!AU45)) ->  | AV9: =IF($C9="","",IF(flex_cost_input_type="Input all flex costs directly",'Flex Cost Inputs'!AV10,'Flex Volume and Cost Inputs'!AV45)) ->  | AW9: =IF($C9="","",IF(flex_cost_input_type="Input all flex costs directly",'Flex Cost Inputs'!AW10,'Flex Volume and Cost Inputs'!AW45)) ->  | AX9: =IF($C9="","",IF(flex_cost_input_type="Input all flex costs directly",'Flex Cost Inputs'!AX10,'Flex Volume and Cost Inputs'!AX45)) ->  | AY9: =IF($C9="","",IF(flex_cost_input_type="Input all flex costs directly",'Flex Cost Inputs'!AY10,'Flex Volume and Cost Inputs'!AY45)) ->  | AZ9: =IF($C9="","",IF(flex_cost_input_type="Input all flex costs directly",'Flex Cost Inputs'!AZ10,'Flex Volume and Cost Inputs'!AZ45)) ->  | BA9: =IF($C9="","",IF(flex_cost_input_type="Input all flex costs directly",'Flex Cost Inputs'!BA10,'Flex Volume and Cost Inputs'!BA45)) ->  | BB9: =IF($C9="","",IF(flex_cost_input_type="Input all flex costs directly",'Flex Cost Inputs'!BB10,'Flex Volume and Cost Inputs'!BB45)) ->  | BC9: =IF($C9="","",IF(flex_cost_input_type="Input all flex costs directly",'Flex Cost Inputs'!BC10,'Flex Volume and Cost Inputs'!BC45)) ->  | BD9: =IF($C9="","",IF(flex_cost_input_type="Input all flex costs directly",'Flex Cost Inputs'!BD10,'Flex Volume and Cost Inputs'!BD45)) ->  | BE9: =IF($C9="","",IF(flex_cost_input_type="Input all flex costs directly",'Flex Cost Inputs'!BE10,'Flex Volume and Cost Inputs'!BE45)) ->  | BF9: =IF($C9="","",IF(flex_cost_input_type="Input all flex costs directly",'Flex Cost Inputs'!BF10,'Flex Volume and Cost Inputs'!BF45)) ->  | BG9: =IF($C9="","",IF(flex_cost_input_type="Input all flex costs directly",'Flex Cost Inputs'!BG10,'Flex Volume and Cost Inputs'!BG45)) ->  | BH9: =IF($C9="","",IF(flex_cost_input_type="Input all flex costs directly",'Flex Cost Inputs'!BH10,'Flex Volume and Cost Inputs'!BH45)) ->  | BI9: =IF($C9="","",IF(flex_cost_input_type="Input all flex costs directly",'Flex Cost Inputs'!BI10,'Flex Volume and Cost Inputs'!BI45)) ->  | BJ9: =IF($C9="","",IF(flex_cost_input_type="Input all flex costs directly",'Flex Cost Inputs'!BJ10,'Flex Volume and Cost Inputs'!BJ45)) ->  | BK9: =IF($C9="","",IF(flex_cost_input_type="Input all flex costs directly",'Flex Cost Inputs'!BK10,'Flex Volume and Cost Inputs'!BK45)) ->  | BL9: =IF($C9="","",IF(flex_cost_input_type="Input all flex costs directly",'Flex Cost Inputs'!BL10,'Flex Volume and Cost Inputs'!BL45)) ->  | BM9: =IF($C9="","",IF(flex_cost_input_type="Input all flex costs directly",'Flex Cost Inputs'!BM10,'Flex Volume and Cost Inputs'!BM45)) ->  | BN9: =IF($C9="","",IF(flex_cost_input_type="Input all flex costs directly",'Flex Cost Inputs'!BN10,'Flex Volume and Cost Inputs'!BN45)) ->  | BO9: =IF($C9="","",IF(flex_cost_input_type="Input all flex costs directly",'Flex Cost Inputs'!BO10,'Flex Volume and Cost Inputs'!BO45)) ->  | BP9: =IF($C9="","",IF(flex_cost_input_type="Input all flex costs directly",'Flex Cost Inputs'!BP10,'Flex Volume and Cost Inputs'!BP45)) ->  | BQ9: =IF($C9="","",IF(flex_cost_input_type="Input all flex costs directly",'Flex Cost Inputs'!BQ10,'Flex Volume and Cost Inputs'!BQ45)) ->  | BR9: =IF($C9="","",IF(flex_cost_input_type="Input all flex costs directly",'Flex Cost Inputs'!BR10,'Flex Volume and Cost Inputs'!BR45)) -> 
A10: Config | B10: 6 | D10: =IF($C10="","",IF(flex_cost_input_type="Input all flex costs directly",'Flex Cost Inputs'!D11,'Flex Volume and Cost Inputs'!D46)) ->  | E10: =IF($C10="","",IF(flex_cost_input_type="Input all flex costs directly",'Flex Cost Inputs'!E11,'Flex Volume and Cost Inputs'!E46)) ->  | F10: =IF($C10="","",IF(flex_cost_input_type="Input all flex costs directly",'Flex Cost Inputs'!F11,'Flex Volume and Cost Inputs'!F46)) ->  | G10: =IF($C10="","",IF(flex_cost_input_type="Input all flex costs directly",'Flex Cost Inputs'!G11,'Flex Volume and Cost Inputs'!G46)) ->  | H10: =IF($C10="","",IF(flex_cost_input_type="Input all flex costs directly",'Flex Cost Inputs'!H11,'Flex Volume and Cost Inputs'!H46)) ->  | I10: =IF($C10="","",IF(flex_cost_input_type="Input all flex costs directly",'Flex Cost Inputs'!I11,'Flex Volume and Cost Inputs'!I46)) ->  | J10: =IF($C10="","",IF(flex_cost_input_type="Input all flex costs directly",'Flex Cost Inputs'!J11,'Flex Volume and Cost Inputs'!J46)) ->  | K10: =IF($C10="","",IF(flex_cost_input_type="Input all flex costs directly",'Flex Cost Inputs'!K11,'Flex Volume and Cost Inputs'!K46)) ->  | L10: =IF($C10="","",IF(flex_cost_input_type="Input all flex costs directly",'Flex Cost Inputs'!L11,'Flex Volume and Cost Inputs'!L46)) ->  | M10: =IF($C10="","",IF(flex_cost_input_type="Input all flex costs directly",'Flex Cost Inputs'!M11,'Flex Volume and Cost Inputs'!M46)) ->  | N10: =IF($C10="","",IF(flex_cost_input_type="Input all flex costs directly",'Flex Cost Inputs'!N11,'Flex Volume and Cost Inputs'!N46)) ->  | O10: =IF($C10="","",IF(flex_cost_input_type="Input all flex costs directly",'Flex Cost Inputs'!O11,'Flex Volume and Cost Inputs'!O46)) ->  | P10: =IF($C10="","",IF(flex_cost_input_type="Input all flex costs directly",'Flex Cost Inputs'!P11,'Flex Volume and Cost Inputs'!P46)) ->  | Q10: =IF($C10="","",IF(flex_cost_input_type="Input all flex costs directly",'Flex Cost Inputs'!Q11,'Flex Volume and Cost Inputs'!Q46)) ->  | R10: =IF($C10="","",IF(flex_cost_input_type="Input all flex costs directly",'Flex Cost Inputs'!R11,'Flex Volume and Cost Inputs'!R46)) ->  | S10: =IF($C10="","",IF(flex_cost_input_type="Input all flex costs directly",'Flex Cost Inputs'!S11,'Flex Volume and Cost Inputs'!S46)) ->  | T10: =IF($C10="","",IF(flex_cost_input_type="Input all flex costs directly",'Flex Cost Inputs'!T11,'Flex Volume and Cost Inputs'!T46)) ->  | U10: =IF($C10="","",IF(flex_cost_input_type="Input all flex costs directly",'Flex Cost Inputs'!U11,'Flex Volume and Cost Inputs'!U46)) ->  | V10: =IF($C10="","",IF(flex_cost_input_type="Input all flex costs directly",'Flex Cost Inputs'!V11,'Flex Volume and Cost Inputs'!V46)) ->  | W10: =IF($C10="","",IF(flex_cost_input_type="Input all flex costs directly",'Flex Cost Inputs'!W11,'Flex Volume and Cost Inputs'!W46)) ->  | X10: =IF($C10="","",IF(flex_cost_input_type="Input all flex costs directly",'Flex Cost Inputs'!X11,'Flex Volume and Cost Inputs'!X46)) ->  | Y10: =IF($C10="","",IF(flex_cost_input_type="Input all flex costs directly",'Flex Cost Inputs'!Y11,'Flex Volume and Cost Inputs'!Y46)) ->  | Z10: =IF($C10="","",IF(flex_cost_input_type="Input all flex costs directly",'Flex Cost Inputs'!Z11,'Flex Volume and Cost Inputs'!Z46)) ->  | AA10: =IF($C10="","",IF(flex_cost_input_type="Input all flex costs directly",'Flex Cost Inputs'!AA11,'Flex Volume and Cost Inputs'!AA46)) ->  | AB10: =IF($C10="","",IF(flex_cost_input_type="Input all flex costs directly",'Flex Cost Inputs'!AB11,'Flex Volume and Cost Inputs'!AB46)) ->  | AC10: =IF($C10="","",IF(flex_cost_input_type="Input all flex costs directly",'Flex Cost Inputs'!AC11,'Flex Volume and Cost Inputs'!AC46)) ->  | AD10: =IF($C10="","",IF(flex_cost_input_type="Input all flex costs directly",'Flex Cost Inputs'!AD11,'Flex Volume and Cost Inputs'!AD46)) ->  | AE10: =IF($C10="","",IF(flex_cost_input_type="Input all flex costs directly",'Flex Cost Inputs'!AE11,'Flex Volume and Cost Inputs'!AE46)) ->  | AF10: =IF($C10="","",IF(flex_cost_input_type="Input all flex costs directly",'Flex Cost Inputs'!AF11,'Flex Volume and Cost Inputs'!AF46)) ->  | AG10: =IF($C10="","",IF(flex_cost_input_type="Input all flex costs directly",'Flex Cost Inputs'!AG11,'Flex Volume and Cost Inputs'!AG46)) ->  | AH10: =IF($C10="","",IF(flex_cost_input_type="Input all flex costs directly",'Flex Cost Inputs'!AH11,'Flex Volume and Cost Inputs'!AH46)) ->  | AI10: =IF($C10="","",IF(flex_cost_input_type="Input all flex costs directly",'Flex Cost Inputs'!AI11,'Flex Volume and Cost Inputs'!AI46)) ->  | AJ10: =IF($C10="","",IF(flex_cost_input_type="Input all flex costs directly",'Flex Cost Inputs'!AJ11,'Flex Volume and Cost Inputs'!AJ46)) ->  | AK10: =IF($C10="","",IF(flex_cost_input_type="Input all flex costs directly",'Flex Cost Inputs'!AK11,'Flex Volume and Cost Inputs'!AK46)) ->  | AL10: =IF($C10="","",IF(flex_cost_input_type="Input all flex costs directly",'Flex Cost Inputs'!AL11,'Flex Volume and Cost Inputs'!AL46)) ->  | AM10: =IF($C10="","",IF(flex_cost_input_type="Input all flex costs directly",'Flex Cost Inputs'!AM11,'Flex Volume and Cost Inputs'!AM46)) ->  | AN10: =IF($C10="","",IF(flex_cost_input_type="Input all flex costs directly",'Flex Cost Inputs'!AN11,'Flex Volume and Cost Inputs'!AN46)) ->  | AO10: =IF($C10="","",IF(flex_cost_input_type="Input all flex costs directly",'Flex Cost Inputs'!AO11,'Flex Volume and Cost Inputs'!AO46)) ->  | AP10: =IF($C10="","",IF(flex_cost_input_type="Input all flex costs directly",'Flex Cost Inputs'!AP11,'Flex Volume and Cost Inputs'!AP46)) ->  | AQ10: =IF($C10="","",IF(flex_cost_input_type="Input all flex costs directly",'Flex Cost Inputs'!AQ11,'Flex Volume and Cost Inputs'!AQ46)) ->  | AR10: =IF($C10="","",IF(flex_cost_input_type="Input all flex costs directly",'Flex Cost Inputs'!AR11,'Flex Volume and Cost Inputs'!AR46)) ->  | AS10: =IF($C10="","",IF(flex_cost_input_type="Input all flex costs directly",'Flex Cost Inputs'!AS11,'Flex Volume and Cost Inputs'!AS46)) ->  | AT10: =IF($C10="","",IF(flex_cost_input_type="Input all flex costs directly",'Flex Cost Inputs'!AT11,'Flex Volume and Cost Inputs'!AT46)) ->  | AU10: =IF($C10="","",IF(flex_cost_input_type="Input all flex costs directly",'Flex Cost Inputs'!AU11,'Flex Volume and Cost Inputs'!AU46)) ->  | AV10: =IF($C10="","",IF(flex_cost_input_type="Input all flex costs directly",'Flex Cost Inputs'!AV11,'Flex Volume and Cost Inputs'!AV46)) ->  | AW10: =IF($C10="","",IF(flex_cost_input_type="Input all flex costs directly",'Flex Cost Inputs'!AW11,'Flex Volume and Cost Inputs'!AW46)) ->  | AX10: =IF($C10="","",IF(flex_cost_input_type="Input all flex costs directly",'Flex Cost Inputs'!AX11,'Flex Volume and Cost Inputs'!AX46)) ->  | AY10: =IF($C10="","",IF(flex_cost_input_type="Input all flex costs directly",'Flex Cost Inputs'!AY11,'Flex Volume and Cost Inputs'!AY46)) ->  | AZ10: =IF($C10="","",IF(flex_cost_input_type="Input all flex costs directly",'Flex Cost Inputs'!AZ11,'Flex Volume and Cost Inputs'!AZ46)) ->  | BA10: =IF($C10="","",IF(flex_cost_input_type="Input all flex costs directly",'Flex Cost Inputs'!BA11,'Flex Volume and Cost Inputs'!BA46)) ->  | BB10: =IF($C10="","",IF(flex_cost_input_type="Input all flex costs directly",'Flex Cost Inputs'!BB11,'Flex Volume and Cost Inputs'!BB46)) ->  | BC10: =IF($C10="","",IF(flex_cost_input_type="Input all flex costs directly",'Flex Cost Inputs'!BC11,'Flex Volume and Cost Inputs'!BC46)) ->  | BD10: =IF($C10="","",IF(flex_cost_input_type="Input all flex costs directly",'Flex Cost Inputs'!BD11,'Flex Volume and Cost Inputs'!BD46)) ->  | BE10: =IF($C10="","",IF(flex_cost_input_type="Input all flex costs directly",'Flex Cost Inputs'!BE11,'Flex Volume and Cost Inputs'!BE46)) ->  | BF10: =IF($C10="","",IF(flex_cost_input_type="Input all flex costs directly",'Flex Cost Inputs'!BF11,'Flex Volume and Cost Inputs'!BF46)) ->  | BG10: =IF($C10="","",IF(flex_cost_input_type="Input all flex costs directly",'Flex Cost Inputs'!BG11,'Flex Volume and Cost Inputs'!BG46)) ->  | BH10: =IF($C10="","",IF(flex_cost_input_type="Input all flex costs directly",'Flex Cost Inputs'!BH11,'Flex Volume and Cost Inputs'!BH46)) ->  | BI10: =IF($C10="","",IF(flex_cost_input_type="Input all flex costs directly",'Flex Cost Inputs'!BI11,'Flex Volume and Cost Inputs'!BI46)) ->  | BJ10: =IF($C10="","",IF(flex_cost_input_type="Input all flex costs directly",'Flex Cost Inputs'!BJ11,'Flex Volume and Cost Inputs'!BJ46)) ->  | BK10: =IF($C10="","",IF(flex_cost_input_type="Input all flex costs directly",'Flex Cost Inputs'!BK11,'Flex Volume and Cost Inputs'!BK46)) ->  | BL10: =IF($C10="","",IF(flex_cost_input_type="Input all flex costs directly",'Flex Cost Inputs'!BL11,'Flex Volume and Cost Inputs'!BL46)) ->  | BM10: =IF($C10="","",IF(flex_cost_input_type="Input all flex costs directly",'Flex Cost Inputs'!BM11,'Flex Volume and Cost Inputs'!BM46)) ->  | BN10: =IF($C10="","",IF(flex_cost_input_type="Input all flex costs directly",'Flex Cost Inputs'!BN11,'Flex Volume and Cost Inputs'!BN46)) ->  | BO10: =IF($C10="","",IF(flex_cost_input_type="Input all flex costs directly",'Flex Cost Inputs'!BO11,'Flex Volume and Cost Inputs'!BO46)) ->  | BP10: =IF($C10="","",IF(flex_cost_input_type="Input all flex costs directly",'Flex Cost Inputs'!BP11,'Flex Volume and Cost Inputs'!BP46)) ->  | BQ10: =IF($C10="","",IF(flex_cost_input_type="Input all flex costs directly",'Flex Cost Inputs'!BQ11,'Flex Volume and Cost Inputs'!BQ46)) ->  | BR10: =IF($C10="","",IF(flex_cost_input_type="Input all flex costs directly",'Flex Cost Inputs'!BR11,'Flex Volume and Cost Inputs'!BR46)) -> 
